{"text_format":"1","workbook":"xlsx","n_sheets":10,"sheets":["Base Maestra","Instructivo","Resumen de Calidad","XX.CVEPRES-2024","Notas 2025","1.Catálogo Espacio Temporal","2.Catálgo CAI","3.Catálogo COG","4 Equivalencias COG=CFA","5. Equivalencias CAI=CFA"],"not_rendered":{"charts":0,"images":1,"macros":1,"external_links":0,"defined_names":40,"comments":2,"pivot_tables":0},"unopened":[],"bounds":{"document_bytes":16777216,"sheet_cells":100000,"rows_first":2000,"rows_last":500,"rows_between":2000,"halvings":0,"cell_chars":16384,"cell_head_chars":4096},"cells_cut":0,"cells_raw":0,"read":"whole","date_system":"1900"}

{"sheet":"Base Maestra","index":0,"n_rows":567,"n_cols":25,"rows_kept":567,"cut":false,"hidden":true,"merged":[[2,5,2,10],[2,12,2,17],[72,0,72,2]]}
["Cuenta Pública 2024"]
["Miles de Pesos ",null,null,null,null,null,null,null,null,null,null,null,null,null,null,null,null,null,null,null,null,"Penalización por días de retraso en la calificación de Oportunidad"]
[null,null,null,null,null,"Referencia de Subfunción_Cuenta Pública",null,null,null,null,null,null,"Referencia de Subfunción_Matriz de Gasto",null,null,null,null,null,null,"Fuente de Financiamiento Evaluda"]
["Número de Proveedor","Grupo","UR","CLUES","Unidad Responsable",1,2,3,4,5,8,"Suma",1,2,3,4,5,8,"Suma","A02",null,"Días hábiles de retraso","Penalización","Puntaje de oportunidad","Calificación"]
[null,"Unidad Administrativa",100,9998,"Secretaría",3334.88,0,0,115108.34,0,0,{"$f":"SUM(F5:K5)","v":118443.22},{"$f":"SUMIFS('XX.CVEPRES-2024'!$W$2:$W$1048576,'XX.CVEPRES-2024'!$D$2:$D$1048576,'Base Maestra'!$A5,'XX.CVEPRES-2024'!$F$2:$F$1048576,'Base Maestra'!M$4,'XX.CVEPRES-2024'!$E$2:$E$1048576,'Base Maestra'!$T$4)","v":0},{"$f":"SUMIFS('XX.CVEPRES-2024'!$W$2:$W$1048576,'XX.CVEPRES-2024'!$D$2:$D$1048576,'Base Maestra'!$A5,'XX.CVEPRES-2024'!$F$2:$F$1048576,'Base Maestra'!N$4,'XX.CVEPRES-2024'!$E$2:$E$1048576,'Base Maestra'!$T$4)","v":0},{"$f":"SUMIFS('XX.CVEPRES-2024'!$W$2:$W$1048576,'XX.CVEPRES-2024'!$D$2:$D$1048576,'Base Maestra'!$A5,'XX.CVEPRES-2024'!$F$2:$F$1048576,'Base Maestra'!O$4,'XX.CVEPRES-2024'!$E$2:$E$1048576,'Base Maestra'!$T$4)","v":0},{"$f":"SUMIFS('XX.CVEPRES-2024'!$W$2:$W$1048576,'XX.CVEPRES-2024'!$D$2:$D$1048576,'Base Maestra'!$A5,'XX.CVEPRES-2024'!$F$2:$F$1048576,'Base Maestra'!P$4,'XX.CVEPRES-2024'!$E$2:$E$1048576,'Base Maestra'!$T$4)","v":0},{"$f":"SUMIFS('XX.CVEPRES-2024'!$W$2:$W$1048576,'XX.CVEPRES-2024'!$D$2:$D$1048576,'Base Maestra'!$A5,'XX.CVEPRES-2024'!$F$2:$F$1048576,'Base Maestra'!Q$4,'XX.CVEPRES-2024'!$E$2:$E$1048576,'Base Maestra'!$T$4)","v":0},{"$f":"SUMIFS('XX.CVEPRES-2024'!$W$2:$W$1048576,'XX.CVEPRES-2024'!$D$2:$D$1048576,'Base Maestra'!$A5,'XX.CVEPRES-2024'!$F$2:$F$1048576,'Base Maestra'!R$4,'XX.CVEPRES-2024'!$E$2:$E$1048576,'Base Maestra'!$T$4)","v":0},{"$f":"SUM(M5:R5)","v":0},null,null,0,0,1,100]
[null,"Unidad Administrativa",111,9998,"Abogado General",0,0,0,84368.46,0,0,{"$f":"SUM(F6:K6)","v":84368.46},{"$f":"SUMIFS('XX.CVEPRES-2024'!$W$2:$W$1048576,'XX.CVEPRES-2024'!$D$2:$D$1048576,'Base Maestra'!$A6,'XX.CVEPRES-2024'!$F$2:$F$1048576,'Base Maestra'!M$4,'XX.CVEPRES-2024'!$E$2:$E$1048576,'Base Maestra'!$T$4)","v":0},{"$f":"SUMIFS('XX.CVEPRES-2024'!$W$2:$W$1048576,'XX.CVEPRES-2024'!$D$2:$D$1048576,'Base Maestra'!$A6,'XX.CVEPRES-2024'!$F$2:$F$1048576,'Base Maestra'!N$4,'XX.CVEPRES-2024'!$E$2:$E$1048576,'Base Maestra'!$T$4)","v":0},{"$f":"SUMIFS('XX.CVEPRES-2024'!$W$2:$W$1048576,'XX.CVEPRES-2024'!$D$2:$D$1048576,'Base Maestra'!$A6,'XX.CVEPRES-2024'!$F$2:$F$1048576,'Base Maestra'!O$4,'XX.CVEPRES-2024'!$E$2:$E$1048576,'Base Maestra'!$T$4)","v":0},{"$f":"SUMIFS('XX.CVEPRES-2024'!$W$2:$W$1048576,'XX.CVEPRES-2024'!$D$2:$D$1048576,'Base Maestra'!$A6,'XX.CVEPRES-2024'!$F$2:$F$1048576,'Base Maestra'!P$4,'XX.CVEPRES-2024'!$E$2:$E$1048576,'Base Maestra'!$T$4)","v":0},{"$f":"SUMIFS('XX.CVEPRES-2024'!$W$2:$W$1048576,'XX.CVEPRES-2024'!$D$2:$D$1048576,'Base Maestra'!$A6,'XX.CVEPRES-2024'!$F$2:$F$1048576,'Base Maestra'!Q$4,'XX.CVEPRES-2024'!$E$2:$E$1048576,'Base Maestra'!$T$4)","v":0},{"$f":"SUMIFS('XX.CVEPRES-2024'!$W$2:$W$1048576,'XX.CVEPRES-2024'!$D$2:$D$1048576,'Base Maestra'!$A6,'XX.CVEPRES-2024'!$F$2:$F$1048576,'Base Maestra'!R$4,'XX.CVEPRES-2024'!$E$2:$E$1048576,'Base Maestra'!$T$4)","v":0},{"$f":"SUM(M6:R6)","v":0},null,null,1,0.05,0.95,95]
[null,"Unidad Administrativa",112,"DFSSA004743","Dirección General de Comunicación Social",0,0,0,72014.22,0,0,72014.22,{"$f":"SUMIFS('XX.CVEPRES-2024'!$W$2:$W$1048576,'XX.CVEPRES-2024'!$D$2:$D$1048576,'Base Maestra'!$A7,'XX.CVEPRES-2024'!$F$2:$F$1048576,'Base Maestra'!M$4,'XX.CVEPRES-2024'!$E$2:$E$1048576,'Base Maestra'!$T$4)","v":0},{"$f":"SUMIFS('XX.CVEPRES-2024'!$W$2:$W$1048576,'XX.CVEPRES-2024'!$D$2:$D$1048576,'Base Maestra'!$A7,'XX.CVEPRES-2024'!$F$2:$F$1048576,'Base Maestra'!N$4,'XX.CVEPRES-2024'!$E$2:$E$1048576,'Base Maestra'!$T$4)","v":0},{"$f":"SUMIFS('XX.CVEPRES-2024'!$W$2:$W$1048576,'XX.CVEPRES-2024'!$D$2:$D$1048576,'Base Maestra'!$A7,'XX.CVEPRES-2024'!$F$2:$F$1048576,'Base Maestra'!O$4,'XX.CVEPRES-2024'!$E$2:$E$1048576,'Base Maestra'!$T$4)","v":0},{"$f":"SUMIFS('XX.CVEPRES-2024'!$W$2:$W$1048576,'XX.CVEPRES-2024'!$D$2:$D$1048576,'Base Maestra'!$A7,'XX.CVEPRES-2024'!$F$2:$F$1048576,'Base Maestra'!P$4,'XX.CVEPRES-2024'!$E$2:$E$1048576,'Base Maestra'!$T$4)","v":0},{"$f":"SUMIFS('XX.CVEPRES-2024'!$W$2:$W$1048576,'XX.CVEPRES-2024'!$D$2:$D$1048576,'Base Maestra'!$A7,'XX.CVEPRES-2024'!$F$2:$F$1048576,'Base Maestra'!Q$4,'XX.CVEPRES-2024'!$E$2:$E$1048576,'Base Maestra'!$T$4)","v":0},{"$f":"SUMIFS('XX.CVEPRES-2024'!$W$2:$W$1048576,'XX.CVEPRES-2024'!$D$2:$D$1048576,'Base Maestra'!$A7,'XX.CVEPRES-2024'!$F$2:$F$1048576,'Base Maestra'!R$4,'XX.CVEPRES-2024'!$E$2:$E$1048576,'Base Maestra'!$T$4)","v":0},0,null,null,2,0.1,0.9,90]
[null,"Unidad Administrativa",114,"DFSSA004673","Unidad de Análisis Económico",0,0,0,12088.48,0,0,12088.48,{"$f":"SUMIFS('XX.CVEPRES-2024'!$W$2:$W$1048576,'XX.CVEPRES-2024'!$D$2:$D$1048576,'Base Maestra'!$A8,'XX.CVEPRES-2024'!$F$2:$F$1048576,'Base Maestra'!M$4,'XX.CVEPRES-2024'!$E$2:$E$1048576,'Base Maestra'!$T$4)","v":0},{"$f":"SUMIFS('XX.CVEPRES-2024'!$W$2:$W$1048576,'XX.CVEPRES-2024'!$D$2:$D$1048576,'Base Maestra'!$A8,'XX.CVEPRES-2024'!$F$2:$F$1048576,'Base Maestra'!N$4,'XX.CVEPRES-2024'!$E$2:$E$1048576,'Base Maestra'!$T$4)","v":0},{"$f":"SUMIFS('XX.CVEPRES-2024'!$W$2:$W$1048576,'XX.CVEPRES-2024'!$D$2:$D$1048576,'Base Maestra'!$A8,'XX.CVEPRES-2024'!$F$2:$F$1048576,'Base Maestra'!O$4,'XX.CVEPRES-2024'!$E$2:$E$1048576,'Base Maestra'!$T$4)","v":0},{"$f":"SUMIFS('XX.CVEPRES-2024'!$W$2:$W$1048576,'XX.CVEPRES-2024'!$D$2:$D$1048576,'Base Maestra'!$A8,'XX.CVEPRES-2024'!$F$2:$F$1048576,'Base Maestra'!P$4,'XX.CVEPRES-2024'!$E$2:$E$1048576,'Base Maestra'!$T$4)","v":0},{"$f":"SUMIFS('XX.CVEPRES-2024'!$W$2:$W$1048576,'XX.CVEPRES-2024'!$D$2:$D$1048576,'Base Maestra'!$A8,'XX.CVEPRES-2024'!$F$2:$F$1048576,'Base Maestra'!Q$4,'XX.CVEPRES-2024'!$E$2:$E$1048576,'Base Maestra'!$T$4)","v":0},{"$f":"SUMIFS('XX.CVEPRES-2024'!$W$2:$W$1048576,'XX.CVEPRES-2024'!$D$2:$D$1048576,'Base Maestra'!$A8,'XX.CVEPRES-2024'!$F$2:$F$1048576,'Base Maestra'!R$4,'XX.CVEPRES-2024'!$E$2:$E$1048576,'Base Maestra'!$T$4)","v":0},0,null,null,3,0.15,0.85,85]
[null,"Unidad Administrativa",160,"DFSSA004656","Comisión Coordinadora de Institutos Nacionales de Salud y Hospitales de Alta Especialidad",0,1405486.0299999998,1912.85,13402.9,65592.649999999994,0,1486394.4299999997,{"$f":"SUMIFS('XX.CVEPRES-2024'!$W$2:$W$1048576,'XX.CVEPRES-2024'!$D$2:$D$1048576,'Base Maestra'!$A9,'XX.CVEPRES-2024'!$F$2:$F$1048576,'Base Maestra'!M$4,'XX.CVEPRES-2024'!$E$2:$E$1048576,'Base Maestra'!$T$4)","v":0},{"$f":"SUMIFS('XX.CVEPRES-2024'!$W$2:$W$1048576,'XX.CVEPRES-2024'!$D$2:$D$1048576,'Base Maestra'!$A9,'XX.CVEPRES-2024'!$F$2:$F$1048576,'Base Maestra'!N$4,'XX.CVEPRES-2024'!$E$2:$E$1048576,'Base Maestra'!$T$4)","v":0},{"$f":"SUMIFS('XX.CVEPRES-2024'!$W$2:$W$1048576,'XX.CVEPRES-2024'!$D$2:$D$1048576,'Base Maestra'!$A9,'XX.CVEPRES-2024'!$F$2:$F$1048576,'Base Maestra'!O$4,'XX.CVEPRES-2024'!$E$2:$E$1048576,'Base Maestra'!$T$4)","v":0},{"$f":"SUMIFS('XX.CVEPRES-2024'!$W$2:$W$1048576,'XX.CVEPRES-2024'!$D$2:$D$1048576,'Base Maestra'!$A9,'XX.CVEPRES-2024'!$F$2:$F$1048576,'Base Maestra'!P$4,'XX.CVEPRES-2024'!$E$2:$E$1048576,'Base Maestra'!$T$4)","v":0},{"$f":"SUMIFS('XX.CVEPRES-2024'!$W$2:$W$1048576,'XX.CVEPRES-2024'!$D$2:$D$1048576,'Base Maestra'!$A9,'XX.CVEPRES-2024'!$F$2:$F$1048576,'Base Maestra'!Q$4,'XX.CVEPRES-2024'!$E$2:$E$1048576,'Base Maestra'!$T$4)","v":0},{"$f":"SUMIFS('XX.CVEPRES-2024'!$W$2:$W$1048576,'XX.CVEPRES-2024'!$D$2:$D$1048576,'Base Maestra'!$A9,'XX.CVEPRES-2024'!$F$2:$F$1048576,'Base Maestra'!R$4,'XX.CVEPRES-2024'!$E$2:$E$1048576,'Base Maestra'!$T$4)","v":0},0,null,null,4,0.2,0.8,80]
[null,"Unidad Administrativa",170,"DFSSA004620","Unidad Coordinadora de Vinculación y Participación Social",0,0,0,40937.75,0,0,40937.75,{"$f":"SUMIFS('XX.CVEPRES-2024'!$W$2:$W$1048576,'XX.CVEPRES-2024'!$D$2:$D$1048576,'Base Maestra'!$A10,'XX.CVEPRES-2024'!$F$2:$F$1048576,'Base Maestra'!M$4,'XX.CVEPRES-2024'!$E$2:$E$1048576,'Base Maestra'!$T$4)","v":0},{"$f":"SUMIFS('XX.CVEPRES-2024'!$W$2:$W$1048576,'XX.CVEPRES-2024'!$D$2:$D$1048576,'Base Maestra'!$A10,'XX.CVEPRES-2024'!$F$2:$F$1048576,'Base Maestra'!N$4,'XX.CVEPRES-2024'!$E$2:$E$1048576,'Base Maestra'!$T$4)","v":0},{"$f":"SUMIFS('XX.CVEPRES-2024'!$W$2:$W$1048576,'XX.CVEPRES-2024'!$D$2:$D$1048576,'Base Maestra'!$A10,'XX.CVEPRES-2024'!$F$2:$F$1048576,'Base Maestra'!O$4,'XX.CVEPRES-2024'!$E$2:$E$1048576,'Base Maestra'!$T$4)","v":0},{"$f":"SUMIFS('XX.CVEPRES-2024'!$W$2:$W$1048576,'XX.CVEPRES-2024'!$D$2:$D$1048576,'Base Maestra'!$A10,'XX.CVEPRES-2024'!$F$2:$F$1048576,'Base Maestra'!P$4,'XX.CVEPRES-2024'!$E$2:$E$1048576,'Base Maestra'!$T$4)","v":0},{"$f":"SUMIFS('XX.CVEPRES-2024'!$W$2:$W$1048576,'XX.CVEPRES-2024'!$D$2:$D$1048576,'Base Maestra'!$A10,'XX.CVEPRES-2024'!$F$2:$F$1048576,'Base Maestra'!Q$4,'XX.CVEPRES-2024'!$E$2:$E$1048576,'Base Maestra'!$T$4)","v":0},{"$f":"SUMIFS('XX.CVEPRES-2024'!$W$2:$W$1048576,'XX.CVEPRES-2024'!$D$2:$D$1048576,'Base Maestra'!$A10,'XX.CVEPRES-2024'!$F$2:$F$1048576,'Base Maestra'!R$4,'XX.CVEPRES-2024'!$E$2:$E$1048576,'Base Maestra'!$T$4)","v":0},0,null,null,5,0.25,0.75,75]
[null,"Unidad Administrativa",171,"DFSSA004615","Secretariado Técnico del Consejo Nacional de Salud",0,0,0,33245.42,0,0,33245.42,{"$f":"SUMIFS('XX.CVEPRES-2024'!$W$2:$W$1048576,'XX.CVEPRES-2024'!$D$2:$D$1048576,'Base Maestra'!$A11,'XX.CVEPRES-2024'!$F$2:$F$1048576,'Base Maestra'!M$4,'XX.CVEPRES-2024'!$E$2:$E$1048576,'Base Maestra'!$T$4)","v":0},{"$f":"SUMIFS('XX.CVEPRES-2024'!$W$2:$W$1048576,'XX.CVEPRES-2024'!$D$2:$D$1048576,'Base Maestra'!$A11,'XX.CVEPRES-2024'!$F$2:$F$1048576,'Base Maestra'!N$4,'XX.CVEPRES-2024'!$E$2:$E$1048576,'Base Maestra'!$T$4)","v":0},{"$f":"SUMIFS('XX.CVEPRES-2024'!$W$2:$W$1048576,'XX.CVEPRES-2024'!$D$2:$D$1048576,'Base Maestra'!$A11,'XX.CVEPRES-2024'!$F$2:$F$1048576,'Base Maestra'!O$4,'XX.CVEPRES-2024'!$E$2:$E$1048576,'Base Maestra'!$T$4)","v":0},{"$f":"SUMIFS('XX.CVEPRES-2024'!$W$2:$W$1048576,'XX.CVEPRES-2024'!$D$2:$D$1048576,'Base Maestra'!$A11,'XX.CVEPRES-2024'!$F$2:$F$1048576,'Base Maestra'!P$4,'XX.CVEPRES-2024'!$E$2:$E$1048576,'Base Maestra'!$T$4)","v":0},{"$f":"SUMIFS('XX.CVEPRES-2024'!$W$2:$W$1048576,'XX.CVEPRES-2024'!$D$2:$D$1048576,'Base Maestra'!$A11,'XX.CVEPRES-2024'!$F$2:$F$1048576,'Base Maestra'!Q$4,'XX.CVEPRES-2024'!$E$2:$E$1048576,'Base Maestra'!$T$4)","v":0},{"$f":"SUMIFS('XX.CVEPRES-2024'!$W$2:$W$1048576,'XX.CVEPRES-2024'!$D$2:$D$1048576,'Base Maestra'!$A11,'XX.CVEPRES-2024'!$F$2:$F$1048576,'Base Maestra'!R$4,'XX.CVEPRES-2024'!$E$2:$E$1048576,'Base Maestra'!$T$4)","v":0},0,null,null,6,0.3,0.7,70]
[null,"Unidad Administrativa",172,"DFSSA004586","Dirección General de Relaciones Internacionales",0,0,0,259043.19,0,0,259043.19,{"$f":"SUMIFS('XX.CVEPRES-2024'!$W$2:$W$1048576,'XX.CVEPRES-2024'!$D$2:$D$1048576,'Base Maestra'!$A12,'XX.CVEPRES-2024'!$F$2:$F$1048576,'Base Maestra'!M$4,'XX.CVEPRES-2024'!$E$2:$E$1048576,'Base Maestra'!$T$4)","v":0},{"$f":"SUMIFS('XX.CVEPRES-2024'!$W$2:$W$1048576,'XX.CVEPRES-2024'!$D$2:$D$1048576,'Base Maestra'!$A12,'XX.CVEPRES-2024'!$F$2:$F$1048576,'Base Maestra'!N$4,'XX.CVEPRES-2024'!$E$2:$E$1048576,'Base Maestra'!$T$4)","v":0},{"$f":"SUMIFS('XX.CVEPRES-2024'!$W$2:$W$1048576,'XX.CVEPRES-2024'!$D$2:$D$1048576,'Base Maestra'!$A12,'XX.CVEPRES-2024'!$F$2:$F$1048576,'Base Maestra'!O$4,'XX.CVEPRES-2024'!$E$2:$E$1048576,'Base Maestra'!$T$4)","v":0},{"$f":"SUMIFS('XX.CVEPRES-2024'!$W$2:$W$1048576,'XX.CVEPRES-2024'!$D$2:$D$1048576,'Base Maestra'!$A12,'XX.CVEPRES-2024'!$F$2:$F$1048576,'Base Maestra'!P$4,'XX.CVEPRES-2024'!$E$2:$E$1048576,'Base Maestra'!$T$4)","v":0},{"$f":"SUMIFS('XX.CVEPRES-2024'!$W$2:$W$1048576,'XX.CVEPRES-2024'!$D$2:$D$1048576,'Base Maestra'!$A12,'XX.CVEPRES-2024'!$F$2:$F$1048576,'Base Maestra'!Q$4,'XX.CVEPRES-2024'!$E$2:$E$1048576,'Base Maestra'!$T$4)","v":0},{"$f":"SUMIFS('XX.CVEPRES-2024'!$W$2:$W$1048576,'XX.CVEPRES-2024'!$D$2:$D$1048576,'Base Maestra'!$A12,'XX.CVEPRES-2024'!$F$2:$F$1048576,'Base Maestra'!R$4,'XX.CVEPRES-2024'!$E$2:$E$1048576,'Base Maestra'!$T$4)","v":0},0,null,null,7,0.35,0.65,65]
[null,"Unidad Administrativa",300,"DFSSA004632","Subsecretaría de Prevención y Promoción de la Salud",163900.01,0,0,76643.97,121772.35,0,362316.33,{"$f":"SUMIFS('XX.CVEPRES-2024'!$W$2:$W$1048576,'XX.CVEPRES-2024'!$D$2:$D$1048576,'Base Maestra'!$A13,'XX.CVEPRES-2024'!$F$2:$F$1048576,'Base Maestra'!M$4,'XX.CVEPRES-2024'!$E$2:$E$1048576,'Base Maestra'!$T$4)","v":0},{"$f":"SUMIFS('XX.CVEPRES-2024'!$W$2:$W$1048576,'XX.CVEPRES-2024'!$D$2:$D$1048576,'Base Maestra'!$A13,'XX.CVEPRES-2024'!$F$2:$F$1048576,'Base Maestra'!N$4,'XX.CVEPRES-2024'!$E$2:$E$1048576,'Base Maestra'!$T$4)","v":0},{"$f":"SUMIFS('XX.CVEPRES-2024'!$W$2:$W$1048576,'XX.CVEPRES-2024'!$D$2:$D$1048576,'Base Maestra'!$A13,'XX.CVEPRES-2024'!$F$2:$F$1048576,'Base Maestra'!O$4,'XX.CVEPRES-2024'!$E$2:$E$1048576,'Base Maestra'!$T$4)","v":0},{"$f":"SUMIFS('XX.CVEPRES-2024'!$W$2:$W$1048576,'XX.CVEPRES-2024'!$D$2:$D$1048576,'Base Maestra'!$A13,'XX.CVEPRES-2024'!$F$2:$F$1048576,'Base Maestra'!P$4,'XX.CVEPRES-2024'!$E$2:$E$1048576,'Base Maestra'!$T$4)","v":0},{"$f":"SUMIFS('XX.CVEPRES-2024'!$W$2:$W$1048576,'XX.CVEPRES-2024'!$D$2:$D$1048576,'Base Maestra'!$A13,'XX.CVEPRES-2024'!$F$2:$F$1048576,'Base Maestra'!Q$4,'XX.CVEPRES-2024'!$E$2:$E$1048576,'Base Maestra'!$T$4)","v":0},{"$f":"SUMIFS('XX.CVEPRES-2024'!$W$2:$W$1048576,'XX.CVEPRES-2024'!$D$2:$D$1048576,'Base Maestra'!$A13,'XX.CVEPRES-2024'!$F$2:$F$1048576,'Base Maestra'!R$4,'XX.CVEPRES-2024'!$E$2:$E$1048576,'Base Maestra'!$T$4)","v":0},0,null,null,8,0.4,0.6,60]
[96,"Unidad Administrativa",310,"DFSSA004661","Dirección General de Promoción de la Salud",187093.77000000002,0,0,49998.05,0,0,237091.82,{"$f":"SUMIFS('XX.CVEPRES-2024'!$W$2:$W$1048576,'XX.CVEPRES-2024'!$D$2:$D$1048576,'Base Maestra'!$A14,'XX.CVEPRES-2024'!$F$2:$F$1048576,'Base Maestra'!M$4,'XX.CVEPRES-2024'!$E$2:$E$1048576,'Base Maestra'!$T$4)","v":0},{"$f":"SUMIFS('XX.CVEPRES-2024'!$W$2:$W$1048576,'XX.CVEPRES-2024'!$D$2:$D$1048576,'Base Maestra'!$A14,'XX.CVEPRES-2024'!$F$2:$F$1048576,'Base Maestra'!N$4,'XX.CVEPRES-2024'!$E$2:$E$1048576,'Base Maestra'!$T$4)","v":0},{"$f":"SUMIFS('XX.CVEPRES-2024'!$W$2:$W$1048576,'XX.CVEPRES-2024'!$D$2:$D$1048576,'Base Maestra'!$A14,'XX.CVEPRES-2024'!$F$2:$F$1048576,'Base Maestra'!O$4,'XX.CVEPRES-2024'!$E$2:$E$1048576,'Base Maestra'!$T$4)","v":0},{"$f":"SUMIFS('XX.CVEPRES-2024'!$W$2:$W$1048576,'XX.CVEPRES-2024'!$D$2:$D$1048576,'Base Maestra'!$A14,'XX.CVEPRES-2024'!$F$2:$F$1048576,'Base Maestra'!P$4,'XX.CVEPRES-2024'!$E$2:$E$1048576,'Base Maestra'!$T$4)","v":0},{"$f":"SUMIFS('XX.CVEPRES-2024'!$W$2:$W$1048576,'XX.CVEPRES-2024'!$D$2:$D$1048576,'Base Maestra'!$A14,'XX.CVEPRES-2024'!$F$2:$F$1048576,'Base Maestra'!Q$4,'XX.CVEPRES-2024'!$E$2:$E$1048576,'Base Maestra'!$T$4)","v":0},{"$f":"SUMIFS('XX.CVEPRES-2024'!$W$2:$W$1048576,'XX.CVEPRES-2024'!$D$2:$D$1048576,'Base Maestra'!$A14,'XX.CVEPRES-2024'!$F$2:$F$1048576,'Base Maestra'!R$4,'XX.CVEPRES-2024'!$E$2:$E$1048576,'Base Maestra'!$T$4)","v":0},0,null,null,9,0.45,0.55000000000000004,55]
[92,"Unidad Administrativa",315,"DFSSA004702","Secretariado Técnico del Consejo Nacional para la Prevención de Accidentes",0,0,0,40889.539999999994,0,0,40889.539999999994,{"$f":"SUMIFS('XX.CVEPRES-2024'!$W$2:$W$1048576,'XX.CVEPRES-2024'!$D$2:$D$1048576,'Base Maestra'!$A15,'XX.CVEPRES-2024'!$F$2:$F$1048576,'Base Maestra'!M$4,'XX.CVEPRES-2024'!$E$2:$E$1048576,'Base Maestra'!$T$4)","v":0},{"$f":"SUMIFS('XX.CVEPRES-2024'!$W$2:$W$1048576,'XX.CVEPRES-2024'!$D$2:$D$1048576,'Base Maestra'!$A15,'XX.CVEPRES-2024'!$F$2:$F$1048576,'Base Maestra'!N$4,'XX.CVEPRES-2024'!$E$2:$E$1048576,'Base Maestra'!$T$4)","v":0},{"$f":"SUMIFS('XX.CVEPRES-2024'!$W$2:$W$1048576,'XX.CVEPRES-2024'!$D$2:$D$1048576,'Base Maestra'!$A15,'XX.CVEPRES-2024'!$F$2:$F$1048576,'Base Maestra'!O$4,'XX.CVEPRES-2024'!$E$2:$E$1048576,'Base Maestra'!$T$4)","v":0},{"$f":"SUMIFS('XX.CVEPRES-2024'!$W$2:$W$1048576,'XX.CVEPRES-2024'!$D$2:$D$1048576,'Base Maestra'!$A15,'XX.CVEPRES-2024'!$F$2:$F$1048576,'Base Maestra'!P$4,'XX.CVEPRES-2024'!$E$2:$E$1048576,'Base Maestra'!$T$4)","v":0},{"$f":"SUMIFS('XX.CVEPRES-2024'!$W$2:$W$1048576,'XX.CVEPRES-2024'!$D$2:$D$1048576,'Base Maestra'!$A15,'XX.CVEPRES-2024'!$F$2:$F$1048576,'Base Maestra'!Q$4,'XX.CVEPRES-2024'!$E$2:$E$1048576,'Base Maestra'!$T$4)","v":0},{"$f":"SUMIFS('XX.CVEPRES-2024'!$W$2:$W$1048576,'XX.CVEPRES-2024'!$D$2:$D$1048576,'Base Maestra'!$A15,'XX.CVEPRES-2024'!$F$2:$F$1048576,'Base Maestra'!R$4,'XX.CVEPRES-2024'!$E$2:$E$1048576,'Base Maestra'!$T$4)","v":0},0,null,null,10,0.5,0.5,50]
[95,"Unidad Administrativa",316,"DFSSA004726","Dirección General de Epidemiología",487889.29,0,0,212203.93,0,0,700093.22,{"$f":"SUMIFS('XX.CVEPRES-2024'!$W$2:$W$1048576,'XX.CVEPRES-2024'!$D$2:$D$1048576,'Base Maestra'!$A16,'XX.CVEPRES-2024'!$F$2:$F$1048576,'Base Maestra'!M$4,'XX.CVEPRES-2024'!$E$2:$E$1048576,'Base Maestra'!$T$4)","v":0},{"$f":"SUMIFS('XX.CVEPRES-2024'!$W$2:$W$1048576,'XX.CVEPRES-2024'!$D$2:$D$1048576,'Base Maestra'!$A16,'XX.CVEPRES-2024'!$F$2:$F$1048576,'Base Maestra'!N$4,'XX.CVEPRES-2024'!$E$2:$E$1048576,'Base Maestra'!$T$4)","v":0},{"$f":"SUMIFS('XX.CVEPRES-2024'!$W$2:$W$1048576,'XX.CVEPRES-2024'!$D$2:$D$1048576,'Base Maestra'!$A16,'XX.CVEPRES-2024'!$F$2:$F$1048576,'Base Maestra'!O$4,'XX.CVEPRES-2024'!$E$2:$E$1048576,'Base Maestra'!$T$4)","v":0},{"$f":"SUMIFS('XX.CVEPRES-2024'!$W$2:$W$1048576,'XX.CVEPRES-2024'!$D$2:$D$1048576,'Base Maestra'!$A16,'XX.CVEPRES-2024'!$F$2:$F$1048576,'Base Maestra'!P$4,'XX.CVEPRES-2024'!$E$2:$E$1048576,'Base Maestra'!$T$4)","v":0},{"$f":"SUMIFS('XX.CVEPRES-2024'!$W$2:$W$1048576,'XX.CVEPRES-2024'!$D$2:$D$1048576,'Base Maestra'!$A16,'XX.CVEPRES-2024'!$F$2:$F$1048576,'Base Maestra'!Q$4,'XX.CVEPRES-2024'!$E$2:$E$1048576,'Base Maestra'!$T$4)","v":0},{"$f":"SUMIFS('XX.CVEPRES-2024'!$W$2:$W$1048576,'XX.CVEPRES-2024'!$D$2:$D$1048576,'Base Maestra'!$A16,'XX.CVEPRES-2024'!$F$2:$F$1048576,'Base Maestra'!R$4,'XX.CVEPRES-2024'!$E$2:$E$1048576,'Base Maestra'!$T$4)","v":0},0,null,null,11,0.55000000000000004,0.45,45]
[null,"Unidad Administrativa",500,"DFSSA004760","Unidad de Administración y Finanzas",0,0,0,2513414.04,14559.78,0,2527973.8199999998,{"$f":"SUMIFS('XX.CVEPRES-2024'!$W$2:$W$1048576,'XX.CVEPRES-2024'!$D$2:$D$1048576,'Base Maestra'!$A17,'XX.CVEPRES-2024'!$F$2:$F$1048576,'Base Maestra'!M$4,'XX.CVEPRES-2024'!$E$2:$E$1048576,'Base Maestra'!$T$4)","v":0},{"$f":"SUMIFS('XX.CVEPRES-2024'!$W$2:$W$1048576,'XX.CVEPRES-2024'!$D$2:$D$1048576,'Base Maestra'!$A17,'XX.CVEPRES-2024'!$F$2:$F$1048576,'Base Maestra'!N$4,'XX.CVEPRES-2024'!$E$2:$E$1048576,'Base Maestra'!$T$4)","v":0},{"$f":"SUMIFS('XX.CVEPRES-2024'!$W$2:$W$1048576,'XX.CVEPRES-2024'!$D$2:$D$1048576,'Base Maestra'!$A17,'XX.CVEPRES-2024'!$F$2:$F$1048576,'Base Maestra'!O$4,'XX.CVEPRES-2024'!$E$2:$E$1048576,'Base Maestra'!$T$4)","v":0},{"$f":"SUMIFS('XX.CVEPRES-2024'!$W$2:$W$1048576,'XX.CVEPRES-2024'!$D$2:$D$1048576,'Base Maestra'!$A17,'XX.CVEPRES-2024'!$F$2:$F$1048576,'Base Maestra'!P$4,'XX.CVEPRES-2024'!$E$2:$E$1048576,'Base Maestra'!$T$4)","v":0},{"$f":"SUMIFS('XX.CVEPRES-2024'!$W$2:$W$1048576,'XX.CVEPRES-2024'!$D$2:$D$1048576,'Base Maestra'!$A17,'XX.CVEPRES-2024'!$F$2:$F$1048576,'Base Maestra'!Q$4,'XX.CVEPRES-2024'!$E$2:$E$1048576,'Base Maestra'!$T$4)","v":0},{"$f":"SUMIFS('XX.CVEPRES-2024'!$W$2:$W$1048576,'XX.CVEPRES-2024'!$D$2:$D$1048576,'Base Maestra'!$A17,'XX.CVEPRES-2024'!$F$2:$F$1048576,'Base Maestra'!R$4,'XX.CVEPRES-2024'!$E$2:$E$1048576,'Base Maestra'!$T$4)","v":0},0,null,null,12,0.6,0.4,40]
[48,"Unidad Administrativa",510,"DFSSA004772","Dirección General de Programación y Presupuesto",0,0,0,97309.84,0,0,97309.84,{"$f":"SUMIFS('XX.CVEPRES-2024'!$W$2:$W$1048576,'XX.CVEPRES-2024'!$D$2:$D$1048576,'Base Maestra'!$A18,'XX.CVEPRES-2024'!$F$2:$F$1048576,'Base Maestra'!M$4,'XX.CVEPRES-2024'!$E$2:$E$1048576,'Base Maestra'!$T$4)","v":0},{"$f":"SUMIFS('XX.CVEPRES-2024'!$W$2:$W$1048576,'XX.CVEPRES-2024'!$D$2:$D$1048576,'Base Maestra'!$A18,'XX.CVEPRES-2024'!$F$2:$F$1048576,'Base Maestra'!N$4,'XX.CVEPRES-2024'!$E$2:$E$1048576,'Base Maestra'!$T$4)","v":0},{"$f":"SUMIFS('XX.CVEPRES-2024'!$W$2:$W$1048576,'XX.CVEPRES-2024'!$D$2:$D$1048576,'Base Maestra'!$A18,'XX.CVEPRES-2024'!$F$2:$F$1048576,'Base Maestra'!O$4,'XX.CVEPRES-2024'!$E$2:$E$1048576,'Base Maestra'!$T$4)","v":0},{"$f":"SUMIFS('XX.CVEPRES-2024'!$W$2:$W$1048576,'XX.CVEPRES-2024'!$D$2:$D$1048576,'Base Maestra'!$A18,'XX.CVEPRES-2024'!$F$2:$F$1048576,'Base Maestra'!P$4,'XX.CVEPRES-2024'!$E$2:$E$1048576,'Base Maestra'!$T$4)","v":0},{"$f":"SUMIFS('XX.CVEPRES-2024'!$W$2:$W$1048576,'XX.CVEPRES-2024'!$D$2:$D$1048576,'Base Maestra'!$A18,'XX.CVEPRES-2024'!$F$2:$F$1048576,'Base Maestra'!Q$4,'XX.CVEPRES-2024'!$E$2:$E$1048576,'Base Maestra'!$T$4)","v":0},{"$f":"SUMIFS('XX.CVEPRES-2024'!$W$2:$W$1048576,'XX.CVEPRES-2024'!$D$2:$D$1048576,'Base Maestra'!$A18,'XX.CVEPRES-2024'!$F$2:$F$1048576,'Base Maestra'!R$4,'XX.CVEPRES-2024'!$E$2:$E$1048576,'Base Maestra'!$T$4)","v":0},0,null,null,13,0.65,0.35,35]
[null,"Unidad Administrativa",511,"DFSSA004796","Dirección General de Tecnologías de la Información",0,0,0,96597.36,0,0,96597.36,{"$f":"SUMIFS('XX.CVEPRES-2024'!$W$2:$W$1048576,'XX.CVEPRES-2024'!$D$2:$D$1048576,'Base Maestra'!$A19,'XX.CVEPRES-2024'!$F$2:$F$1048576,'Base Maestra'!M$4,'XX.CVEPRES-2024'!$E$2:$E$1048576,'Base Maestra'!$T$4)","v":0},{"$f":"SUMIFS('XX.CVEPRES-2024'!$W$2:$W$1048576,'XX.CVEPRES-2024'!$D$2:$D$1048576,'Base Maestra'!$A19,'XX.CVEPRES-2024'!$F$2:$F$1048576,'Base Maestra'!N$4,'XX.CVEPRES-2024'!$E$2:$E$1048576,'Base Maestra'!$T$4)","v":0},{"$f":"SUMIFS('XX.CVEPRES-2024'!$W$2:$W$1048576,'XX.CVEPRES-2024'!$D$2:$D$1048576,'Base Maestra'!$A19,'XX.CVEPRES-2024'!$F$2:$F$1048576,'Base Maestra'!O$4,'XX.CVEPRES-2024'!$E$2:$E$1048576,'Base Maestra'!$T$4)","v":0},{"$f":"SUMIFS('XX.CVEPRES-2024'!$W$2:$W$1048576,'XX.CVEPRES-2024'!$D$2:$D$1048576,'Base Maestra'!$A19,'XX.CVEPRES-2024'!$F$2:$F$1048576,'Base Maestra'!P$4,'XX.CVEPRES-2024'!$E$2:$E$1048576,'Base Maestra'!$T$4)","v":0},{"$f":"SUMIFS('XX.CVEPRES-2024'!$W$2:$W$1048576,'XX.CVEPRES-2024'!$D$2:$D$1048576,'Base Maestra'!$A19,'XX.CVEPRES-2024'!$F$2:$F$1048576,'Base Maestra'!Q$4,'XX.CVEPRES-2024'!$E$2:$E$1048576,'Base Maestra'!$T$4)","v":0},{"$f":"SUMIFS('XX.CVEPRES-2024'!$W$2:$W$1048576,'XX.CVEPRES-2024'!$D$2:$D$1048576,'Base Maestra'!$A19,'XX.CVEPRES-2024'!$F$2:$F$1048576,'Base Maestra'!R$4,'XX.CVEPRES-2024'!$E$2:$E$1048576,'Base Maestra'!$T$4)","v":0},0,null,null,14,0.7,0.3,30]
[null,"Unidad Administrativa",512,"DFSSA004825","Dirección General de Recursos Materiales y Servicios Generales",0,0,11506.84,258783.57,0,0,270290.41000000003,{"$f":"SUMIFS('XX.CVEPRES-2024'!$W$2:$W$1048576,'XX.CVEPRES-2024'!$D$2:$D$1048576,'Base Maestra'!$A20,'XX.CVEPRES-2024'!$F$2:$F$1048576,'Base Maestra'!M$4,'XX.CVEPRES-2024'!$E$2:$E$1048576,'Base Maestra'!$T$4)","v":0},{"$f":"SUMIFS('XX.CVEPRES-2024'!$W$2:$W$1048576,'XX.CVEPRES-2024'!$D$2:$D$1048576,'Base Maestra'!$A20,'XX.CVEPRES-2024'!$F$2:$F$1048576,'Base Maestra'!N$4,'XX.CVEPRES-2024'!$E$2:$E$1048576,'Base Maestra'!$T$4)","v":0},{"$f":"SUMIFS('XX.CVEPRES-2024'!$W$2:$W$1048576,'XX.CVEPRES-2024'!$D$2:$D$1048576,'Base Maestra'!$A20,'XX.CVEPRES-2024'!$F$2:$F$1048576,'Base Maestra'!O$4,'XX.CVEPRES-2024'!$E$2:$E$1048576,'Base Maestra'!$T$4)","v":0},{"$f":"SUMIFS('XX.CVEPRES-2024'!$W$2:$W$1048576,'XX.CVEPRES-2024'!$D$2:$D$1048576,'Base Maestra'!$A20,'XX.CVEPRES-2024'!$F$2:$F$1048576,'Base Maestra'!P$4,'XX.CVEPRES-2024'!$E$2:$E$1048576,'Base Maestra'!$T$4)","v":0},{"$f":"SUMIFS('XX.CVEPRES-2024'!$W$2:$W$1048576,'XX.CVEPRES-2024'!$D$2:$D$1048576,'Base Maestra'!$A20,'XX.CVEPRES-2024'!$F$2:$F$1048576,'Base Maestra'!Q$4,'XX.CVEPRES-2024'!$E$2:$E$1048576,'Base Maestra'!$T$4)","v":0},{"$f":"SUMIFS('XX.CVEPRES-2024'!$W$2:$W$1048576,'XX.CVEPRES-2024'!$D$2:$D$1048576,'Base Maestra'!$A20,'XX.CVEPRES-2024'!$F$2:$F$1048576,'Base Maestra'!R$4,'XX.CVEPRES-2024'!$E$2:$E$1048576,'Base Maestra'!$T$4)","v":0},0,null,null,15,0.75,0.25,25]
[97,"Unidad Administrativa",513,"DFSSA004830","Dirección General de Recursos Humanos y Organización",0,0,34473.040000000001,504561.03,0,0,539034.07000000007,{"$f":"SUMIFS('XX.CVEPRES-2024'!$W$2:$W$1048576,'XX.CVEPRES-2024'!$D$2:$D$1048576,'Base Maestra'!$A21,'XX.CVEPRES-2024'!$F$2:$F$1048576,'Base Maestra'!M$4,'XX.CVEPRES-2024'!$E$2:$E$1048576,'Base Maestra'!$T$4)","v":0},{"$f":"SUMIFS('XX.CVEPRES-2024'!$W$2:$W$1048576,'XX.CVEPRES-2024'!$D$2:$D$1048576,'Base Maestra'!$A21,'XX.CVEPRES-2024'!$F$2:$F$1048576,'Base Maestra'!N$4,'XX.CVEPRES-2024'!$E$2:$E$1048576,'Base Maestra'!$T$4)","v":0},{"$f":"SUMIFS('XX.CVEPRES-2024'!$W$2:$W$1048576,'XX.CVEPRES-2024'!$D$2:$D$1048576,'Base Maestra'!$A21,'XX.CVEPRES-2024'!$F$2:$F$1048576,'Base Maestra'!O$4,'XX.CVEPRES-2024'!$E$2:$E$1048576,'Base Maestra'!$T$4)","v":0},{"$f":"SUMIFS('XX.CVEPRES-2024'!$W$2:$W$1048576,'XX.CVEPRES-2024'!$D$2:$D$1048576,'Base Maestra'!$A21,'XX.CVEPRES-2024'!$F$2:$F$1048576,'Base Maestra'!P$4,'XX.CVEPRES-2024'!$E$2:$E$1048576,'Base Maestra'!$T$4)","v":0},{"$f":"SUMIFS('XX.CVEPRES-2024'!$W$2:$W$1048576,'XX.CVEPRES-2024'!$D$2:$D$1048576,'Base Maestra'!$A21,'XX.CVEPRES-2024'!$F$2:$F$1048576,'Base Maestra'!Q$4,'XX.CVEPRES-2024'!$E$2:$E$1048576,'Base Maestra'!$T$4)","v":0},{"$f":"SUMIFS('XX.CVEPRES-2024'!$W$2:$W$1048576,'XX.CVEPRES-2024'!$D$2:$D$1048576,'Base Maestra'!$A21,'XX.CVEPRES-2024'!$F$2:$F$1048576,'Base Maestra'!R$4,'XX.CVEPRES-2024'!$E$2:$E$1048576,'Base Maestra'!$T$4)","v":0},0,null,null,16,0.8,0.2,20]
[93,"Unidad Administrativa",514,"DFSSA004854","Dirección General de Desarrollo de la Infraestructura Física",10982.26,0,155331.35,185092.7,0,0,351406.31000000006,{"$f":"SUMIFS('XX.CVEPRES-2024'!$W$2:$W$1048576,'XX.CVEPRES-2024'!$D$2:$D$1048576,'Base Maestra'!$A22,'XX.CVEPRES-2024'!$F$2:$F$1048576,'Base Maestra'!M$4,'XX.CVEPRES-2024'!$E$2:$E$1048576,'Base Maestra'!$T$4)","v":0},{"$f":"SUMIFS('XX.CVEPRES-2024'!$W$2:$W$1048576,'XX.CVEPRES-2024'!$D$2:$D$1048576,'Base Maestra'!$A22,'XX.CVEPRES-2024'!$F$2:$F$1048576,'Base Maestra'!N$4,'XX.CVEPRES-2024'!$E$2:$E$1048576,'Base Maestra'!$T$4)","v":0},{"$f":"SUMIFS('XX.CVEPRES-2024'!$W$2:$W$1048576,'XX.CVEPRES-2024'!$D$2:$D$1048576,'Base Maestra'!$A22,'XX.CVEPRES-2024'!$F$2:$F$1048576,'Base Maestra'!O$4,'XX.CVEPRES-2024'!$E$2:$E$1048576,'Base Maestra'!$T$4)","v":0},{"$f":"SUMIFS('XX.CVEPRES-2024'!$W$2:$W$1048576,'XX.CVEPRES-2024'!$D$2:$D$1048576,'Base Maestra'!$A22,'XX.CVEPRES-2024'!$F$2:$F$1048576,'Base Maestra'!P$4,'XX.CVEPRES-2024'!$E$2:$E$1048576,'Base Maestra'!$T$4)","v":0},{"$f":"SUMIFS('XX.CVEPRES-2024'!$W$2:$W$1048576,'XX.CVEPRES-2024'!$D$2:$D$1048576,'Base Maestra'!$A22,'XX.CVEPRES-2024'!$F$2:$F$1048576,'Base Maestra'!Q$4,'XX.CVEPRES-2024'!$E$2:$E$1048576,'Base Maestra'!$T$4)","v":0},{"$f":"SUMIFS('XX.CVEPRES-2024'!$W$2:$W$1048576,'XX.CVEPRES-2024'!$D$2:$D$1048576,'Base Maestra'!$A22,'XX.CVEPRES-2024'!$F$2:$F$1048576,'Base Maestra'!R$4,'XX.CVEPRES-2024'!$E$2:$E$1048576,'Base Maestra'!$T$4)","v":0},0,null,null,17,0.85,0.15,15]
[null,"Unidad Administrativa",600,"DFSSA004813","Subsecretaría de Integración y Desarrollo del Sector Salud",0,0,0,64114.990000000005,75558.070000000007,0,139673.06,{"$f":"SUMIFS('XX.CVEPRES-2024'!$W$2:$W$1048576,'XX.CVEPRES-2024'!$D$2:$D$1048576,'Base Maestra'!$A23,'XX.CVEPRES-2024'!$F$2:$F$1048576,'Base Maestra'!M$4,'XX.CVEPRES-2024'!$E$2:$E$1048576,'Base Maestra'!$T$4)","v":0},{"$f":"SUMIFS('XX.CVEPRES-2024'!$W$2:$W$1048576,'XX.CVEPRES-2024'!$D$2:$D$1048576,'Base Maestra'!$A23,'XX.CVEPRES-2024'!$F$2:$F$1048576,'Base Maestra'!N$4,'XX.CVEPRES-2024'!$E$2:$E$1048576,'Base Maestra'!$T$4)","v":0},{"$f":"SUMIFS('XX.CVEPRES-2024'!$W$2:$W$1048576,'XX.CVEPRES-2024'!$D$2:$D$1048576,'Base Maestra'!$A23,'XX.CVEPRES-2024'!$F$2:$F$1048576,'Base Maestra'!O$4,'XX.CVEPRES-2024'!$E$2:$E$1048576,'Base Maestra'!$T$4)","v":0},{"$f":"SUMIFS('XX.CVEPRES-2024'!$W$2:$W$1048576,'XX.CVEPRES-2024'!$D$2:$D$1048576,'Base Maestra'!$A23,'XX.CVEPRES-2024'!$F$2:$F$1048576,'Base Maestra'!P$4,'XX.CVEPRES-2024'!$E$2:$E$1048576,'Base Maestra'!$T$4)","v":0},{"$f":"SUMIFS('XX.CVEPRES-2024'!$W$2:$W$1048576,'XX.CVEPRES-2024'!$D$2:$D$1048576,'Base Maestra'!$A23,'XX.CVEPRES-2024'!$F$2:$F$1048576,'Base Maestra'!Q$4,'XX.CVEPRES-2024'!$E$2:$E$1048576,'Base Maestra'!$T$4)","v":0},{"$f":"SUMIFS('XX.CVEPRES-2024'!$W$2:$W$1048576,'XX.CVEPRES-2024'!$D$2:$D$1048576,'Base Maestra'!$A23,'XX.CVEPRES-2024'!$F$2:$F$1048576,'Base Maestra'!R$4,'XX.CVEPRES-2024'!$E$2:$E$1048576,'Base Maestra'!$T$4)","v":0},0,null,null,18,0.9,0.1,10]
[94,"Unidad Administrativa",610,"DFSSA004784","Dirección General de Calidad y Educación en Salud",0,1060.92,5762417.4000000004,294625.33999999997,0,0,6058103.6600000001,{"$f":"SUMIFS('XX.CVEPRES-2024'!$W$2:$W$1048576,'XX.CVEPRES-2024'!$D$2:$D$1048576,'Base Maestra'!$A24,'XX.CVEPRES-2024'!$F$2:$F$1048576,'Base Maestra'!M$4,'XX.CVEPRES-2024'!$E$2:$E$1048576,'Base Maestra'!$T$4)","v":0},{"$f":"SUMIFS('XX.CVEPRES-2024'!$W$2:$W$1048576,'XX.CVEPRES-2024'!$D$2:$D$1048576,'Base Maestra'!$A24,'XX.CVEPRES-2024'!$F$2:$F$1048576,'Base Maestra'!N$4,'XX.CVEPRES-2024'!$E$2:$E$1048576,'Base Maestra'!$T$4)","v":0},{"$f":"SUMIFS('XX.CVEPRES-2024'!$W$2:$W$1048576,'XX.CVEPRES-2024'!$D$2:$D$1048576,'Base Maestra'!$A24,'XX.CVEPRES-2024'!$F$2:$F$1048576,'Base Maestra'!O$4,'XX.CVEPRES-2024'!$E$2:$E$1048576,'Base Maestra'!$T$4)","v":0},{"$f":"SUMIFS('XX.CVEPRES-2024'!$W$2:$W$1048576,'XX.CVEPRES-2024'!$D$2:$D$1048576,'Base Maestra'!$A24,'XX.CVEPRES-2024'!$F$2:$F$1048576,'Base Maestra'!P$4,'XX.CVEPRES-2024'!$E$2:$E$1048576,'Base Maestra'!$T$4)","v":0},{"$f":"SUMIFS('XX.CVEPRES-2024'!$W$2:$W$1048576,'XX.CVEPRES-2024'!$D$2:$D$1048576,'Base Maestra'!$A24,'XX.CVEPRES-2024'!$F$2:$F$1048576,'Base Maestra'!Q$4,'XX.CVEPRES-2024'!$E$2:$E$1048576,'Base Maestra'!$T$4)","v":0},{"$f":"SUMIFS('XX.CVEPRES-2024'!$W$2:$W$1048576,'XX.CVEPRES-2024'!$D$2:$D$1048576,'Base Maestra'!$A24,'XX.CVEPRES-2024'!$F$2:$F$1048576,'Base Maestra'!R$4,'XX.CVEPRES-2024'!$E$2:$E$1048576,'Base Maestra'!$T$4)","v":0},0,null,null,19,0.95,0.05,5]
[91,"Unidad Administrativa",611,"DFSSA004755","Dirección General de Planeación y Desarrollo en Salud",0,0,0,98546.11,0,0,98546.11,{"$f":"SUMIFS('XX.CVEPRES-2024'!$W$2:$W$1048576,'XX.CVEPRES-2024'!$D$2:$D$1048576,'Base Maestra'!$A25,'XX.CVEPRES-2024'!$F$2:$F$1048576,'Base Maestra'!M$4,'XX.CVEPRES-2024'!$E$2:$E$1048576,'Base Maestra'!$T$4)","v":0},{"$f":"SUMIFS('XX.CVEPRES-2024'!$W$2:$W$1048576,'XX.CVEPRES-2024'!$D$2:$D$1048576,'Base Maestra'!$A25,'XX.CVEPRES-2024'!$F$2:$F$1048576,'Base Maestra'!N$4,'XX.CVEPRES-2024'!$E$2:$E$1048576,'Base Maestra'!$T$4)","v":0},{"$f":"SUMIFS('XX.CVEPRES-2024'!$W$2:$W$1048576,'XX.CVEPRES-2024'!$D$2:$D$1048576,'Base Maestra'!$A25,'XX.CVEPRES-2024'!$F$2:$F$1048576,'Base Maestra'!O$4,'XX.CVEPRES-2024'!$E$2:$E$1048576,'Base Maestra'!$T$4)","v":0},{"$f":"SUMIFS('XX.CVEPRES-2024'!$W$2:$W$1048576,'XX.CVEPRES-2024'!$D$2:$D$1048576,'Base Maestra'!$A25,'XX.CVEPRES-2024'!$F$2:$F$1048576,'Base Maestra'!P$4,'XX.CVEPRES-2024'!$E$2:$E$1048576,'Base Maestra'!$T$4)","v":0},{"$f":"SUMIFS('XX.CVEPRES-2024'!$W$2:$W$1048576,'XX.CVEPRES-2024'!$D$2:$D$1048576,'Base Maestra'!$A25,'XX.CVEPRES-2024'!$F$2:$F$1048576,'Base Maestra'!Q$4,'XX.CVEPRES-2024'!$E$2:$E$1048576,'Base Maestra'!$T$4)","v":0},{"$f":"SUMIFS('XX.CVEPRES-2024'!$W$2:$W$1048576,'XX.CVEPRES-2024'!$D$2:$D$1048576,'Base Maestra'!$A25,'XX.CVEPRES-2024'!$F$2:$F$1048576,'Base Maestra'!R$4,'XX.CVEPRES-2024'!$E$2:$E$1048576,'Base Maestra'!$T$4)","v":0},0,null,null,"20 o más",1,0,0]
[null,"Unidad Administrativa",613,"DFSSA004731","Dirección General de Información en Salud",0,0,0,85830.2,0,0,85830.2,{"$f":"SUMIFS('XX.CVEPRES-2024'!$W$2:$W$1048576,'XX.CVEPRES-2024'!$D$2:$D$1048576,'Base Maestra'!$A26,'XX.CVEPRES-2024'!$F$2:$F$1048576,'Base Maestra'!M$4,'XX.CVEPRES-2024'!$E$2:$E$1048576,'Base Maestra'!$T$4)","v":0},{"$f":"SUMIFS('XX.CVEPRES-2024'!$W$2:$W$1048576,'XX.CVEPRES-2024'!$D$2:$D$1048576,'Base Maestra'!$A26,'XX.CVEPRES-2024'!$F$2:$F$1048576,'Base Maestra'!N$4,'XX.CVEPRES-2024'!$E$2:$E$1048576,'Base Maestra'!$T$4)","v":0},{"$f":"SUMIFS('XX.CVEPRES-2024'!$W$2:$W$1048576,'XX.CVEPRES-2024'!$D$2:$D$1048576,'Base Maestra'!$A26,'XX.CVEPRES-2024'!$F$2:$F$1048576,'Base Maestra'!O$4,'XX.CVEPRES-2024'!$E$2:$E$1048576,'Base Maestra'!$T$4)","v":0},{"$f":"SUMIFS('XX.CVEPRES-2024'!$W$2:$W$1048576,'XX.CVEPRES-2024'!$D$2:$D$1048576,'Base Maestra'!$A26,'XX.CVEPRES-2024'!$F$2:$F$1048576,'Base Maestra'!P$4,'XX.CVEPRES-2024'!$E$2:$E$1048576,'Base Maestra'!$T$4)","v":0},{"$f":"SUMIFS('XX.CVEPRES-2024'!$W$2:$W$1048576,'XX.CVEPRES-2024'!$D$2:$D$1048576,'Base Maestra'!$A26,'XX.CVEPRES-2024'!$F$2:$F$1048576,'Base Maestra'!Q$4,'XX.CVEPRES-2024'!$E$2:$E$1048576,'Base Maestra'!$T$4)","v":0},{"$f":"SUMIFS('XX.CVEPRES-2024'!$W$2:$W$1048576,'XX.CVEPRES-2024'!$D$2:$D$1048576,'Base Maestra'!$A26,'XX.CVEPRES-2024'!$F$2:$F$1048576,'Base Maestra'!R$4,'XX.CVEPRES-2024'!$E$2:$E$1048576,'Base Maestra'!$T$4)","v":0},0]
[null,"Unidad Administrativa",614,"DFSSA004883","Dirección General de Evaluación del Desempeño",0,0,0,25513.360000000001,0,0,25513.360000000001,{"$f":"SUMIFS('XX.CVEPRES-2024'!$W$2:$W$1048576,'XX.CVEPRES-2024'!$D$2:$D$1048576,'Base Maestra'!$A27,'XX.CVEPRES-2024'!$F$2:$F$1048576,'Base Maestra'!M$4,'XX.CVEPRES-2024'!$E$2:$E$1048576,'Base Maestra'!$T$4)","v":0},{"$f":"SUMIFS('XX.CVEPRES-2024'!$W$2:$W$1048576,'XX.CVEPRES-2024'!$D$2:$D$1048576,'Base Maestra'!$A27,'XX.CVEPRES-2024'!$F$2:$F$1048576,'Base Maestra'!N$4,'XX.CVEPRES-2024'!$E$2:$E$1048576,'Base Maestra'!$T$4)","v":0},{"$f":"SUMIFS('XX.CVEPRES-2024'!$W$2:$W$1048576,'XX.CVEPRES-2024'!$D$2:$D$1048576,'Base Maestra'!$A27,'XX.CVEPRES-2024'!$F$2:$F$1048576,'Base Maestra'!O$4,'XX.CVEPRES-2024'!$E$2:$E$1048576,'Base Maestra'!$T$4)","v":0},{"$f":"SUMIFS('XX.CVEPRES-2024'!$W$2:$W$1048576,'XX.CVEPRES-2024'!$D$2:$D$1048576,'Base Maestra'!$A27,'XX.CVEPRES-2024'!$F$2:$F$1048576,'Base Maestra'!P$4,'XX.CVEPRES-2024'!$E$2:$E$1048576,'Base Maestra'!$T$4)","v":0},{"$f":"SUMIFS('XX.CVEPRES-2024'!$W$2:$W$1048576,'XX.CVEPRES-2024'!$D$2:$D$1048576,'Base Maestra'!$A27,'XX.CVEPRES-2024'!$F$2:$F$1048576,'Base Maestra'!Q$4,'XX.CVEPRES-2024'!$E$2:$E$1048576,'Base Maestra'!$T$4)","v":0},{"$f":"SUMIFS('XX.CVEPRES-2024'!$W$2:$W$1048576,'XX.CVEPRES-2024'!$D$2:$D$1048576,'Base Maestra'!$A27,'XX.CVEPRES-2024'!$F$2:$F$1048576,'Base Maestra'!R$4,'XX.CVEPRES-2024'!$E$2:$E$1048576,'Base Maestra'!$T$4)","v":0},0]
[73,"Órgano Desconcentrado","E00","DFSSA004574","Administración del Patrimonio de la Beneficencia Pública",0,0,0,0,0,87527.82,87527.82,{"$f":"SUMIFS('XX.CVEPRES-2024'!$W$2:$W$1048576,'XX.CVEPRES-2024'!$D$2:$D$1048576,'Base Maestra'!$A28,'XX.CVEPRES-2024'!$F$2:$F$1048576,'Base Maestra'!M$4,'XX.CVEPRES-2024'!$E$2:$E$1048576,'Base Maestra'!$T$4)","v":0},{"$f":"SUMIFS('XX.CVEPRES-2024'!$W$2:$W$1048576,'XX.CVEPRES-2024'!$D$2:$D$1048576,'Base Maestra'!$A28,'XX.CVEPRES-2024'!$F$2:$F$1048576,'Base Maestra'!N$4,'XX.CVEPRES-2024'!$E$2:$E$1048576,'Base Maestra'!$T$4)","v":0},{"$f":"SUMIFS('XX.CVEPRES-2024'!$W$2:$W$1048576,'XX.CVEPRES-2024'!$D$2:$D$1048576,'Base Maestra'!$A28,'XX.CVEPRES-2024'!$F$2:$F$1048576,'Base Maestra'!O$4,'XX.CVEPRES-2024'!$E$2:$E$1048576,'Base Maestra'!$T$4)","v":0},{"$f":"SUMIFS('XX.CVEPRES-2024'!$W$2:$W$1048576,'XX.CVEPRES-2024'!$D$2:$D$1048576,'Base Maestra'!$A28,'XX.CVEPRES-2024'!$F$2:$F$1048576,'Base Maestra'!P$4,'XX.CVEPRES-2024'!$E$2:$E$1048576,'Base Maestra'!$T$4)","v":0},{"$f":"SUMIFS('XX.CVEPRES-2024'!$W$2:$W$1048576,'XX.CVEPRES-2024'!$D$2:$D$1048576,'Base Maestra'!$A28,'XX.CVEPRES-2024'!$F$2:$F$1048576,'Base Maestra'!Q$4,'XX.CVEPRES-2024'!$E$2:$E$1048576,'Base Maestra'!$T$4)","v":0},{"$f":"SUMIFS('XX.CVEPRES-2024'!$W$2:$W$1048576,'XX.CVEPRES-2024'!$D$2:$D$1048576,'Base Maestra'!$A28,'XX.CVEPRES-2024'!$F$2:$F$1048576,'Base Maestra'!R$4,'XX.CVEPRES-2024'!$E$2:$E$1048576,'Base Maestra'!$T$4)","v":0},0]
[74,"Órgano Desconcentrado","I00","DFSSA004516","Centro Nacional de la Transfusión Sanguínea",0,0,12149.68,126509.70999999999,0,0,138659.38999999998,{"$f":"SUMIFS('XX.CVEPRES-2024'!$W$2:$W$1048576,'XX.CVEPRES-2024'!$D$2:$D$1048576,'Base Maestra'!$A29,'XX.CVEPRES-2024'!$F$2:$F$1048576,'Base Maestra'!M$4,'XX.CVEPRES-2024'!$E$2:$E$1048576,'Base Maestra'!$T$4)","v":0},{"$f":"SUMIFS('XX.CVEPRES-2024'!$W$2:$W$1048576,'XX.CVEPRES-2024'!$D$2:$D$1048576,'Base Maestra'!$A29,'XX.CVEPRES-2024'!$F$2:$F$1048576,'Base Maestra'!N$4,'XX.CVEPRES-2024'!$E$2:$E$1048576,'Base Maestra'!$T$4)","v":0},{"$f":"SUMIFS('XX.CVEPRES-2024'!$W$2:$W$1048576,'XX.CVEPRES-2024'!$D$2:$D$1048576,'Base Maestra'!$A29,'XX.CVEPRES-2024'!$F$2:$F$1048576,'Base Maestra'!O$4,'XX.CVEPRES-2024'!$E$2:$E$1048576,'Base Maestra'!$T$4)","v":0},{"$f":"SUMIFS('XX.CVEPRES-2024'!$W$2:$W$1048576,'XX.CVEPRES-2024'!$D$2:$D$1048576,'Base Maestra'!$A29,'XX.CVEPRES-2024'!$F$2:$F$1048576,'Base Maestra'!P$4,'XX.CVEPRES-2024'!$E$2:$E$1048576,'Base Maestra'!$T$4)","v":0},{"$f":"SUMIFS('XX.CVEPRES-2024'!$W$2:$W$1048576,'XX.CVEPRES-2024'!$D$2:$D$1048576,'Base Maestra'!$A29,'XX.CVEPRES-2024'!$F$2:$F$1048576,'Base Maestra'!Q$4,'XX.CVEPRES-2024'!$E$2:$E$1048576,'Base Maestra'!$T$4)","v":0},{"$f":"SUMIFS('XX.CVEPRES-2024'!$W$2:$W$1048576,'XX.CVEPRES-2024'!$D$2:$D$1048576,'Base Maestra'!$A29,'XX.CVEPRES-2024'!$F$2:$F$1048576,'Base Maestra'!R$4,'XX.CVEPRES-2024'!$E$2:$E$1048576,'Base Maestra'!$T$4)","v":0},0]
[75,"Órgano Desconcentrado","K00",9998,"Centro Nacional para la Prevención y el Control del VIH/SIDA",0,0,18.27,228537.68,247792.61,0,476348.55999999994,{"$f":"SUMIFS('XX.CVEPRES-2024'!$W$2:$W$1048576,'XX.CVEPRES-2024'!$D$2:$D$1048576,'Base Maestra'!$A30,'XX.CVEPRES-2024'!$F$2:$F$1048576,'Base Maestra'!M$4,'XX.CVEPRES-2024'!$E$2:$E$1048576,'Base Maestra'!$T$4)","v":0},{"$f":"SUMIFS('XX.CVEPRES-2024'!$W$2:$W$1048576,'XX.CVEPRES-2024'!$D$2:$D$1048576,'Base Maestra'!$A30,'XX.CVEPRES-2024'!$F$2:$F$1048576,'Base Maestra'!N$4,'XX.CVEPRES-2024'!$E$2:$E$1048576,'Base Maestra'!$T$4)","v":0},{"$f":"SUMIFS('XX.CVEPRES-2024'!$W$2:$W$1048576,'XX.CVEPRES-2024'!$D$2:$D$1048576,'Base Maestra'!$A30,'XX.CVEPRES-2024'!$F$2:$F$1048576,'Base Maestra'!O$4,'XX.CVEPRES-2024'!$E$2:$E$1048576,'Base Maestra'!$T$4)","v":0},{"$f":"SUMIFS('XX.CVEPRES-2024'!$W$2:$W$1048576,'XX.CVEPRES-2024'!$D$2:$D$1048576,'Base Maestra'!$A30,'XX.CVEPRES-2024'!$F$2:$F$1048576,'Base Maestra'!P$4,'XX.CVEPRES-2024'!$E$2:$E$1048576,'Base Maestra'!$T$4)","v":0},{"$f":"SUMIFS('XX.CVEPRES-2024'!$W$2:$W$1048576,'XX.CVEPRES-2024'!$D$2:$D$1048576,'Base Maestra'!$A30,'XX.CVEPRES-2024'!$F$2:$F$1048576,'Base Maestra'!Q$4,'XX.CVEPRES-2024'!$E$2:$E$1048576,'Base Maestra'!$T$4)","v":0},{"$f":"SUMIFS('XX.CVEPRES-2024'!$W$2:$W$1048576,'XX.CVEPRES-2024'!$D$2:$D$1048576,'Base Maestra'!$A30,'XX.CVEPRES-2024'!$F$2:$F$1048576,'Base Maestra'!R$4,'XX.CVEPRES-2024'!$E$2:$E$1048576,'Base Maestra'!$T$4)","v":0},0]
[76,"Órgano Desconcentrado","L00",9998,"Centro Nacional de Equidad de Género y Salud Reproductiva",0,30275.72,0,136316.26,938068.11,0,1104660.0900000001,{"$f":"SUMIFS('XX.CVEPRES-2024'!$W$2:$W$1048576,'XX.CVEPRES-2024'!$D$2:$D$1048576,'Base Maestra'!$A31,'XX.CVEPRES-2024'!$F$2:$F$1048576,'Base Maestra'!M$4,'XX.CVEPRES-2024'!$E$2:$E$1048576,'Base Maestra'!$T$4)","v":0},{"$f":"SUMIFS('XX.CVEPRES-2024'!$W$2:$W$1048576,'XX.CVEPRES-2024'!$D$2:$D$1048576,'Base Maestra'!$A31,'XX.CVEPRES-2024'!$F$2:$F$1048576,'Base Maestra'!N$4,'XX.CVEPRES-2024'!$E$2:$E$1048576,'Base Maestra'!$T$4)","v":0},{"$f":"SUMIFS('XX.CVEPRES-2024'!$W$2:$W$1048576,'XX.CVEPRES-2024'!$D$2:$D$1048576,'Base Maestra'!$A31,'XX.CVEPRES-2024'!$F$2:$F$1048576,'Base Maestra'!O$4,'XX.CVEPRES-2024'!$E$2:$E$1048576,'Base Maestra'!$T$4)","v":0},{"$f":"SUMIFS('XX.CVEPRES-2024'!$W$2:$W$1048576,'XX.CVEPRES-2024'!$D$2:$D$1048576,'Base Maestra'!$A31,'XX.CVEPRES-2024'!$F$2:$F$1048576,'Base Maestra'!P$4,'XX.CVEPRES-2024'!$E$2:$E$1048576,'Base Maestra'!$T$4)","v":0},{"$f":"SUMIFS('XX.CVEPRES-2024'!$W$2:$W$1048576,'XX.CVEPRES-2024'!$D$2:$D$1048576,'Base Maestra'!$A31,'XX.CVEPRES-2024'!$F$2:$F$1048576,'Base Maestra'!Q$4,'XX.CVEPRES-2024'!$E$2:$E$1048576,'Base Maestra'!$T$4)","v":0},{"$f":"SUMIFS('XX.CVEPRES-2024'!$W$2:$W$1048576,'XX.CVEPRES-2024'!$D$2:$D$1048576,'Base Maestra'!$A31,'XX.CVEPRES-2024'!$F$2:$F$1048576,'Base Maestra'!R$4,'XX.CVEPRES-2024'!$E$2:$E$1048576,'Base Maestra'!$T$4)","v":0},0]
[77,"Órgano Desconcentrado","M00","DFSSA004504","Comisión Nacional de Arbitraje Médico",0,0,0,105503.75,0,0,105503.75,{"$f":"SUMIFS('XX.CVEPRES-2024'!$W$2:$W$1048576,'XX.CVEPRES-2024'!$D$2:$D$1048576,'Base Maestra'!$A32,'XX.CVEPRES-2024'!$F$2:$F$1048576,'Base Maestra'!M$4,'XX.CVEPRES-2024'!$E$2:$E$1048576,'Base Maestra'!$T$4)","v":0},{"$f":"SUMIFS('XX.CVEPRES-2024'!$W$2:$W$1048576,'XX.CVEPRES-2024'!$D$2:$D$1048576,'Base Maestra'!$A32,'XX.CVEPRES-2024'!$F$2:$F$1048576,'Base Maestra'!N$4,'XX.CVEPRES-2024'!$E$2:$E$1048576,'Base Maestra'!$T$4)","v":0},{"$f":"SUMIFS('XX.CVEPRES-2024'!$W$2:$W$1048576,'XX.CVEPRES-2024'!$D$2:$D$1048576,'Base Maestra'!$A32,'XX.CVEPRES-2024'!$F$2:$F$1048576,'Base Maestra'!O$4,'XX.CVEPRES-2024'!$E$2:$E$1048576,'Base Maestra'!$T$4)","v":0},{"$f":"SUMIFS('XX.CVEPRES-2024'!$W$2:$W$1048576,'XX.CVEPRES-2024'!$D$2:$D$1048576,'Base Maestra'!$A32,'XX.CVEPRES-2024'!$F$2:$F$1048576,'Base Maestra'!P$4,'XX.CVEPRES-2024'!$E$2:$E$1048576,'Base Maestra'!$T$4)","v":0},{"$f":"SUMIFS('XX.CVEPRES-2024'!$W$2:$W$1048576,'XX.CVEPRES-2024'!$D$2:$D$1048576,'Base Maestra'!$A32,'XX.CVEPRES-2024'!$F$2:$F$1048576,'Base Maestra'!Q$4,'XX.CVEPRES-2024'!$E$2:$E$1048576,'Base Maestra'!$T$4)","v":0},{"$f":"SUMIFS('XX.CVEPRES-2024'!$W$2:$W$1048576,'XX.CVEPRES-2024'!$D$2:$D$1048576,'Base Maestra'!$A32,'XX.CVEPRES-2024'!$F$2:$F$1048576,'Base Maestra'!R$4,'XX.CVEPRES-2024'!$E$2:$E$1048576,'Base Maestra'!$T$4)","v":0},0]
[49,"Organismo Descentralizado","M7A","CSSSA008882","Centro Regional de Alta Especialidad de Chiapas",0,0,0,0,0,0,0,{"$f":"SUMIFS('XX.CVEPRES-2024'!$W$2:$W$1048576,'XX.CVEPRES-2024'!$D$2:$D$1048576,'Base Maestra'!$A33,'XX.CVEPRES-2024'!$F$2:$F$1048576,'Base Maestra'!M$4,'XX.CVEPRES-2024'!$E$2:$E$1048576,'Base Maestra'!$T$4)","v":0},{"$f":"SUMIFS('XX.CVEPRES-2024'!$W$2:$W$1048576,'XX.CVEPRES-2024'!$D$2:$D$1048576,'Base Maestra'!$A33,'XX.CVEPRES-2024'!$F$2:$F$1048576,'Base Maestra'!N$4,'XX.CVEPRES-2024'!$E$2:$E$1048576,'Base Maestra'!$T$4)","v":0},{"$f":"SUMIFS('XX.CVEPRES-2024'!$W$2:$W$1048576,'XX.CVEPRES-2024'!$D$2:$D$1048576,'Base Maestra'!$A33,'XX.CVEPRES-2024'!$F$2:$F$1048576,'Base Maestra'!O$4,'XX.CVEPRES-2024'!$E$2:$E$1048576,'Base Maestra'!$T$4)","v":0},{"$f":"SUMIFS('XX.CVEPRES-2024'!$W$2:$W$1048576,'XX.CVEPRES-2024'!$D$2:$D$1048576,'Base Maestra'!$A33,'XX.CVEPRES-2024'!$F$2:$F$1048576,'Base Maestra'!P$4,'XX.CVEPRES-2024'!$E$2:$E$1048576,'Base Maestra'!$T$4)","v":0},{"$f":"SUMIFS('XX.CVEPRES-2024'!$W$2:$W$1048576,'XX.CVEPRES-2024'!$D$2:$D$1048576,'Base Maestra'!$A33,'XX.CVEPRES-2024'!$F$2:$F$1048576,'Base Maestra'!Q$4,'XX.CVEPRES-2024'!$E$2:$E$1048576,'Base Maestra'!$T$4)","v":0},{"$f":"SUMIFS('XX.CVEPRES-2024'!$W$2:$W$1048576,'XX.CVEPRES-2024'!$D$2:$D$1048576,'Base Maestra'!$A33,'XX.CVEPRES-2024'!$F$2:$F$1048576,'Base Maestra'!R$4,'XX.CVEPRES-2024'!$E$2:$E$1048576,'Base Maestra'!$T$4)","v":0},0]
[50,"Organismo Descentralizado","M7F","DFSSA004072","Instituto Nacional de Psiquiatría Ramón de la Fuente Muñiz",68344.479999999996,359777.83,69252.75,2452.5700000000002,65856.14,0,565683.77,{"$f":"SUMIFS('XX.CVEPRES-2024'!$W$2:$W$1048576,'XX.CVEPRES-2024'!$D$2:$D$1048576,'Base Maestra'!$A34,'XX.CVEPRES-2024'!$F$2:$F$1048576,'Base Maestra'!M$4,'XX.CVEPRES-2024'!$E$2:$E$1048576,'Base Maestra'!$T$4)","v":0},{"$f":"SUMIFS('XX.CVEPRES-2024'!$W$2:$W$1048576,'XX.CVEPRES-2024'!$D$2:$D$1048576,'Base Maestra'!$A34,'XX.CVEPRES-2024'!$F$2:$F$1048576,'Base Maestra'!N$4,'XX.CVEPRES-2024'!$E$2:$E$1048576,'Base Maestra'!$T$4)","v":0},{"$f":"SUMIFS('XX.CVEPRES-2024'!$W$2:$W$1048576,'XX.CVEPRES-2024'!$D$2:$D$1048576,'Base Maestra'!$A34,'XX.CVEPRES-2024'!$F$2:$F$1048576,'Base Maestra'!O$4,'XX.CVEPRES-2024'!$E$2:$E$1048576,'Base Maestra'!$T$4)","v":0},{"$f":"SUMIFS('XX.CVEPRES-2024'!$W$2:$W$1048576,'XX.CVEPRES-2024'!$D$2:$D$1048576,'Base Maestra'!$A34,'XX.CVEPRES-2024'!$F$2:$F$1048576,'Base Maestra'!P$4,'XX.CVEPRES-2024'!$E$2:$E$1048576,'Base Maestra'!$T$4)","v":0},{"$f":"SUMIFS('XX.CVEPRES-2024'!$W$2:$W$1048576,'XX.CVEPRES-2024'!$D$2:$D$1048576,'Base Maestra'!$A34,'XX.CVEPRES-2024'!$F$2:$F$1048576,'Base Maestra'!Q$4,'XX.CVEPRES-2024'!$E$2:$E$1048576,'Base Maestra'!$T$4)","v":0},{"$f":"SUMIFS('XX.CVEPRES-2024'!$W$2:$W$1048576,'XX.CVEPRES-2024'!$D$2:$D$1048576,'Base Maestra'!$A34,'XX.CVEPRES-2024'!$F$2:$F$1048576,'Base Maestra'!R$4,'XX.CVEPRES-2024'!$E$2:$E$1048576,'Base Maestra'!$T$4)","v":0},0]
[51,"Organismo Descentralizado","M7K","DFSSA004685","Centros de Integración Juvenil, A.C.",873118.74999999988,0,28937.05,8276.8799999999992,0,0,910332.67999999993,{"$f":"SUMIFS('XX.CVEPRES-2024'!$W$2:$W$1048576,'XX.CVEPRES-2024'!$D$2:$D$1048576,'Base Maestra'!$A35,'XX.CVEPRES-2024'!$F$2:$F$1048576,'Base Maestra'!M$4,'XX.CVEPRES-2024'!$E$2:$E$1048576,'Base Maestra'!$T$4)","v":0},{"$f":"SUMIFS('XX.CVEPRES-2024'!$W$2:$W$1048576,'XX.CVEPRES-2024'!$D$2:$D$1048576,'Base Maestra'!$A35,'XX.CVEPRES-2024'!$F$2:$F$1048576,'Base Maestra'!N$4,'XX.CVEPRES-2024'!$E$2:$E$1048576,'Base Maestra'!$T$4)","v":0},{"$f":"SUMIFS('XX.CVEPRES-2024'!$W$2:$W$1048576,'XX.CVEPRES-2024'!$D$2:$D$1048576,'Base Maestra'!$A35,'XX.CVEPRES-2024'!$F$2:$F$1048576,'Base Maestra'!O$4,'XX.CVEPRES-2024'!$E$2:$E$1048576,'Base Maestra'!$T$4)","v":0},{"$f":"SUMIFS('XX.CVEPRES-2024'!$W$2:$W$1048576,'XX.CVEPRES-2024'!$D$2:$D$1048576,'Base Maestra'!$A35,'XX.CVEPRES-2024'!$F$2:$F$1048576,'Base Maestra'!P$4,'XX.CVEPRES-2024'!$E$2:$E$1048576,'Base Maestra'!$T$4)","v":0},{"$f":"SUMIFS('XX.CVEPRES-2024'!$W$2:$W$1048576,'XX.CVEPRES-2024'!$D$2:$D$1048576,'Base Maestra'!$A35,'XX.CVEPRES-2024'!$F$2:$F$1048576,'Base Maestra'!Q$4,'XX.CVEPRES-2024'!$E$2:$E$1048576,'Base Maestra'!$T$4)","v":0},{"$f":"SUMIFS('XX.CVEPRES-2024'!$W$2:$W$1048576,'XX.CVEPRES-2024'!$D$2:$D$1048576,'Base Maestra'!$A35,'XX.CVEPRES-2024'!$F$2:$F$1048576,'Base Maestra'!R$4,'XX.CVEPRES-2024'!$E$2:$E$1048576,'Base Maestra'!$T$4)","v":0},0]
[52,"Organismo Descentralizado","NAW","DFSSA003944","Hospital Juárez de México",200391.34,1805186.35,96412.79,32019.759999999998,821896.28,0,2955906.5199999996,{"$f":"SUMIFS('XX.CVEPRES-2024'!$W$2:$W$1048576,'XX.CVEPRES-2024'!$D$2:$D$1048576,'Base Maestra'!$A36,'XX.CVEPRES-2024'!$F$2:$F$1048576,'Base Maestra'!M$4,'XX.CVEPRES-2024'!$E$2:$E$1048576,'Base Maestra'!$T$4)","v":0},{"$f":"SUMIFS('XX.CVEPRES-2024'!$W$2:$W$1048576,'XX.CVEPRES-2024'!$D$2:$D$1048576,'Base Maestra'!$A36,'XX.CVEPRES-2024'!$F$2:$F$1048576,'Base Maestra'!N$4,'XX.CVEPRES-2024'!$E$2:$E$1048576,'Base Maestra'!$T$4)","v":0},{"$f":"SUMIFS('XX.CVEPRES-2024'!$W$2:$W$1048576,'XX.CVEPRES-2024'!$D$2:$D$1048576,'Base Maestra'!$A36,'XX.CVEPRES-2024'!$F$2:$F$1048576,'Base Maestra'!O$4,'XX.CVEPRES-2024'!$E$2:$E$1048576,'Base Maestra'!$T$4)","v":0},{"$f":"SUMIFS('XX.CVEPRES-2024'!$W$2:$W$1048576,'XX.CVEPRES-2024'!$D$2:$D$1048576,'Base Maestra'!$A36,'XX.CVEPRES-2024'!$F$2:$F$1048576,'Base Maestra'!P$4,'XX.CVEPRES-2024'!$E$2:$E$1048576,'Base Maestra'!$T$4)","v":0},{"$f":"SUMIFS('XX.CVEPRES-2024'!$W$2:$W$1048576,'XX.CVEPRES-2024'!$D$2:$D$1048576,'Base Maestra'!$A36,'XX.CVEPRES-2024'!$F$2:$F$1048576,'Base Maestra'!Q$4,'XX.CVEPRES-2024'!$E$2:$E$1048576,'Base Maestra'!$T$4)","v":0},{"$f":"SUMIFS('XX.CVEPRES-2024'!$W$2:$W$1048576,'XX.CVEPRES-2024'!$D$2:$D$1048576,'Base Maestra'!$A36,'XX.CVEPRES-2024'!$F$2:$F$1048576,'Base Maestra'!R$4,'XX.CVEPRES-2024'!$E$2:$E$1048576,'Base Maestra'!$T$4)","v":0},0]
[53,"Organismo Descentralizado","NBB","DFSSA003961","Hospital General \"Dr. Manuel Gea González\"",34345.4,1429597.54,105517.56,12157.75,880989.34,0,2462607.59,{"$f":"SUMIFS('XX.CVEPRES-2024'!$W$2:$W$1048576,'XX.CVEPRES-2024'!$D$2:$D$1048576,'Base Maestra'!$A37,'XX.CVEPRES-2024'!$F$2:$F$1048576,'Base Maestra'!M$4,'XX.CVEPRES-2024'!$E$2:$E$1048576,'Base Maestra'!$T$4)","v":0},{"$f":"SUMIFS('XX.CVEPRES-2024'!$W$2:$W$1048576,'XX.CVEPRES-2024'!$D$2:$D$1048576,'Base Maestra'!$A37,'XX.CVEPRES-2024'!$F$2:$F$1048576,'Base Maestra'!N$4,'XX.CVEPRES-2024'!$E$2:$E$1048576,'Base Maestra'!$T$4)","v":0},{"$f":"SUMIFS('XX.CVEPRES-2024'!$W$2:$W$1048576,'XX.CVEPRES-2024'!$D$2:$D$1048576,'Base Maestra'!$A37,'XX.CVEPRES-2024'!$F$2:$F$1048576,'Base Maestra'!O$4,'XX.CVEPRES-2024'!$E$2:$E$1048576,'Base Maestra'!$T$4)","v":0},{"$f":"SUMIFS('XX.CVEPRES-2024'!$W$2:$W$1048576,'XX.CVEPRES-2024'!$D$2:$D$1048576,'Base Maestra'!$A37,'XX.CVEPRES-2024'!$F$2:$F$1048576,'Base Maestra'!P$4,'XX.CVEPRES-2024'!$E$2:$E$1048576,'Base Maestra'!$T$4)","v":0},{"$f":"SUMIFS('XX.CVEPRES-2024'!$W$2:$W$1048576,'XX.CVEPRES-2024'!$D$2:$D$1048576,'Base Maestra'!$A37,'XX.CVEPRES-2024'!$F$2:$F$1048576,'Base Maestra'!Q$4,'XX.CVEPRES-2024'!$E$2:$E$1048576,'Base Maestra'!$T$4)","v":0},{"$f":"SUMIFS('XX.CVEPRES-2024'!$W$2:$W$1048576,'XX.CVEPRES-2024'!$D$2:$D$1048576,'Base Maestra'!$A37,'XX.CVEPRES-2024'!$F$2:$F$1048576,'Base Maestra'!R$4,'XX.CVEPRES-2024'!$E$2:$E$1048576,'Base Maestra'!$T$4)","v":0},0]
[54,"Organismo Descentralizado","NBD","DFSSA003973","Hospital General de México \"Dr. Eduardo Liceaga\"",32440.92,4197821.45,254775.89,23054.37,1713764.46,0,6221857.0899999999,{"$f":"SUMIFS('XX.CVEPRES-2024'!$W$2:$W$1048576,'XX.CVEPRES-2024'!$D$2:$D$1048576,'Base Maestra'!$A38,'XX.CVEPRES-2024'!$F$2:$F$1048576,'Base Maestra'!M$4,'XX.CVEPRES-2024'!$E$2:$E$1048576,'Base Maestra'!$T$4)","v":0},{"$f":"SUMIFS('XX.CVEPRES-2024'!$W$2:$W$1048576,'XX.CVEPRES-2024'!$D$2:$D$1048576,'Base Maestra'!$A38,'XX.CVEPRES-2024'!$F$2:$F$1048576,'Base Maestra'!N$4,'XX.CVEPRES-2024'!$E$2:$E$1048576,'Base Maestra'!$T$4)","v":0},{"$f":"SUMIFS('XX.CVEPRES-2024'!$W$2:$W$1048576,'XX.CVEPRES-2024'!$D$2:$D$1048576,'Base Maestra'!$A38,'XX.CVEPRES-2024'!$F$2:$F$1048576,'Base Maestra'!O$4,'XX.CVEPRES-2024'!$E$2:$E$1048576,'Base Maestra'!$T$4)","v":0},{"$f":"SUMIFS('XX.CVEPRES-2024'!$W$2:$W$1048576,'XX.CVEPRES-2024'!$D$2:$D$1048576,'Base Maestra'!$A38,'XX.CVEPRES-2024'!$F$2:$F$1048576,'Base Maestra'!P$4,'XX.CVEPRES-2024'!$E$2:$E$1048576,'Base Maestra'!$T$4)","v":0},{"$f":"SUMIFS('XX.CVEPRES-2024'!$W$2:$W$1048576,'XX.CVEPRES-2024'!$D$2:$D$1048576,'Base Maestra'!$A38,'XX.CVEPRES-2024'!$F$2:$F$1048576,'Base Maestra'!Q$4,'XX.CVEPRES-2024'!$E$2:$E$1048576,'Base Maestra'!$T$4)","v":0},{"$f":"SUMIFS('XX.CVEPRES-2024'!$W$2:$W$1048576,'XX.CVEPRES-2024'!$D$2:$D$1048576,'Base Maestra'!$A38,'XX.CVEPRES-2024'!$F$2:$F$1048576,'Base Maestra'!R$4,'XX.CVEPRES-2024'!$E$2:$E$1048576,'Base Maestra'!$T$4)","v":0},0]
[55,"Organismo Descentralizado","NBG","DFSSA004084","Hospital Infantil de México Federico Gómez",107106.51,2289739.0499999998,160444.19,11269.69,368533.31,0,2937092.7499999995,{"$f":"SUMIFS('XX.CVEPRES-2024'!$W$2:$W$1048576,'XX.CVEPRES-2024'!$D$2:$D$1048576,'Base Maestra'!$A39,'XX.CVEPRES-2024'!$F$2:$F$1048576,'Base Maestra'!M$4,'XX.CVEPRES-2024'!$E$2:$E$1048576,'Base Maestra'!$T$4)","v":0},{"$f":"SUMIFS('XX.CVEPRES-2024'!$W$2:$W$1048576,'XX.CVEPRES-2024'!$D$2:$D$1048576,'Base Maestra'!$A39,'XX.CVEPRES-2024'!$F$2:$F$1048576,'Base Maestra'!N$4,'XX.CVEPRES-2024'!$E$2:$E$1048576,'Base Maestra'!$T$4)","v":0},{"$f":"SUMIFS('XX.CVEPRES-2024'!$W$2:$W$1048576,'XX.CVEPRES-2024'!$D$2:$D$1048576,'Base Maestra'!$A39,'XX.CVEPRES-2024'!$F$2:$F$1048576,'Base Maestra'!O$4,'XX.CVEPRES-2024'!$E$2:$E$1048576,'Base Maestra'!$T$4)","v":0},{"$f":"SUMIFS('XX.CVEPRES-2024'!$W$2:$W$1048576,'XX.CVEPRES-2024'!$D$2:$D$1048576,'Base Maestra'!$A39,'XX.CVEPRES-2024'!$F$2:$F$1048576,'Base Maestra'!P$4,'XX.CVEPRES-2024'!$E$2:$E$1048576,'Base Maestra'!$T$4)","v":0},{"$f":"SUMIFS('XX.CVEPRES-2024'!$W$2:$W$1048576,'XX.CVEPRES-2024'!$D$2:$D$1048576,'Base Maestra'!$A39,'XX.CVEPRES-2024'!$F$2:$F$1048576,'Base Maestra'!Q$4,'XX.CVEPRES-2024'!$E$2:$E$1048576,'Base Maestra'!$T$4)","v":0},{"$f":"SUMIFS('XX.CVEPRES-2024'!$W$2:$W$1048576,'XX.CVEPRES-2024'!$D$2:$D$1048576,'Base Maestra'!$A39,'XX.CVEPRES-2024'!$F$2:$F$1048576,'Base Maestra'!R$4,'XX.CVEPRES-2024'!$E$2:$E$1048576,'Base Maestra'!$T$4)","v":0},0]
[56,"Organismo Descentralizado","NBQ","GTSSA016796","Hospital Regional de Alta Especialidad del Bajío",0,0,0,0,0,0,0,{"$f":"SUMIFS('XX.CVEPRES-2024'!$W$2:$W$1048576,'XX.CVEPRES-2024'!$D$2:$D$1048576,'Base Maestra'!$A40,'XX.CVEPRES-2024'!$F$2:$F$1048576,'Base Maestra'!M$4,'XX.CVEPRES-2024'!$E$2:$E$1048576,'Base Maestra'!$T$4)","v":0},{"$f":"SUMIFS('XX.CVEPRES-2024'!$W$2:$W$1048576,'XX.CVEPRES-2024'!$D$2:$D$1048576,'Base Maestra'!$A40,'XX.CVEPRES-2024'!$F$2:$F$1048576,'Base Maestra'!N$4,'XX.CVEPRES-2024'!$E$2:$E$1048576,'Base Maestra'!$T$4)","v":0},{"$f":"SUMIFS('XX.CVEPRES-2024'!$W$2:$W$1048576,'XX.CVEPRES-2024'!$D$2:$D$1048576,'Base Maestra'!$A40,'XX.CVEPRES-2024'!$F$2:$F$1048576,'Base Maestra'!O$4,'XX.CVEPRES-2024'!$E$2:$E$1048576,'Base Maestra'!$T$4)","v":0},{"$f":"SUMIFS('XX.CVEPRES-2024'!$W$2:$W$1048576,'XX.CVEPRES-2024'!$D$2:$D$1048576,'Base Maestra'!$A40,'XX.CVEPRES-2024'!$F$2:$F$1048576,'Base Maestra'!P$4,'XX.CVEPRES-2024'!$E$2:$E$1048576,'Base Maestra'!$T$4)","v":0},{"$f":"SUMIFS('XX.CVEPRES-2024'!$W$2:$W$1048576,'XX.CVEPRES-2024'!$D$2:$D$1048576,'Base Maestra'!$A40,'XX.CVEPRES-2024'!$F$2:$F$1048576,'Base Maestra'!Q$4,'XX.CVEPRES-2024'!$E$2:$E$1048576,'Base Maestra'!$T$4)","v":0},{"$f":"SUMIFS('XX.CVEPRES-2024'!$W$2:$W$1048576,'XX.CVEPRES-2024'!$D$2:$D$1048576,'Base Maestra'!$A40,'XX.CVEPRES-2024'!$F$2:$F$1048576,'Base Maestra'!R$4,'XX.CVEPRES-2024'!$E$2:$E$1048576,'Base Maestra'!$T$4)","v":0},0]
[57,"Organismo Descentralizado","NBR","OCSSA007483","Hospital Regional de Alta Especialidad de Oaxaca",0,0,0,0,0,0,0,{"$f":"SUMIFS('XX.CVEPRES-2024'!$W$2:$W$1048576,'XX.CVEPRES-2024'!$D$2:$D$1048576,'Base Maestra'!$A41,'XX.CVEPRES-2024'!$F$2:$F$1048576,'Base Maestra'!M$4,'XX.CVEPRES-2024'!$E$2:$E$1048576,'Base Maestra'!$T$4)","v":0},{"$f":"SUMIFS('XX.CVEPRES-2024'!$W$2:$W$1048576,'XX.CVEPRES-2024'!$D$2:$D$1048576,'Base Maestra'!$A41,'XX.CVEPRES-2024'!$F$2:$F$1048576,'Base Maestra'!N$4,'XX.CVEPRES-2024'!$E$2:$E$1048576,'Base Maestra'!$T$4)","v":0},{"$f":"SUMIFS('XX.CVEPRES-2024'!$W$2:$W$1048576,'XX.CVEPRES-2024'!$D$2:$D$1048576,'Base Maestra'!$A41,'XX.CVEPRES-2024'!$F$2:$F$1048576,'Base Maestra'!O$4,'XX.CVEPRES-2024'!$E$2:$E$1048576,'Base Maestra'!$T$4)","v":0},{"$f":"SUMIFS('XX.CVEPRES-2024'!$W$2:$W$1048576,'XX.CVEPRES-2024'!$D$2:$D$1048576,'Base Maestra'!$A41,'XX.CVEPRES-2024'!$F$2:$F$1048576,'Base Maestra'!P$4,'XX.CVEPRES-2024'!$E$2:$E$1048576,'Base Maestra'!$T$4)","v":0},{"$f":"SUMIFS('XX.CVEPRES-2024'!$W$2:$W$1048576,'XX.CVEPRES-2024'!$D$2:$D$1048576,'Base Maestra'!$A41,'XX.CVEPRES-2024'!$F$2:$F$1048576,'Base Maestra'!Q$4,'XX.CVEPRES-2024'!$E$2:$E$1048576,'Base Maestra'!$T$4)","v":0},{"$f":"SUMIFS('XX.CVEPRES-2024'!$W$2:$W$1048576,'XX.CVEPRES-2024'!$D$2:$D$1048576,'Base Maestra'!$A41,'XX.CVEPRES-2024'!$F$2:$F$1048576,'Base Maestra'!R$4,'XX.CVEPRES-2024'!$E$2:$E$1048576,'Base Maestra'!$T$4)","v":0},0]
[58,"Organismo Descentralizado","NBS","YNSSA013423 ","Hospital Regional de Alta Especialidad de la Península de Yucatán",0,0,0,0,0,0,0,{"$f":"SUMIFS('XX.CVEPRES-2024'!$W$2:$W$1048576,'XX.CVEPRES-2024'!$D$2:$D$1048576,'Base Maestra'!$A42,'XX.CVEPRES-2024'!$F$2:$F$1048576,'Base Maestra'!M$4,'XX.CVEPRES-2024'!$E$2:$E$1048576,'Base Maestra'!$T$4)","v":0},{"$f":"SUMIFS('XX.CVEPRES-2024'!$W$2:$W$1048576,'XX.CVEPRES-2024'!$D$2:$D$1048576,'Base Maestra'!$A42,'XX.CVEPRES-2024'!$F$2:$F$1048576,'Base Maestra'!N$4,'XX.CVEPRES-2024'!$E$2:$E$1048576,'Base Maestra'!$T$4)","v":0},{"$f":"SUMIFS('XX.CVEPRES-2024'!$W$2:$W$1048576,'XX.CVEPRES-2024'!$D$2:$D$1048576,'Base Maestra'!$A42,'XX.CVEPRES-2024'!$F$2:$F$1048576,'Base Maestra'!O$4,'XX.CVEPRES-2024'!$E$2:$E$1048576,'Base Maestra'!$T$4)","v":0},{"$f":"SUMIFS('XX.CVEPRES-2024'!$W$2:$W$1048576,'XX.CVEPRES-2024'!$D$2:$D$1048576,'Base Maestra'!$A42,'XX.CVEPRES-2024'!$F$2:$F$1048576,'Base Maestra'!P$4,'XX.CVEPRES-2024'!$E$2:$E$1048576,'Base Maestra'!$T$4)","v":0},{"$f":"SUMIFS('XX.CVEPRES-2024'!$W$2:$W$1048576,'XX.CVEPRES-2024'!$D$2:$D$1048576,'Base Maestra'!$A42,'XX.CVEPRES-2024'!$F$2:$F$1048576,'Base Maestra'!Q$4,'XX.CVEPRES-2024'!$E$2:$E$1048576,'Base Maestra'!$T$4)","v":0},{"$f":"SUMIFS('XX.CVEPRES-2024'!$W$2:$W$1048576,'XX.CVEPRES-2024'!$D$2:$D$1048576,'Base Maestra'!$A42,'XX.CVEPRES-2024'!$F$2:$F$1048576,'Base Maestra'!R$4,'XX.CVEPRES-2024'!$E$2:$E$1048576,'Base Maestra'!$T$4)","v":0},0]
[59,"Organismo Descentralizado","NBT","TSSSA018292","Hospital Regional de Alta Especialidad de Ciudad Victoria \"Bicentenario 2010\"",0,0,0,0,0,0,0,{"$f":"SUMIFS('XX.CVEPRES-2024'!$W$2:$W$1048576,'XX.CVEPRES-2024'!$D$2:$D$1048576,'Base Maestra'!$A43,'XX.CVEPRES-2024'!$F$2:$F$1048576,'Base Maestra'!M$4,'XX.CVEPRES-2024'!$E$2:$E$1048576,'Base Maestra'!$T$4)","v":0},{"$f":"SUMIFS('XX.CVEPRES-2024'!$W$2:$W$1048576,'XX.CVEPRES-2024'!$D$2:$D$1048576,'Base Maestra'!$A43,'XX.CVEPRES-2024'!$F$2:$F$1048576,'Base Maestra'!N$4,'XX.CVEPRES-2024'!$E$2:$E$1048576,'Base Maestra'!$T$4)","v":0},{"$f":"SUMIFS('XX.CVEPRES-2024'!$W$2:$W$1048576,'XX.CVEPRES-2024'!$D$2:$D$1048576,'Base Maestra'!$A43,'XX.CVEPRES-2024'!$F$2:$F$1048576,'Base Maestra'!O$4,'XX.CVEPRES-2024'!$E$2:$E$1048576,'Base Maestra'!$T$4)","v":0},{"$f":"SUMIFS('XX.CVEPRES-2024'!$W$2:$W$1048576,'XX.CVEPRES-2024'!$D$2:$D$1048576,'Base Maestra'!$A43,'XX.CVEPRES-2024'!$F$2:$F$1048576,'Base Maestra'!P$4,'XX.CVEPRES-2024'!$E$2:$E$1048576,'Base Maestra'!$T$4)","v":0},{"$f":"SUMIFS('XX.CVEPRES-2024'!$W$2:$W$1048576,'XX.CVEPRES-2024'!$D$2:$D$1048576,'Base Maestra'!$A43,'XX.CVEPRES-2024'!$F$2:$F$1048576,'Base Maestra'!Q$4,'XX.CVEPRES-2024'!$E$2:$E$1048576,'Base Maestra'!$T$4)","v":0},{"$f":"SUMIFS('XX.CVEPRES-2024'!$W$2:$W$1048576,'XX.CVEPRES-2024'!$D$2:$D$1048576,'Base Maestra'!$A43,'XX.CVEPRES-2024'!$F$2:$F$1048576,'Base Maestra'!R$4,'XX.CVEPRES-2024'!$E$2:$E$1048576,'Base Maestra'!$T$4)","v":0},0]
[60,"Organismo Descentralizado","NBU","MCSSA018786","Hospital Regional de Alta Especialidad de Ixtapaluca",0,0,0,0,0,0,0,{"$f":"SUMIFS('XX.CVEPRES-2024'!$W$2:$W$1048576,'XX.CVEPRES-2024'!$D$2:$D$1048576,'Base Maestra'!$A44,'XX.CVEPRES-2024'!$F$2:$F$1048576,'Base Maestra'!M$4,'XX.CVEPRES-2024'!$E$2:$E$1048576,'Base Maestra'!$T$4)","v":0},{"$f":"SUMIFS('XX.CVEPRES-2024'!$W$2:$W$1048576,'XX.CVEPRES-2024'!$D$2:$D$1048576,'Base Maestra'!$A44,'XX.CVEPRES-2024'!$F$2:$F$1048576,'Base Maestra'!N$4,'XX.CVEPRES-2024'!$E$2:$E$1048576,'Base Maestra'!$T$4)","v":0},{"$f":"SUMIFS('XX.CVEPRES-2024'!$W$2:$W$1048576,'XX.CVEPRES-2024'!$D$2:$D$1048576,'Base Maestra'!$A44,'XX.CVEPRES-2024'!$F$2:$F$1048576,'Base Maestra'!O$4,'XX.CVEPRES-2024'!$E$2:$E$1048576,'Base Maestra'!$T$4)","v":0},{"$f":"SUMIFS('XX.CVEPRES-2024'!$W$2:$W$1048576,'XX.CVEPRES-2024'!$D$2:$D$1048576,'Base Maestra'!$A44,'XX.CVEPRES-2024'!$F$2:$F$1048576,'Base Maestra'!P$4,'XX.CVEPRES-2024'!$E$2:$E$1048576,'Base Maestra'!$T$4)","v":0},{"$f":"SUMIFS('XX.CVEPRES-2024'!$W$2:$W$1048576,'XX.CVEPRES-2024'!$D$2:$D$1048576,'Base Maestra'!$A44,'XX.CVEPRES-2024'!$F$2:$F$1048576,'Base Maestra'!Q$4,'XX.CVEPRES-2024'!$E$2:$E$1048576,'Base Maestra'!$T$4)","v":0},{"$f":"SUMIFS('XX.CVEPRES-2024'!$W$2:$W$1048576,'XX.CVEPRES-2024'!$D$2:$D$1048576,'Base Maestra'!$A44,'XX.CVEPRES-2024'!$F$2:$F$1048576,'Base Maestra'!R$4,'XX.CVEPRES-2024'!$E$2:$E$1048576,'Base Maestra'!$T$4)","v":0},0]
[61,"Organismo Descentralizado","NBV","DFSSA004043","Instituto Nacional de Cancerología",101382.54,1396946.87,90762.99,328672.49,1085623.47,0,3003388.3600000003,{"$f":"SUMIFS('XX.CVEPRES-2024'!$W$2:$W$1048576,'XX.CVEPRES-2024'!$D$2:$D$1048576,'Base Maestra'!$A45,'XX.CVEPRES-2024'!$F$2:$F$1048576,'Base Maestra'!M$4,'XX.CVEPRES-2024'!$E$2:$E$1048576,'Base Maestra'!$T$4)","v":0},{"$f":"SUMIFS('XX.CVEPRES-2024'!$W$2:$W$1048576,'XX.CVEPRES-2024'!$D$2:$D$1048576,'Base Maestra'!$A45,'XX.CVEPRES-2024'!$F$2:$F$1048576,'Base Maestra'!N$4,'XX.CVEPRES-2024'!$E$2:$E$1048576,'Base Maestra'!$T$4)","v":0},{"$f":"SUMIFS('XX.CVEPRES-2024'!$W$2:$W$1048576,'XX.CVEPRES-2024'!$D$2:$D$1048576,'Base Maestra'!$A45,'XX.CVEPRES-2024'!$F$2:$F$1048576,'Base Maestra'!O$4,'XX.CVEPRES-2024'!$E$2:$E$1048576,'Base Maestra'!$T$4)","v":0},{"$f":"SUMIFS('XX.CVEPRES-2024'!$W$2:$W$1048576,'XX.CVEPRES-2024'!$D$2:$D$1048576,'Base Maestra'!$A45,'XX.CVEPRES-2024'!$F$2:$F$1048576,'Base Maestra'!P$4,'XX.CVEPRES-2024'!$E$2:$E$1048576,'Base Maestra'!$T$4)","v":0},{"$f":"SUMIFS('XX.CVEPRES-2024'!$W$2:$W$1048576,'XX.CVEPRES-2024'!$D$2:$D$1048576,'Base Maestra'!$A45,'XX.CVEPRES-2024'!$F$2:$F$1048576,'Base Maestra'!Q$4,'XX.CVEPRES-2024'!$E$2:$E$1048576,'Base Maestra'!$T$4)","v":0},{"$f":"SUMIFS('XX.CVEPRES-2024'!$W$2:$W$1048576,'XX.CVEPRES-2024'!$D$2:$D$1048576,'Base Maestra'!$A45,'XX.CVEPRES-2024'!$F$2:$F$1048576,'Base Maestra'!R$4,'XX.CVEPRES-2024'!$E$2:$E$1048576,'Base Maestra'!$T$4)","v":0},0]
[62,"Organismo Descentralizado","NCA","DFSSA004031","Instituto Nacional de Cardiología Ignacio Chávez",156700.5,1251886.24,321464.62,68913.739999999991,972532.54,0,2771497.6399999997,{"$f":"SUMIFS('XX.CVEPRES-2024'!$W$2:$W$1048576,'XX.CVEPRES-2024'!$D$2:$D$1048576,'Base Maestra'!$A46,'XX.CVEPRES-2024'!$F$2:$F$1048576,'Base Maestra'!M$4,'XX.CVEPRES-2024'!$E$2:$E$1048576,'Base Maestra'!$T$4)","v":0},{"$f":"SUMIFS('XX.CVEPRES-2024'!$W$2:$W$1048576,'XX.CVEPRES-2024'!$D$2:$D$1048576,'Base Maestra'!$A46,'XX.CVEPRES-2024'!$F$2:$F$1048576,'Base Maestra'!N$4,'XX.CVEPRES-2024'!$E$2:$E$1048576,'Base Maestra'!$T$4)","v":0},{"$f":"SUMIFS('XX.CVEPRES-2024'!$W$2:$W$1048576,'XX.CVEPRES-2024'!$D$2:$D$1048576,'Base Maestra'!$A46,'XX.CVEPRES-2024'!$F$2:$F$1048576,'Base Maestra'!O$4,'XX.CVEPRES-2024'!$E$2:$E$1048576,'Base Maestra'!$T$4)","v":0},{"$f":"SUMIFS('XX.CVEPRES-2024'!$W$2:$W$1048576,'XX.CVEPRES-2024'!$D$2:$D$1048576,'Base Maestra'!$A46,'XX.CVEPRES-2024'!$F$2:$F$1048576,'Base Maestra'!P$4,'XX.CVEPRES-2024'!$E$2:$E$1048576,'Base Maestra'!$T$4)","v":0},{"$f":"SUMIFS('XX.CVEPRES-2024'!$W$2:$W$1048576,'XX.CVEPRES-2024'!$D$2:$D$1048576,'Base Maestra'!$A46,'XX.CVEPRES-2024'!$F$2:$F$1048576,'Base Maestra'!Q$4,'XX.CVEPRES-2024'!$E$2:$E$1048576,'Base Maestra'!$T$4)","v":0},{"$f":"SUMIFS('XX.CVEPRES-2024'!$W$2:$W$1048576,'XX.CVEPRES-2024'!$D$2:$D$1048576,'Base Maestra'!$A46,'XX.CVEPRES-2024'!$F$2:$F$1048576,'Base Maestra'!R$4,'XX.CVEPRES-2024'!$E$2:$E$1048576,'Base Maestra'!$T$4)","v":0},0]
[63,"Organismo Descentralizado","NCD","DFSSA004026","Instituto Nacional de Enfermedades Respiratorias Ismael Cosío Villegas",220336.63,2238837.41,72985.61,111312.57,443364.2,0,3086836.42,{"$f":"SUMIFS('XX.CVEPRES-2024'!$W$2:$W$1048576,'XX.CVEPRES-2024'!$D$2:$D$1048576,'Base Maestra'!$A47,'XX.CVEPRES-2024'!$F$2:$F$1048576,'Base Maestra'!M$4,'XX.CVEPRES-2024'!$E$2:$E$1048576,'Base Maestra'!$T$4)","v":0},{"$f":"SUMIFS('XX.CVEPRES-2024'!$W$2:$W$1048576,'XX.CVEPRES-2024'!$D$2:$D$1048576,'Base Maestra'!$A47,'XX.CVEPRES-2024'!$F$2:$F$1048576,'Base Maestra'!N$4,'XX.CVEPRES-2024'!$E$2:$E$1048576,'Base Maestra'!$T$4)","v":0},{"$f":"SUMIFS('XX.CVEPRES-2024'!$W$2:$W$1048576,'XX.CVEPRES-2024'!$D$2:$D$1048576,'Base Maestra'!$A47,'XX.CVEPRES-2024'!$F$2:$F$1048576,'Base Maestra'!O$4,'XX.CVEPRES-2024'!$E$2:$E$1048576,'Base Maestra'!$T$4)","v":0},{"$f":"SUMIFS('XX.CVEPRES-2024'!$W$2:$W$1048576,'XX.CVEPRES-2024'!$D$2:$D$1048576,'Base Maestra'!$A47,'XX.CVEPRES-2024'!$F$2:$F$1048576,'Base Maestra'!P$4,'XX.CVEPRES-2024'!$E$2:$E$1048576,'Base Maestra'!$T$4)","v":0},{"$f":"SUMIFS('XX.CVEPRES-2024'!$W$2:$W$1048576,'XX.CVEPRES-2024'!$D$2:$D$1048576,'Base Maestra'!$A47,'XX.CVEPRES-2024'!$F$2:$F$1048576,'Base Maestra'!Q$4,'XX.CVEPRES-2024'!$E$2:$E$1048576,'Base Maestra'!$T$4)","v":0},{"$f":"SUMIFS('XX.CVEPRES-2024'!$W$2:$W$1048576,'XX.CVEPRES-2024'!$D$2:$D$1048576,'Base Maestra'!$A47,'XX.CVEPRES-2024'!$F$2:$F$1048576,'Base Maestra'!R$4,'XX.CVEPRES-2024'!$E$2:$E$1048576,'Base Maestra'!$T$4)","v":0},0]
[86,"Organismo Descentralizado","NCE","DFSSA004644","Instituto Nacional de Geriatría",68194.7,17355.599999999999,34124.869999999995,86,2873.32,0,122634.48999999999,{"$f":"SUMIFS('XX.CVEPRES-2024'!$W$2:$W$1048576,'XX.CVEPRES-2024'!$D$2:$D$1048576,'Base Maestra'!$A48,'XX.CVEPRES-2024'!$F$2:$F$1048576,'Base Maestra'!M$4,'XX.CVEPRES-2024'!$E$2:$E$1048576,'Base Maestra'!$T$4)","v":0},{"$f":"SUMIFS('XX.CVEPRES-2024'!$W$2:$W$1048576,'XX.CVEPRES-2024'!$D$2:$D$1048576,'Base Maestra'!$A48,'XX.CVEPRES-2024'!$F$2:$F$1048576,'Base Maestra'!N$4,'XX.CVEPRES-2024'!$E$2:$E$1048576,'Base Maestra'!$T$4)","v":0},{"$f":"SUMIFS('XX.CVEPRES-2024'!$W$2:$W$1048576,'XX.CVEPRES-2024'!$D$2:$D$1048576,'Base Maestra'!$A48,'XX.CVEPRES-2024'!$F$2:$F$1048576,'Base Maestra'!O$4,'XX.CVEPRES-2024'!$E$2:$E$1048576,'Base Maestra'!$T$4)","v":0},{"$f":"SUMIFS('XX.CVEPRES-2024'!$W$2:$W$1048576,'XX.CVEPRES-2024'!$D$2:$D$1048576,'Base Maestra'!$A48,'XX.CVEPRES-2024'!$F$2:$F$1048576,'Base Maestra'!P$4,'XX.CVEPRES-2024'!$E$2:$E$1048576,'Base Maestra'!$T$4)","v":0},{"$f":"SUMIFS('XX.CVEPRES-2024'!$W$2:$W$1048576,'XX.CVEPRES-2024'!$D$2:$D$1048576,'Base Maestra'!$A48,'XX.CVEPRES-2024'!$F$2:$F$1048576,'Base Maestra'!Q$4,'XX.CVEPRES-2024'!$E$2:$E$1048576,'Base Maestra'!$T$4)","v":0},{"$f":"SUMIFS('XX.CVEPRES-2024'!$W$2:$W$1048576,'XX.CVEPRES-2024'!$D$2:$D$1048576,'Base Maestra'!$A48,'XX.CVEPRES-2024'!$F$2:$F$1048576,'Base Maestra'!R$4,'XX.CVEPRES-2024'!$E$2:$E$1048576,'Base Maestra'!$T$4)","v":0},0]
[64,"Organismo Descentralizado","NCG","DFSSA004055","Instituto Nacional de Ciencias Médicas y Nutrición Salvador Zubirán",301314.53999999998,1700674.52,180771.94,58448.89,1538826.16,0,3780036.05,{"$f":"SUMIFS('XX.CVEPRES-2024'!$W$2:$W$1048576,'XX.CVEPRES-2024'!$D$2:$D$1048576,'Base Maestra'!$A49,'XX.CVEPRES-2024'!$F$2:$F$1048576,'Base Maestra'!M$4,'XX.CVEPRES-2024'!$E$2:$E$1048576,'Base Maestra'!$T$4)","v":0},{"$f":"SUMIFS('XX.CVEPRES-2024'!$W$2:$W$1048576,'XX.CVEPRES-2024'!$D$2:$D$1048576,'Base Maestra'!$A49,'XX.CVEPRES-2024'!$F$2:$F$1048576,'Base Maestra'!N$4,'XX.CVEPRES-2024'!$E$2:$E$1048576,'Base Maestra'!$T$4)","v":0},{"$f":"SUMIFS('XX.CVEPRES-2024'!$W$2:$W$1048576,'XX.CVEPRES-2024'!$D$2:$D$1048576,'Base Maestra'!$A49,'XX.CVEPRES-2024'!$F$2:$F$1048576,'Base Maestra'!O$4,'XX.CVEPRES-2024'!$E$2:$E$1048576,'Base Maestra'!$T$4)","v":0},{"$f":"SUMIFS('XX.CVEPRES-2024'!$W$2:$W$1048576,'XX.CVEPRES-2024'!$D$2:$D$1048576,'Base Maestra'!$A49,'XX.CVEPRES-2024'!$F$2:$F$1048576,'Base Maestra'!P$4,'XX.CVEPRES-2024'!$E$2:$E$1048576,'Base Maestra'!$T$4)","v":0},{"$f":"SUMIFS('XX.CVEPRES-2024'!$W$2:$W$1048576,'XX.CVEPRES-2024'!$D$2:$D$1048576,'Base Maestra'!$A49,'XX.CVEPRES-2024'!$F$2:$F$1048576,'Base Maestra'!Q$4,'XX.CVEPRES-2024'!$E$2:$E$1048576,'Base Maestra'!$T$4)","v":0},{"$f":"SUMIFS('XX.CVEPRES-2024'!$W$2:$W$1048576,'XX.CVEPRES-2024'!$D$2:$D$1048576,'Base Maestra'!$A49,'XX.CVEPRES-2024'!$F$2:$F$1048576,'Base Maestra'!R$4,'XX.CVEPRES-2024'!$E$2:$E$1048576,'Base Maestra'!$T$4)","v":0},0]
[65,"Organismo Descentralizado","NCH","DFSSA006190","Instituto Nacional de Medicina Genómica",212105.22,0,49297.17,5682,0,0,267084.39,{"$f":"SUMIFS('XX.CVEPRES-2024'!$W$2:$W$1048576,'XX.CVEPRES-2024'!$D$2:$D$1048576,'Base Maestra'!$A50,'XX.CVEPRES-2024'!$F$2:$F$1048576,'Base Maestra'!M$4,'XX.CVEPRES-2024'!$E$2:$E$1048576,'Base Maestra'!$T$4)","v":0},{"$f":"SUMIFS('XX.CVEPRES-2024'!$W$2:$W$1048576,'XX.CVEPRES-2024'!$D$2:$D$1048576,'Base Maestra'!$A50,'XX.CVEPRES-2024'!$F$2:$F$1048576,'Base Maestra'!N$4,'XX.CVEPRES-2024'!$E$2:$E$1048576,'Base Maestra'!$T$4)","v":0},{"$f":"SUMIFS('XX.CVEPRES-2024'!$W$2:$W$1048576,'XX.CVEPRES-2024'!$D$2:$D$1048576,'Base Maestra'!$A50,'XX.CVEPRES-2024'!$F$2:$F$1048576,'Base Maestra'!O$4,'XX.CVEPRES-2024'!$E$2:$E$1048576,'Base Maestra'!$T$4)","v":0},{"$f":"SUMIFS('XX.CVEPRES-2024'!$W$2:$W$1048576,'XX.CVEPRES-2024'!$D$2:$D$1048576,'Base Maestra'!$A50,'XX.CVEPRES-2024'!$F$2:$F$1048576,'Base Maestra'!P$4,'XX.CVEPRES-2024'!$E$2:$E$1048576,'Base Maestra'!$T$4)","v":0},{"$f":"SUMIFS('XX.CVEPRES-2024'!$W$2:$W$1048576,'XX.CVEPRES-2024'!$D$2:$D$1048576,'Base Maestra'!$A50,'XX.CVEPRES-2024'!$F$2:$F$1048576,'Base Maestra'!Q$4,'XX.CVEPRES-2024'!$E$2:$E$1048576,'Base Maestra'!$T$4)","v":0},{"$f":"SUMIFS('XX.CVEPRES-2024'!$W$2:$W$1048576,'XX.CVEPRES-2024'!$D$2:$D$1048576,'Base Maestra'!$A50,'XX.CVEPRES-2024'!$F$2:$F$1048576,'Base Maestra'!R$4,'XX.CVEPRES-2024'!$E$2:$E$1048576,'Base Maestra'!$T$4)","v":0},0]
[66,"Organismo Descentralizado","NCK","DFSSA004060","Instituto Nacional de Neurología y Neurocirugía Manuel Velasco Suárez",138471.74,950607.35999999999,7018.5199999999995,10679.42,514173.44,0,1620950.48,{"$f":"SUMIFS('XX.CVEPRES-2024'!$W$2:$W$1048576,'XX.CVEPRES-2024'!$D$2:$D$1048576,'Base Maestra'!$A51,'XX.CVEPRES-2024'!$F$2:$F$1048576,'Base Maestra'!M$4,'XX.CVEPRES-2024'!$E$2:$E$1048576,'Base Maestra'!$T$4)","v":0},{"$f":"SUMIFS('XX.CVEPRES-2024'!$W$2:$W$1048576,'XX.CVEPRES-2024'!$D$2:$D$1048576,'Base Maestra'!$A51,'XX.CVEPRES-2024'!$F$2:$F$1048576,'Base Maestra'!N$4,'XX.CVEPRES-2024'!$E$2:$E$1048576,'Base Maestra'!$T$4)","v":0},{"$f":"SUMIFS('XX.CVEPRES-2024'!$W$2:$W$1048576,'XX.CVEPRES-2024'!$D$2:$D$1048576,'Base Maestra'!$A51,'XX.CVEPRES-2024'!$F$2:$F$1048576,'Base Maestra'!O$4,'XX.CVEPRES-2024'!$E$2:$E$1048576,'Base Maestra'!$T$4)","v":0},{"$f":"SUMIFS('XX.CVEPRES-2024'!$W$2:$W$1048576,'XX.CVEPRES-2024'!$D$2:$D$1048576,'Base Maestra'!$A51,'XX.CVEPRES-2024'!$F$2:$F$1048576,'Base Maestra'!P$4,'XX.CVEPRES-2024'!$E$2:$E$1048576,'Base Maestra'!$T$4)","v":0},{"$f":"SUMIFS('XX.CVEPRES-2024'!$W$2:$W$1048576,'XX.CVEPRES-2024'!$D$2:$D$1048576,'Base Maestra'!$A51,'XX.CVEPRES-2024'!$F$2:$F$1048576,'Base Maestra'!Q$4,'XX.CVEPRES-2024'!$E$2:$E$1048576,'Base Maestra'!$T$4)","v":0},{"$f":"SUMIFS('XX.CVEPRES-2024'!$W$2:$W$1048576,'XX.CVEPRES-2024'!$D$2:$D$1048576,'Base Maestra'!$A51,'XX.CVEPRES-2024'!$F$2:$F$1048576,'Base Maestra'!R$4,'XX.CVEPRES-2024'!$E$2:$E$1048576,'Base Maestra'!$T$4)","v":0},0]
[67,"Organismo Descentralizado","NCZ","DFSSA004014","Instituto Nacional de Pediatría",229520.18,2025322.8499999999,162839.72,13903.82,819257.02,0,3250843.59,{"$f":"SUMIFS('XX.CVEPRES-2024'!$W$2:$W$1048576,'XX.CVEPRES-2024'!$D$2:$D$1048576,'Base Maestra'!$A52,'XX.CVEPRES-2024'!$F$2:$F$1048576,'Base Maestra'!M$4,'XX.CVEPRES-2024'!$E$2:$E$1048576,'Base Maestra'!$T$4)","v":0},{"$f":"SUMIFS('XX.CVEPRES-2024'!$W$2:$W$1048576,'XX.CVEPRES-2024'!$D$2:$D$1048576,'Base Maestra'!$A52,'XX.CVEPRES-2024'!$F$2:$F$1048576,'Base Maestra'!N$4,'XX.CVEPRES-2024'!$E$2:$E$1048576,'Base Maestra'!$T$4)","v":0},{"$f":"SUMIFS('XX.CVEPRES-2024'!$W$2:$W$1048576,'XX.CVEPRES-2024'!$D$2:$D$1048576,'Base Maestra'!$A52,'XX.CVEPRES-2024'!$F$2:$F$1048576,'Base Maestra'!O$4,'XX.CVEPRES-2024'!$E$2:$E$1048576,'Base Maestra'!$T$4)","v":0},{"$f":"SUMIFS('XX.CVEPRES-2024'!$W$2:$W$1048576,'XX.CVEPRES-2024'!$D$2:$D$1048576,'Base Maestra'!$A52,'XX.CVEPRES-2024'!$F$2:$F$1048576,'Base Maestra'!P$4,'XX.CVEPRES-2024'!$E$2:$E$1048576,'Base Maestra'!$T$4)","v":0},{"$f":"SUMIFS('XX.CVEPRES-2024'!$W$2:$W$1048576,'XX.CVEPRES-2024'!$D$2:$D$1048576,'Base Maestra'!$A52,'XX.CVEPRES-2024'!$F$2:$F$1048576,'Base Maestra'!Q$4,'XX.CVEPRES-2024'!$E$2:$E$1048576,'Base Maestra'!$T$4)","v":0},{"$f":"SUMIFS('XX.CVEPRES-2024'!$W$2:$W$1048576,'XX.CVEPRES-2024'!$D$2:$D$1048576,'Base Maestra'!$A52,'XX.CVEPRES-2024'!$F$2:$F$1048576,'Base Maestra'!R$4,'XX.CVEPRES-2024'!$E$2:$E$1048576,'Base Maestra'!$T$4)","v":0},0]
[68,"Organismo Descentralizado","NDE","DFSSA004096","Instituto Nacional de Perinatología Isidro Espinosa de los Reyes",177409.97,851890.12,99349.29,76765.81,195860.73,0,1401275.92,{"$f":"SUMIFS('XX.CVEPRES-2024'!$W$2:$W$1048576,'XX.CVEPRES-2024'!$D$2:$D$1048576,'Base Maestra'!$A53,'XX.CVEPRES-2024'!$F$2:$F$1048576,'Base Maestra'!M$4,'XX.CVEPRES-2024'!$E$2:$E$1048576,'Base Maestra'!$T$4)","v":0},{"$f":"SUMIFS('XX.CVEPRES-2024'!$W$2:$W$1048576,'XX.CVEPRES-2024'!$D$2:$D$1048576,'Base Maestra'!$A53,'XX.CVEPRES-2024'!$F$2:$F$1048576,'Base Maestra'!N$4,'XX.CVEPRES-2024'!$E$2:$E$1048576,'Base Maestra'!$T$4)","v":0},{"$f":"SUMIFS('XX.CVEPRES-2024'!$W$2:$W$1048576,'XX.CVEPRES-2024'!$D$2:$D$1048576,'Base Maestra'!$A53,'XX.CVEPRES-2024'!$F$2:$F$1048576,'Base Maestra'!O$4,'XX.CVEPRES-2024'!$E$2:$E$1048576,'Base Maestra'!$T$4)","v":0},{"$f":"SUMIFS('XX.CVEPRES-2024'!$W$2:$W$1048576,'XX.CVEPRES-2024'!$D$2:$D$1048576,'Base Maestra'!$A53,'XX.CVEPRES-2024'!$F$2:$F$1048576,'Base Maestra'!P$4,'XX.CVEPRES-2024'!$E$2:$E$1048576,'Base Maestra'!$T$4)","v":0},{"$f":"SUMIFS('XX.CVEPRES-2024'!$W$2:$W$1048576,'XX.CVEPRES-2024'!$D$2:$D$1048576,'Base Maestra'!$A53,'XX.CVEPRES-2024'!$F$2:$F$1048576,'Base Maestra'!Q$4,'XX.CVEPRES-2024'!$E$2:$E$1048576,'Base Maestra'!$T$4)","v":0},{"$f":"SUMIFS('XX.CVEPRES-2024'!$W$2:$W$1048576,'XX.CVEPRES-2024'!$D$2:$D$1048576,'Base Maestra'!$A53,'XX.CVEPRES-2024'!$F$2:$F$1048576,'Base Maestra'!R$4,'XX.CVEPRES-2024'!$E$2:$E$1048576,'Base Maestra'!$T$4)","v":0},0]
[69,"Organismo Descentralizado","NDF","DFSSA003956","Instituto Nacional de Rehabilitación Luis Guillermo Ibarra Ibarra",139244.76999999999,1857905.1,47399.1,1783.06,358542.57,0,2404874.6,{"$f":"SUMIFS('XX.CVEPRES-2024'!$W$2:$W$1048576,'XX.CVEPRES-2024'!$D$2:$D$1048576,'Base Maestra'!$A54,'XX.CVEPRES-2024'!$F$2:$F$1048576,'Base Maestra'!M$4,'XX.CVEPRES-2024'!$E$2:$E$1048576,'Base Maestra'!$T$4)","v":0},{"$f":"SUMIFS('XX.CVEPRES-2024'!$W$2:$W$1048576,'XX.CVEPRES-2024'!$D$2:$D$1048576,'Base Maestra'!$A54,'XX.CVEPRES-2024'!$F$2:$F$1048576,'Base Maestra'!N$4,'XX.CVEPRES-2024'!$E$2:$E$1048576,'Base Maestra'!$T$4)","v":0},{"$f":"SUMIFS('XX.CVEPRES-2024'!$W$2:$W$1048576,'XX.CVEPRES-2024'!$D$2:$D$1048576,'Base Maestra'!$A54,'XX.CVEPRES-2024'!$F$2:$F$1048576,'Base Maestra'!O$4,'XX.CVEPRES-2024'!$E$2:$E$1048576,'Base Maestra'!$T$4)","v":0},{"$f":"SUMIFS('XX.CVEPRES-2024'!$W$2:$W$1048576,'XX.CVEPRES-2024'!$D$2:$D$1048576,'Base Maestra'!$A54,'XX.CVEPRES-2024'!$F$2:$F$1048576,'Base Maestra'!P$4,'XX.CVEPRES-2024'!$E$2:$E$1048576,'Base Maestra'!$T$4)","v":0},{"$f":"SUMIFS('XX.CVEPRES-2024'!$W$2:$W$1048576,'XX.CVEPRES-2024'!$D$2:$D$1048576,'Base Maestra'!$A54,'XX.CVEPRES-2024'!$F$2:$F$1048576,'Base Maestra'!Q$4,'XX.CVEPRES-2024'!$E$2:$E$1048576,'Base Maestra'!$T$4)","v":0},{"$f":"SUMIFS('XX.CVEPRES-2024'!$W$2:$W$1048576,'XX.CVEPRES-2024'!$D$2:$D$1048576,'Base Maestra'!$A54,'XX.CVEPRES-2024'!$F$2:$F$1048576,'Base Maestra'!R$4,'XX.CVEPRES-2024'!$E$2:$E$1048576,'Base Maestra'!$T$4)","v":0},0]
[70,"Organismo Descentralizado","NDY","MSSSA003015","Instituto Nacional de Salud Pública",498839.48,0,73093.89,41434.19,0,0,613367.56000000006,{"$f":"SUMIFS('XX.CVEPRES-2024'!$W$2:$W$1048576,'XX.CVEPRES-2024'!$D$2:$D$1048576,'Base Maestra'!$A55,'XX.CVEPRES-2024'!$F$2:$F$1048576,'Base Maestra'!M$4,'XX.CVEPRES-2024'!$E$2:$E$1048576,'Base Maestra'!$T$4)","v":0},{"$f":"SUMIFS('XX.CVEPRES-2024'!$W$2:$W$1048576,'XX.CVEPRES-2024'!$D$2:$D$1048576,'Base Maestra'!$A55,'XX.CVEPRES-2024'!$F$2:$F$1048576,'Base Maestra'!N$4,'XX.CVEPRES-2024'!$E$2:$E$1048576,'Base Maestra'!$T$4)","v":0},{"$f":"SUMIFS('XX.CVEPRES-2024'!$W$2:$W$1048576,'XX.CVEPRES-2024'!$D$2:$D$1048576,'Base Maestra'!$A55,'XX.CVEPRES-2024'!$F$2:$F$1048576,'Base Maestra'!O$4,'XX.CVEPRES-2024'!$E$2:$E$1048576,'Base Maestra'!$T$4)","v":0},{"$f":"SUMIFS('XX.CVEPRES-2024'!$W$2:$W$1048576,'XX.CVEPRES-2024'!$D$2:$D$1048576,'Base Maestra'!$A55,'XX.CVEPRES-2024'!$F$2:$F$1048576,'Base Maestra'!P$4,'XX.CVEPRES-2024'!$E$2:$E$1048576,'Base Maestra'!$T$4)","v":0},{"$f":"SUMIFS('XX.CVEPRES-2024'!$W$2:$W$1048576,'XX.CVEPRES-2024'!$D$2:$D$1048576,'Base Maestra'!$A55,'XX.CVEPRES-2024'!$F$2:$F$1048576,'Base Maestra'!Q$4,'XX.CVEPRES-2024'!$E$2:$E$1048576,'Base Maestra'!$T$4)","v":0},{"$f":"SUMIFS('XX.CVEPRES-2024'!$W$2:$W$1048576,'XX.CVEPRES-2024'!$D$2:$D$1048576,'Base Maestra'!$A55,'XX.CVEPRES-2024'!$F$2:$F$1048576,'Base Maestra'!R$4,'XX.CVEPRES-2024'!$E$2:$E$1048576,'Base Maestra'!$T$4)","v":0},0]
[72,"Organismo Descentralizado","NHK","DFSSA004603","Sistema Nacional para el Desarrollo Integral de la Familia",0,0,76474.539999999994,45077.53,0,3893254.62,4014806.69,{"$f":"SUMIFS('XX.CVEPRES-2024'!$W$2:$W$1048576,'XX.CVEPRES-2024'!$D$2:$D$1048576,'Base Maestra'!$A56,'XX.CVEPRES-2024'!$F$2:$F$1048576,'Base Maestra'!M$4,'XX.CVEPRES-2024'!$E$2:$E$1048576,'Base Maestra'!$T$4)","v":0},{"$f":"SUMIFS('XX.CVEPRES-2024'!$W$2:$W$1048576,'XX.CVEPRES-2024'!$D$2:$D$1048576,'Base Maestra'!$A56,'XX.CVEPRES-2024'!$F$2:$F$1048576,'Base Maestra'!N$4,'XX.CVEPRES-2024'!$E$2:$E$1048576,'Base Maestra'!$T$4)","v":0},{"$f":"SUMIFS('XX.CVEPRES-2024'!$W$2:$W$1048576,'XX.CVEPRES-2024'!$D$2:$D$1048576,'Base Maestra'!$A56,'XX.CVEPRES-2024'!$F$2:$F$1048576,'Base Maestra'!O$4,'XX.CVEPRES-2024'!$E$2:$E$1048576,'Base Maestra'!$T$4)","v":0},{"$f":"SUMIFS('XX.CVEPRES-2024'!$W$2:$W$1048576,'XX.CVEPRES-2024'!$D$2:$D$1048576,'Base Maestra'!$A56,'XX.CVEPRES-2024'!$F$2:$F$1048576,'Base Maestra'!P$4,'XX.CVEPRES-2024'!$E$2:$E$1048576,'Base Maestra'!$T$4)","v":0},{"$f":"SUMIFS('XX.CVEPRES-2024'!$W$2:$W$1048576,'XX.CVEPRES-2024'!$D$2:$D$1048576,'Base Maestra'!$A56,'XX.CVEPRES-2024'!$F$2:$F$1048576,'Base Maestra'!Q$4,'XX.CVEPRES-2024'!$E$2:$E$1048576,'Base Maestra'!$T$4)","v":0},{"$f":"SUMIFS('XX.CVEPRES-2024'!$W$2:$W$1048576,'XX.CVEPRES-2024'!$D$2:$D$1048576,'Base Maestra'!$A56,'XX.CVEPRES-2024'!$F$2:$F$1048576,'Base Maestra'!R$4,'XX.CVEPRES-2024'!$E$2:$E$1048576,'Base Maestra'!$T$4)","v":0},0]
[79,"Órgano Desconcentrado","O00",9998,"Centro Nacional de Programas Preventivos y Control de Enfermedades",592781.01,0,0,157850.19,0,0,750631.2,{"$f":"SUMIFS('XX.CVEPRES-2024'!$W$2:$W$1048576,'XX.CVEPRES-2024'!$D$2:$D$1048576,'Base Maestra'!$A57,'XX.CVEPRES-2024'!$F$2:$F$1048576,'Base Maestra'!M$4,'XX.CVEPRES-2024'!$E$2:$E$1048576,'Base Maestra'!$T$4)","v":0},{"$f":"SUMIFS('XX.CVEPRES-2024'!$W$2:$W$1048576,'XX.CVEPRES-2024'!$D$2:$D$1048576,'Base Maestra'!$A57,'XX.CVEPRES-2024'!$F$2:$F$1048576,'Base Maestra'!N$4,'XX.CVEPRES-2024'!$E$2:$E$1048576,'Base Maestra'!$T$4)","v":0},{"$f":"SUMIFS('XX.CVEPRES-2024'!$W$2:$W$1048576,'XX.CVEPRES-2024'!$D$2:$D$1048576,'Base Maestra'!$A57,'XX.CVEPRES-2024'!$F$2:$F$1048576,'Base Maestra'!O$4,'XX.CVEPRES-2024'!$E$2:$E$1048576,'Base Maestra'!$T$4)","v":0},{"$f":"SUMIFS('XX.CVEPRES-2024'!$W$2:$W$1048576,'XX.CVEPRES-2024'!$D$2:$D$1048576,'Base Maestra'!$A57,'XX.CVEPRES-2024'!$F$2:$F$1048576,'Base Maestra'!P$4,'XX.CVEPRES-2024'!$E$2:$E$1048576,'Base Maestra'!$T$4)","v":0},{"$f":"SUMIFS('XX.CVEPRES-2024'!$W$2:$W$1048576,'XX.CVEPRES-2024'!$D$2:$D$1048576,'Base Maestra'!$A57,'XX.CVEPRES-2024'!$F$2:$F$1048576,'Base Maestra'!Q$4,'XX.CVEPRES-2024'!$E$2:$E$1048576,'Base Maestra'!$T$4)","v":0},{"$f":"SUMIFS('XX.CVEPRES-2024'!$W$2:$W$1048576,'XX.CVEPRES-2024'!$D$2:$D$1048576,'Base Maestra'!$A57,'XX.CVEPRES-2024'!$F$2:$F$1048576,'Base Maestra'!R$4,'XX.CVEPRES-2024'!$E$2:$E$1048576,'Base Maestra'!$T$4)","v":0},0]
[80,"Órgano Desconcentrado","Q00","DFSSA004871","Centro Nacional de Trasplantes",0,0,29070.769999999997,0,0,0,29070.769999999997,{"$f":"SUMIFS('XX.CVEPRES-2024'!$W$2:$W$1048576,'XX.CVEPRES-2024'!$D$2:$D$1048576,'Base Maestra'!$A58,'XX.CVEPRES-2024'!$F$2:$F$1048576,'Base Maestra'!M$4,'XX.CVEPRES-2024'!$E$2:$E$1048576,'Base Maestra'!$T$4)","v":0},{"$f":"SUMIFS('XX.CVEPRES-2024'!$W$2:$W$1048576,'XX.CVEPRES-2024'!$D$2:$D$1048576,'Base Maestra'!$A58,'XX.CVEPRES-2024'!$F$2:$F$1048576,'Base Maestra'!N$4,'XX.CVEPRES-2024'!$E$2:$E$1048576,'Base Maestra'!$T$4)","v":0},{"$f":"SUMIFS('XX.CVEPRES-2024'!$W$2:$W$1048576,'XX.CVEPRES-2024'!$D$2:$D$1048576,'Base Maestra'!$A58,'XX.CVEPRES-2024'!$F$2:$F$1048576,'Base Maestra'!O$4,'XX.CVEPRES-2024'!$E$2:$E$1048576,'Base Maestra'!$T$4)","v":0},{"$f":"SUMIFS('XX.CVEPRES-2024'!$W$2:$W$1048576,'XX.CVEPRES-2024'!$D$2:$D$1048576,'Base Maestra'!$A58,'XX.CVEPRES-2024'!$F$2:$F$1048576,'Base Maestra'!P$4,'XX.CVEPRES-2024'!$E$2:$E$1048576,'Base Maestra'!$T$4)","v":0},{"$f":"SUMIFS('XX.CVEPRES-2024'!$W$2:$W$1048576,'XX.CVEPRES-2024'!$D$2:$D$1048576,'Base Maestra'!$A58,'XX.CVEPRES-2024'!$F$2:$F$1048576,'Base Maestra'!Q$4,'XX.CVEPRES-2024'!$E$2:$E$1048576,'Base Maestra'!$T$4)","v":0},{"$f":"SUMIFS('XX.CVEPRES-2024'!$W$2:$W$1048576,'XX.CVEPRES-2024'!$D$2:$D$1048576,'Base Maestra'!$A58,'XX.CVEPRES-2024'!$F$2:$F$1048576,'Base Maestra'!R$4,'XX.CVEPRES-2024'!$E$2:$E$1048576,'Base Maestra'!$T$4)","v":0},0]
[81,"Órgano Desconcentrado","R00","DFSSA004866","Centro Nacional para la Salud de la Infancia y la Adolescencia",0,37646.68,0,40028,4483867.3099999996,0,4561541.9899999993,{"$f":"SUMIFS('XX.CVEPRES-2024'!$W$2:$W$1048576,'XX.CVEPRES-2024'!$D$2:$D$1048576,'Base Maestra'!$A59,'XX.CVEPRES-2024'!$F$2:$F$1048576,'Base Maestra'!M$4,'XX.CVEPRES-2024'!$E$2:$E$1048576,'Base Maestra'!$T$4)","v":0},{"$f":"SUMIFS('XX.CVEPRES-2024'!$W$2:$W$1048576,'XX.CVEPRES-2024'!$D$2:$D$1048576,'Base Maestra'!$A59,'XX.CVEPRES-2024'!$F$2:$F$1048576,'Base Maestra'!N$4,'XX.CVEPRES-2024'!$E$2:$E$1048576,'Base Maestra'!$T$4)","v":0},{"$f":"SUMIFS('XX.CVEPRES-2024'!$W$2:$W$1048576,'XX.CVEPRES-2024'!$D$2:$D$1048576,'Base Maestra'!$A59,'XX.CVEPRES-2024'!$F$2:$F$1048576,'Base Maestra'!O$4,'XX.CVEPRES-2024'!$E$2:$E$1048576,'Base Maestra'!$T$4)","v":0},{"$f":"SUMIFS('XX.CVEPRES-2024'!$W$2:$W$1048576,'XX.CVEPRES-2024'!$D$2:$D$1048576,'Base Maestra'!$A59,'XX.CVEPRES-2024'!$F$2:$F$1048576,'Base Maestra'!P$4,'XX.CVEPRES-2024'!$E$2:$E$1048576,'Base Maestra'!$T$4)","v":0},{"$f":"SUMIFS('XX.CVEPRES-2024'!$W$2:$W$1048576,'XX.CVEPRES-2024'!$D$2:$D$1048576,'Base Maestra'!$A59,'XX.CVEPRES-2024'!$F$2:$F$1048576,'Base Maestra'!Q$4,'XX.CVEPRES-2024'!$E$2:$E$1048576,'Base Maestra'!$T$4)","v":0},{"$f":"SUMIFS('XX.CVEPRES-2024'!$W$2:$W$1048576,'XX.CVEPRES-2024'!$D$2:$D$1048576,'Base Maestra'!$A59,'XX.CVEPRES-2024'!$F$2:$F$1048576,'Base Maestra'!R$4,'XX.CVEPRES-2024'!$E$2:$E$1048576,'Base Maestra'!$T$4)","v":0},0]
[82,"Órgano Desconcentrado","S00","DFSSA004533","Comisión Federal para la Protección contra Riesgos Sanitarios",1662411.44,0,12129.58,157644.37,0,0,1832185.3900000001,{"$f":"SUMIFS('XX.CVEPRES-2024'!$W$2:$W$1048576,'XX.CVEPRES-2024'!$D$2:$D$1048576,'Base Maestra'!$A60,'XX.CVEPRES-2024'!$F$2:$F$1048576,'Base Maestra'!M$4,'XX.CVEPRES-2024'!$E$2:$E$1048576,'Base Maestra'!$T$4)","v":0},{"$f":"SUMIFS('XX.CVEPRES-2024'!$W$2:$W$1048576,'XX.CVEPRES-2024'!$D$2:$D$1048576,'Base Maestra'!$A60,'XX.CVEPRES-2024'!$F$2:$F$1048576,'Base Maestra'!N$4,'XX.CVEPRES-2024'!$E$2:$E$1048576,'Base Maestra'!$T$4)","v":0},{"$f":"SUMIFS('XX.CVEPRES-2024'!$W$2:$W$1048576,'XX.CVEPRES-2024'!$D$2:$D$1048576,'Base Maestra'!$A60,'XX.CVEPRES-2024'!$F$2:$F$1048576,'Base Maestra'!O$4,'XX.CVEPRES-2024'!$E$2:$E$1048576,'Base Maestra'!$T$4)","v":0},{"$f":"SUMIFS('XX.CVEPRES-2024'!$W$2:$W$1048576,'XX.CVEPRES-2024'!$D$2:$D$1048576,'Base Maestra'!$A60,'XX.CVEPRES-2024'!$F$2:$F$1048576,'Base Maestra'!P$4,'XX.CVEPRES-2024'!$E$2:$E$1048576,'Base Maestra'!$T$4)","v":0},{"$f":"SUMIFS('XX.CVEPRES-2024'!$W$2:$W$1048576,'XX.CVEPRES-2024'!$D$2:$D$1048576,'Base Maestra'!$A60,'XX.CVEPRES-2024'!$F$2:$F$1048576,'Base Maestra'!Q$4,'XX.CVEPRES-2024'!$E$2:$E$1048576,'Base Maestra'!$T$4)","v":0},{"$f":"SUMIFS('XX.CVEPRES-2024'!$W$2:$W$1048576,'XX.CVEPRES-2024'!$D$2:$D$1048576,'Base Maestra'!$A60,'XX.CVEPRES-2024'!$F$2:$F$1048576,'Base Maestra'!R$4,'XX.CVEPRES-2024'!$E$2:$E$1048576,'Base Maestra'!$T$4)","v":0},0]
[83,"Órgano Desconcentrado","T00","DFSSA004545","Centro Nacional de Excelencia Tecnológica en Salud",0,0,0,42433.75,0,0,42433.75,{"$f":"SUMIFS('XX.CVEPRES-2024'!$W$2:$W$1048576,'XX.CVEPRES-2024'!$D$2:$D$1048576,'Base Maestra'!$A61,'XX.CVEPRES-2024'!$F$2:$F$1048576,'Base Maestra'!M$4,'XX.CVEPRES-2024'!$E$2:$E$1048576,'Base Maestra'!$T$4)","v":0},{"$f":"SUMIFS('XX.CVEPRES-2024'!$W$2:$W$1048576,'XX.CVEPRES-2024'!$D$2:$D$1048576,'Base Maestra'!$A61,'XX.CVEPRES-2024'!$F$2:$F$1048576,'Base Maestra'!N$4,'XX.CVEPRES-2024'!$E$2:$E$1048576,'Base Maestra'!$T$4)","v":0},{"$f":"SUMIFS('XX.CVEPRES-2024'!$W$2:$W$1048576,'XX.CVEPRES-2024'!$D$2:$D$1048576,'Base Maestra'!$A61,'XX.CVEPRES-2024'!$F$2:$F$1048576,'Base Maestra'!O$4,'XX.CVEPRES-2024'!$E$2:$E$1048576,'Base Maestra'!$T$4)","v":0},{"$f":"SUMIFS('XX.CVEPRES-2024'!$W$2:$W$1048576,'XX.CVEPRES-2024'!$D$2:$D$1048576,'Base Maestra'!$A61,'XX.CVEPRES-2024'!$F$2:$F$1048576,'Base Maestra'!P$4,'XX.CVEPRES-2024'!$E$2:$E$1048576,'Base Maestra'!$T$4)","v":0},{"$f":"SUMIFS('XX.CVEPRES-2024'!$W$2:$W$1048576,'XX.CVEPRES-2024'!$D$2:$D$1048576,'Base Maestra'!$A61,'XX.CVEPRES-2024'!$F$2:$F$1048576,'Base Maestra'!Q$4,'XX.CVEPRES-2024'!$E$2:$E$1048576,'Base Maestra'!$T$4)","v":0},{"$f":"SUMIFS('XX.CVEPRES-2024'!$W$2:$W$1048576,'XX.CVEPRES-2024'!$D$2:$D$1048576,'Base Maestra'!$A61,'XX.CVEPRES-2024'!$F$2:$F$1048576,'Base Maestra'!R$4,'XX.CVEPRES-2024'!$E$2:$E$1048576,'Base Maestra'!$T$4)","v":0},0]
[85,"Órgano Desconcentrado","V00","DFSSA004562","Comisión Nacional de Bioética",0,0,17.7,43054.100000000006,0,0,43071.8,{"$f":"SUMIFS('XX.CVEPRES-2024'!$W$2:$W$1048576,'XX.CVEPRES-2024'!$D$2:$D$1048576,'Base Maestra'!$A62,'XX.CVEPRES-2024'!$F$2:$F$1048576,'Base Maestra'!M$4,'XX.CVEPRES-2024'!$E$2:$E$1048576,'Base Maestra'!$T$4)","v":0},{"$f":"SUMIFS('XX.CVEPRES-2024'!$W$2:$W$1048576,'XX.CVEPRES-2024'!$D$2:$D$1048576,'Base Maestra'!$A62,'XX.CVEPRES-2024'!$F$2:$F$1048576,'Base Maestra'!N$4,'XX.CVEPRES-2024'!$E$2:$E$1048576,'Base Maestra'!$T$4)","v":0},{"$f":"SUMIFS('XX.CVEPRES-2024'!$W$2:$W$1048576,'XX.CVEPRES-2024'!$D$2:$D$1048576,'Base Maestra'!$A62,'XX.CVEPRES-2024'!$F$2:$F$1048576,'Base Maestra'!O$4,'XX.CVEPRES-2024'!$E$2:$E$1048576,'Base Maestra'!$T$4)","v":0},{"$f":"SUMIFS('XX.CVEPRES-2024'!$W$2:$W$1048576,'XX.CVEPRES-2024'!$D$2:$D$1048576,'Base Maestra'!$A62,'XX.CVEPRES-2024'!$F$2:$F$1048576,'Base Maestra'!P$4,'XX.CVEPRES-2024'!$E$2:$E$1048576,'Base Maestra'!$T$4)","v":0},{"$f":"SUMIFS('XX.CVEPRES-2024'!$W$2:$W$1048576,'XX.CVEPRES-2024'!$D$2:$D$1048576,'Base Maestra'!$A62,'XX.CVEPRES-2024'!$F$2:$F$1048576,'Base Maestra'!Q$4,'XX.CVEPRES-2024'!$E$2:$E$1048576,'Base Maestra'!$T$4)","v":0},{"$f":"SUMIFS('XX.CVEPRES-2024'!$W$2:$W$1048576,'XX.CVEPRES-2024'!$D$2:$D$1048576,'Base Maestra'!$A62,'XX.CVEPRES-2024'!$F$2:$F$1048576,'Base Maestra'!R$4,'XX.CVEPRES-2024'!$E$2:$E$1048576,'Base Maestra'!$T$4)","v":0},0]
[101,"Órgano Desconcentrado","Y00",9998,"Comisión Nacional de Salud Mental y Adicciones",810255.77,1341514.93,0,92672.3,0,0,2244443,{"$f":"SUMIFS('XX.CVEPRES-2024'!$W$2:$W$1048576,'XX.CVEPRES-2024'!$D$2:$D$1048576,'Base Maestra'!$A63,'XX.CVEPRES-2024'!$F$2:$F$1048576,'Base Maestra'!M$4,'XX.CVEPRES-2024'!$E$2:$E$1048576,'Base Maestra'!$T$4)","v":0},{"$f":"SUMIFS('XX.CVEPRES-2024'!$W$2:$W$1048576,'XX.CVEPRES-2024'!$D$2:$D$1048576,'Base Maestra'!$A63,'XX.CVEPRES-2024'!$F$2:$F$1048576,'Base Maestra'!N$4,'XX.CVEPRES-2024'!$E$2:$E$1048576,'Base Maestra'!$T$4)","v":0},{"$f":"SUMIFS('XX.CVEPRES-2024'!$W$2:$W$1048576,'XX.CVEPRES-2024'!$D$2:$D$1048576,'Base Maestra'!$A63,'XX.CVEPRES-2024'!$F$2:$F$1048576,'Base Maestra'!O$4,'XX.CVEPRES-2024'!$E$2:$E$1048576,'Base Maestra'!$T$4)","v":0},{"$f":"SUMIFS('XX.CVEPRES-2024'!$W$2:$W$1048576,'XX.CVEPRES-2024'!$D$2:$D$1048576,'Base Maestra'!$A63,'XX.CVEPRES-2024'!$F$2:$F$1048576,'Base Maestra'!P$4,'XX.CVEPRES-2024'!$E$2:$E$1048576,'Base Maestra'!$T$4)","v":0},{"$f":"SUMIFS('XX.CVEPRES-2024'!$W$2:$W$1048576,'XX.CVEPRES-2024'!$D$2:$D$1048576,'Base Maestra'!$A63,'XX.CVEPRES-2024'!$F$2:$F$1048576,'Base Maestra'!Q$4,'XX.CVEPRES-2024'!$E$2:$E$1048576,'Base Maestra'!$T$4)","v":0},{"$f":"SUMIFS('XX.CVEPRES-2024'!$W$2:$W$1048576,'XX.CVEPRES-2024'!$D$2:$D$1048576,'Base Maestra'!$A63,'XX.CVEPRES-2024'!$F$2:$F$1048576,'Base Maestra'!R$4,'XX.CVEPRES-2024'!$E$2:$E$1048576,'Base Maestra'!$T$4)","v":0},{"$f":"SUM(M63:R63)","v":0}]
[88,"Hospitales Federales de Referencia","HJC","DFSSA003985","Hospital Juárez del centro",null,16261.86,null,null,21.48,null,16283.34,{"$f":"SUMIFS('XX.CVEPRES-2024'!$W$2:$W$1048576,'XX.CVEPRES-2024'!$D$2:$D$1048576,'Base Maestra'!$A64,'XX.CVEPRES-2024'!$F$2:$F$1048576,'Base Maestra'!M$4,'XX.CVEPRES-2024'!$E$2:$E$1048576,'Base Maestra'!$T$4)","v":0},{"$f":"SUMIFS('XX.CVEPRES-2024'!$W$2:$W$1048576,'XX.CVEPRES-2024'!$D$2:$D$1048576,'Base Maestra'!$A64,'XX.CVEPRES-2024'!$F$2:$F$1048576,'Base Maestra'!N$4,'XX.CVEPRES-2024'!$E$2:$E$1048576,'Base Maestra'!$T$4)","v":0},{"$f":"SUMIFS('XX.CVEPRES-2024'!$W$2:$W$1048576,'XX.CVEPRES-2024'!$D$2:$D$1048576,'Base Maestra'!$A64,'XX.CVEPRES-2024'!$F$2:$F$1048576,'Base Maestra'!O$4,'XX.CVEPRES-2024'!$E$2:$E$1048576,'Base Maestra'!$T$4)","v":0},{"$f":"SUMIFS('XX.CVEPRES-2024'!$W$2:$W$1048576,'XX.CVEPRES-2024'!$D$2:$D$1048576,'Base Maestra'!$A64,'XX.CVEPRES-2024'!$F$2:$F$1048576,'Base Maestra'!P$4,'XX.CVEPRES-2024'!$E$2:$E$1048576,'Base Maestra'!$T$4)","v":0},{"$f":"SUMIFS('XX.CVEPRES-2024'!$W$2:$W$1048576,'XX.CVEPRES-2024'!$D$2:$D$1048576,'Base Maestra'!$A64,'XX.CVEPRES-2024'!$F$2:$F$1048576,'Base Maestra'!Q$4,'XX.CVEPRES-2024'!$E$2:$E$1048576,'Base Maestra'!$T$4)","v":0},{"$f":"SUMIFS('XX.CVEPRES-2024'!$W$2:$W$1048576,'XX.CVEPRES-2024'!$D$2:$D$1048576,'Base Maestra'!$A64,'XX.CVEPRES-2024'!$F$2:$F$1048576,'Base Maestra'!R$4,'XX.CVEPRES-2024'!$E$2:$E$1048576,'Base Maestra'!$T$4)","v":0},{"$f":"SUM(M64:R64)","v":0}]
[89,"Hospitales Federales de Referencia","HM","DFSSA004002","Hospital de la Mujer",null,84605.237459999989,209.51099999999997,1.3540000000000001,45237.727800000001,null,130053.83025999999,{"$f":"SUMIFS('XX.CVEPRES-2024'!$W$2:$W$1048576,'XX.CVEPRES-2024'!$D$2:$D$1048576,'Base Maestra'!$A65,'XX.CVEPRES-2024'!$F$2:$F$1048576,'Base Maestra'!M$4,'XX.CVEPRES-2024'!$E$2:$E$1048576,'Base Maestra'!$T$4)","v":0},{"$f":"SUMIFS('XX.CVEPRES-2024'!$W$2:$W$1048576,'XX.CVEPRES-2024'!$D$2:$D$1048576,'Base Maestra'!$A65,'XX.CVEPRES-2024'!$F$2:$F$1048576,'Base Maestra'!N$4,'XX.CVEPRES-2024'!$E$2:$E$1048576,'Base Maestra'!$T$4)","v":0},{"$f":"SUMIFS('XX.CVEPRES-2024'!$W$2:$W$1048576,'XX.CVEPRES-2024'!$D$2:$D$1048576,'Base Maestra'!$A65,'XX.CVEPRES-2024'!$F$2:$F$1048576,'Base Maestra'!O$4,'XX.CVEPRES-2024'!$E$2:$E$1048576,'Base Maestra'!$T$4)","v":0},{"$f":"SUMIFS('XX.CVEPRES-2024'!$W$2:$W$1048576,'XX.CVEPRES-2024'!$D$2:$D$1048576,'Base Maestra'!$A65,'XX.CVEPRES-2024'!$F$2:$F$1048576,'Base Maestra'!P$4,'XX.CVEPRES-2024'!$E$2:$E$1048576,'Base Maestra'!$T$4)","v":0},{"$f":"SUMIFS('XX.CVEPRES-2024'!$W$2:$W$1048576,'XX.CVEPRES-2024'!$D$2:$D$1048576,'Base Maestra'!$A65,'XX.CVEPRES-2024'!$F$2:$F$1048576,'Base Maestra'!Q$4,'XX.CVEPRES-2024'!$E$2:$E$1048576,'Base Maestra'!$T$4)","v":0},{"$f":"SUMIFS('XX.CVEPRES-2024'!$W$2:$W$1048576,'XX.CVEPRES-2024'!$D$2:$D$1048576,'Base Maestra'!$A65,'XX.CVEPRES-2024'!$F$2:$F$1048576,'Base Maestra'!R$4,'XX.CVEPRES-2024'!$E$2:$E$1048576,'Base Maestra'!$T$4)","v":0},0]
[90,"Hospitales Federales de Referencia","HNH","DFSSA003990","Hospital Nacional Homeopático",null,22330.87,null,null,15328.619999999999,null,37659.49,{"$f":"SUMIFS('XX.CVEPRES-2024'!$W$2:$W$1048576,'XX.CVEPRES-2024'!$D$2:$D$1048576,'Base Maestra'!$A66,'XX.CVEPRES-2024'!$F$2:$F$1048576,'Base Maestra'!M$4,'XX.CVEPRES-2024'!$E$2:$E$1048576,'Base Maestra'!$T$4)","v":0},{"$f":"SUMIFS('XX.CVEPRES-2024'!$W$2:$W$1048576,'XX.CVEPRES-2024'!$D$2:$D$1048576,'Base Maestra'!$A66,'XX.CVEPRES-2024'!$F$2:$F$1048576,'Base Maestra'!N$4,'XX.CVEPRES-2024'!$E$2:$E$1048576,'Base Maestra'!$T$4)","v":0},{"$f":"SUMIFS('XX.CVEPRES-2024'!$W$2:$W$1048576,'XX.CVEPRES-2024'!$D$2:$D$1048576,'Base Maestra'!$A66,'XX.CVEPRES-2024'!$F$2:$F$1048576,'Base Maestra'!O$4,'XX.CVEPRES-2024'!$E$2:$E$1048576,'Base Maestra'!$T$4)","v":0},{"$f":"SUMIFS('XX.CVEPRES-2024'!$W$2:$W$1048576,'XX.CVEPRES-2024'!$D$2:$D$1048576,'Base Maestra'!$A66,'XX.CVEPRES-2024'!$F$2:$F$1048576,'Base Maestra'!P$4,'XX.CVEPRES-2024'!$E$2:$E$1048576,'Base Maestra'!$T$4)","v":0},{"$f":"SUMIFS('XX.CVEPRES-2024'!$W$2:$W$1048576,'XX.CVEPRES-2024'!$D$2:$D$1048576,'Base Maestra'!$A66,'XX.CVEPRES-2024'!$F$2:$F$1048576,'Base Maestra'!Q$4,'XX.CVEPRES-2024'!$E$2:$E$1048576,'Base Maestra'!$T$4)","v":0},{"$f":"SUMIFS('XX.CVEPRES-2024'!$W$2:$W$1048576,'XX.CVEPRES-2024'!$D$2:$D$1048576,'Base Maestra'!$A66,'XX.CVEPRES-2024'!$F$2:$F$1048576,'Base Maestra'!R$4,'XX.CVEPRES-2024'!$E$2:$E$1048576,'Base Maestra'!$T$4)","v":0},0]
[104,"Empresa de Participación Estatal Mayoritaria","NEF",9998,"Laboratorio de Biológicos y Reactivos de México, S.A. de C.V.",7308.5290000000005,2148377.3969999999,8808122.4240000006,223404.15299999999,null,null,11187212.503000002,{"$f":"SUMIFS('XX.CVEPRES-2024'!$W$2:$W$1048576,'XX.CVEPRES-2024'!$D$2:$D$1048576,'Base Maestra'!$A67,'XX.CVEPRES-2024'!$F$2:$F$1048576,'Base Maestra'!M$4,'XX.CVEPRES-2024'!$E$2:$E$1048576,'Base Maestra'!$T$67)","v":0},{"$f":"SUMIFS('XX.CVEPRES-2024'!$W$2:$W$1048576,'XX.CVEPRES-2024'!$D$2:$D$1048576,'Base Maestra'!$A67,'XX.CVEPRES-2024'!$F$2:$F$1048576,'Base Maestra'!N$4,'XX.CVEPRES-2024'!$E$2:$E$1048576,'Base Maestra'!$T$67)","v":0},{"$f":"SUMIFS('XX.CVEPRES-2024'!$W$2:$W$1048576,'XX.CVEPRES-2024'!$D$2:$D$1048576,'Base Maestra'!$A67,'XX.CVEPRES-2024'!$F$2:$F$1048576,'Base Maestra'!O$4,'XX.CVEPRES-2024'!$E$2:$E$1048576,'Base Maestra'!$T$67)","v":0},{"$f":"SUMIFS('XX.CVEPRES-2024'!$W$2:$W$1048576,'XX.CVEPRES-2024'!$D$2:$D$1048576,'Base Maestra'!$A67,'XX.CVEPRES-2024'!$F$2:$F$1048576,'Base Maestra'!P$4,'XX.CVEPRES-2024'!$E$2:$E$1048576,'Base Maestra'!$T$67)","v":0},{"$f":"SUMIFS('XX.CVEPRES-2024'!$W$2:$W$1048576,'XX.CVEPRES-2024'!$D$2:$D$1048576,'Base Maestra'!$A67,'XX.CVEPRES-2024'!$F$2:$F$1048576,'Base Maestra'!Q$4,'XX.CVEPRES-2024'!$E$2:$E$1048576,'Base Maestra'!$T$67)","v":0},{"$f":"SUMIFS('XX.CVEPRES-2024'!$W$2:$W$1048576,'XX.CVEPRES-2024'!$D$2:$D$1048576,'Base Maestra'!$A67,'XX.CVEPRES-2024'!$F$2:$F$1048576,'Base Maestra'!R$4,'XX.CVEPRES-2024'!$E$2:$E$1048576,'Base Maestra'!$T$67)","v":0},{"$f":"SUM(M67:R67)","v":0},"A21"]
["Ramo 12",null,null,null,null,{"$f":"SUM(F5:F63)","v":7477916.0999999996},25189532.570000004,7949949.9699999988,7216873.4400000013,15729303.859999999,3980782.44,{"$f":"SUM(F68:K68)","v":67544358.379999995},{"$f":"SUM(M5:M63)","v":0},0,0,0,0,0,0]
[]
[]
[]
[null,null,null,null,null,null,null,null,null,null,null,null,null,null,null,"A02","A17","A21","A22"]
["Validador COG",null,null,null,null,"Validador CFA",null,null,null,null,null,null,null,null,"M7A","x","x","x"]
["Capitulo","Concepto","Partida ",null,null,"Cve_Función","Cve_Subf","Cve_Actividad","Cve_Subactividad",null,null,null,null,null,"M7F","x","x","x","x"]
[1000,1100,1110,null,null,"HC.1","HC.1.1","HC.1.1.1",null,null,null,null,null,null,"M7K","x","x","x"]
[1000,1100,1120,null,null,"HC.1","HC.1.1","HC.1.1.2",null,null,null,null,null,null,"NAW","x","x","x"]
[1000,1100,1130,null,null,"HC.1","HC.1.2","HC.1.2.1",null,null,null,null,null,null,"NBB","x","x","x"]
[1000,1100,1140,null,null,"HC.1","HC.1.2","HC.1.2.2",null,null,null,null,null,null,"NBD","x","x","x"]
[1000,1200,1210,null,null,"HC.1","HC.1.3","HC.1.3.1",null,null,null,null,null,null,"NBG","x","x","x"]
[1000,1200,12201,null,null,"HC.1","HC.1.3","HC.1.3.2",null,null,null,null,null,null,"NBQ","x","x","x"]
[1000,1200,12202,null,null,"HC.1","HC.1.3","HC.1.3.3",null,null,null,null,null,null,"NBR","x","x","x"]
[1000,1200,12301,null,null,"HC.1","HC.1.4",null,null,null,null,null,null,null,"NBS","x","x","x"]
[1000,1200,1240,null,null,"HC.2","HC.2.1",null,null,null,null,null,null,null,"NBT","x","x","x"]
[1000,1300,13101,null,null,"HC.2","HC.2.2",null,null,null,null,null,null,null,"NBU","x","x","x","x"]
[1000,1300,13102,null,null,"HC.2","HC.2.3",null,null,null,null,null,null,null,"NBV","x","x","x"]
[1000,1300,13103,null,null,"HC.2","HC.2.4",null,null,null,null,null,null,null,"NCA","x","x","x"]
[1000,1300,13104,null,null,"HC.4","HC.4.1",null,null,null,null,null,null,null,"NCD","x","x","x","x"]
[1000,1300,13201,null,null,"HC.4","HC.4.2",null,null,null,null,null,null,null,"NCE","x","x","x"]
[1000,1300,13202,null,null,"HC.4","HC.4.3",null,null,null,null,null,null,null,"NCG","x","x","x"]
[1000,1300,1330,null,null,"HC.6","HC.6.1",null,null,null,null,null,null,null,"NCH","x","x","x","x"]
[1000,1300,13401,null,null,"HC.6","HC.6.2",null,null,null,null,null,null,null,"NCK","x","x","x","x"]
[1000,1300,13402,null,null,"HC.6","HC.6.3",null,null,null,null,null,null,null,"NCZ","x","x","x","x"]
[1000,1300,13403,null,null,"HC.6","HC.6.4",null,null,null,null,null,null,null,"NDE","x","x","x"]
[1000,1300,13404,null,null,"HC.6","HC.6.5",null,null,null,null,null,null,null,"NDF","x","x","x","x"]
[1000,1300,13405,null,null,"HC.6","HC.6.6",null,null,null,null,null,null,null,"NDY","x","x","x","x"]
[1000,1300,13406,null,null,"HC.7","HC.7.1",null,null,null,null,null,null,null,"NHK","x","x","x"]
[1000,1300,13407,null,null,"HC.7","HC.7.2",null,null,null,null,null,null,null,"HJC","x","x"]
[1000,1300,13408,null,null,"HC.9",null,null,null,null,null,null,null,null,"HM","x","x"]
[1000,1300,13409,null,null,"HCR.1","HCR.1.1",null,null,null,null,null,null,null,"HNH","x","x"]
[1000,1300,13410,null,null,"HCR.1","HCR.1.2",null,null,null,null,null,null,null,510,"x"]
[1000,1300,13411,null,null,"HCR.2",null,null,null,null,null,null,null,null,611,"x"]
[1000,1300,13412,null,null,"HK.1","HK.1.1","HK.1.1.1","HK.1.1.1.1",null,null,null,null,null,315,"x"]
[1000,1300,13413,null,null,"HK.1","HK.1.1","HK.1.1.1","HK.1.1.1.2",null,null,null,null,null,514,"x"]
[1000,1300,13414,null,null,"HK.1","HK.1.1","HK.1.1.2","HK.1.1.2.1",null,null,null,null,null,610,"x"]
[1000,1300,1350,null,null,"HK.1","HK.1.1","HK.1.1.2","HK.1.1.2.2",null,null,null,null,null,316,"x"]
[1000,1300,13601,null,null,"HK.1","HK.1.1","HK.1.1.2","HK.1.1.2.3",null,null,null,null,null,310,"x"]
[1000,1300,13602,null,null,"HK.1","HK.1.1","HK.1.1.2","HK.1.1.2.4",null,null,null,null,null,513,"x"]
[1000,1300,13603,null,null,"HK.1","HK.1.1","HK.1.1.3","HK.1.1.3.1",null,null,null,null,null,"E00","x"]
[1000,1300,13604,null,null,"HK.1","HK.1.1","HK.1.1.3","HK.1.1.3.2",null,null,null,null,null,"I00","x"]
[1000,1300,13605,null,null,"HK.2","HK.2.1",null,null,null,null,null,null,null,"K00","x"]
[1000,1300,1370,null,null,"HK.2","HK.2.2",null,null,null,null,null,null,null,"L00","x"]
[1000,1300,1380,null,null,"HKR.4",null,null,null,null,null,null,null,null,"M00","x"]
[1000,1400,14101,null,null,"HKR.5",null,null,null,null,null,null,null,null,"N00","x","x"]
[1000,1400,14102,null,null,null,null,null,null,null,null,null,null,null,"O00","x"]
[1000,1400,14103,null,null,null,null,null,null,null,null,null,null,null,"Q00","x"]
[1000,1400,14104,null,null,null,null,null,null,null,null,null,null,null,"R00","x"]
[1000,1400,14105,null,null,null,null,null,null,null,null,null,null,null,"S00","x"]
[1000,1400,14201,null,null,null,null,null,null,null,null,null,null,null,"T00","x"]
[1000,1400,14202,null,null,null,null,null,null,null,null,null,null,null,"M7B","x"]
[1000,1400,14301,null,null,null,null,null,null,null,null,null,null,null,"V00","x"]
[1000,1400,14302,null,null,"Validador CAI",null,null,null,null,null,null,null,null,"X00","x"]
[1000,1400,14401,null,null,"Cve_Sub\nfunción","Cve_AI","Cve_H","Actividad Institucional","Cve_PP","Programa Presupuestario","Cve_PI","Programa Institucional",null,"Y00","x"]
[1000,1400,14402,null,null,4,1,null,"Función pública y buen gobierno","O001","Actividades de apoyo a la función pública y buen gobierno","AU010","Auditar a la gestión pública y mejorar procesos",0,"NEF",null,null,"x"]
[1000,1400,14403,null,null,4,1,null,"Función pública y buen gobierno","O001","Actividades de apoyo a la función pública y buen gobierno","GSS01","Gratuidad de los Servicios de Salud.",0]
[1000,1400,14404,null,null,4,1,null,"Función pública y buen gobierno","O001","Actividades de apoyo a la función pública y buen gobierno","RM030","Recursos consolidados por la Dirección General de Recursos Materiales y Servicios Generales.",0]
[1000,1400,14405,null,null,4,1,null,"Función pública y buen gobierno","O001","Actividades de apoyo a la función pública y buen gobierno","RS012","Fortalecer a la Comisión de Operación Sanitaria",0]
[1000,1400,14406,null,null,4,1,null,"Función pública y buen gobierno","O001","Actividades de apoyo a la función pública y buen gobierno","RS041","Fortalecer a la Coordinación General del Sistema Federal Sanitario",0]
[1000,1500,15101,null,null,4,1,null,"Función pública y buen gobierno","O001","Actividades de apoyo a la función pública y buen gobierno","RS061","Fortalecer a la Comisión de Control Analítico y Ampliación de Cobertura",0]
[1000,1500,15102,null,null,4,1,null,"Función pública y buen gobierno","O001","Actividades de apoyo a la función pública y buen gobierno","RTI40","Recursos consolidados por la Dirección General de Tecnologias de la Información.",0]
[1000,1500,15103,null,null,4,1,null,"Función pública y buen gobierno","O001","Actividades de apoyo a la función pública y buen gobierno","SP010","Servicios personales",0]
[1000,1500,15201,null,null,4,1,null,"Función pública y buen gobierno","O001","Actividades de apoyo a la función pública y buen gobierno","SPGO0","Gasto de operación asociado a Servicios Personales",0]
[1000,1500,15202,null,null,1,2,null,"Servicios de apoyo administrativo","M001","Actividades de apoyo administrativo","AD010","Otorgar apoyo administrativo y sustantivo",0]
[1000,1500,1530,null,null,1,2,null,"Servicios de apoyo administrativo","M001","Actividades de apoyo administrativo","EE010","Realizar operativos de apoyo a las entidades federativas ante urgencias epidemiológicas y desastres",0]
[1000,1500,15401,null,null,1,2,null,"Servicios de apoyo administrativo","M001","Actividades de apoyo administrativo","EE020","Realizar operativos de apoyo para la vigilancia epidemiológica, prevención y control de enfermedades transmitidas por vectores e intoxicación por picadura de alacrán",0]
[1000,1500,15402,null,null,1,2,null,"Servicios de apoyo administrativo","M001","Actividades de apoyo administrativo","EE050","Supervisar, capacitar, normar, asesorar y evaluar en la prevención y control de  la tuberculosis y la lepra",0]
[1000,1500,15403,null,null,1,2,null,"Servicios de apoyo administrativo","M001","Actividades de apoyo administrativo","EE060","Supervisar, capacitar, normar, asesorar y evaluar en la prevención y control de la tuberculosis, la lepra y respiratorias.Neumonía adquirida en la comunidad, Enfermedad Pulmonar Obstructiva Crónica EPOC, Asma e Influenza.",0]
[1000,1500,1550,null,null,1,2,null,"Servicios de apoyo administrativo","M001","Actividades de apoyo administrativo","EE070","Supervisar, capacitar, normar, asesorar y evaluar en la prevención y control de enfermedades transmitidas por rabia, brucelosis, rickettsiosis (Fiebre Manchada de las Montañas Rocosas)",0]
[1000,1500,15901,null,null,1,2,null,"Servicios de apoyo administrativo","M001","Actividades de apoyo administrativo","EE080","Fomentar, proteger y restablecer la salud bucal, con parte de la salud integral de la población mexicana",0]
[1000,1500,15902,null,null,1,2,null,"Servicios de apoyo administrativo","M001","Actividades de apoyo administrativo","RM030","Recursos consolidados por la Dirección General de Recursos Materiales y Servicios Generales.",0]
[1000,1600,16101,null,null,1,2,null,"Servicios de apoyo administrativo","M001","Actividades de apoyo administrativo","RTI40","Recursos consolidados por la Dirección General de Tecnologias de la Información.",0]
[1000,1600,16102,null,null,1,2,null,"Servicios de apoyo administrativo","M001","Actividades de apoyo administrativo","SP010","Servicios personales",0]
[1000,1600,16103,null,null,1,2,null,"Servicios de apoyo administrativo","M001","Actividades de apoyo administrativo","SPGO0","Gasto de operación asociado a Servicios Personales",0]
[1000,1600,16104,null,null,1,15,null,"Promoción de la salud y prevención y control de enfermedades fortalecidas e integradas sectorial e intersectorialmente","E025","Prevención y atención contra las adicciones","AM010","Atención médica especializada a mujeres con enfermedad pulmonar intersticial difusa (EPID)",0]
[1000,1600,16105,null,null,1,15,null,"Promoción de la salud y prevención y control de enfermedades fortalecidas e integradas sectorial e intersectorialmente","E025","Prevención y atención contra las adicciones","AM030","Otorgar atención ambulatoria",0]
[1000,1600,16106,null,null,1,15,null,"Promoción de la salud y prevención y control de enfermedades fortalecidas e integradas sectorial e intersectorialmente","E025","Prevención y atención contra las adicciones","CD070","Impulsar acciones integrales para la prevención de las adicciones",0]
[1000,1600,16107,null,null,1,15,null,"Promoción de la salud y prevención y control de enfermedades fortalecidas e integradas sectorial e intersectorialmente","E025","Prevención y atención contra las adicciones","DC020","Generar, difundir e informar sobre aspectos técnicos en materia de adicciones a diversos grupos comunitarios",0]
[1000,1600,16108,null,null,1,15,null,"Promoción de la salud y prevención y control de enfermedades fortalecidas e integradas sectorial e intersectorialmente","E025","Prevención y atención contra las adicciones","DC030","Proporcionar servicios especializados de orientación a distancia a personas con problemas de adicciones y sus familias",0]
[1000,1600,16109,null,null,1,15,null,"Promoción de la salud y prevención y control de enfermedades fortalecidas e integradas sectorial e intersectorialmente","E025","Prevención y atención contra las adicciones","DC050","Instrumentación de acciones para la prevención universal, selectiva e indicada del consumo de alcohol, tabaco y otras drogas",0]
[1000,1700,17101,null,null,1,15,null,"Promoción de la salud y prevención y control de enfermedades fortalecidas e integradas sectorial e intersectorialmente","E025","Prevención y atención contra las adicciones","DC060","Prevención y detección de adicciones",0]
[1000,1700,17102,null,null,1,15,null,"Promoción de la salud y prevención y control de enfermedades fortalecidas e integradas sectorial e intersectorialmente","E025","Prevención y atención contra las adicciones","DC070","Desarrollar y difundir modelos de intervención para la atención integral de personas con uso, abuso y dependencia a sustancias psicoactivas.",0]
[1000,1700,1720,null,null,1,15,null,"Promoción de la salud y prevención y control de enfermedades fortalecidas e integradas sectorial e intersectorialmente","E025","Prevención y atención contra las adicciones","MD010","Abasto oportuno de medicamentos",0]
[2000,2100,2110,null,null,1,15,null,"Promoción de la salud y prevención y control de enfermedades fortalecidas e integradas sectorial e intersectorialmente","E025","Prevención y atención contra las adicciones","OT050","Difundir la cultura bioética entre la sociedad, impulsar la capacitación del personal y la formación de profesionales en la materia",0]
[2000,2100,2120,null,null,1,15,null,"Promoción de la salud y prevención y control de enfermedades fortalecidas e integradas sectorial e intersectorialmente","E025","Prevención y atención contra las adicciones","RM030","Recursos consolidados por la Dirección General de Recursos Materiales y Servicios Generales.",0]
[2000,2100,2130,null,null,1,15,null,"Promoción de la salud y prevención y control de enfermedades fortalecidas e integradas sectorial e intersectorialmente","E025","Prevención y atención contra las adicciones","RTI40","Recursos consolidados por la Dirección General de Tecnologias de la Información.",0]
[2000,2100,2140,null,null,1,15,null,"Promoción de la salud y prevención y control de enfermedades fortalecidas e integradas sectorial e intersectorialmente","E025","Prevención y atención contra las adicciones","SP010","Servicios personales",0]
[2000,2100,21501,null,null,1,15,null,"Promoción de la salud y prevención y control de enfermedades fortalecidas e integradas sectorial e intersectorialmente","E025","Prevención y atención contra las adicciones","SPGO0","Gasto de operación asociado a Servicios Personales",0]
[2000,2100,21502,null,null,1,15,null,"Promoción de la salud y prevención y control de enfermedades fortalecidas e integradas sectorial e intersectorialmente","P018","Prevención y control de enfermedades","CS010","Programa de Entornos y Comunidades Saludables",0]
[2000,2100,2160,null,null,1,15,null,"Promoción de la salud y prevención y control de enfermedades fortalecidas e integradas sectorial e intersectorialmente","P018","Prevención y control de enfermedades","PP010","Participar en el diseño e implantación de las políticas públicas en materia de promoción de la salud, vigilancia epidemiológica, atención de urgencias y prevención de enfermedades transmisibles",0]
[2000,2100,2170,null,null,1,15,null,"Promoción de la salud y prevención y control de enfermedades fortalecidas e integradas sectorial e intersectorialmente","U008","Prevención y Control de Sobrepeso, Obesidad y Diabetes","OB010","Detectar oportuna y masivamente el universo de casos de sobrepeso, obesidad y diabetes para garantizar su adecuado control y manejo así como la promoción de un envejecimiento saludable",0]
[2000,2100,2180,null,null,1,15,null,"Promoción de la salud y prevención y control de enfermedades fortalecidas e integradas sectorial e intersectorialmente","U008","Prevención y Control de Sobrepeso, Obesidad y Diabetes","SP010","Servicios personales",0]
[2000,2200,22101,null,null,1,15,null,"Promoción de la salud y prevención y control de enfermedades fortalecidas e integradas sectorial e intersectorialmente","U008","Prevención y Control de Sobrepeso, Obesidad y Diabetes","SPGO0","Gasto de operación asociado a Servicios Personales",0]
[2000,2200,22102,null,null,1,16,null,"Enfermedades emergentes, urgencias epidemiológicas y desastres naturales prevenidos, controlados y atendidos oportunamente","P018","Prevención y control de enfermedades","SP010","Servicios personales",0]
[2000,2200,22103,null,null,1,16,null,"Enfermedades emergentes, urgencias epidemiológicas y desastres naturales prevenidos, controlados y atendidos oportunamente","U009","Vigilancia epidemiológica","EE010","Realizar operativos de apoyo a las entidades federativas ante urgencias epidemiológicas y desastres",0]
[2000,2200,22104,null,null,1,16,null,"Enfermedades emergentes, urgencias epidemiológicas y desastres naturales prevenidos, controlados y atendidos oportunamente","U009","Vigilancia epidemiológica","EE020","Realizar operativos de apoyo para la vigilancia epidemiológica, prevención y control de enfermedades transmitidas por vectores e intoxicación por picadura de alacrán",0]
[2000,2200,22105,null,null,1,16,null,"Enfermedades emergentes, urgencias epidemiológicas y desastres naturales prevenidos, controlados y atendidos oportunamente","U009","Vigilancia epidemiológica","EE030","Supervisar, capacitar, normar, asesorar y evaluar en  prevención  y atención en el adulto y adulto mayor, en las enfermedades de mayor prevalencia y control de las enfermedades crónicas no transmisibles (diabetes, riesgo cardiovascular y dislipidemia",0]
[2000,2200,22106,null,null,1,16,null,"Enfermedades emergentes, urgencias epidemiológicas y desastres naturales prevenidos, controlados y atendidos oportunamente","U009","Vigilancia epidemiológica","EE040","Reforzar la vigilancia epidemiológica a través del análisis y diagnóstico de referencia",0]
[2000,2200,2220,null,null,1,16,null,"Enfermedades emergentes, urgencias epidemiológicas y desastres naturales prevenidos, controlados y atendidos oportunamente","U009","Vigilancia epidemiológica","EE060","Supervisar, capacitar, normar, asesorar y evaluar en la prevención y control de la tuberculosis, la lepra y respiratorias.Neumonía adquirida en la comunidad, Enfermedad Pulmonar Obstructiva Crónica EPOC, Asma e Influenza.",0]
[2000,2200,2230,null,null,1,16,null,"Enfermedades emergentes, urgencias epidemiológicas y desastres naturales prevenidos, controlados y atendidos oportunamente","U009","Vigilancia epidemiológica","EE070","Supervisar, capacitar, normar, asesorar y evaluar en la prevención y control de enfermedades transmitidas por rabia, brucelosis, rickettsiosis (Fiebre Manchada de las Montañas Rocosas)",0]
[2000,2300,2310,null,null,1,16,null,"Enfermedades emergentes, urgencias epidemiológicas y desastres naturales prevenidos, controlados y atendidos oportunamente","U009","Vigilancia epidemiológica","EE080","Fomentar, proteger y restablecer la salud bucal, con parte de la salud integral de la población mexicana",0]
[2000,2300,2320,null,null,1,16,null,"Enfermedades emergentes, urgencias epidemiológicas y desastres naturales prevenidos, controlados y atendidos oportunamente","U009","Vigilancia epidemiológica","SP010","Servicios personales",0]
[2000,2300,2330,null,null,1,17,null,"Protección contra riesgos sanitarios fortalecida y modernizada","G004","Protección Contra Riesgos Sanitarios","RM030","Recursos consolidados por la Dirección General de Recursos Materiales y Servicios Generales.",0]
[2000,2300,2340,null,null,1,17,null,"Protección contra riesgos sanitarios fortalecida y modernizada","G004","Protección Contra Riesgos Sanitarios","RS010","Consolidar la Red Nacional de Laboratorios de Salud Pública",0]
[2000,2300,2350,null,null,1,17,null,"Protección contra riesgos sanitarios fortalecida y modernizada","G004","Protección Contra Riesgos Sanitarios","RS012","Fortalecer a la Comisión de Operación Sanitaria",0]
[2000,2300,2360,null,null,1,17,null,"Protección contra riesgos sanitarios fortalecida y modernizada","G004","Protección Contra Riesgos Sanitarios","RS020","Consolidar la operación de las áreas de protección contra riesgos sanitarios",0]
[2000,2300,2370,null,null,1,17,null,"Protección contra riesgos sanitarios fortalecida y modernizada","G004","Protección Contra Riesgos Sanitarios","RS021","Fortalecer a la Comisión de Evidencia y Manejo de Riesgos",0]
[2000,2300,2380,null,null,1,17,null,"Protección contra riesgos sanitarios fortalecida y modernizada","G004","Protección Contra Riesgos Sanitarios","RS031","Fortalecer a la Coordinación General Jurídica y Consultiva",0]
[2000,2300,23901,null,null,1,17,null,"Protección contra riesgos sanitarios fortalecida y modernizada","G004","Protección Contra Riesgos Sanitarios","RS041","Fortalecer a la Coordinación General del Sistema Federal Sanitario",0]
[2000,2300,23902,null,null,1,17,null,"Protección contra riesgos sanitarios fortalecida y modernizada","G004","Protección Contra Riesgos Sanitarios","RS061","Fortalecer a la Comisión de Control Analítico y Ampliación de Cobertura",0]
[2000,2400,2410,null,null,1,17,null,"Protección contra riesgos sanitarios fortalecida y modernizada","G004","Protección Contra Riesgos Sanitarios","RS071","Fortalecer a la Comisión de Fomento Sanitario",0]
[2000,2400,2420,null,null,1,17,null,"Protección contra riesgos sanitarios fortalecida y modernizada","G004","Protección Contra Riesgos Sanitarios","RS081","Fortalecer a la Comisión Federal para la Protección Contra Riesgos Sanitarios",0]
[2000,2400,2430,null,null,1,17,null,"Protección contra riesgos sanitarios fortalecida y modernizada","G004","Protección Contra Riesgos Sanitarios","RS091","Fortalecer a la Comisión de Autorización Sanitaria",0]
[2000,2400,2440,null,null,1,17,null,"Protección contra riesgos sanitarios fortalecida y modernizada","G004","Protección Contra Riesgos Sanitarios","RTI40","Recursos consolidados por la Dirección General de Tecnologias de la Información.",0]
[2000,2400,2450,null,null,1,17,null,"Protección contra riesgos sanitarios fortalecida y modernizada","G004","Protección Contra Riesgos Sanitarios","SP010","Servicios personales",0]
[2000,2400,2460,null,null,1,17,null,"Protección contra riesgos sanitarios fortalecida y modernizada","G004","Protección Contra Riesgos Sanitarios","SPGO0","Gasto de operación asociado a Servicios Personales",0]
[2000,2400,2470,null,null,1,20,null,"Infraestructura suficiente, equipamiento óptimo e insumos seguros para la salud","S281","Programa Nacional de Reconstrucción","00000",null,0]
[2000,2400,2480,null,null,2,2,null,"Servicios de apoyo administrativo","M001","Actividades de apoyo administrativo","00000",null,0]
[2000,2400,2490,null,null,2,2,null,"Servicios de apoyo administrativo","M001","Actividades de apoyo administrativo","AD010","Otorgar apoyo administrativo y sustantivo",0]
[2000,2500,2510,null,null,2,2,null,"Servicios de apoyo administrativo","M001","Actividades de apoyo administrativo","ADR10","Otorgar apoyo administrativo y sustantivo de la CHFR",0]
[2000,2500,2520,null,null,2,2,null,"Servicios de apoyo administrativo","M001","Actividades de apoyo administrativo","RM030","Recursos consolidados por la Dirección General de Recursos Materiales y Servicios Generales.",0]
[2000,2500,2530,null,null,2,2,null,"Servicios de apoyo administrativo","M001","Actividades de apoyo administrativo","SP010","Servicios personales",0]
[2000,2500,2540,null,null,2,2,null,"Servicios de apoyo administrativo","M001","Actividades de apoyo administrativo","SPGO0","Gasto de operación asociado a Servicios Personales",0]
[2000,2500,2550,null,null,2,18,null,"Prestación de servicios del Sistema Nacional de Salud organizados e integrados","E023","Atención a la Salud","00000",null,0]
[2000,2500,2560,null,null,2,18,null,"Prestación de servicios del Sistema Nacional de Salud organizados e integrados","E023","Atención a la Salud","AD010","Otorgar apoyo administrativo y sustantivo",0]
[2000,2500,2590,null,null,2,18,null,"Prestación de servicios del Sistema Nacional de Salud organizados e integrados","E023","Atención a la Salud","AM010","Atención médica especializada a mujeres con enfermedad pulmonar intersticial difusa (EPID)",0]
[2000,2600,26101,null,null,2,18,null,"Prestación de servicios del Sistema Nacional de Salud organizados e integrados","E023","Atención a la Salud","AM020","Otorgar tratamiento a pacientes con esclerosis múltiple",0]
[2000,2600,26102,null,null,2,18,null,"Prestación de servicios del Sistema Nacional de Salud organizados e integrados","E023","Atención a la Salud","AM030","Otorgar atención ambulatoria",0]
[2000,2600,26103,null,null,2,18,null,"Prestación de servicios del Sistema Nacional de Salud organizados e integrados","E023","Atención a la Salud","AM031","Atención a la Salud, medicamentos gratuitos y gastos de bolsillo coordinados por la CCINSHAE",0]
[2000,2600,26104,null,null,2,18,null,"Prestación de servicios del Sistema Nacional de Salud organizados e integrados","E023","Atención a la Salud","AM040","Otorgar atención hospitalaria",0]
[2000,2600,26105,null,null,2,18,null,"Prestación de servicios del Sistema Nacional de Salud organizados e integrados","E023","Atención a la Salud","AM050","Fortalecer la organización para la prestación de servicios en salud",0]
[2000,2600,26106,null,null,2,18,null,"Prestación de servicios del Sistema Nacional de Salud organizados e integrados","E023","Atención a la Salud","AM060","Fortalecimiento de la calidad de la atención médica y auditoria clínica",0]
[2000,2600,26107,null,null,2,18,null,"Prestación de servicios del Sistema Nacional de Salud organizados e integrados","E023","Atención a la Salud","AM080","Reforzamiento del programa de detección y atención de  Cáncer de Próstata",0]
[2000,2600,26108,null,null,2,18,null,"Prestación de servicios del Sistema Nacional de Salud organizados e integrados","E023","Atención a la Salud","AM090","Registro Nacional de Cáncer",0]
[2000,2600,2620,null,null,2,18,null,"Prestación de servicios del Sistema Nacional de Salud organizados e integrados","E023","Atención a la Salud","AMH30","Otorgar atención hospitalaria y consultas médicas en el Hospital Nacional Homeopático",0]
[2000,2700,2710,null,null,2,18,null,"Prestación de servicios del Sistema Nacional de Salud organizados e integrados","E023","Atención a la Salud","AMJ30","Otorgar atención quirúrgica y consulta médica especializada en el Centro de Atención Médico Quirúrgico de Corta Estancia Juárez Centro",0]
[2000,2700,2720,null,null,2,18,null,"Prestación de servicios del Sistema Nacional de Salud organizados e integrados","E023","Atención a la Salud","AMM30","Otorgar atención hospitalaria y consulta médica especializada en el Hospital de la Mujer",0]
[2000,2700,2730,null,null,2,18,null,"Prestación de servicios del Sistema Nacional de Salud organizados e integrados","E023","Atención a la Salud","AMQ10","Otorgar consultas médicas del Centro Nacional de Investigación y Atención de Quemados",0]
[2000,2700,2740,null,null,2,18,null,"Prestación de servicios del Sistema Nacional de Salud organizados e integrados","E023","Atención a la Salud","AMQ20","Otorgar atención hospitalaria del Centro Nacional de Investigación y Atención de Quemados",0]
[2000,2700,2750,null,null,2,18,null,"Prestación de servicios del Sistema Nacional de Salud organizados e integrados","E023","Atención a la Salud","CC040","Diagnóstico y tratamiento oportuno de cáncer en menores de 18 años",0]
[2000,2800,2810,null,null,2,18,null,"Prestación de servicios del Sistema Nacional de Salud organizados e integrados","E023","Atención a la Salud","CC050","Programa de Prevención y Control de Cáncer de la Mujer",0]
[2000,2800,2820,null,null,2,18,null,"Prestación de servicios del Sistema Nacional de Salud organizados e integrados","E023","Atención a la Salud","CL030","Fortalecer el diseño, implantación e implementación de las tecnologías de la información en las unidades administrativas",0]
[2000,2800,2830,null,null,2,18,null,"Prestación de servicios del Sistema Nacional de Salud organizados e integrados","E023","Atención a la Salud","CM010","Proporcionar dignificación, conservación y mantenimiento correctivo y preventivo de infraestructura y equipamiento",0]
[2000,2900,2910,null,null,2,18,null,"Prestación de servicios del Sistema Nacional de Salud organizados e integrados","E023","Atención a la Salud","CT010","Programa interno con el fin de centralizar los recursos de los servicios que su pago se realiza de manera centralizada.",0]
[2000,2900,2920,null,null,2,18,null,"Prestación de servicios del Sistema Nacional de Salud organizados e integrados","E023","Atención a la Salud","GSS01","Gratuidad de los Servicios de Salud.",0]
[2000,2900,2930,null,null,2,18,null,"Prestación de servicios del Sistema Nacional de Salud organizados e integrados","E023","Atención a la Salud","IF010","Fortalecer la infraestructura fisica y equipamiento",0]
[2000,2900,2940,null,null,2,18,null,"Prestación de servicios del Sistema Nacional de Salud organizados e integrados","E023","Atención a la Salud","IV030","Desarrollar la investigación clínica",0]
[2000,2900,2950,null,null,2,18,null,"Prestación de servicios del Sistema Nacional de Salud organizados e integrados","E023","Atención a la Salud","MD010","Abasto oportuno de medicamentos",0]
[2000,2900,2960,null,null,2,18,null,"Prestación de servicios del Sistema Nacional de Salud organizados e integrados","E023","Atención a la Salud","MM010","Calidad en la atención obstétrica y reducción de la mortalidad materna",0]
[2000,2900,2970,null,null,2,18,null,"Prestación de servicios del Sistema Nacional de Salud organizados e integrados","E023","Atención a la Salud","OB020","Prevención y tratamiento del sobrepeso, obesidad y diabetes en los Institutos Nacionales de Salud y Hospitales de Alta Especialidad (INSHAE)",0]
[2000,2900,2980,null,null,2,18,null,"Prestación de servicios del Sistema Nacional de Salud organizados e integrados","E023","Atención a la Salud","OT051","Expediente Clínico Electrónico",0]
[2000,2900,2990,null,null,2,18,null,"Prestación de servicios del Sistema Nacional de Salud organizados e integrados","E023","Atención a la Salud","OT061","Producción de prótesis, ortesis y otros aparatos ortopédicos",0]
[3000,3100,3110,null,null,2,18,null,"Prestación de servicios del Sistema Nacional de Salud organizados e integrados","E023","Atención a la Salud","RM030","Recursos consolidados por la Dirección General de Recursos Materiales y Servicios Generales.",0]
[3000,3100,3120,null,null,2,18,null,"Prestación de servicios del Sistema Nacional de Salud organizados e integrados","E023","Atención a la Salud","RTI40","Recursos consolidados por la Dirección General de Tecnologias de la Información.",0]
[3000,3100,3130,null,null,2,18,null,"Prestación de servicios del Sistema Nacional de Salud organizados e integrados","E023","Atención a la Salud","SMF10","Proporcionar servicios especializados de salud mental en el Hospital Fray Bernardino Álvarez",0]
[3000,3100,3140,null,null,2,18,null,"Prestación de servicios del Sistema Nacional de Salud organizados e integrados","E023","Atención a la Salud","SMI40","Proporcionar servicios ambulatorios de salud mental en el CECOSAM Iztapalapa",0]
[3000,3100,3150,null,null,2,18,null,"Prestación de servicios del Sistema Nacional de Salud organizados e integrados","E023","Atención a la Salud","SMN20","Proporcionar servicios especializados de salud mental en el Hospital Juan N. Navarro",0]
[3000,3100,31601,null,null,2,18,null,"Prestación de servicios del Sistema Nacional de Salud organizados e integrados","E023","Atención a la Salud","SMS50","Proporcionar servicios especializados de salud mental en el Hospital Samuel Ramírez Moreno",0]
[3000,3100,31602,null,null,2,18,null,"Prestación de servicios del Sistema Nacional de Salud organizados e integrados","E023","Atención a la Salud","SMT60","Proporcionar servicios ambulatorios de salud mental en el CECOSAM Cuauhtémoc",0]
[3000,3100,31603,null,null,2,18,null,"Prestación de servicios del Sistema Nacional de Salud organizados e integrados","E023","Atención a la Salud","SMZ70","Proporcionar servicios ambulatorios de salud mental en el CECOSAM Zacatenco",0]
[3000,3100,3170,null,null,2,18,null,"Prestación de servicios del Sistema Nacional de Salud organizados e integrados","E023","Atención a la Salud","SP010","Servicios personales",0]
[3000,3100,31801,null,null,2,18,null,"Prestación de servicios del Sistema Nacional de Salud organizados e integrados","E023","Atención a la Salud","SPGO0","Gasto de operación asociado a Servicios Personales",0]
[3000,3100,31802,null,null,2,18,null,"Prestación de servicios del Sistema Nacional de Salud organizados e integrados","E023","Atención a la Salud","TS010","Promoción de la donación voluntaria y altruista de sangre y células progenitoras o troncales",0]
[3000,3100,31901,null,null,2,18,null,"Prestación de servicios del Sistema Nacional de Salud organizados e integrados","E023","Atención a la Salud","VH020","Promover atención integral de las personas con VIH-SIDA e ITS",0]
[3000,3100,31902,null,null,2,18,null,"Prestación de servicios del Sistema Nacional de Salud organizados e integrados","E025","Prevención y atención contra las adicciones","DC040","Reforzar las acciones contra las adicciones",0]
[3000,3100,31903,null,null,2,18,null,"Prestación de servicios del Sistema Nacional de Salud organizados e integrados","E036","Programa de vacunación","RM030","Recursos consolidados por la Dirección General de Recursos Materiales y Servicios Generales.",0]
[3000,3100,31904,null,null,2,18,null,"Prestación de servicios del Sistema Nacional de Salud organizados e integrados","E036","Programa de vacunación","RTI40","Recursos consolidados por la Dirección General de Tecnologias de la Información.",0]
[3000,3200,3210,null,null,2,18,null,"Prestación de servicios del Sistema Nacional de Salud organizados e integrados","E036","Programa de vacunación","VA010","Programa de Vacunación",0]
[3000,3200,3220,null,null,2,18,null,"Prestación de servicios del Sistema Nacional de Salud organizados e integrados","G005","Regulación y vigilancia de establecimientos y servicios de atención médica","OT070","Regulación y vigilancia de establecimientos y servicios de atención médica",0]
[3000,3200,32301,null,null,2,18,null,"Prestación de servicios del Sistema Nacional de Salud organizados e integrados","G005","Regulación y vigilancia de establecimientos y servicios de atención médica","RM030","Recursos consolidados por la Dirección General de Recursos Materiales y Servicios Generales.",0]
[3000,3200,32302,null,null,2,18,null,"Prestación de servicios del Sistema Nacional de Salud organizados e integrados","G005","Regulación y vigilancia de establecimientos y servicios de atención médica","RTI40","Recursos consolidados por la Dirección General de Tecnologias de la Información.",0]
[3000,3200,32303,null,null,2,18,null,"Prestación de servicios del Sistema Nacional de Salud organizados e integrados","P020","Salud materna, sexual y reproductiva","AM041","Reforzamiento del programa de detección y atención de  Cáncer de Próstata",0]
[3000,3200,3240,null,null,2,18,null,"Prestación de servicios del Sistema Nacional de Salud organizados e integrados","P020","Salud materna, sexual y reproductiva","AM070","Otorgar atención médica especializada a mujeres con diagnóstico de EPOC por exposición a humo de leña",0]
[3000,3200,32501,null,null,2,18,null,"Prestación de servicios del Sistema Nacional de Salud organizados e integrados","P020","Salud materna, sexual y reproductiva","CC030","Atención médica especializada a mujeres con Cáncer Pulmonar que presentan mutaciones genéticas",0]
[3000,3200,32502,null,null,2,18,null,"Prestación de servicios del Sistema Nacional de Salud organizados e integrados","P020","Salud materna, sexual y reproductiva","CC050","Programa de Prevención y Control de Cáncer de la Mujer",0]
[3000,3200,32503,null,null,2,18,null,"Prestación de servicios del Sistema Nacional de Salud organizados e integrados","P020","Salud materna, sexual y reproductiva","OT052","Examen Nacional de Residencias Médicas",0]
[3000,3200,32504,null,null,2,18,null,"Prestación de servicios del Sistema Nacional de Salud organizados e integrados","P020","Salud materna, sexual y reproductiva","SP010","Servicios personales",0]
[3000,3200,32505,null,null,2,20,null,"Infraestructura suficiente, equipamiento óptimo e insumos seguros para la salud","K011","Proyectos de infraestructura social de salud","IF071","Proyecto Integral de Restauración y Adecuación de Infraestructura Social en Salud",0]
[3000,3200,3260,null,null,3,2,null,"Servicios de apoyo administrativo","M001","Actividades de apoyo administrativo","AD010","Otorgar apoyo administrativo y sustantivo",0]
[3000,3200,3270,null,null,3,2,null,"Servicios de apoyo administrativo","M001","Actividades de apoyo administrativo","FO020","Impulsar el desarrollo profesional continuo del personal de la salud",0]
[3000,3200,3280,null,null,3,2,null,"Servicios de apoyo administrativo","M001","Actividades de apoyo administrativo","RM030","Recursos consolidados por la Dirección General de Recursos Materiales y Servicios Generales.",0]
[3000,3200,32901,null,null,3,2,null,"Servicios de apoyo administrativo","M001","Actividades de apoyo administrativo","RTI40","Recursos consolidados por la Dirección General de Tecnologias de la Información.",0]
[3000,3200,32902,null,null,3,2,null,"Servicios de apoyo administrativo","M001","Actividades de apoyo administrativo","SP010","Servicios personales",0]
[3000,3200,32903,null,null,3,2,null,"Servicios de apoyo administrativo","M001","Actividades de apoyo administrativo","SPGO0","Gasto de operación asociado a Servicios Personales",0]
[3000,3300,33101,null,null,3,19,null,"Formación y capacitación de recursos humanos acordes a las necesidades y demandas de atención a la salud","E010","Formación y capacitación de recursos humanos para la salud","AD010","Otorgar apoyo administrativo y sustantivo",0]
[3000,3300,33102,null,null,3,19,null,"Formación y capacitación de recursos humanos acordes a las necesidades y demandas de atención a la salud","E010","Formación y capacitación de recursos humanos para la salud","AS010","Profesionalización de los servicios en Centros de Rehabilitación del DIF",0]
[3000,3300,33103,null,null,3,19,null,"Formación y capacitación de recursos humanos acordes a las necesidades y demandas de atención a la salud","E010","Formación y capacitación de recursos humanos para la salud","CC020","Programa de Prevención y Control de Cáncer Cérvico Uterino",0]
[3000,3300,33104,null,null,3,19,null,"Formación y capacitación de recursos humanos acordes a las necesidades y demandas de atención a la salud","E010","Formación y capacitación de recursos humanos para la salud","CP010","Realizar la capacitación de personal administrativo, técnico y directivo",0]
[3000,3300,33105,null,null,3,19,null,"Formación y capacitación de recursos humanos acordes a las necesidades y demandas de atención a la salud","E010","Formación y capacitación de recursos humanos para la salud","CP020","Capacitar al personal médico, paramédico y afín, y a otros profesionistas en materia de salud",0]
[3000,3300,3320,null,null,3,19,null,"Formación y capacitación de recursos humanos acordes a las necesidades y demandas de atención a la salud","E010","Formación y capacitación de recursos humanos para la salud","FO010","Formar médicos especialistas",0]
[3000,3300,33301,null,null,3,19,null,"Formación y capacitación de recursos humanos acordes a las necesidades y demandas de atención a la salud","E010","Formación y capacitación de recursos humanos para la salud","FO020","Impulsar el desarrollo profesional continuo del personal de la salud",0]
[3000,3300,33302,null,null,3,19,null,"Formación y capacitación de recursos humanos acordes a las necesidades y demandas de atención a la salud","E010","Formación y capacitación de recursos humanos para la salud","FO030","Formar profesionales de la salud en posgrados no clínicos",0]
[3000,3300,33303,null,null,3,19,null,"Formación y capacitación de recursos humanos acordes a las necesidades y demandas de atención a la salud","E010","Formación y capacitación de recursos humanos para la salud","FO040","Recursos propios para enseñanza",0]
[3000,3300,33304,null,null,3,19,null,"Formación y capacitación de recursos humanos acordes a las necesidades y demandas de atención a la salud","E010","Formación y capacitación de recursos humanos para la salud","FO050","Formar profesionistas en pregrado",0]
[3000,3300,3340,null,null,3,19,null,"Formación y capacitación de recursos humanos acordes a las necesidades y demandas de atención a la salud","E010","Formación y capacitación de recursos humanos para la salud","FOM10","Formar especialistas en materia de salud en el Hospital de la Mujer",0]
[3000,3300,3350,null,null,3,19,null,"Formación y capacitación de recursos humanos acordes a las necesidades y demandas de atención a la salud","E010","Formación y capacitación de recursos humanos para la salud","OT052","Examen Nacional de Residencias Médicas",0]
[3000,3300,33601,null,null,3,19,null,"Formación y capacitación de recursos humanos acordes a las necesidades y demandas de atención a la salud","E010","Formación y capacitación de recursos humanos para la salud","OT081","Promoción de la observancia de criterios de bioética internacionales acordes con el interés y las políticas de salud del país",0]
[3000,3300,33602,null,null,3,19,null,"Formación y capacitación de recursos humanos acordes a las necesidades y demandas de atención a la salud","E010","Formación y capacitación de recursos humanos para la salud","RM030","Recursos consolidados por la Dirección General de Recursos Materiales y Servicios Generales.",0]
[3000,3300,33603,null,null,3,19,null,"Formación y capacitación de recursos humanos acordes a las necesidades y demandas de atención a la salud","E010","Formación y capacitación de recursos humanos para la salud","RTI40","Recursos consolidados por la Dirección General de Tecnologias de la Información.",0]
[3000,3300,33604,null,null,3,19,null,"Formación y capacitación de recursos humanos acordes a las necesidades y demandas de atención a la salud","E010","Formación y capacitación de recursos humanos para la salud","SP010","Servicios personales",0]
[3000,3300,33605,null,null,3,19,null,"Formación y capacitación de recursos humanos acordes a las necesidades y demandas de atención a la salud","E010","Formación y capacitación de recursos humanos para la salud","SPGO0","Gasto de operación asociado a Servicios Personales",0]
[3000,3300,33606,null,null,3,20,null,"Infraestructura suficiente, equipamiento óptimo e insumos seguros para la salud","K011","Proyectos de infraestructura social de salud","IF010","Fortalecer la infraestructura fisica y equipamiento",0]
[3000,3300,33701,null,null,3,20,null,"Infraestructura suficiente, equipamiento óptimo e insumos seguros para la salud","K011","Proyectos de infraestructura social de salud","IF030","Desarrollar, conservar y mantener la infraestructura física y equipamiento",0]
[3000,3300,33702,null,null,3,20,null,"Infraestructura suficiente, equipamiento óptimo e insumos seguros para la salud","K011","Proyectos de infraestructura social de salud","IF060","Proyecto de infraestructura social de salud",0]
[3000,3300,3380,null,null,3,20,null,"Infraestructura suficiente, equipamiento óptimo e insumos seguros para la salud","K011","Proyectos de infraestructura social de salud","IF071","Proyecto Integral de Restauración y Adecuación de Infraestructura Social en Salud",0]
[3000,3300,33901,null,null,3,20,null,"Infraestructura suficiente, equipamiento óptimo e insumos seguros para la salud","K025","Proyectos de inmuebles (oficinas administrativas)","IF010","Fortalecer la infraestructura fisica y equipamiento",0]
[3000,3300,33902,null,null,3,20,null,"Infraestructura suficiente, equipamiento óptimo e insumos seguros para la salud","K025","Proyectos de inmuebles (oficinas administrativas)","IF040","Arrendamiento financiero",0]
[3000,3300,33903,null,null,3,20,null,"Infraestructura suficiente, equipamiento óptimo e insumos seguros para la salud","K027","Mantenimiento de infraestructura","IF030","Desarrollar, conservar y mantener la infraestructura física y equipamiento",0]
[3000,3300,33904,null,null,4,1,null,"Función pública y buen gobierno","M001","Actividades de apoyo administrativo","AD010","Otorgar apoyo administrativo y sustantivo",0]
[3000,3300,33905,null,null,4,1,null,"Función pública y buen gobierno","M001","Actividades de apoyo administrativo","CT010","Programa interno con el fin de centralizar los recursos de los servicios que su pago se realiza de manera centralizada.",0]
[3000,3300,33906,null,null,4,1,null,"Función pública y buen gobierno","M001","Actividades de apoyo administrativo","RM030","Recursos consolidados por la Dirección General de Recursos Materiales y Servicios Generales.",0]
[3000,3400,3410,null,null,4,1,null,"Función pública y buen gobierno","M001","Actividades de apoyo administrativo","SPGO0","Gasto de operación asociado a Servicios Personales",0]
[3000,3400,3420,null,null,4,2,null,"Servicios de apoyo administrativo","M001","Actividades de apoyo administrativo","00000",null,0]
[3000,3400,3430,null,null,4,2,null,"Servicios de apoyo administrativo","M001","Actividades de apoyo administrativo","AD010","Otorgar apoyo administrativo y sustantivo",0]
[3000,3400,3440,null,null,4,2,null,"Servicios de apoyo administrativo","M001","Actividades de apoyo administrativo","AMH30","Otorgar atención hospitalaria y consultas médicas en el Hospital Nacional Homeopático",0]
[3000,3400,3450,null,null,4,2,null,"Servicios de apoyo administrativo","M001","Actividades de apoyo administrativo","CC091","Cáncer de la mujer",0]
[3000,3400,3460,null,null,4,2,null,"Servicios de apoyo administrativo","M001","Actividades de apoyo administrativo","CL011","Conducir la generación, integración y difusión de información y recomendaciones basadas en la mejor evidencia y la coordinación sectorial en gestión y evaluación de tecnologías para la salud",0]
[3000,3400,3470,null,null,4,2,null,"Servicios de apoyo administrativo","M001","Actividades de apoyo administrativo","CL040","Integrar información, asesorar en materia de telesalud y establecer coordinación efectiva con las diversas instituciones para integrar acciones hacia la implementación de programas de Telesalud",0]
[3000,3400,3480,null,null,4,2,null,"Servicios de apoyo administrativo","M001","Actividades de apoyo administrativo","CL050","Integrar evaluaciones de tecnologías para la salud, así como otorgar asesorías sobre la materia",0]
[3000,3400,3490,null,null,4,2,null,"Servicios de apoyo administrativo","M001","Actividades de apoyo administrativo","CL060","Desarrollar las políticas e instrumentos de gestión de equipo médico para su uso apropiado, eficiente y seguro en el Sistema Nacional de Salud",0]
[3000,3500,35101,null,null,4,2,null,"Servicios de apoyo administrativo","M001","Actividades de apoyo administrativo","CL090","Coordinar la integración sectorial de Guías de Práctica Clínica",0]
[3000,3500,35102,null,null,4,2,null,"Servicios de apoyo administrativo","M001","Actividades de apoyo administrativo","CT010","Programa interno con el fin de centralizar los recursos de los servicios que su pago se realiza de manera centralizada.",0]
[3000,3500,3520,null,null,4,2,null,"Servicios de apoyo administrativo","M001","Actividades de apoyo administrativo","I0C10","Autoridad Sanitaria con funciones normativas, consultivas y ejecutivas",0]
[3000,3500,3530,null,null,4,2,null,"Servicios de apoyo administrativo","M001","Actividades de apoyo administrativo","MJ070","Salud Materna",0]
[3000,3500,3540,null,null,4,2,null,"Servicios de apoyo administrativo","M001","Actividades de apoyo administrativo","MJ080","Salud Perinatal",0]
[3000,3500,3550,null,null,4,2,null,"Servicios de apoyo administrativo","M001","Actividades de apoyo administrativo","OT062","Realización de campañas en pro de la prevención y promoción en la salud pública en México",0]
[3000,3500,3560,null,null,4,2,null,"Servicios de apoyo administrativo","M001","Actividades de apoyo administrativo","OT072","Campañas de difusión",0]
[3000,3500,35701,null,null,4,2,null,"Servicios de apoyo administrativo","M001","Actividades de apoyo administrativo","OT091","Apoyar el enlace y coordinación con las diferentes unidades de la Secretaria",0]
[3000,3500,35702,null,null,4,2,null,"Servicios de apoyo administrativo","M001","Actividades de apoyo administrativo","PG030","Violencia de género",0]
[3000,3500,3580,null,null,4,2,null,"Servicios de apoyo administrativo","M001","Actividades de apoyo administrativo","PG040","Igualdad de género y Salud",0]
[3000,3500,3590,null,null,4,2,null,"Servicios de apoyo administrativo","M001","Actividades de apoyo administrativo","RM030","Recursos consolidados por la Dirección General de Recursos Materiales y Servicios Generales.",0]
[3000,3600,3610,null,null,4,2,null,"Servicios de apoyo administrativo","M001","Actividades de apoyo administrativo","RTI40","Recursos consolidados por la Dirección General de Tecnologias de la Información.",0]
[3000,3600,3620,null,null,4,2,null,"Servicios de apoyo administrativo","M001","Actividades de apoyo administrativo","SP010","Servicios personales",0]
[3000,3600,3630,null,null,4,2,null,"Servicios de apoyo administrativo","M001","Actividades de apoyo administrativo","SPGO0","Gasto de operación asociado a Servicios Personales",0]
[3000,3600,3640,null,null,4,2,null,"Servicios de apoyo administrativo","M001","Actividades de apoyo administrativo","SR030","Anticoncepción, planificación familiar y salud sexual",0]
[3000,3600,3650,null,null,4,2,null,"Servicios de apoyo administrativo","M001","Actividades de apoyo administrativo","SR040","Salud sexual y reproductiva en la adolescencia",0]
[3000,3600,3660,null,null,4,2,null,"Servicios de apoyo administrativo","M001","Actividades de apoyo administrativo","SR050","Aborto Seguro",0]
[3000,3600,3690,null,null,4,14,null,"Sistema Nacional de Salud organizado e integrado","P012","Rectoría en Salud","00000",null,0]
[3000,3700,37101,null,null,4,14,null,"Sistema Nacional de Salud organizado e integrado","P012","Rectoría en Salud","AD010","Otorgar apoyo administrativo y sustantivo",0]
[3000,3700,37102,null,null,4,14,null,"Sistema Nacional de Salud organizado e integrado","P012","Rectoría en Salud","AR010","Fortalecer la comisión fronteriza México-Estados Unidos",0]
[3000,3700,37103,null,null,4,14,null,"Sistema Nacional de Salud organizado e integrado","P012","Rectoría en Salud","CI010","Pago de las cuotas a los Organismos Internacionales de los que México forma parte",0]
[3000,3700,37104,null,null,4,14,null,"Sistema Nacional de Salud organizado e integrado","P012","Rectoría en Salud","CL020","Establecer los sistemas de evaluación del desempeño de los sistemas nacional y estatal de salud, de programas prioritarios y especiales de salud y los sistemas de evaluación de prestación de servicios de salud a la persona y no personales de sal",0]
[3000,3700,37105,null,null,4,14,null,"Sistema Nacional de Salud organizado e integrado","P012","Rectoría en Salud","CL070","Sistema Nacional de Información en Salud",0]
[3000,3700,37106,null,null,4,14,null,"Sistema Nacional de Salud organizado e integrado","P012","Rectoría en Salud","CL170","Planear estratégicamente las actividades de investigación, docencia, asistencia médica y de administración",0]
[3000,3700,37201,null,null,4,14,null,"Sistema Nacional de Salud organizado e integrado","P012","Rectoría en Salud","MG010","Fortalecer los vínculos con las autoridades de los Estados Unidos de Norteamérica a fin de facilitar el acceso a los servicios de salud de los migrantes en sus lugares de destino",0]
[3000,3700,37202,null,null,4,14,null,"Sistema Nacional de Salud organizado e integrado","P012","Rectoría en Salud","OE001","Asignación de recursos transitorios por reubicar.",0]
[3000,3700,37203,null,null,4,14,null,"Sistema Nacional de Salud organizado e integrado","P012","Rectoría en Salud","RM030","Recursos consolidados por la Dirección General de Recursos Materiales y Servicios Generales.",0]
[3000,3700,37204,null,null,4,14,null,"Sistema Nacional de Salud organizado e integrado","P012","Rectoría en Salud","RTI40","Recursos consolidados por la Dirección General de Tecnologias de la Información.",0]
[3000,3700,37205,null,null,4,14,null,"Sistema Nacional de Salud organizado e integrado","P012","Rectoría en Salud","SP010","Servicios personales",0]
[3000,3700,37206,null,null,4,14,null,"Sistema Nacional de Salud organizado e integrado","P012","Rectoría en Salud","SPGO0","Gasto de operación asociado a Servicios Personales",0]
[3000,3700,37207,null,null,4,14,null,"Sistema Nacional de Salud organizado e integrado","P013","Asistencia social y protección del paciente","AD010","Otorgar apoyo administrativo y sustantivo",0]
[3000,3700,37301,null,null,4,14,null,"Sistema Nacional de Salud organizado e integrado","P013","Asistencia social y protección del paciente","OT011","Establecer y coordinar los mecanismos de vinculación entre la Secretaría de Salud y diversos órganos políticos federales y estatales con injerencia en el sector salud",0]
[3000,3700,37302,null,null,4,14,null,"Sistema Nacional de Salud organizado e integrado","P013","Asistencia social y protección del paciente","OT031","Integrar información de los servicios estatales de salud",0]
[3000,3700,37303,null,null,4,14,null,"Sistema Nacional de Salud organizado e integrado","P013","Asistencia social y protección del paciente","OT090","Diseño de estrategias y mecanismos de coordinación con las entidades federativas y los municipios a nivel nacional",0]
[3000,3700,37304,null,null,4,14,null,"Sistema Nacional de Salud organizado e integrado","P013","Asistencia social y protección del paciente","RM030","Recursos consolidados por la Dirección General de Recursos Materiales y Servicios Generales.",0]
[3000,3700,3740,null,null,4,14,null,"Sistema Nacional de Salud organizado e integrado","P013","Asistencia social y protección del paciente","RTI40","Recursos consolidados por la Dirección General de Tecnologias de la Información.",0]
[3000,3700,37501,null,null,4,14,null,"Sistema Nacional de Salud organizado e integrado","P013","Asistencia social y protección del paciente","SP010","Servicios personales",0]
[3000,3700,37502,null,null,4,14,null,"Sistema Nacional de Salud organizado e integrado","P013","Asistencia social y protección del paciente","SPGO0","Gasto de operación asociado a Servicios Personales",0]
[3000,3700,37503,null,null,4,14,null,"Sistema Nacional de Salud organizado e integrado","P013","Asistencia social y protección del paciente","TS010","Promoción de la donación voluntaria y altruista de sangre y células progenitoras o troncales",0]
[3000,3700,37504,null,null,4,14,null,"Sistema Nacional de Salud organizado e integrado","P013","Asistencia social y protección del paciente","TS020","Seguridad de células progenitoras o troncales",0]
[3000,3700,37601,null,null,4,14,null,"Sistema Nacional de Salud organizado e integrado","P013","Asistencia social y protección del paciente","TS040","Seguridad de la sangre y componentes sanguíneos",0]
[3000,3700,37602,null,null,4,14,null,"Sistema Nacional de Salud organizado e integrado","P016","Prevención y atención de VIH/SIDA y otras ITS","MJ040","Desarrollar acciones específicas para promover la atención integral de la salud de la mujer (VIH/SIDA)",0]
[3000,3700,3770,null,null,4,14,null,"Sistema Nacional de Salud organizado e integrado","P016","Prevención y atención de VIH/SIDA y otras ITS","SP010","Servicios personales",0]
[3000,3700,37801,null,null,4,14,null,"Sistema Nacional de Salud organizado e integrado","P016","Prevención y atención de VIH/SIDA y otras ITS","SPGO0","Gasto de operación asociado a Servicios Personales",0]
[3000,3700,37802,null,null,4,14,null,"Sistema Nacional de Salud organizado e integrado","P016","Prevención y atención de VIH/SIDA y otras ITS","VH010","Prevención y/o atención del VIH-SIDA en la población",0]
[3000,3700,3790,null,null,4,14,null,"Sistema Nacional de Salud organizado e integrado","P016","Prevención y atención de VIH/SIDA y otras ITS","VH040","Realizar protocolo de investigación Impacto de la supresión de HHV-8 en pacientes con Sarcoma de Kaposi grave en el desarrollo de SIRI y en mortalidad atribuible",0]
[3000,3800,38101,null,null,4,14,null,"Sistema Nacional de Salud organizado e integrado","P018","Prevención y control de enfermedades","AC010","Fortalecer la instrumentación de políticas y criterios técnicos en materia de prevención de lesiones por accidentes",0]
[3000,3800,38102,null,null,4,14,null,"Sistema Nacional de Salud organizado e integrado","P018","Prevención y control de enfermedades","AC020","Fortalecer la instrumentación de políticas y criterios técnicos en materia de prevención de lesiones por accidentes",0]
[3000,3800,38103,null,null,4,14,null,"Sistema Nacional de Salud organizado e integrado","P018","Prevención y control de enfermedades","AD010","Otorgar apoyo administrativo y sustantivo",0]
[3000,3800,3820,null,null,4,14,null,"Sistema Nacional de Salud organizado e integrado","P018","Prevención y control de enfermedades","AM010","Atención médica especializada a mujeres con enfermedad pulmonar intersticial difusa (EPID)",0]
[3000,3800,3830,null,null,4,14,null,"Sistema Nacional de Salud organizado e integrado","P018","Prevención y control de enfermedades","EE010","Realizar operativos de apoyo a las entidades federativas ante urgencias epidemiológicas y desastres",0]
[3000,3800,3840,null,null,4,14,null,"Sistema Nacional de Salud organizado e integrado","P018","Prevención y control de enfermedades","EE020","Realizar operativos de apoyo para la vigilancia epidemiológica, prevención y control de enfermedades transmitidas por vectores e intoxicación por picadura de alacrán",0]
[3000,3800,3850,null,null,4,14,null,"Sistema Nacional de Salud organizado e integrado","P018","Prevención y control de enfermedades","EE030","Supervisar, capacitar, normar, asesorar y evaluar en  prevención  y atención en el adulto y adulto mayor, en las enfermedades de mayor prevalencia y control de las enfermedades crónicas no transmisibles (diabetes, riesgo cardiovascular y dislipidemia",0]
[3000,3900,3910,null,null,4,14,null,"Sistema Nacional de Salud organizado e integrado","P018","Prevención y control de enfermedades","EE040","Reforzar la vigilancia epidemiológica a través del análisis y diagnóstico de referencia",0]
[3000,3900,39201,null,null,4,14,null,"Sistema Nacional de Salud organizado e integrado","P018","Prevención y control de enfermedades","EE050","Supervisar, capacitar, normar, asesorar y evaluar en la prevención y control de  la tuberculosis y la lepra",0]
[3000,3900,39202,null,null,4,14,null,"Sistema Nacional de Salud organizado e integrado","P018","Prevención y control de enfermedades","EE060","Supervisar, capacitar, normar, asesorar y evaluar en la prevención y control de la tuberculosis, la lepra y respiratorias.Neumonía adquirida en la comunidad, Enfermedad Pulmonar Obstructiva Crónica EPOC, Asma e Influenza.",0]
[3000,3900,3930,null,null,4,14,null,"Sistema Nacional de Salud organizado e integrado","P018","Prevención y control de enfermedades","EE070","Supervisar, capacitar, normar, asesorar y evaluar en la prevención y control de enfermedades transmitidas por rabia, brucelosis, rickettsiosis (Fiebre Manchada de las Montañas Rocosas)",0]
[3000,3900,39401,null,null,4,14,null,"Sistema Nacional de Salud organizado e integrado","P018","Prevención y control de enfermedades","EE080","Fomentar, proteger y restablecer la salud bucal, con parte de la salud integral de la población mexicana",0]
[3000,3900,39402,null,null,4,14,null,"Sistema Nacional de Salud organizado e integrado","P018","Prevención y control de enfermedades","PP010","Participar en el diseño e implantación de las políticas públicas en materia de promoción de la salud, vigilancia epidemiológica, atención de urgencias y prevención de enfermedades transmisibles",0]
[3000,3900,39403,null,null,4,14,null,"Sistema Nacional de Salud organizado e integrado","P018","Prevención y control de enfermedades","PP030","Participar en el diseño e implantación de las políticas públicas en materia de salud pública, enfermedades emergentes, atención de urgencias epidemiológicas y desastres naturales",0]
[3000,3900,3950,null,null,4,14,null,"Sistema Nacional de Salud organizado e integrado","P018","Prevención y control de enfermedades","RM030","Recursos consolidados por la Dirección General de Recursos Materiales y Servicios Generales.",0]
[3000,3900,39601,null,null,4,14,null,"Sistema Nacional de Salud organizado e integrado","P018","Prevención y control de enfermedades","RTI40","Recursos consolidados por la Dirección General de Tecnologias de la Información.",0]
[3000,3900,39602,null,null,4,14,null,"Sistema Nacional de Salud organizado e integrado","P018","Prevención y control de enfermedades","SM020","Garantizar la protección de los derechos humanos de los usuarios de los servicios en salud mental conforme a la normatividad y el Programa Nacional de Salud Mental.",0]
[3000,3900,3970,null,null,4,14,null,"Sistema Nacional de Salud organizado e integrado","P018","Prevención y control de enfermedades","SM030","Verificar la aplicación de los recursos en las actividades de rehabilitación psicosocial (Talleres, paseos terapéuticos, bancos de reforzadores) en las Entidades Federativas.",0]
[3000,3900,3980,null,null,4,14,null,"Sistema Nacional de Salud organizado e integrado","P018","Prevención y control de enfermedades","SP010","Servicios personales",0]
[3000,3900,39901,null,null,4,14,null,"Sistema Nacional de Salud organizado e integrado","P018","Prevención y control de enfermedades","SPGO0","Gasto de operación asociado a Servicios Personales",0]
[3000,3900,39902,null,null,4,14,null,"Sistema Nacional de Salud organizado e integrado","P020","Salud materna, sexual y reproductiva","AP010","Salud materna y perinatal",0]
[3000,3900,39904,null,null,4,14,null,"Sistema Nacional de Salud organizado e integrado","P020","Salud materna, sexual y reproductiva","CC010","Realizar acciones para el manejo multidisciplinario al paciente con padecimientos oncológicos y su familia, a través de la Clínica de Cáncer Familiar",0]
[3000,3900,39905,null,null,4,14,null,"Sistema Nacional de Salud organizado e integrado","P020","Salud materna, sexual y reproductiva","CC011","Reforzamiento del programa de detección y atención de Cáncer de Pulmon en Mujeres no asociado a tabaquismo.",0]
[3000,3900,39906,null,null,4,14,null,"Sistema Nacional de Salud organizado e integrado","P020","Salud materna, sexual y reproductiva","CC021","Reforzamiento del programa de detección y atención de Cáncer Cervicouterino.",0]
[3000,3900,39907,null,null,4,14,null,"Sistema Nacional de Salud organizado e integrado","P020","Salud materna, sexual y reproductiva","CC031","Contribuir a mejorar el tratamiento integral con equipo multidisciplinario, a las pacientes con diagnóstico de cáncer de mama",0]
[3000,3900,39908,null,null,4,14,null,"Sistema Nacional de Salud organizado e integrado","P020","Salud materna, sexual y reproductiva","CC041","Contribuir a mejorar el tratamiento integral con equipo multidisciplinario, a las pacientes con diagnóstico de cáncer de ovario; así como la difusión y prevención de esta neoplasia",0]
[3000,3900,39909,null,null,4,14,null,"Sistema Nacional de Salud organizado e integrado","P020","Salud materna, sexual y reproductiva","CC050","Programa de Prevención y Control de Cáncer de la Mujer",0]
[3000,3900,39910,null,null,4,14,null,"Sistema Nacional de Salud organizado e integrado","P020","Salud materna, sexual y reproductiva","CC070","Programa de Prevención y Control de Cáncer Cérvico Uterino",0]
[4000,4100,4110,null,null,4,14,null,"Sistema Nacional de Salud organizado e integrado","P020","Salud materna, sexual y reproductiva","CC080","Reforzamiento del programa de detección y atención de Cáncer Cérvico Uterino.",0]
[4000,4100,4120,null,null,4,14,null,"Sistema Nacional de Salud organizado e integrado","P020","Salud materna, sexual y reproductiva","CC090","Reforzamiento del programa de detección y atención de  Cáncer de Mama",0]
[4000,4100,4130,null,null,4,14,null,"Sistema Nacional de Salud organizado e integrado","P020","Salud materna, sexual y reproductiva","CC091","Cáncer de la mujer",0]
[4000,4100,4140,null,null,4,14,null,"Sistema Nacional de Salud organizado e integrado","P020","Salud materna, sexual y reproductiva","CCICT","Cáncer de pulmón en mujeres con mutaciones de receptor de factor de crecimiento epidérmico (EGFR) no asociado a tabaquismo",0]
[4000,4100,4150,null,null,4,14,null,"Sistema Nacional de Salud organizado e integrado","P020","Salud materna, sexual y reproductiva","CCIVO","Programa de acceso, atención, promoción, difusión e investigación del cáncer de ovario",0]
[4000,4100,4160,null,null,4,14,null,"Sistema Nacional de Salud organizado e integrado","P020","Salud materna, sexual y reproductiva","MJ050","Programa para mujeres y la igualdad de genero",0]
[4000,4100,4170,null,null,4,14,null,"Sistema Nacional de Salud organizado e integrado","P020","Salud materna, sexual y reproductiva","MJ070","Salud Materna",0]
[4000,4100,4180,null,null,4,14,null,"Sistema Nacional de Salud organizado e integrado","P020","Salud materna, sexual y reproductiva","MJ080","Salud Perinatal",0]
[4000,4100,4190,null,null,4,14,null,"Sistema Nacional de Salud organizado e integrado","P020","Salud materna, sexual y reproductiva","PG020","Prevención y atención de la violencia familiar y de género",0]
[4000,4200,4210,null,null,4,14,null,"Sistema Nacional de Salud organizado e integrado","P020","Salud materna, sexual y reproductiva","PG030","Violencia de género",0]
[4000,4200,4220,null,null,4,14,null,"Sistema Nacional de Salud organizado e integrado","P020","Salud materna, sexual y reproductiva","PG040","Igualdad de género y Salud",0]
[4000,4200,4230,null,null,4,14,null,"Sistema Nacional de Salud organizado e integrado","P020","Salud materna, sexual y reproductiva","RM030","Recursos consolidados por la Dirección General de Recursos Materiales y Servicios Generales.",0]
[4000,4200,4240,null,null,4,14,null,"Sistema Nacional de Salud organizado e integrado","P020","Salud materna, sexual y reproductiva","RTI40","Recursos consolidados por la Dirección General de Tecnologias de la Información.",0]
[4000,4200,4250,null,null,4,14,null,"Sistema Nacional de Salud organizado e integrado","P020","Salud materna, sexual y reproductiva","SP010","Servicios personales",0]
[4000,4300,4310,null,null,4,14,null,"Sistema Nacional de Salud organizado e integrado","P020","Salud materna, sexual y reproductiva","SPGO0","Gasto de operación asociado a Servicios Personales",0]
[4000,4300,4320,null,null,4,14,null,"Sistema Nacional de Salud organizado e integrado","P020","Salud materna, sexual y reproductiva","SR030","Anticoncepción, planificación familiar y salud sexual",0]
[4000,4300,4330,null,null,4,14,null,"Sistema Nacional de Salud organizado e integrado","P020","Salud materna, sexual y reproductiva","SR040","Salud sexual y reproductiva en la adolescencia",0]
[4000,4300,4340,null,null,4,14,null,"Sistema Nacional de Salud organizado e integrado","P020","Salud materna, sexual y reproductiva","SR050","Aborto Seguro",0]
[4000,4300,4350,null,null,4,25,null,"Políticas de calidad implementadas en el Sistema Nacional de Salud","P012","Rectoría en Salud","00000",null,0]
[4000,4300,4360,null,null,4,25,null,"Políticas de calidad implementadas en el Sistema Nacional de Salud","P012","Rectoría en Salud","CL021","Impulso del modelo de gestión de calidad en salud",0]
[4000,4300,4370,null,null,4,25,null,"Políticas de calidad implementadas en el Sistema Nacional de Salud","P012","Rectoría en Salud","OT022","Planeación para el desarrollo sectorial en salud",0]
[4000,4300,4380,null,null,4,25,null,"Políticas de calidad implementadas en el Sistema Nacional de Salud","P012","Rectoría en Salud","RM030","Recursos consolidados por la Dirección General de Recursos Materiales y Servicios Generales.",0]
[4000,4300,43901,null,null,4,25,null,"Políticas de calidad implementadas en el Sistema Nacional de Salud","P012","Rectoría en Salud","RTI40","Recursos consolidados por la Dirección General de Tecnologias de la Información.",0]
[4000,4300,43902,null,null,4,25,null,"Políticas de calidad implementadas en el Sistema Nacional de Salud","P012","Rectoría en Salud","SP010","Servicios personales",0]
[4000,4400,44101,null,null,4,25,null,"Políticas de calidad implementadas en el Sistema Nacional de Salud","P012","Rectoría en Salud","SPGO0","Gasto de operación asociado a Servicios Personales",0]
[4000,4400,44102,null,null,4,25,null,"Políticas de calidad implementadas en el Sistema Nacional de Salud","P013","Asistencia social y protección del paciente","00000",null,0]
[4000,4400,44103,null,null,4,25,null,"Políticas de calidad implementadas en el Sistema Nacional de Salud","P013","Asistencia social y protección del paciente","AB010","Fortalecer  a la queja médica como medida preventiva para mejorar  la calidad de los servicios de salud",0]
[4000,4400,44104,null,null,4,25,null,"Políticas de calidad implementadas en el Sistema Nacional de Salud","P013","Asistencia social y protección del paciente","AB020","Impulsar el registro y análisis de la queja de los incidentes en salud.",0]
[4000,4400,44105,null,null,4,25,null,"Políticas de calidad implementadas en el Sistema Nacional de Salud","P013","Asistencia social y protección del paciente","AB030","Fortalecimiento del Sistema Nacional de Salud a través de atención de las quejas médicas",0]
[4000,4400,44106,null,null,4,25,null,"Políticas de calidad implementadas en el Sistema Nacional de Salud","P013","Asistencia social y protección del paciente","CT010","Programa interno con el fin de centralizar los recursos de los servicios que su pago se realiza de manera centralizada.",0]
[4000,4400,4420,null,null,4,25,null,"Políticas de calidad implementadas en el Sistema Nacional de Salud","P013","Asistencia social y protección del paciente","OT021","Consolidación de las Comisiones Nacional, Estatales de Bioética y los Comités Hospitalarios de Bioética y de Ética en investigación",0]
[4000,4400,4430,null,null,4,25,null,"Políticas de calidad implementadas en el Sistema Nacional de Salud","P013","Asistencia social y protección del paciente","OT050","Difundir la cultura bioética entre la sociedad, impulsar la capacitación del personal y la formación de profesionales en la materia",0]
[4000,4400,44401,null,null,4,25,null,"Políticas de calidad implementadas en el Sistema Nacional de Salud","P013","Asistencia social y protección del paciente","OT081","Promoción de la observancia de criterios de bioética internacionales acordes con el interés y las políticas de salud del país",0]
[4000,4400,44402,null,null,4,25,null,"Políticas de calidad implementadas en el Sistema Nacional de Salud","P013","Asistencia social y protección del paciente","RM030","Recursos consolidados por la Dirección General de Recursos Materiales y Servicios Generales.",0]
[4000,4400,4450,null,null,4,25,null,"Políticas de calidad implementadas en el Sistema Nacional de Salud","P013","Asistencia social y protección del paciente","RTI40","Recursos consolidados por la Dirección General de Tecnologias de la Información.",0]
[4000,4400,4460,null,null,4,25,null,"Políticas de calidad implementadas en el Sistema Nacional de Salud","P013","Asistencia social y protección del paciente","SP010","Servicios personales",0]
[4000,4400,4470,null,null,4,25,null,"Políticas de calidad implementadas en el Sistema Nacional de Salud","P013","Asistencia social y protección del paciente","SPGO0","Gasto de operación asociado a Servicios Personales",0]
[4000,4400,4480,null,null,4,25,null,"Políticas de calidad implementadas en el Sistema Nacional de Salud","P016","Prevención y atención de VIH/SIDA y otras ITS","AD010","Otorgar apoyo administrativo y sustantivo",0]
[4000,4500,4510,null,null,4,25,null,"Políticas de calidad implementadas en el Sistema Nacional de Salud","P016","Prevención y atención de VIH/SIDA y otras ITS","RM030","Recursos consolidados por la Dirección General de Recursos Materiales y Servicios Generales.",0]
[4000,4500,45201,null,null,4,25,null,"Políticas de calidad implementadas en el Sistema Nacional de Salud","P016","Prevención y atención de VIH/SIDA y otras ITS","RTI40","Recursos consolidados por la Dirección General de Tecnologias de la Información.",0]
[4000,4500,45202,null,null,4,25,null,"Políticas de calidad implementadas en el Sistema Nacional de Salud","P016","Prevención y atención de VIH/SIDA y otras ITS","SP010","Servicios personales",0]
[4000,4500,45203,null,null,4,25,null,"Políticas de calidad implementadas en el Sistema Nacional de Salud","P016","Prevención y atención de VIH/SIDA y otras ITS","SPGO0","Gasto de operación asociado a Servicios Personales",0]
[4000,4500,45901,null,null,4,25,null,"Políticas de calidad implementadas en el Sistema Nacional de Salud","P016","Prevención y atención de VIH/SIDA y otras ITS","VH020","Promover atención integral de las personas con VIH-SIDA e ITS",0]
[4000,4500,45902,null,null,4,25,null,"Políticas de calidad implementadas en el Sistema Nacional de Salud","P016","Prevención y atención de VIH/SIDA y otras ITS","VH030","Prevención del VIH/SIDA y otras ITS",0]
[4000,4600,46101,null,null,5,2,null,"Servicios de apoyo administrativo","M001","Actividades de apoyo administrativo","SP010","Servicios personales",0]
[4000,4600,46102,null,null,5,2,null,"Servicios de apoyo administrativo","M001","Actividades de apoyo administrativo","SPGO0","Gasto de operación asociado a Servicios Personales",0]
[4000,4600,4620,null,null,5,15,null,"Promoción de la salud y prevención y control de enfermedades fortalecidas e integradas sectorial e intersectorialmente","S200","Fortalecimiento a la atención médica","SP010","Servicios personales",0]
[4000,4600,4630,null,null,5,18,null,"Prestación de servicios del Sistema Nacional de Salud organizados e integrados","E023","Atención a la Salud","AM010","Atención médica especializada a mujeres con enfermedad pulmonar intersticial difusa (EPID)",0]
[4000,4600,4640,null,null,5,18,null,"Prestación de servicios del Sistema Nacional de Salud organizados e integrados","E023","Atención a la Salud","AM030","Otorgar atención ambulatoria",0]
[4000,4600,4650,null,null,5,18,null,"Prestación de servicios del Sistema Nacional de Salud organizados e integrados","E023","Atención a la Salud","CT010","Programa interno con el fin de centralizar los recursos de los servicios que su pago se realiza de manera centralizada.",0]
[4000,4600,4660,null,null,5,18,null,"Prestación de servicios del Sistema Nacional de Salud organizados e integrados","E023","Atención a la Salud","GSS01","Gratuidad de los Servicios de Salud.",0]
[4000,4600,4690,null,null,5,18,null,"Prestación de servicios del Sistema Nacional de Salud organizados e integrados","E023","Atención a la Salud","OE001","Asignación de recursos transitorios por reubicar.",0]
[4000,4700,47101,null,null,5,18,null,"Prestación de servicios del Sistema Nacional de Salud organizados e integrados","E023","Atención a la Salud","SPGO0","Gasto de operación asociado a Servicios Personales",0]
[4000,4700,47102,null,null,5,18,null,"Prestación de servicios del Sistema Nacional de Salud organizados e integrados","U012","Fortalecimiento de los Servicios Estatales de Salud","00000",null,0]
[4000,4800,4810,null,null,5,18,null,"Prestación de servicios del Sistema Nacional de Salud organizados e integrados","U012","Fortalecimiento de los Servicios Estatales de Salud","SPGO0","Gasto de operación asociado a Servicios Personales",0]
[4000,4800,4820,null,null,5,20,null,"Infraestructura suficiente, equipamiento óptimo e insumos seguros para la salud","S281","Programa Nacional de Reconstrucción","SPGO0","Gasto de operación asociado a Servicios Personales",0]
[4000,4800,4830,null,null,5,22,null,"Reforma financiera consolidada con acceso universal a los servicios de salud a la persona","E036","Programa de vacunación","COVID","Adquisición de vacunas COVID-19 , insumos y translado.",0]
[4000,4800,4840,null,null,5,22,null,"Reforma financiera consolidada con acceso universal a los servicios de salud a la persona","E036","Programa de vacunación","SP010","Servicios personales",0]
[4000,4800,4850,null,null,5,22,null,"Reforma financiera consolidada con acceso universal a los servicios de salud a la persona","E036","Programa de vacunación","VA010","Programa de Vacunación",0]
[4000,4900,4910,null,null,5,22,null,"Reforma financiera consolidada con acceso universal a los servicios de salud a la persona","P016","Prevención y atención de VIH/SIDA y otras ITS","VH020","Promover atención integral de las personas con VIH-SIDA e ITS",0]
[4000,4900,49201,null,null,5,22,null,"Reforma financiera consolidada con acceso universal a los servicios de salud a la persona","P016","Prevención y atención de VIH/SIDA y otras ITS","VH030","Prevención del VIH/SIDA y otras ITS",0]
[4000,4900,49202,null,null,5,22,null,"Reforma financiera consolidada con acceso universal a los servicios de salud a la persona","P020","Salud materna, sexual y reproductiva","CC091","Cáncer de la mujer",0]
[4000,4900,4930,null,null,5,22,null,"Reforma financiera consolidada con acceso universal a los servicios de salud a la persona","P020","Salud materna, sexual y reproductiva","EE040","Reforzar la vigilancia epidemiológica a través del análisis y diagnóstico de referencia",0]
[7000,7100,7110,null,null,5,22,null,"Reforma financiera consolidada con acceso universal a los servicios de salud a la persona","P020","Salud materna, sexual y reproductiva","MJ070","Salud Materna",0]
[7000,7100,7120,null,null,5,22,null,"Reforma financiera consolidada con acceso universal a los servicios de salud a la persona","P020","Salud materna, sexual y reproductiva","MJ080","Salud Perinatal",0]
[7000,7200,7210,null,null,5,22,null,"Reforma financiera consolidada con acceso universal a los servicios de salud a la persona","P020","Salud materna, sexual y reproductiva","PG030","Violencia de género",0]
[7000,7200,7220,null,null,5,22,null,"Reforma financiera consolidada con acceso universal a los servicios de salud a la persona","P020","Salud materna, sexual y reproductiva","PG040","Igualdad de género y Salud",0]
[7000,7200,7230,null,null,5,22,null,"Reforma financiera consolidada con acceso universal a los servicios de salud a la persona","P020","Salud materna, sexual y reproductiva","RM030","Recursos consolidados por la Dirección General de Recursos Materiales y Servicios Generales.",0]
[7000,7200,7240,null,null,5,22,null,"Reforma financiera consolidada con acceso universal a los servicios de salud a la persona","P020","Salud materna, sexual y reproductiva","SP010","Servicios personales",0]
[7000,7200,7250,null,null,5,22,null,"Reforma financiera consolidada con acceso universal a los servicios de salud a la persona","P020","Salud materna, sexual y reproductiva","SPGO0","Gasto de operación asociado a Servicios Personales",0]
[7000,7200,7260,null,null,5,22,null,"Reforma financiera consolidada con acceso universal a los servicios de salud a la persona","P020","Salud materna, sexual y reproductiva","SR030","Anticoncepción, planificación familiar y salud sexual",0]
[7000,7200,7270,null,null,5,22,null,"Reforma financiera consolidada con acceso universal a los servicios de salud a la persona","P020","Salud materna, sexual y reproductiva","SR040","Salud sexual y reproductiva en la adolescencia",0]
[7000,7200,7280,null,null,5,22,null,"Reforma financiera consolidada con acceso universal a los servicios de salud a la persona","P020","Salud materna, sexual y reproductiva","SR050","Aborto Seguro",0]
[7000,7200,7290,null,null,8,2,null,"Servicios de apoyo administrativo","M001","Actividades de apoyo administrativo","AD010","Otorgar apoyo administrativo y sustantivo",0]
[7000,7300,7310,null,null,8,2,null,"Servicios de apoyo administrativo","M001","Actividades de apoyo administrativo","RM030","Recursos consolidados por la Dirección General de Recursos Materiales y Servicios Generales.",0]
[7000,7300,7320,null,null,8,2,null,"Servicios de apoyo administrativo","M001","Actividades de apoyo administrativo","RTI40","Recursos consolidados por la Dirección General de Tecnologias de la Información.",0]
[7000,7300,7330,null,null,8,2,null,"Servicios de apoyo administrativo","M001","Actividades de apoyo administrativo","SP010","Servicios personales",0]
[7000,7300,7340,null,null,8,2,null,"Servicios de apoyo administrativo","M001","Actividades de apoyo administrativo","SPGO0","Gasto de operación asociado a Servicios Personales",0]
[7000,7300,7350,null,null,8,12,null,"Asistencia social, comunitaria y beneficencia pública justa y equitativa (asistencia pública)","E010","Formación y capacitación de recursos humanos para la salud","AS010","Profesionalización de los servicios en Centros de Rehabilitación del DIF",0]
[7000,7300,73901,null,null,8,12,null,"Asistencia social, comunitaria y beneficencia pública justa y equitativa (asistencia pública)","E040","Servicios de asistencia social integral","AS040","Servicios de atención a población vulnerable",0]
[7000,7300,73902,null,null,8,12,null,"Asistencia social, comunitaria y beneficencia pública justa y equitativa (asistencia pública)","E040","Servicios de asistencia social integral","SP010","Servicios personales",0]
[7000,7300,73903,null,null,8,12,null,"Asistencia social, comunitaria y beneficencia pública justa y equitativa (asistencia pública)","E040","Servicios de asistencia social integral","SPGO0","Gasto de operación asociado a Servicios Personales",0]
[7000,7400,7410,null,null,8,12,null,"Asistencia social, comunitaria y beneficencia pública justa y equitativa (asistencia pública)","E041","Protección y restitución de los derechos de las niñas, niños y adolescentes","AS020","Protección y restitución de los derechos de las niñas, niños y adolescentes",0]
[7000,7400,7420,null,null,8,12,null,"Asistencia social, comunitaria y beneficencia pública justa y equitativa (asistencia pública)","E041","Protección y restitución de los derechos de las niñas, niños y adolescentes","AS040","Servicios de atención a población vulnerable",0]
[7000,7400,7430,null,null,8,12,null,"Asistencia social, comunitaria y beneficencia pública justa y equitativa (asistencia pública)","E041","Protección y restitución de los derechos de las niñas, niños y adolescentes","SP010","Servicios personales",0]
[7000,7400,7440,null,null,8,12,null,"Asistencia social, comunitaria y beneficencia pública justa y equitativa (asistencia pública)","E041","Protección y restitución de los derechos de las niñas, niños y adolescentes","SPGO0","Gasto de operación asociado a Servicios Personales",0]
[7000,7400,74501,null,null,8,12,null,"Asistencia social, comunitaria y beneficencia pública justa y equitativa (asistencia pública)","P013","Asistencia social y protección del paciente","AS010","Profesionalización de los servicios en Centros de Rehabilitación del DIF",0]
[7000,7400,74502,null,null,8,12,null,"Asistencia social, comunitaria y beneficencia pública justa y equitativa (asistencia pública)","P013","Asistencia social y protección del paciente","AS030","Promover políticas para la asistencia social DIF",0]
[7000,7400,74503,null,null,8,12,null,"Asistencia social, comunitaria y beneficencia pública justa y equitativa (asistencia pública)","P013","Asistencia social y protección del paciente","AS040","Servicios de atención a población vulnerable",0]
[7000,7400,74504,null,null,8,12,null,"Asistencia social, comunitaria y beneficencia pública justa y equitativa (asistencia pública)","P013","Asistencia social y protección del paciente","OT071","Realizar acciones de filantropía en materia de salud",0]
[7000,7400,74505,null,null,8,12,null,"Asistencia social, comunitaria y beneficencia pública justa y equitativa (asistencia pública)","P013","Asistencia social y protección del paciente","RM030","Recursos consolidados por la Dirección General de Recursos Materiales y Servicios Generales.",0]
[7000,7400,74506,null,null,8,12,null,"Asistencia social, comunitaria y beneficencia pública justa y equitativa (asistencia pública)","P013","Asistencia social y protección del paciente","RTI40","Recursos consolidados por la Dirección General de Tecnologias de la Información.",0]
[7000,7400,7460,null,null,8,12,null,"Asistencia social, comunitaria y beneficencia pública justa y equitativa (asistencia pública)","P013","Asistencia social y protección del paciente","SP010","Servicios personales",0]
[7000,7400,7470,null,null,8,12,null,"Asistencia social, comunitaria y beneficencia pública justa y equitativa (asistencia pública)","P013","Asistencia social y protección del paciente","SPGO0","Gasto de operación asociado a Servicios Personales",0]
[7000,7400,7480,null,null,8,12,null,"Asistencia social, comunitaria y beneficencia pública justa y equitativa (asistencia pública)","S039","Programa de Atención a Personas con Discapacidad","RO040","Programa de Atención a Personas con Discapacidad",0]
[7000,7400,7490,null,null,1,24,null,"Investigación en salud pertinente y de excelencia académica","E022","Investigación y desarrollo tecnológico en salud","AD010","Otorgar apoyo administrativo y sustantivo",0]
[7000,7500,7510,null,null,1,24,null,"Investigación en salud pertinente y de excelencia académica","E022","Investigación y desarrollo tecnológico en salud","AM040","Otorgar atención hospitalaria",0]
[7000,7500,7520,null,null,1,24,null,"Investigación en salud pertinente y de excelencia académica","E022","Investigación y desarrollo tecnológico en salud","IV010","Fomentar la investigación en salud",0]
[7000,7500,7530,null,null,1,24,null,"Investigación en salud pertinente y de excelencia académica","E022","Investigación y desarrollo tecnológico en salud","IV020","Difusión de la investigación",0]
[7000,7500,7540,null,null,1,24,null,"Investigación en salud pertinente y de excelencia académica","E022","Investigación y desarrollo tecnológico en salud","IV030","Desarrollar la investigación clínica",0]
[7000,7500,7550,null,null,1,24,null,"Investigación en salud pertinente y de excelencia académica","E022","Investigación y desarrollo tecnológico en salud","IV040","Desarrollar la investigación tecnológica",0]
[7000,7500,75601,null,null,1,24,null,"Investigación en salud pertinente y de excelencia académica","E022","Investigación y desarrollo tecnológico en salud","IV050","Desarrollar la investigación en socio medicina",0]
[7000,7500,75602,null,null,1,24,null,"Investigación en salud pertinente y de excelencia académica","E022","Investigación y desarrollo tecnológico en salud","IV060","Fortalecimiento de recursos humanos para investigación",0]
[7000,7500,7570,null,null,1,24,null,"Investigación en salud pertinente y de excelencia académica","E022","Investigación y desarrollo tecnológico en salud","IV080","Desarrollar la investigación biomédica",0]
[7000,7500,7580,null,null,1,24,null,"Investigación en salud pertinente y de excelencia académica","E022","Investigación y desarrollo tecnológico en salud","IV110","Fomentar la investigación en salud (DGPIS)",0]
[7000,7500,7590,null,null,1,24,null,"Investigación en salud pertinente y de excelencia académica","E022","Investigación y desarrollo tecnológico en salud","IV160","Fortalecimiento de recursos humanos para investigación (DGPIS)",0]
[7000,7600,7610,null,null,1,24,null,"Investigación en salud pertinente y de excelencia académica","E022","Investigación y desarrollo tecnológico en salud","OT041","Otorgar servicios de Información y difusión en salud",0]
[7000,7600,7620,null,null,1,24,null,"Investigación en salud pertinente y de excelencia académica","E022","Investigación y desarrollo tecnológico en salud","RM030","Recursos consolidados por la Dirección General de Recursos Materiales y Servicios Generales.",0]
[7000,7900,7910,null,null,1,24,null,"Investigación en salud pertinente y de excelencia académica","E022","Investigación y desarrollo tecnológico en salud","SP010","Servicios personales",0]
[7000,7900,7920,null,null,1,24,null,"Investigación en salud pertinente y de excelencia académica","E022"," Investigación y desarrollo tecnológico en salud","SPGO0","Gasto de operación asociado a Servicios Personales",0]
[7000,7900,79901]
[7000,7900,79902]
[5000,5100,5110]
[5000,5100,5120]
[5000,5100,5130]
[5000,5100,5140]
[5000,5100,5150]
[5000,5100,51901]
[5000,5100,51902]
[5000,5200,5210]
[5000,5200,5220]
[5000,5200,5230]
[5000,5200,5290]
[5000,5300,5310]
[5000,5300,5320]
[5000,5400,54101]
[5000,5400,54102]
[5000,5400,54103]
[5000,5400,54104]
[5000,5400,54105]
[5000,5400,5420]
[5000,5400,54301]
[5000,5400,54302]
[5000,5400,54303]
[5000,5400,5440]
[5000,5400,54501]
[5000,5400,54502]
[5000,5400,54503]
[5000,5400,5490]
[5000,5500,55101]
[5000,5500,55102]
[5000,5600,5610]
[5000,5600,5620]
[5000,5600,5630]
[5000,5600,5640]
[5000,5600,5650]
[5000,5600,5660]
[5000,5600,5670]
[5000,5600,56901]
[5000,5600,56902]
[5000,5700,5710]
[5000,5700,5720]
[5000,5700,5730]
[5000,5700,5740]
[5000,5700,5750]
[5000,5700,5760]
[5000,5700,5770]
[5000,5700,5780]
[5000,5700,5790]
[5000,5800,5810]
[5000,5800,5820]
[5000,5800,5830]
[5000,5800,58901]
[5000,5800,58902]
[5000,5800,58903]
[5000,5800,58904]
[5000,5900,5910]
[5000,5900,5920]
[5000,5900,5930]
[5000,5900,5940]
[5000,5900,5950]
[5000,5900,5960]
[5000,5900,5970]
[5000,5900,5980]
[5000,5900,5990]
[6000,6100,6110]
[6000,6100,6120]
[6000,6100,6130]
[6000,6100,6140]
[6000,6100,6150]
[6000,6100,6160]
[6000,6100,6170]
[6000,6100,6190]
[6000,6200,62101]
[6000,6200,62102]
[6000,6200,62201]
[6000,6200,62202]
[6000,6200,62301]
[6000,6200,62302]
[6000,6200,62401]
[6000,6200,62402]
[6000,6200,62403]
[6000,6200,62501]
[6000,6200,62502]
[6000,6200,62601]
[6000,6200,62602]
[6000,6200,6270]
[6000,6200,62901]
[6000,6200,62902]
[6000,6200,62903]
[6000,6200,62904]
[6000,6200,62905]
[6000,6300,6310]
[6000,6300,6320]
[9000,9900,9910]

{"sheet":"Instructivo","index":1,"n_rows":112,"n_cols":10,"rows_kept":112,"cut":false,"hidden":false,"merged":[[82,2,82,14],[111,1,111,14],[84,2,84,14],[87,3,87,5],[98,3,98,14],[99,3,99,14],[101,3,101,14],[104,3,104,5],[109,3,109,5],[100,3,100,14],[62,9,62,12],[63,9,63,12],[37,1,37,14],[54,1,54,14],[56,2,56,14],[59,9,59,12],[60,9,60,12],[61,9,61,12],[35,1,35,14],[17,2,17,14],[19,1,19,14],[21,1,21,14],[22,1,22,14],[23,1,23,14],[25,1,25,14],[27,1,27,14],[29,1,29,14],[31,1,31,14],[33,2,33,14],[32,2,32,14],[16,2,16,14],[6,1,6,14],[10,1,10,14],[13,2,13,14],[14,2,14,14],[15,2,15,14]]}
[]
[null,null,null,null,null,null,"Subsecretaria de Políticas de Salud y Bienestar Poblacional"]
[null,null,null,null,null,null,"Dirección General de Información en Salud"]
[null,null,null,null,null,null,"Subsistema de Cuentas en Salud a Nivel Federal y Estatal (SICUENTAS)"]
[null,null,null,null,null,null,"INSTRUCTIVO DE LLENADO"]
[]
[null,"Este formato tiene como objetivo recopilar información detallada sobre el gasto en salud realizado durante el ejercicio 2024 por los diferentes tipos de establecimientos (hospitales, centros de salud, etc.) y unidades administrativas centrales (direcciones de planeación, finanzas, recursos humanos, etc.). La información se registrará utilizando los clasificadores de la administración pública: el Clasificador por Actividad Institucional (CAI) y el Clasificador por Objeto del Gasto (COG). Adicionalmente, el gasto se codificará según el clasificador de la Organización Mundial de la Salud (OMS) de Funciones de Atención (HC/CFA)."]
[]
[null,"Estructura del Formato:"]
[]
[null,"1. La pestaña “Resumen de Calidad” presenta los resultados de los atributos de calidad requeridos en la información: Cobertura Oportuna, Validez, Integridad y Consistencia.\nDado que el reporte del gasto público en salud debe realizarse a nivel de unidad (hospitales generales, hospitales especializados, centros de salud, establecimientos de apoyo, etc.), los indicadores de calidad permiten evaluar esta solicitud de información consolidada, conforme a los clasificadores requeridos.\nUna vez completado el llenado de la matriz, el cuadro de “Semáforo de calidad” mostrará el desempeño del usuario en la clasificación y codificación de datos."]
[]
[null,"Instrucciones generales para el llenado y evaluación:"]
[null,null,"a. Antes de proceder a la evaluación de la calidad, es indispensable llenar completamente la matriz, requisitando todas las columnas correspondientes para cada unidad, utilizando los catálogos oficiales y conforme a las especificaciones descritas a continuación."]
[null,null,"b. Una vez concluido el llenado de la matriz, dirigirse a la pestaña \"Resumen de Calidad\" y dar clic el botón \"Evaluación\". Es necesario verificar que todos los validadores de calidad cumplan con los criterios establecidos, a saber:"]
[null,null,"\u009f Cobertura Oportuna: debe alcanzar una calificación mínima de 50 puntos (la DGIS complementará esta calificación con base en la fecha de recepción).","Cobertura Oportuna: debe alcanzar una calificación mínima de 50 puntos (la DGIS complementará esta calificación con base en la fecha de recepción)."]
[null,null,"\u009f Validez e Integridad: deben obtener una calificación de 100 puntos cada una."]
[null,null,"\u009f Consistencia: se registrará inicialmente en cero; esta evaluación será incorporada por la DGIS al inicio del proceso de revisión."]
[null,"Especificaciones:"]
[null,"a) La codificación Espacio-Temporal debe completarse para toda la información incluida en la matriz.\nb) La Información Presupuestal se codifica en la pestaña \"Notas\". En esta misma sección, en caso de no reportar o codificar alguna fuente de financiamiento, explique la razón. Asimismo, indique cualquier detalle relevante que deba considerarse para el análisis y la adecuada interpretación de la información. Si no se dispone del valor Autorizado, Modificado o Autorizado del siguiente año de alguna fuente, registre ceros. En caso de no contar con observaciones o comentarios específicos, indicar expresamente: \"Sin comentarios adicionales.\"\nc) Para que la información se reciba y se registre como \"entregada\", los valores del Semáforo de Calidad deberán cumplir con las características descritas en el punto b. del presente instructivo."]
[]
[null,"2. La pestaña “XX.CVEPRES-2024” es la matriz de gasto donde cada Unidad Responsable debe integrar la información del Ejercicio de Gasto 2024. Para conocer la metodología de codificación y clasificación, se ponen a disposición de los usuarios los Manuales para la codificación Espacio Temporal, la Clasificación por Actividad Institucional, la Clasificación por Objeto del Gasto y la Clasificación por Funciones de Atención en la siguiente dirección electrónica:"]
[null,"http://sinba.salud.gob.mx/SSASICUENTAS"]
[null,"Este archivo incluye una pestaña por cada catálogo de equivalencias necesario para completar la codificación de la matriz."]
[]
[null,"3. Para llenar las columnas A-E y la columna Q (Codificación Espacio Temporal): Consulte la pestaña \"1.Catálogo Espacio Temporal\", la cual contiene los catálogos de entidades federativas, fuentes de financiamiento, grupos de proveedores y establecimientos de salud."]
[]
[null,"4. Para llenar las columnas F-M (Clasificador por Actividad Institucional - CAI): Utilice la información del catálogo que se encuentra en la pestaña \"2.Catálogo CAI\". La estructura funcional de cada proveedor determinará cuáles de estas columnas se deben codificar. Al utilizar el formato correspondiente al grupo de proveedor, los validadores identificarán si las claves se están aplicando correctamente en estas columnas."]
[]
[null,"5. Para llenar las columnas N-P (Clasificador por Objeto del Gasto - COG): Utilice la estructura del catálogo en la pestaña \"3.Catálogo COG\". Codifique las partidas específicas cuando formen parte de un grupo que contenga más de una variable. Si una partida genérica solo tiene una desagregación específica, manténgala a nivel genérico (sin desagregar). Esto significa que en la columna P pueden coexistir claves de 4 y 5 dígitos, según corresponda. El validador considerará las claves correctas solo si también están correctamente codificados el capítulo y el concepto."]
[]
[null,"6. Para llenar las columnas S-V (Clasificador por Funciones de Atención - HC/CFA): La codificación de estas columnas se basa en dos criterios, según el tipo de gasto:"]
[null,null,"\u009f Gasto de Inversión (Capítulos 5000 y 6000): Para su codificación, consulte las equivalencias entre el Clasificador por Objeto del Gasto (COG) y las Funciones de Atención (CFA) que se encuentran en la pestaña \"4.Equivalencias COG=CFA\"."]
[null,null,"\u009f Gasto Corriente (Capitulos 1000-4000): Para su codificación, consulte las equivalencias entre el tipo de unidad y el Clasificador por Actividad Institucional (CAI) que se encuentran en la pestaña \"5.Equivalencias CAI=CFA\"."]
[]
[null,"7. Para llenar la columna W (Monto del Presupuesto Ejercido 2024): Registre en esta columna los montos correspondientes al Presupuesto Ejercido durante el ejercicio fiscal 2024. Los montos deben expresarse en miles de pesos con dos decimales."]
[]
[null,"8. El nombre de la pestaña que contiene la matriz de gasto debe ser modificado según los siguientes criterios:"]
[null,null,"XX.","Número de Cve_Edo_Ins (ver pestaña 1.Catálogo Espacio Temporal)"]
[null,null,"CVEPRESS","Es la clave presupuestal de la Unidad Responsable"]
[null,null,-2024,"No se modifica, indica el año del ejercicio presupuestal que se reporta"]
[null,"Ejemplo: Hospital Regional de Alta especialidad de Oaxaca"]
[null,null,null,"57.NBR-2024"]
[]
[null,"9. El nombre del archivo debe modificarse según cada institución de la siguiente manera:"]
[null,null,"1.XX. ","Número de Cve_Edo_Ins (ver pestaña 1.Catálogo Espacio Temporal)"]
[null,null,"MATRIZV2","Acrónimo de la Unidad Responsable"]
[null,null,"_SS-2025","No se modifica, indica grupo de proveedor y año en que se reporta"]
[null,"Ejemplo: Hospital Regional de Alta especialidad de Oaxaca"]
[null,null,null,"57.HRAEO_SS-2025"]
[]
[]
[null,"Criterios de evaluación"]
[]
[null,"La Norma Oficial Mexicana NOM-035-SSA3-2012, en materia de información en salud, establece la medición de criterios de calidad, los cuales son fundamentales para asegurar la utilidad y confiabilidad de los datos recopilados. Los cuatro criterios que se evalúan en este archivo, y que se enfocan en la calidad de la información plasmada en la matriz de gasto, son los siguientes:"]
[]
[null,null,"\u009f Cobertura Oportuna: Este componente de calidad mide que la totalidad de la información financiera sea entregada a tiempo y completa en la fecha establecida en la solicitud. Se penalizará cada día de retraso y la escasez en la entrega. La calificación de este criterio será completada por la DGIS al registrar la fecha de recepción del archivo."]
[]
[null,null,"Penalización por días de retraso en la calificación de Oportunidad",null,null,null,null,null,"Fuentes de financiamiento solicitadas por grupo de proveedor (SSA)"]
[null,null,"Días hábiles de retraso","Penalización","Puntaje de oportunidad","Calificación",null,null,"Cve_FF","Descripción"]
[null,null,0,0,1,100,null,null,"A02","Ramo 12 (Recursos Fiscales)"]
[null,null,1,0.05,0.95,95,null,null,"A17","Cuotas de Recuperación"]
[null,null,2,0.1,0.9,90,null,null,"A21","Recursos Propios"]
[null,null,3,0.15,0.85,85,null,null,"A22","Recursos de Terceros"]
[null,null,4,0.2,0.8,80]
[null,null,5,0.25,0.75,75]
[null,null,6,0.3,0.7,70]
[null,null,7,0.35,0.65,65]
[null,null,8,0.4,0.6,60]
[null,null,9,0.45,0.55000000000000004,55]
[null,null,10,0.5,0.5,50]
[null,null,11,0.55000000000000004,0.45,45]
[null,null,12,0.6,0.4,40]
[null,null,13,0.65,0.35,35]
[null,null,14,0.7,0.3,30]
[null,null,15,0.75,0.25,25]
[null,null,16,0.8,0.2,20]
[null,null,17,0.85,0.15,15]
[null,null,18,0.9,0.1,10]
[null,null,19,0.95,0.05,5]
[null,null,"20 o más",1,0,0]
[]
[null,null,"\u009f Validez: La Validez mide la proporción de la información fuera de los rangos y valores permitidos. Los rangos considerados como referencia para evaluar la información del Gasto en Salud recibida son los que se encuentran disponibles en la Cuenta de la Hacienda Pública Federal, cuentas públicas estatales o información histórica disponible."]
[]
[null,null,"\u009f Integridad: Mide la completitud en los requerimientos de la información. Se enlistaron una serie de criterios a los que se les asignó una ponderación, los cuales deben verse reflejados en la codificación de la Matriz de Gasto."]
[]
[null,null,"Ponderaciones de integridad para el ejercicio 2024"]
[null,null,null,"Criterio",null,null,"Ponderación"]
[null,null,1,"Codificación en el formato correspondiente",null,null,5]
[null,null,2,"Montos valorados en Miles de pesos",null,null,15]
[null,null,3,"Información Presupuestal",null,null,10]
[null,null,4,"Notas a Fuentes de Financiamiento",null,null,10]
[null,null,5,"Clasificación por Objeto de Gasto",null,null,20]
[null,null,6,"Clasificación por Actividad Institucional ",null,null,20]
[null,null,7,"Clasificación por Funciones de atención",null,null,20]
[]
[null,null,"\u009f Consistencia: La consistencia mide la coherencia interna entre los datos que registra y codifica cada proveedor. Se evaluarán los siguientes criterios:"]
[]
[null,null,null,"Codificación Espacio-Temporal: Las codificaciones del año del ejercicio, fuentes de financiamiento, proveedor y entidad federativa deben estar correctamente asignadas según el catálogo correspondiente (pestaña \"1.Codificación Espacio Temporal\")."]
[null,null,null,"Codificación del clasificador COG: La cuenta de Capital debe coincidir con lo reportado en la cuenta pública y en la entrega de la matriz. Las partidas Genéricas y Específicas deben corresponder al concepto y capitulo según el catálogo. La tendencia histórica debe ser estable."]
[null,null,null,"Codificación del clasificador CAI: Se verifica que la distribución del gasto por subfunción sea coherente con ejercicios anteriores, considerando la tendencia histórica. Cambios significativos deben estar justificados, ya que podrían reflejar errores de codificación o clasificación."]
[null,null,null,"Codificación por Funciones de Atención: Deben estar correctamente asignadas las equivalencias COG=CFA en la cuenta de capital y las equivalencias UM=CAI=CFA en la cuenta corriente. La Cuenta corriente solo deben reportarse capítulos 1000 al 4000 y en la cuenta de capital solo deben reportarse capítulos 5000, 6000 y 9000. El gasto de capacitación e investigación y desarrollo (HKR.4) ahora se clasifica en la función principal de la unidad o del sistema de salud. El gasto administrativo (HC.7.1) solo debe reportarse en unidades administrativas."]
[]
[null,null,"Ponderaciones de Consistencia para el ejercicio 2024"]
[null,null,null,"Criterio",null,null,"Valoración"]
[null,null,1,"Montos valorados en Miles de pesos",null,null,20]
[null,null,2,"Codificación Espacio-Temporal",null,null,20]
[null,null,3,"Codificación del clasificador COG",null,null,20]
[null,null,4,"Codificación del clasificador CAI",null,null,20]
[null,null,5,"Codificación por Funciones de Atención COG=CFA y UM=CAI=CFA",null,null,20]
[]
[null,"Se recomienda consultar el documento \"Metodología para generar el indicador de calidad de la Información del subsistema SICUENTAS\" para conocer la metodología detallada del cálculo de estos componentes de calidad. Adicionalmente, para que la información se reciba y se registre como \"entregada\", la Cobertura Oportuna debe alcanzar una calificación de 50 puntos (la DGIS completará esta calificación añadiendo la fecha de recepción). La Validez y la Integridad deben obtener una calificación de 100 puntos, y la Consistencia se registrará en ceros (la DGIS AÑADIRÁ ESTA EVALUACIÓN al iniciar el proceso de revisión)."]

{"sheet":"Resumen de Calidad","index":2,"n_rows":60,"n_cols":11,"rows_kept":60,"cut":false,"hidden":false,"merged":[[20,1,23,1],[27,4,27,10],[31,4,31,10],[35,4,35,10]]}
[]
[null,null,null,"Subsecretaria de Políticas de Salud y Bienestar Poblacional"]
[null,null,null,"Dirección General de Información en Salud"]
[null,null,null,"Subsistema de Cuentas en Salud a Nivel Federal y Estatal (SICUENTAS)"]
[null,null,null,"Ramo 12 (Salud), Ejercicio 2024"]
[]
[null,null,"Semáforo de Calidad"]
[]
[null,"Cve_Edo_Ins","UR","Unidad responsable","Cobertura Oportuna","Validez","Integridad","Consistencia","Calificación"]
[null,{"$f":"B16","v":0},{"$f":"C16","v":""},{"$f":"D16","v":"Completar celda D2"},{"$f":"IF(ISNUMBER(G16)*ISNUMBER(G25),(G16+G25)/2,IF(ISNUMBER(G16),G16/2,IF(ISNUMBER(G25),G25/2,\"\")))","v":""},{"$f":"IF(K38=0,\"\",K38)","v":""},{"$f":"IF(G50=0,\"\",G50)","v":""},{"$f":"IF(G60=0,\"\",G60)","v":""},{"$f":"IFERROR(AVERAGE(E10:H10),\"\")","v":""}]
[]
[null,"1. Cobertura Oportuna "]
[null,"a) Entrega a tiempo"]
[]
[null,"Cve_Edo_Ins","UR","Unidad responsable","Fecha de solicitud","Fecha de entrega","Evaluación"]
[null,{"$f":"'XX.CVEPRES-2024'!D2","v":0},{"$f":"IFERROR(VLOOKUP($B16,'Base Maestra'!A4:E68,3,FALSE),\"\")","v":""},{"$f":"IFERROR(VLOOKUP(B16,'Base Maestra'!A4:E67,5,FALSE),\"Completar celda D2\")","v":"Completar celda D2"},"2025-08-08",{"$f":"'Notas 2025'!H8","v":"00:00:00"},{"$f":"IF(F16=0, \"Evaluación DGIS\", VLOOKUP(MIN(MAX(0, NETWORKDAYS(E16, F16) - 1), 20),'Base Maestra'!$V$4:$Y$26, 4, TRUE))","v":"Evaluación DGIS"}]
[]
[null,"b) Entrega Completa"]
[]
[null,"Grupo ","Cve_FF","Descripción","Número de Registros","Estatus","Evaluación"]
[null,{"$f":"IFERROR(VLOOKUP(B16,'Base Maestra'!A4:E67,2,FALSE),\"\")","v":""},{"$f":"IFERROR(IF((VLOOKUP($C$16,'Base Maestra'!$O$72:$S$123,2,FALSE))=\"x\",'Base Maestra'!$P$72,\"\"),\"\")","v":""},{"$f":"IF(C21=\"A02\",\"Ramo 12 (Recursos Fiscales)\",\"\")","v":""},{"$f":"IF(C21=\"\",\"\",COUNTIF('XX.CVEPRES-2024'!E2:E1048576,'Resumen de Calidad'!C21))","v":""},{"$f":"IF(E21=\"\",\"\",IF(E21<=4,\"Falta Reporte\",IF(E21>=5,\"Correcto\")))","v":""},{"$f":"IF(F21=\"Falta Reporte\",\"ý\",IF(F21=\"Correcto\",\"þ\",\"\"))","v":""}]
[null,null,{"$f":"IFERROR(IF((VLOOKUP($C$16,'Base Maestra'!$O$72:$S$123,3,FALSE))=\"x\",'Base Maestra'!$Q$72,\"\"),\"\")","v":""},{"$f":"IF(C22=\"A17\",\"Cuotas de Recuperación\",\"\")","v":""},{"$f":"IF(C22=\"\",\"\",COUNTIF('XX.CVEPRES-2024'!E2:E1048576,'Resumen de Calidad'!C22))","v":""},{"$f":"IF(E22=\"\",\"\",IF(E22<=4,\"Falta Reporte\",IF(E22>=5,\"Correcto\")))","v":""},{"$f":"IF(F22=\"Falta Reporte\",\"ý\",IF(F22=\"Correcto\",\"þ\",\"\"))","v":""}]
[null,null,{"$f":"IFERROR(IF((VLOOKUP($C$16,'Base Maestra'!$O$72:$S$123,4,FALSE))=\"x\",'Base Maestra'!$R$72,\"\"),\"\")","v":""},{"$f":"IF(C23=\"A21\",\"Recursos Propios\",\"\")","v":""},{"$f":"IF(C23=\"\",\"\",COUNTIF('XX.CVEPRES-2024'!E2:E1048576,'Resumen de Calidad'!C23))","v":""},"",""]
[null,null,{"$f":"IFERROR(IF((VLOOKUP($C$16,'Base Maestra'!$O$72:$S$123,5,FALSE))=\"x\",'Base Maestra'!$S$72,\"\"),\"\")","v":""},{"$f":"IF(C24=\"A22\",\"Recursos de Terceros\",\"\")","v":""},{"$f":"IF(C24=\"\",\"\",COUNTIF('XX.CVEPRES-2024'!E2:E1048576,'Resumen de Calidad'!C24))","v":""},"",""]
[null,"Total",{"$f":"4-COUNTBLANK(C21:C24)","v":0},null,null,{"$f":"COUNTIF(F21:F24,\"Correcto\")","v":0},{"$f":"IFERROR((F25/C25)*100,\"\")","v":""}]
[]
[null,"2. Validez"]
[null,null,null,null,{"$f":"IF(OR(B10=88, B10=89, B10=90), \"Referencia Histórica 2023\", \"Cuenta Pública 2024\")","v":"Cuenta Pública 2024"}]
[null,"CVE_Proveedor ","UR","Unidad responsable",1,2,3,4,5,8,"Total"]
[null,{"$f":"B10","v":0},{"$f":"C10","v":""},{"$f":"D10","v":"Completar celda D2"},{"$f":"IFERROR(VLOOKUP($B$30,'Base Maestra'!$A$4:$K$68,6,FALSE),0)","v":0},{"$f":"IFERROR(VLOOKUP($B$30,'Base Maestra'!$A$4:$K$68,7,FALSE),0)","v":0},{"$f":"IFERROR(VLOOKUP($B$30,'Base Maestra'!$A$4:$K$68,8,FALSE),0)","v":0},{"$f":"IFERROR(VLOOKUP($B$30,'Base Maestra'!$A$4:$K$68,9,FALSE),0)","v":0},{"$f":"IFERROR(VLOOKUP($B$30,'Base Maestra'!$A$4:$K$68,10,FALSE),0)","v":0},{"$f":"IFERROR(VLOOKUP($B$30,'Base Maestra'!$A$4:$K$68,11,FALSE),0)","v":0},{"$f":"IFERROR(VLOOKUP($B$30,'Base Maestra'!$A$4:$L$68,12,FALSE),0)","v":0}]
[]
[null,null,null,null,"Matriz de Gasto, Ejercicio 2024"]
[null,"CVE_Proveedor ","UR","Unidad responsable",1,2,3,4,5,8,"Total"]
[null,{"$f":"B16","v":0},{"$f":"C16","v":""},{"$f":"D16","v":"Completar celda D2"},{"$f":"IFERROR(VLOOKUP($B$34,'Base Maestra'!$A$4:$S$68,13,FALSE),\"\")","v":""},{"$f":"IFERROR(VLOOKUP($B$34,'Base Maestra'!$A$4:$S$68,14,FALSE),\"\")","v":""},{"$f":"IFERROR(VLOOKUP($B$34,'Base Maestra'!$A$4:$S$68,15,FALSE),\"\")","v":""},{"$f":"IFERROR(VLOOKUP($B$34,'Base Maestra'!$A$4:$S$68,16,FALSE),\"\")","v":""},{"$f":"IFERROR(VLOOKUP($B$34,'Base Maestra'!$A$4:$S$68,17,FALSE),\"\")","v":""},{"$f":"IFERROR(VLOOKUP($B$34,'Base Maestra'!$A$4:$S$68,18,FALSE),\"\")","v":""},{"$f":"IFERROR(VLOOKUP($B$34,'Base Maestra'!$A$4:$S$68,19,FALSE),\"\")","v":""}]
[]
[null,null,null,null,"Evaluación"]
[null,"CVE_Proveedor ","UR","Unidad responsable",1,2,3,4,5,8,"Calificación"]
[null,{"$f":"B16","v":0},{"$f":"C16","v":""},{"$f":"D16","v":"Completar celda D2"},{"$f":"IFERROR(\n   IF(E34=E30, 100,\n      IF(E34<E30,\n         MAX(0, MIN(100, ROUND(-714.29*(1-(E34/E30)) + 100, 0))),\n         0)\n   ),\n\"\")","v":0},{"$f":"IFERROR(\n   IF(F34=F30, 100,\n      IF(F34<F30,\n         MAX(0, MIN(100, ROUND(-714.29*(1-(F34/F30)) + 100, 0))),\n         0)\n   ),\n\"\")","v":0},0,0,0,{"$f":"IFERROR(\n   IF(J34=J30, 100,\n      IF(J34<J30,\n         MAX(0, MIN(100, ROUND(-714.29*(1-(J34/J30)) + 100, 0))),\n         0)\n   ),\n\"\")","v":0},{"$f":"IFERROR(\n   IF(K34=K30, 100,\n      IF(K34<K30,\n         MAX(0, MIN(100, ROUND(-714.29*(1-(K34/K30)) + 100, 0))),\n         0)\n   ),\n\"\")","v":0}]
[]
[null,"3.Integridad"]
[]
[null,null,null,"Criterio","Ponderación","Evaluación","Calificación"]
[null,null,1,"Codificación en el formato correspondiente",5,{"$f":"IF(K34=\"\",\"ý\",IF(K34<>0,\"þ\",\"ý\"))","v":"ý"},{"$f":"IF(F43=\"þ\",E43,\"\")","v":""}]
[null,null,2,"Montos valorados en Miles de pesos",15,{"$f":"IFERROR(IF((((K34-K30)/K30)*100)>100,\"ý\",\"þ\"),\"ý\")","v":"ý"},""]
[null,null,3,"Información Presupuestal",10,{"$f":"IF(K34=\"\",\"ý\",(IF(((IF(AND(NOT(ISBLANK('Notas 2025'!B11)), NOT(ISBLANK('Notas 2025'!D11)), NOT(ISBLANK('Notas 2025'!E11)), NOT(ISBLANK('Notas 2025'!F11)), NOT(ISBLANK('Notas 2025'!G11))), \"1\", \"0\"))+(IF(AND(NOT(ISBLANK('Notas 2025'!B12)), NOT(ISBLANK('Notas 2025'!D12)), NOT(ISBLANK('Notas 2025'!E12)), NOT(ISBLANK('Notas 2025'!F12)), NOT(ISBLANK('Notas 2025'!G12))), \"1\", \"0\"))+(IF(AND(NOT(ISBLANK('Notas 2025'!B13)), NOT(ISBLANK('Notas 2025'!D13)), NOT(ISBLANK('Notas 2025'!E13)), NOT(ISBLANK('Notas 2025'!F13)), NOT(ISBLANK('Notas 2025'!G13))), \"1\", \"0\"))+(IF(AND(NOT(ISBLANK('Notas 2025'!B14)), NOT(ISBLANK('Notas 2025'!D14)), NOT(ISBLANK('Notas 2025'!E14)), NOT(ISBLANK('Notas 2025'!F14)), NOT(ISBLANK('Notas 2025'!G14))), \"1\", \"0\")))='Resumen de Calidad'!$C$25,\"þ\", \"ý\")))","v":"ý"},""]
[null,null,4,"Notas a Fuentes de Financiamiento",10,{"$f":"IF(K34=\"\",\"ý\",(IF(\n   SUM(\n     (AND(NOT(ISBLANK('Notas 2025'!B11)), NOT(ISBLANK('Notas 2025'!H11))) * 1),\n     (AND(NOT(ISBLANK('Notas 2025'!B12)), NOT(ISBLANK('Notas 2025'!H12))) * 1),\n     (AND(NOT(ISBLANK('Notas 2025'!B13)), NOT(ISBLANK('Notas 2025'!H13))) * 1),\n     (AND(NOT(ISBLANK('Notas 2025'!B14)), NOT(ISBLANK('Notas 2025'!H14))) * 1)\n   ) = C25,\n\"þ\",\n\"ý\")))","v":"ý"},""]
[null,null,5,"Clasificación por Objeto de Gasto",20,{"$f":"IF(\n   OR(COUNTA('XX.CVEPRES-2024'!W:W)=0, COUNTA('XX.CVEPRES-2024'!X:X)=0),\n   \"ý\",\n   IF(\n      COUNTA('XX.CVEPRES-2024'!W:W) = COUNTA('XX.CVEPRES-2024'!X:X),\n      IF(COUNTIF('XX.CVEPRES-2024'!X:X, \"Revisar Catálogo\") >= 1, \"ý\", \"þ\"),\n      \"ý\"\n   )\n)","v":"ý"},""]
[null,null,6,"Clasificación por Actividad Institucional ",20,{"$f":"IF(\n   OR(COUNTA('XX.CVEPRES-2024'!W:W)=0, COUNTA('XX.CVEPRES-2024'!Y:Y)=0),\n   \"ý\",\n   IF(\n      COUNTA('XX.CVEPRES-2024'!W:W) = COUNTA('XX.CVEPRES-2024'!Y:Y),\n      IF(COUNTIF('XX.CVEPRES-2024'!Y:Y, \"Revisar Catálogo\") >= 1, \"ý\", \"þ\"),\n      \"ý\"\n   )\n)","v":"ý"},""]
[null,null,7,"Clasificación por Funciones de atención",20,{"$f":"IF(\n   OR(COUNTA('XX.CVEPRES-2024'!W:W)=0, COUNTA('XX.CVEPRES-2024'!Z:Z)=0),\n   \"ý\",\n   IF(\n      COUNTA('XX.CVEPRES-2024'!W:W) = COUNTA('XX.CVEPRES-2024'!Z:Z),\n      IF(COUNTIF('XX.CVEPRES-2024'!Z:Z, \"Revisar Catálogo\") >= 1, \"ý\", \"þ\"),\n      \"ý\"\n   )\n)","v":"ý"},""]
[null,null,null,"Calificación",{"$f":"SUM(E43:E49)","v":100},null,{"$f":"IF(SUM(G43:G49)=0,\"\",SUM(G43:G49))","v":""}]
[]
[null,"4. Consistencia"]
[]
[null,null,null,"Criterio","Valoración","Evaluación","Calificación"]
[null,null,1,"Montos valorados en Miles de pesos",20,{"$f":"'Notas 2025'!D17","v":"þý"},{"$f":"IF(F55=\"þ\",E55,\"\")","v":""}]
[null,null,2,"Codificación Espacio-Temporal",20,{"$f":"'Notas 2025'!D18","v":0},{"$f":"IF(F56=\"þ\",E56,\"\")","v":""}]
[null,null,3,"Codificación del clasificador COG",20,{"$f":"'Notas 2025'!D23","v":0},""]
[null,null,4,"Codificación del clasificador CAI",20,{"$f":"'Notas 2025'!D24","v":0},""]
[null,null,5,"Codificación por Funciones de Atención COG=CFA y UM=CAI=CFA",20,{"$f":"'Notas 2025'!D25","v":0},""]
[null,null,null,"Calificación",{"$f":"SUM(E55:E59)","v":100},null,{"$f":"IF(SUM(G55:G59)=0,\"\",SUM(G55:G59))","v":""}]

{"sheet":"XX.CVEPRES-2024","index":3,"n_rows":2,"n_cols":26,"rows_kept":2,"cut":false,"hidden":false,"merged":[]}
["Año","Cve_Entidad Federativa","Cve_Proveedor","Cve_Ins","Cve_FF","Cve_Subfunción","Cve_AI","Cve_H","Actividad Institucional","Cve_PP","Programa Presupuestario","Cve_PI","Programa Institucional","Cve_Capítulo ","Cve_Concepto ","Cve_Partida genérica ó partida específica","CLUES/CLAVE","Nombre de unidad","Cve_Función","Cve_Subf","Cve_Actividad","Cve_Subactividad","Importe/Ejercido ","Estructura COG","Estructura CAI","Estructura CFA"]
[null,null,null,null,null,null,null,null,null,null,null,null,null,null,null,null,null,null,null,null,null,null,null,{"$f":"IF(W2<>\"\",(IF(COUNTIFS('Base Maestra'!$A$74:$A$567,N2,'Base Maestra'!$B$74:$B$567,O2,'Base Maestra'!$C$74:$C$567,P2)>0,\"Correcto\",\"Revisar Catálogo\")),\"\")","v":""},{"$f":"IF(W2<>\"\",(IF(COUNTIFS(\n  'Base Maestra'!$F$122:$F$472,F2,\n  'Base Maestra'!$G$122:$G$472,G2,\n  'Base Maestra'!$I$122:$I$472,I2,\n  'Base Maestra'!$J$122:$J$472,J2,\n  'Base Maestra'!$K$122:$K$472,K2,\n  'Base Maestra'!$L$122:$L$472,L2,\n  'Base Maestra'!$M$122:$M$472,M2)>0,\n  \"Correcto\",\n  \"Revisar Catálogo\")),\"\")","v":""},{"$f":"IF(W2<>\"\",(IF(SUMPRODUCT(('Base Maestra'!$F$74:$F$113=S2)*('Base Maestra'!$G$74:$G$113=T2)*('Base Maestra'!$H$74:$H$113=U2)*('Base Maestra'!$I$74:$I$113=V2))>0,\"Correcto\",\"Revisar Catálogo\")),\"\")","v":""}]

{"sheet":"Notas 2025","index":4,"n_rows":27,"n_cols":8,"rows_kept":27,"cut":false,"hidden":false,"merged":[[23,6,23,7],[24,6,24,7],[23,4,23,5],[24,4,24,5],[22,4,22,5],[15,4,15,5],[15,6,15,7],[18,4,18,5],[19,4,19,5],[16,6,16,7],[17,6,17,7],[18,6,18,7],[19,6,19,7],[21,6,21,7],[22,6,22,7],[20,6,20,7],[20,4,20,5],[16,4,16,5],[17,4,17,5],[21,4,21,5]]}
[]
[null,null,null,"Subsecretaria de Políticas de Salud y Bienestar Poblacional"]
[null,null,null,"Dirección General de Información en Salud"]
[null,null,null,"Subsistema de Cuentas en Salud a Nivel Federal y Estatal (SICUENTAS)"]
[null,null,null,"Ramo 12 (Salud), Ejercicio 2024"]
[]
[]
[null,null,{"$f":"'Resumen de Calidad'!D10","v":"Completar celda D2"},null,null,null,"Fecha de Recepción:"]
[]
[null,"Cve_FF","Descripción","Autorizado","Modificado","Ejercido","Autorizado 2026","Notas"]
[null,{"$f":"'Resumen de Calidad'!C21","v":""},{"$f":"'Resumen de Calidad'!D21","v":""},null,null,{"$f":"SUMIFS('XX.CVEPRES-2024'!$W:$W,'XX.CVEPRES-2024'!$E:$E,'Notas 2025'!B11)","v":0}]
[null,{"$f":"'Resumen de Calidad'!C22","v":""},{"$f":"'Resumen de Calidad'!D22","v":""},null,null,{"$f":"SUMIFS('XX.CVEPRES-2024'!$W:$W,'XX.CVEPRES-2024'!$E:$E,'Notas 2025'!B12)","v":0}]
[null,{"$f":"'Resumen de Calidad'!C23","v":""},{"$f":"'Resumen de Calidad'!D23","v":""},null,null,{"$f":"SUMIFS('XX.CVEPRES-2024'!$W:$W,'XX.CVEPRES-2024'!$E:$E,'Notas 2025'!B13)","v":0}]
[null,{"$f":"'Resumen de Calidad'!C24","v":""},{"$f":"'Resumen de Calidad'!D24","v":""},null,null,{"$f":"SUMIFS('XX.CVEPRES-2024'!$W:$W,'XX.CVEPRES-2024'!$E:$E,'Notas 2025'!B14)","v":0}]
[]
[null,null,"Criterio","Evaluación","Observación",null,"Respuesta de la unidad"]
[null,1,"Montos valorados en Miles de pesos","þý"]
[null,2,"Codificación Espacio-Temporal"]
[null,2.1,"Recursos Fiscales"]
[null,2.2000000000000002,"Cuotas de Recuperación"]
[null,2.2999999999999998,"Recursos propios"]
[null,2.4,"Recursos de terceros"]
[null,3,"Codificación del clasificador COG"]
[null,4,"Codificación del clasificador CAI"]
[null,5,"Codificación por Funciones de Atención COG=CFA y UM=CAI=CFA"]
[]
[null,"Notas:"]

{"sheet":"1.Catálogo Espacio Temporal","index":5,"n_rows":49,"n_cols":11,"rows_kept":49,"cut":false,"hidden":false,"merged":[]}
[]
[null,"1. Catálogo Espacio-Temporal de las unidades sectorizadas a la Secretaria de Salud y sus fuentes de financiamiento"]
[]
[null,"Cve_Entidad Federativa","Cve_Proveedor","Cve_Edo_Ins","CLUES/CLAVE","Nombre de unidad","CVE_PRESS","Acrónimo ",null,"Cve_FF_VM ","Descripción"]
[null,9,"SS",96,"DFSSA004661","Dirección General de Promoción de la Salud",310,"DGPS",null,"A02","Ramo 12 (Recursos Fiscales)"]
[null,9,"SS",92,"DFSSA004702","Secretariado Técnico del Consejo Nacional para la Prevención de Accidentes",315,"STCNA",null,"A17","Cuotas de Recuperación"]
[null,9,"SS",95,"DFSSA004726","Dirección General de Epidemiología",316,"DGE",null,"A21","Recursos Propios"]
[null,9,"SS",48,"DFSSA004772","Dirección General de Programación y Presupuesto",510,"DGPyP",null,"A22","Recursos de Terceros"]
[null,9,"SS",97,"DFSSA004830","Dirección General de Recursos Humanos y Organización",513,"DGRHO"]
[null,9,"SS",93,"DFSSA004854","Dirección General de Desarrollo de la Infraestructura Física",514,"DGDIF"]
[null,9,"SS",94,"DFSSA004784","Dirección General de Calidad y Educación en Salud",610,"DGCES"]
[null,9,"SS",91,"DFSSA004755","Dirección General de Planeación y Desarrollo en Salud",611,"DGPLADES"]
[null,7,"SS",49,"CSSSA008882","Centro Regional de Alta Especialidad de Chiapas","M7A","CRAE"]
[null,9,"SS",50,"DFSSA004072","Instituto Nacional de Psiquiatría Ramón de la Fuente Muñiz","M7F","INPs"]
[null,9,"SS",51,"DFSSA004685","Centros de Integración Juvenil, A.C.","M7K","CIJ"]
[null,9,"SS",52,"DFSSA003944","Hospital Juárez de México","NAW","HJM"]
[null,9,"SS",53,"DFSSA003961","Hospital General \"Dr. Manuel Gea González\"","NBB","HGDMGG"]
[null,9,"SS",54,"DFSSA003973","Hospital General de México \"Dr. Eduardo Liceaga\"","NBD","HGMDEL"]
[null,9,"SS",55,"DFSSA004084","Hospital Infantil de México Federico Gómez","NBG","HIMFG"]
[null,11,"SS",56,"GTSSA016796","Hospital Regional de Alta Especialidad del Bajío","NBQ","HRAEB"]
[null,20,"SS",57,"OCSSA007483","Hospital Regional de Alta Especialidad de Oaxaca","NBR","HRAEO"]
[null,31,"SS",58,"YNSSA013423","Hospital Regional de Alta Especialidad de la Península de Yucatán","NBS","HRAEY"]
[null,28,"SS",59,"TSSSA018292","Hospital Regional de Alta Especialidad de Ciudad Victoria \"Bicentenario 2010\"","NBT","HRAEV"]
[null,15,"SS",60,"MCSSA018786","Hospital Regional de Alta Especialidad de Ixtapaluca","NBU","HRAEI"]
[null,9,"SS",61,"DFSSA004043","Instituto Nacional de Cancerología","NBV","INCAN"]
[null,9,"SS",62,"DFSSA004031","Instituto Nacional de Cardiología Ignacio Chávez","NCA","INCAR"]
[null,9,"SS",63,"DFSSA004026","Instituto Nacional de Enfermedades Respiratorias Ismael Cosío Villegas","NCD","INER"]
[null,9,"SS",86,"DFSSA004644","Instituto Nacional de Geriatría","NCE","INGER"]
[null,9,"SS",64,"DFSSA004055","Instituto Nacional de Ciencias Médicas y Nutrición Salvador Zubirán","NCG","INCMN"]
[null,9,"SS",65,"DFSSA006190","Instituto Nacional de Medicina Genómica","NCH","INMG"]
[null,9,"SS",66,"DFSSA004060","Instituto Nacional de Neurología y Neurocirugía Manuel Velasco Suárez","NCK","INNN"]
[null,9,"SS",67,"DFSSA004014","Instituto Nacional de Pediatría","NCZ","INP"]
[null,9,"SS",68,"DFSSA004096","Instituto Nacional de Perinatología Isidro Espinosa de los Reyes","NDE","INPer"]
[null,9,"SS",69,"DFSSA003956","Instituto Nacional de Rehabilitación Luis Guillermo Ibarra Ibarra","NDF","INR"]
[null,17,"SS",70,"MSSSA003015","Instituto Nacional de Salud Pública","NDY","INSP"]
[null,9,"SS",72,"DFSSA004603","Sistema Nacional para el Desarrollo Integral de la Familia","NHK","DIF"]
[null,9,"SS",73,"DFSSA004574","Administración del Patrimonio de la Beneficencia Pública","E00","APBP"]
[null,9,"SS",74,"DFSSA004516","Centro Nacional de la Transfusión Sanguínea","I00","CENATRA"]
[null,9,"SS",75,9998,"Centro Nacional para la Prevención y el Control del VIH/SIDA","K00","CENSIDA"]
[null,9,"SS",76,9998,"Centro Nacional de Equidad de Género y Salud Reproductiva","L00","CNEGSR"]
[null,9,"SS",77,"DFSSA004504","Comisión Nacional de Arbitraje Médico","M00","CONAMED"]
[null,9,"SS",79,9998,"Centro Nacional de Programas Preventivos y Control de Enfermedades","O00","CENAPRECE"]
[null,9,"SS",80,"DFSSA004871","Centro Nacional de Trasplantes","Q00","CNT"]
[null,9,"SS",81,"DFSSA004866","Centro Nacional para la Salud de la Infancia y la Adolescencia","R00","CENSIA"]
[null,9,"SS",82,"DFSSA004533","Comisión Federal para la Protección contra Riesgos Sanitarios","S00","COFEPRIS"]
[null,9,"SS",83,"DFSSA004545","Centro Nacional de Excelencia Tecnológica en Salud","T00","CNETS"]
[null,9,"SS",85,"DFSSA004562","Comisión Nacional de Bioética","V00","CONBIOÉTICA"]
[null,9,"SS",101,9998,"Comisión Nacional de Salud Mental y Adicciones","Y00","CONASAMA"]
[null,9,"SS",104,9998,"Laboratorio de Biológicos y Reactivos de México, S.A. de C.V.","NEF","BIRMEX"]

{"sheet":"2.Catálgo CAI","index":6,"n_rows":439,"n_cols":12,"rows_kept":439,"cut":false,"hidden":false,"merged":[]}
[]
[null,"2. Estructura Programática Funcional de Ramo 12, 2024"]
[]
[null,"FI","FN","Cve_Sub\nfunción","Cve_AI","Cve_H","Actividad Institucional","Cve_PP","Programa Presupuestario","Cve_PI","Programa Institucional","Indicador"]
[null,1,null,null,null,null,null,null,null,null,"Gobierno"]
[null,1,3,null,null,null,null,null,null,null,"Coordinación de la Política de Gobierno"]
[null,1,3,4,null,null,null,null,null,null,"Función Pública"]
[null,1,3,4,1,null,"Función pública y buen gobierno"]
[null,1,3,4,1,null,"Función pública y buen gobierno","O001","Actividades de apoyo a la función pública y buen gobierno"]
[null,1,3,4,1,null,"Función pública y buen gobierno","O001","Actividades de apoyo a la función pública y buen gobierno","AU010","Auditar a la gestión pública y mejorar procesos","VR"]
[null,1,3,4,1,null,"Función pública y buen gobierno","O001","Actividades de apoyo a la función pública y buen gobierno","GSS01","Gratuidad de los Servicios de Salud.","VR"]
[null,1,3,4,1,null,"Función pública y buen gobierno","O001","Actividades de apoyo a la función pública y buen gobierno","RM030","Recursos consolidados por la Dirección General de Recursos Materiales y Servicios Generales.","VR"]
[null,1,3,4,1,null,"Función pública y buen gobierno","O001","Actividades de apoyo a la función pública y buen gobierno","RS012","Fortalecer a la Comisión de Operación Sanitaria","VR"]
[null,1,3,4,1,null,"Función pública y buen gobierno","O001","Actividades de apoyo a la función pública y buen gobierno","RS041","Fortalecer a la Coordinación General del Sistema Federal Sanitario","VR"]
[null,1,3,4,1,null,"Función pública y buen gobierno","O001","Actividades de apoyo a la función pública y buen gobierno","RS061","Fortalecer a la Comisión de Control Analítico y Ampliación de Cobertura","VR"]
[null,1,3,4,1,null,"Función pública y buen gobierno","O001","Actividades de apoyo a la función pública y buen gobierno","RTI40","Recursos consolidados por la Dirección General de Tecnologias de la Información.","VR"]
[null,1,3,4,1,null,"Función pública y buen gobierno","O001","Actividades de apoyo a la función pública y buen gobierno","SP010","Servicios personales","VR"]
[null,1,3,4,1,null,"Función pública y buen gobierno","O001","Actividades de apoyo a la función pública y buen gobierno","SPGO0","Gasto de operación asociado a Servicios Personales","VR"]
[null,2,null,null,null,null,null,null,"",null,"Desarrollo Social"]
[null,2,3,null,null,null,null,null,"",null,"Salud"]
[null,2,3,1,null,null,null,null,"",null,"Prestación de Servicios de Salud a la Comunidad"]
[null,2,3,1,2,null,"Servicios de apoyo administrativo",null,""]
[null,2,3,1,2,null,"Servicios de apoyo administrativo","M001","Actividades de apoyo administrativo"]
[null,2,3,1,2,null,"Servicios de apoyo administrativo","M001","Actividades de apoyo administrativo","AD010","Otorgar apoyo administrativo y sustantivo","VR"]
[null,2,3,1,2,null,"Servicios de apoyo administrativo","M001","Actividades de apoyo administrativo","EE010","Realizar operativos de apoyo a las entidades federativas ante urgencias epidemiológicas y desastres","VR"]
[null,2,3,1,2,null,"Servicios de apoyo administrativo","M001","Actividades de apoyo administrativo","EE020","Realizar operativos de apoyo para la vigilancia epidemiológica, prevención y control de enfermedades transmitidas por vectores e intoxicación por picadura de alacrán","VR"]
[null,2,3,1,2,null,"Servicios de apoyo administrativo","M001","Actividades de apoyo administrativo","EE050","Supervisar, capacitar, normar, asesorar y evaluar en la prevención y control de  la tuberculosis y la lepra","VR"]
[null,2,3,1,2,null,"Servicios de apoyo administrativo","M001","Actividades de apoyo administrativo","EE060","Supervisar, capacitar, normar, asesorar y evaluar en la prevención y control de la tuberculosis, la lepra y respiratorias.Neumonía adquirida en la comunidad, Enfermedad Pulmonar Obstructiva Crónica EPOC, Asma e Influenza.","VR"]
[null,2,3,1,2,null,"Servicios de apoyo administrativo","M001","Actividades de apoyo administrativo","EE070","Supervisar, capacitar, normar, asesorar y evaluar en la prevención y control de enfermedades transmitidas por rabia, brucelosis, rickettsiosis (Fiebre Manchada de las Montañas Rocosas)","VR"]
[null,2,3,1,2,null,"Servicios de apoyo administrativo","M001","Actividades de apoyo administrativo","EE080","Fomentar, proteger y restablecer la salud bucal, con parte de la salud integral de la población mexicana","VR"]
[null,2,3,1,2,null,"Servicios de apoyo administrativo","M001","Actividades de apoyo administrativo","RM030","Recursos consolidados por la Dirección General de Recursos Materiales y Servicios Generales.","VR"]
[null,2,3,1,2,null,"Servicios de apoyo administrativo","M001","Actividades de apoyo administrativo","RTI40","Recursos consolidados por la Dirección General de Tecnologias de la Información.","VR"]
[null,2,3,1,2,null,"Servicios de apoyo administrativo","M001","Actividades de apoyo administrativo","SP010","Servicios personales","VR"]
[null,2,3,1,2,null,"Servicios de apoyo administrativo","M001","Actividades de apoyo administrativo","SPGO0","Gasto de operación asociado a Servicios Personales","VR"]
[null,2,3,1,15,null,"Promoción de la salud y prevención y control de enfermedades fortalecidas e integradas sectorial e intersectorialmente",null,""]
[null,2,3,1,15,null,"Promoción de la salud y prevención y control de enfermedades fortalecidas e integradas sectorial e intersectorialmente","E025","Prevención y atención contra las adicciones"]
[null,2,3,1,15,null,"Promoción de la salud y prevención y control de enfermedades fortalecidas e integradas sectorial e intersectorialmente","E025","Prevención y atención contra las adicciones","AM010","Atención médica especializada a mujeres con enfermedad pulmonar intersticial difusa (EPID)","VR"]
[null,2,3,1,15,null,"Promoción de la salud y prevención y control de enfermedades fortalecidas e integradas sectorial e intersectorialmente","E025","Prevención y atención contra las adicciones","AM030","Otorgar atención ambulatoria","VR"]
[null,2,3,1,15,null,"Promoción de la salud y prevención y control de enfermedades fortalecidas e integradas sectorial e intersectorialmente","E025","Prevención y atención contra las adicciones","CD070","Impulsar acciones integrales para la prevención de las adicciones","VR"]
[null,2,3,1,15,null,"Promoción de la salud y prevención y control de enfermedades fortalecidas e integradas sectorial e intersectorialmente","E025","Prevención y atención contra las adicciones","DC020","Generar, difundir e informar sobre aspectos técnicos en materia de adicciones a diversos grupos comunitarios","VR"]
[null,2,3,1,15,null,"Promoción de la salud y prevención y control de enfermedades fortalecidas e integradas sectorial e intersectorialmente","E025","Prevención y atención contra las adicciones","DC030","Proporcionar servicios especializados de orientación a distancia a personas con problemas de adicciones y sus familias","VR"]
[null,2,3,1,15,null,"Promoción de la salud y prevención y control de enfermedades fortalecidas e integradas sectorial e intersectorialmente","E025","Prevención y atención contra las adicciones","DC050","Instrumentación de acciones para la prevención universal, selectiva e indicada del consumo de alcohol, tabaco y otras drogas","VR"]
[null,2,3,1,15,null,"Promoción de la salud y prevención y control de enfermedades fortalecidas e integradas sectorial e intersectorialmente","E025","Prevención y atención contra las adicciones","DC060","Prevención y detección de adicciones","VR"]
[null,2,3,1,15,null,"Promoción de la salud y prevención y control de enfermedades fortalecidas e integradas sectorial e intersectorialmente","E025","Prevención y atención contra las adicciones","DC070","Desarrollar y difundir modelos de intervención para la atención integral de personas con uso, abuso y dependencia a sustancias psicoactivas.","VR"]
[null,2,3,1,15,null,"Promoción de la salud y prevención y control de enfermedades fortalecidas e integradas sectorial e intersectorialmente","E025","Prevención y atención contra las adicciones","MD010","Abasto oportuno de medicamentos","VR"]
[null,2,3,1,15,null,"Promoción de la salud y prevención y control de enfermedades fortalecidas e integradas sectorial e intersectorialmente","E025","Prevención y atención contra las adicciones","OT050","Difundir la cultura bioética entre la sociedad, impulsar la capacitación del personal y la formación de profesionales en la materia","VR"]
[null,2,3,1,15,null,"Promoción de la salud y prevención y control de enfermedades fortalecidas e integradas sectorial e intersectorialmente","E025","Prevención y atención contra las adicciones","RM030","Recursos consolidados por la Dirección General de Recursos Materiales y Servicios Generales.","VR"]
[null,2,3,1,15,null,"Promoción de la salud y prevención y control de enfermedades fortalecidas e integradas sectorial e intersectorialmente","E025","Prevención y atención contra las adicciones","RTI40","Recursos consolidados por la Dirección General de Tecnologias de la Información.","VR"]
[null,2,3,1,15,null,"Promoción de la salud y prevención y control de enfermedades fortalecidas e integradas sectorial e intersectorialmente","E025","Prevención y atención contra las adicciones","SP010","Servicios personales","VR"]
[null,2,3,1,15,null,"Promoción de la salud y prevención y control de enfermedades fortalecidas e integradas sectorial e intersectorialmente","E025","Prevención y atención contra las adicciones","SPGO0","Gasto de operación asociado a Servicios Personales","VR"]
[null,2,3,1,15,null,"Promoción de la salud y prevención y control de enfermedades fortalecidas e integradas sectorial e intersectorialmente","P018","Prevención y control de enfermedades"]
[null,2,3,1,15,null,"Promoción de la salud y prevención y control de enfermedades fortalecidas e integradas sectorial e intersectorialmente","P018","Prevención y control de enfermedades","CS010","Programa de Entornos y Comunidades Saludables","VR"]
[null,2,3,1,15,null,"Promoción de la salud y prevención y control de enfermedades fortalecidas e integradas sectorial e intersectorialmente","P018","Prevención y control de enfermedades","PP010","Participar en el diseño e implantación de las políticas públicas en materia de promoción de la salud, vigilancia epidemiológica, atención de urgencias y prevención de enfermedades transmisibles","VR"]
[null,2,3,1,15,null,"Promoción de la salud y prevención y control de enfermedades fortalecidas e integradas sectorial e intersectorialmente","U008","Prevención y Control de Sobrepeso, Obesidad y Diabetes"]
[null,2,3,1,15,null,"Promoción de la salud y prevención y control de enfermedades fortalecidas e integradas sectorial e intersectorialmente","U008","Prevención y Control de Sobrepeso, Obesidad y Diabetes","OB010","Detectar oportuna y masivamente el universo de casos de sobrepeso, obesidad y diabetes para garantizar su adecuado control y manejo así como la promoción de un envejecimiento saludable","VR"]
[null,2,3,1,15,null,"Promoción de la salud y prevención y control de enfermedades fortalecidas e integradas sectorial e intersectorialmente","U008","Prevención y Control de Sobrepeso, Obesidad y Diabetes","SP010","Servicios personales","VR"]
[null,2,3,1,15,null,"Promoción de la salud y prevención y control de enfermedades fortalecidas e integradas sectorial e intersectorialmente","U008","Prevención y Control de Sobrepeso, Obesidad y Diabetes","SPGO0","Gasto de operación asociado a Servicios Personales","VR"]
[null,2,3,1,16,null,"Enfermedades emergentes, urgencias epidemiológicas y desastres naturales prevenidos, controlados y atendidos oportunamente",null,""]
[null,2,3,1,16,null,"Enfermedades emergentes, urgencias epidemiológicas y desastres naturales prevenidos, controlados y atendidos oportunamente","P018","Prevención y control de enfermedades"]
[null,2,3,1,16,null,"Enfermedades emergentes, urgencias epidemiológicas y desastres naturales prevenidos, controlados y atendidos oportunamente","P018","Prevención y control de enfermedades","SP010","Servicios personales","VR"]
[null,2,3,1,16,null,"Enfermedades emergentes, urgencias epidemiológicas y desastres naturales prevenidos, controlados y atendidos oportunamente","U009","Vigilancia epidemiológica"]
[null,2,3,1,16,null,"Enfermedades emergentes, urgencias epidemiológicas y desastres naturales prevenidos, controlados y atendidos oportunamente","U009","Vigilancia epidemiológica","EE010","Realizar operativos de apoyo a las entidades federativas ante urgencias epidemiológicas y desastres","VR"]
[null,2,3,1,16,null,"Enfermedades emergentes, urgencias epidemiológicas y desastres naturales prevenidos, controlados y atendidos oportunamente","U009","Vigilancia epidemiológica","EE020","Realizar operativos de apoyo para la vigilancia epidemiológica, prevención y control de enfermedades transmitidas por vectores e intoxicación por picadura de alacrán","VR"]
[null,2,3,1,16,null,"Enfermedades emergentes, urgencias epidemiológicas y desastres naturales prevenidos, controlados y atendidos oportunamente","U009","Vigilancia epidemiológica","EE030","Supervisar, capacitar, normar, asesorar y evaluar en  prevención  y atención en el adulto y adulto mayor, en las enfermedades de mayor prevalencia y control de las enfermedades crónicas no transmisibles (diabetes, riesgo cardiovascular y dislipidemia","VR"]
[null,2,3,1,16,null,"Enfermedades emergentes, urgencias epidemiológicas y desastres naturales prevenidos, controlados y atendidos oportunamente","U009","Vigilancia epidemiológica","EE040","Reforzar la vigilancia epidemiológica a través del análisis y diagnóstico de referencia","VR"]
[null,2,3,1,16,null,"Enfermedades emergentes, urgencias epidemiológicas y desastres naturales prevenidos, controlados y atendidos oportunamente","U009","Vigilancia epidemiológica","EE060","Supervisar, capacitar, normar, asesorar y evaluar en la prevención y control de la tuberculosis, la lepra y respiratorias.Neumonía adquirida en la comunidad, Enfermedad Pulmonar Obstructiva Crónica EPOC, Asma e Influenza.","VR"]
[null,2,3,1,16,null,"Enfermedades emergentes, urgencias epidemiológicas y desastres naturales prevenidos, controlados y atendidos oportunamente","U009","Vigilancia epidemiológica","EE070","Supervisar, capacitar, normar, asesorar y evaluar en la prevención y control de enfermedades transmitidas por rabia, brucelosis, rickettsiosis (Fiebre Manchada de las Montañas Rocosas)","VR"]
[null,2,3,1,16,null,"Enfermedades emergentes, urgencias epidemiológicas y desastres naturales prevenidos, controlados y atendidos oportunamente","U009","Vigilancia epidemiológica","EE080","Fomentar, proteger y restablecer la salud bucal, con parte de la salud integral de la población mexicana","VR"]
[null,2,3,1,16,null,"Enfermedades emergentes, urgencias epidemiológicas y desastres naturales prevenidos, controlados y atendidos oportunamente","U009","Vigilancia epidemiológica","SP010","Servicios personales","VR"]
[null,2,3,1,17,null,"Protección contra riesgos sanitarios fortalecida y modernizada",null,""]
[null,2,3,1,17,null,"Protección contra riesgos sanitarios fortalecida y modernizada","G004","Protección Contra Riesgos Sanitarios"]
[null,2,3,1,17,null,"Protección contra riesgos sanitarios fortalecida y modernizada","G004","Protección Contra Riesgos Sanitarios","RM030","Recursos consolidados por la Dirección General de Recursos Materiales y Servicios Generales.","VR"]
[null,2,3,1,17,null,"Protección contra riesgos sanitarios fortalecida y modernizada","G004","Protección Contra Riesgos Sanitarios","RS010","Consolidar la Red Nacional de Laboratorios de Salud Pública","VR"]
[null,2,3,1,17,null,"Protección contra riesgos sanitarios fortalecida y modernizada","G004","Protección Contra Riesgos Sanitarios","RS012","Fortalecer a la Comisión de Operación Sanitaria","VR"]
[null,2,3,1,17,null,"Protección contra riesgos sanitarios fortalecida y modernizada","G004","Protección Contra Riesgos Sanitarios","RS020","Consolidar la operación de las áreas de protección contra riesgos sanitarios","VR"]
[null,2,3,1,17,null,"Protección contra riesgos sanitarios fortalecida y modernizada","G004","Protección Contra Riesgos Sanitarios","RS021","Fortalecer a la Comisión de Evidencia y Manejo de Riesgos","VR"]
[null,2,3,1,17,null,"Protección contra riesgos sanitarios fortalecida y modernizada","G004","Protección Contra Riesgos Sanitarios","RS031","Fortalecer a la Coordinación General Jurídica y Consultiva","VR"]
[null,2,3,1,17,null,"Protección contra riesgos sanitarios fortalecida y modernizada","G004","Protección Contra Riesgos Sanitarios","RS041","Fortalecer a la Coordinación General del Sistema Federal Sanitario","VR"]
[null,2,3,1,17,null,"Protección contra riesgos sanitarios fortalecida y modernizada","G004","Protección Contra Riesgos Sanitarios","RS061","Fortalecer a la Comisión de Control Analítico y Ampliación de Cobertura","VR"]
[null,2,3,1,17,null,"Protección contra riesgos sanitarios fortalecida y modernizada","G004","Protección Contra Riesgos Sanitarios","RS071","Fortalecer a la Comisión de Fomento Sanitario","VR"]
[null,2,3,1,17,null,"Protección contra riesgos sanitarios fortalecida y modernizada","G004","Protección Contra Riesgos Sanitarios","RS081","Fortalecer a la Comisión Federal para la Protección Contra Riesgos Sanitarios","VR"]
[null,2,3,1,17,null,"Protección contra riesgos sanitarios fortalecida y modernizada","G004","Protección Contra Riesgos Sanitarios","RS091","Fortalecer a la Comisión de Autorización Sanitaria","VR"]
[null,2,3,1,17,null,"Protección contra riesgos sanitarios fortalecida y modernizada","G004","Protección Contra Riesgos Sanitarios","RTI40","Recursos consolidados por la Dirección General de Tecnologias de la Información.","VR"]
[null,2,3,1,17,null,"Protección contra riesgos sanitarios fortalecida y modernizada","G004","Protección Contra Riesgos Sanitarios","SP010","Servicios personales","VR"]
[null,2,3,1,17,null,"Protección contra riesgos sanitarios fortalecida y modernizada","G004","Protección Contra Riesgos Sanitarios","SPGO0","Gasto de operación asociado a Servicios Personales","VR"]
[null,2,3,1,20,null,"Infraestructura suficiente, equipamiento óptimo e insumos seguros para la salud",null,""]
[null,2,3,1,20,null,"Infraestructura suficiente, equipamiento óptimo e insumos seguros para la salud","S281","Programa Nacional de Reconstrucción"]
[null,2,3,1,20,null,"Infraestructura suficiente, equipamiento óptimo e insumos seguros para la salud","S281","Programa Nacional de Reconstrucción","00000",null,"VR"]
[null,2,3,2,null,null,null,null,"",null,"Prestación de Servicios de Salud a la Persona"]
[null,2,3,2,2,null,"Servicios de apoyo administrativo",null,""]
[null,2,3,2,2,null,"Servicios de apoyo administrativo","M001","Actividades de apoyo administrativo"]
[null,2,3,2,2,null,"Servicios de apoyo administrativo","M001","Actividades de apoyo administrativo","00000",null,"VR"]
[null,2,3,2,2,null,"Servicios de apoyo administrativo","M001","Actividades de apoyo administrativo","AD010","Otorgar apoyo administrativo y sustantivo","VR"]
[null,2,3,2,2,null,"Servicios de apoyo administrativo","M001","Actividades de apoyo administrativo","ADR10","Otorgar apoyo administrativo y sustantivo de la CHFR","VR"]
[null,2,3,2,2,null,"Servicios de apoyo administrativo","M001","Actividades de apoyo administrativo","RM030","Recursos consolidados por la Dirección General de Recursos Materiales y Servicios Generales.","VR"]
[null,2,3,2,2,null,"Servicios de apoyo administrativo","M001","Actividades de apoyo administrativo","SP010","Servicios personales","VR"]
[null,2,3,2,2,null,"Servicios de apoyo administrativo","M001","Actividades de apoyo administrativo","SPGO0","Gasto de operación asociado a Servicios Personales","VR"]
[null,2,3,2,18,null,"Prestación de servicios del Sistema Nacional de Salud organizados e integrados",null,""]
[null,2,3,2,18,null,"Prestación de servicios del Sistema Nacional de Salud organizados e integrados","E023","Atención a la Salud"]
[null,2,3,2,18,null,"Prestación de servicios del Sistema Nacional de Salud organizados e integrados","E023","Atención a la Salud","00000",null,"VR"]
[null,2,3,2,18,null,"Prestación de servicios del Sistema Nacional de Salud organizados e integrados","E023","Atención a la Salud","AD010","Otorgar apoyo administrativo y sustantivo","VR"]
[null,2,3,2,18,null,"Prestación de servicios del Sistema Nacional de Salud organizados e integrados","E023","Atención a la Salud","AM010","Atención médica especializada a mujeres con enfermedad pulmonar intersticial difusa (EPID)","VR"]
[null,2,3,2,18,null,"Prestación de servicios del Sistema Nacional de Salud organizados e integrados","E023","Atención a la Salud","AM020","Otorgar tratamiento a pacientes con esclerosis múltiple","VR"]
[null,2,3,2,18,null,"Prestación de servicios del Sistema Nacional de Salud organizados e integrados","E023","Atención a la Salud","AM030","Otorgar atención ambulatoria","VR"]
[null,2,3,2,18,null,"Prestación de servicios del Sistema Nacional de Salud organizados e integrados","E023","Atención a la Salud","AM031","Atención a la Salud, medicamentos gratuitos y gastos de bolsillo coordinados por la CCINSHAE","VR"]
[null,2,3,2,18,null,"Prestación de servicios del Sistema Nacional de Salud organizados e integrados","E023","Atención a la Salud","AM040","Otorgar atención hospitalaria","VR"]
[null,2,3,2,18,null,"Prestación de servicios del Sistema Nacional de Salud organizados e integrados","E023","Atención a la Salud","AM050","Fortalecer la organización para la prestación de servicios en salud","VR"]
[null,2,3,2,18,null,"Prestación de servicios del Sistema Nacional de Salud organizados e integrados","E023","Atención a la Salud","AM060","Fortalecimiento de la calidad de la atención médica y auditoria clínica","VR"]
[null,2,3,2,18,null,"Prestación de servicios del Sistema Nacional de Salud organizados e integrados","E023","Atención a la Salud","AM080","Reforzamiento del programa de detección y atención de  Cáncer de Próstata","VR"]
[null,2,3,2,18,null,"Prestación de servicios del Sistema Nacional de Salud organizados e integrados","E023","Atención a la Salud","AM090","Registro Nacional de Cáncer","VR"]
[null,2,3,2,18,null,"Prestación de servicios del Sistema Nacional de Salud organizados e integrados","E023","Atención a la Salud","AMH30","Otorgar atención hospitalaria y consultas médicas en el Hospital Nacional Homeopático","VR"]
[null,2,3,2,18,null,"Prestación de servicios del Sistema Nacional de Salud organizados e integrados","E023","Atención a la Salud","AMJ30","Otorgar atención quirúrgica y consulta médica especializada en el Centro de Atención Médico Quirúrgico de Corta Estancia Juárez Centro","VR"]
[null,2,3,2,18,null,"Prestación de servicios del Sistema Nacional de Salud organizados e integrados","E023","Atención a la Salud","AMM30","Otorgar atención hospitalaria y consulta médica especializada en el Hospital de la Mujer","VR"]
[null,2,3,2,18,null,"Prestación de servicios del Sistema Nacional de Salud organizados e integrados","E023","Atención a la Salud","AMQ10","Otorgar consultas médicas del Centro Nacional de Investigación y Atención de Quemados","VR"]
[null,2,3,2,18,null,"Prestación de servicios del Sistema Nacional de Salud organizados e integrados","E023","Atención a la Salud","AMQ20","Otorgar atención hospitalaria del Centro Nacional de Investigación y Atención de Quemados","VR"]
[null,2,3,2,18,null,"Prestación de servicios del Sistema Nacional de Salud organizados e integrados","E023","Atención a la Salud","CC040","Diagnóstico y tratamiento oportuno de cáncer en menores de 18 años","VR"]
[null,2,3,2,18,null,"Prestación de servicios del Sistema Nacional de Salud organizados e integrados","E023","Atención a la Salud","CC050","Programa de Prevención y Control de Cáncer de la Mujer","VR"]
[null,2,3,2,18,null,"Prestación de servicios del Sistema Nacional de Salud organizados e integrados","E023","Atención a la Salud","CL030","Fortalecer el diseño, implantación e implementación de las tecnologías de la información en las unidades administrativas","VR"]
[null,2,3,2,18,null,"Prestación de servicios del Sistema Nacional de Salud organizados e integrados","E023","Atención a la Salud","CM010","Proporcionar dignificación, conservación y mantenimiento correctivo y preventivo de infraestructura y equipamiento","VR"]
[null,2,3,2,18,null,"Prestación de servicios del Sistema Nacional de Salud organizados e integrados","E023","Atención a la Salud","CT010","Programa interno con el fin de centralizar los recursos de los servicios que su pago se realiza de manera centralizada.","VR"]
[null,2,3,2,18,null,"Prestación de servicios del Sistema Nacional de Salud organizados e integrados","E023","Atención a la Salud","GSS01","Gratuidad de los Servicios de Salud.","VR"]
[null,2,3,2,18,null,"Prestación de servicios del Sistema Nacional de Salud organizados e integrados","E023","Atención a la Salud","IF010","Fortalecer la infraestructura fisica y equipamiento","VR"]
[null,2,3,2,18,null,"Prestación de servicios del Sistema Nacional de Salud organizados e integrados","E023","Atención a la Salud","IV030","Desarrollar la investigación clínica","VR"]
[null,2,3,2,18,null,"Prestación de servicios del Sistema Nacional de Salud organizados e integrados","E023","Atención a la Salud","MD010","Abasto oportuno de medicamentos","VR"]
[null,2,3,2,18,null,"Prestación de servicios del Sistema Nacional de Salud organizados e integrados","E023","Atención a la Salud","MM010","Calidad en la atención obstétrica y reducción de la mortalidad materna","VR"]
[null,2,3,2,18,null,"Prestación de servicios del Sistema Nacional de Salud organizados e integrados","E023","Atención a la Salud","OB020","Prevención y tratamiento del sobrepeso, obesidad y diabetes en los Institutos Nacionales de Salud y Hospitales de Alta Especialidad (INSHAE)","VR"]
[null,2,3,2,18,null,"Prestación de servicios del Sistema Nacional de Salud organizados e integrados","E023","Atención a la Salud","OT051","Expediente Clínico Electrónico","VR"]
[null,2,3,2,18,null,"Prestación de servicios del Sistema Nacional de Salud organizados e integrados","E023","Atención a la Salud","OT061","Producción de prótesis, ortesis y otros aparatos ortopédicos","VR"]
[null,2,3,2,18,null,"Prestación de servicios del Sistema Nacional de Salud organizados e integrados","E023","Atención a la Salud","RM030","Recursos consolidados por la Dirección General de Recursos Materiales y Servicios Generales.","VR"]
[null,2,3,2,18,null,"Prestación de servicios del Sistema Nacional de Salud organizados e integrados","E023","Atención a la Salud","RTI40","Recursos consolidados por la Dirección General de Tecnologias de la Información.","VR"]
[null,2,3,2,18,null,"Prestación de servicios del Sistema Nacional de Salud organizados e integrados","E023","Atención a la Salud","SMF10","Proporcionar servicios especializados de salud mental en el Hospital Fray Bernardino Álvarez","VR"]
[null,2,3,2,18,null,"Prestación de servicios del Sistema Nacional de Salud organizados e integrados","E023","Atención a la Salud","SMI40","Proporcionar servicios ambulatorios de salud mental en el CECOSAM Iztapalapa","VR"]
[null,2,3,2,18,null,"Prestación de servicios del Sistema Nacional de Salud organizados e integrados","E023","Atención a la Salud","SMN20","Proporcionar servicios especializados de salud mental en el Hospital Juan N. Navarro","VR"]
[null,2,3,2,18,null,"Prestación de servicios del Sistema Nacional de Salud organizados e integrados","E023","Atención a la Salud","SMS50","Proporcionar servicios especializados de salud mental en el Hospital Samuel Ramírez Moreno","VR"]
[null,2,3,2,18,null,"Prestación de servicios del Sistema Nacional de Salud organizados e integrados","E023","Atención a la Salud","SMT60","Proporcionar servicios ambulatorios de salud mental en el CECOSAM Cuauhtémoc","VR"]
[null,2,3,2,18,null,"Prestación de servicios del Sistema Nacional de Salud organizados e integrados","E023","Atención a la Salud","SMZ70","Proporcionar servicios ambulatorios de salud mental en el CECOSAM Zacatenco","VR"]
[null,2,3,2,18,null,"Prestación de servicios del Sistema Nacional de Salud organizados e integrados","E023","Atención a la Salud","SP010","Servicios personales","VR"]
[null,2,3,2,18,null,"Prestación de servicios del Sistema Nacional de Salud organizados e integrados","E023","Atención a la Salud","SPGO0","Gasto de operación asociado a Servicios Personales","VR"]
[null,2,3,2,18,null,"Prestación de servicios del Sistema Nacional de Salud organizados e integrados","E023","Atención a la Salud","TS010","Promoción de la donación voluntaria y altruista de sangre y células progenitoras o troncales","VR"]
[null,2,3,2,18,null,"Prestación de servicios del Sistema Nacional de Salud organizados e integrados","E023","Atención a la Salud","VH020","Promover atención integral de las personas con VIH-SIDA e ITS","VR"]
[null,2,3,2,18,null,"Prestación de servicios del Sistema Nacional de Salud organizados e integrados","E025","Prevención y atención contra las adicciones"]
[null,2,3,2,18,null,"Prestación de servicios del Sistema Nacional de Salud organizados e integrados","E025","Prevención y atención contra las adicciones","DC040","Reforzar las acciones contra las adicciones","VR"]
[null,2,3,2,18,null,"Prestación de servicios del Sistema Nacional de Salud organizados e integrados","E036","Programa de vacunación"]
[null,2,3,2,18,null,"Prestación de servicios del Sistema Nacional de Salud organizados e integrados","E036","Programa de vacunación","RM030","Recursos consolidados por la Dirección General de Recursos Materiales y Servicios Generales.","VR"]
[null,2,3,2,18,null,"Prestación de servicios del Sistema Nacional de Salud organizados e integrados","E036","Programa de vacunación","RTI40","Recursos consolidados por la Dirección General de Tecnologias de la Información.","VR"]
[null,2,3,2,18,null,"Prestación de servicios del Sistema Nacional de Salud organizados e integrados","E036","Programa de vacunación","VA010","Programa de Vacunación","VR"]
[null,2,3,2,18,null,"Prestación de servicios del Sistema Nacional de Salud organizados e integrados","G005","Regulación y vigilancia de establecimientos y servicios de atención médica"]
[null,2,3,2,18,null,"Prestación de servicios del Sistema Nacional de Salud organizados e integrados","G005","Regulación y vigilancia de establecimientos y servicios de atención médica","OT070","Regulación y vigilancia de establecimientos y servicios de atención médica","VR"]
[null,2,3,2,18,null,"Prestación de servicios del Sistema Nacional de Salud organizados e integrados","G005","Regulación y vigilancia de establecimientos y servicios de atención médica","RM030","Recursos consolidados por la Dirección General de Recursos Materiales y Servicios Generales.","VR"]
[null,2,3,2,18,null,"Prestación de servicios del Sistema Nacional de Salud organizados e integrados","G005","Regulación y vigilancia de establecimientos y servicios de atención médica","RTI40","Recursos consolidados por la Dirección General de Tecnologias de la Información.","VR"]
[null,2,3,2,18,null,"Prestación de servicios del Sistema Nacional de Salud organizados e integrados","P020","Salud materna, sexual y reproductiva"]
[null,2,3,2,18,null,"Prestación de servicios del Sistema Nacional de Salud organizados e integrados","P020","Salud materna, sexual y reproductiva","AM041","Reforzamiento del programa de detección y atención de  Cáncer de Próstata","VR"]
[null,2,3,2,18,null,"Prestación de servicios del Sistema Nacional de Salud organizados e integrados","P020","Salud materna, sexual y reproductiva","AM070","Otorgar atención médica especializada a mujeres con diagnóstico de EPOC por exposición a humo de leña","VR"]
[null,2,3,2,18,null,"Prestación de servicios del Sistema Nacional de Salud organizados e integrados","P020","Salud materna, sexual y reproductiva","CC030","Atención médica especializada a mujeres con Cáncer Pulmonar que presentan mutaciones genéticas","VR"]
[null,2,3,2,18,null,"Prestación de servicios del Sistema Nacional de Salud organizados e integrados","P020","Salud materna, sexual y reproductiva","CC050","Programa de Prevención y Control de Cáncer de la Mujer","VR"]
[null,2,3,2,18,null,"Prestación de servicios del Sistema Nacional de Salud organizados e integrados","P020","Salud materna, sexual y reproductiva","OT052","Examen Nacional de Residencias Médicas","VR"]
[null,2,3,2,18,null,"Prestación de servicios del Sistema Nacional de Salud organizados e integrados","P020","Salud materna, sexual y reproductiva","SP010","Servicios personales","VR"]
[null,2,3,2,20,null,"Infraestructura suficiente, equipamiento óptimo e insumos seguros para la salud",null,""]
[null,2,3,2,20,null,"Infraestructura suficiente, equipamiento óptimo e insumos seguros para la salud","K011","Proyectos de infraestructura social de salud"]
[null,2,3,2,20,null,"Infraestructura suficiente, equipamiento óptimo e insumos seguros para la salud","K011","Proyectos de infraestructura social de salud","IF071","Proyecto Integral de Restauración y Adecuación de Infraestructura Social en Salud","VR"]
[null,2,3,3,null,null,null,null,"",null,"Generación de Recursos para la Salud"]
[null,2,3,3,2,null,"Servicios de apoyo administrativo",null,""]
[null,2,3,3,2,null,"Servicios de apoyo administrativo","M001","Actividades de apoyo administrativo"]
[null,2,3,3,2,null,"Servicios de apoyo administrativo","M001","Actividades de apoyo administrativo","AD010","Otorgar apoyo administrativo y sustantivo","VR"]
[null,2,3,3,2,null,"Servicios de apoyo administrativo","M001","Actividades de apoyo administrativo","FO020","Impulsar el desarrollo profesional continuo del personal de la salud","VR"]
[null,2,3,3,2,null,"Servicios de apoyo administrativo","M001","Actividades de apoyo administrativo","RM030","Recursos consolidados por la Dirección General de Recursos Materiales y Servicios Generales.","VR"]
[null,2,3,3,2,null,"Servicios de apoyo administrativo","M001","Actividades de apoyo administrativo","RTI40","Recursos consolidados por la Dirección General de Tecnologias de la Información.","VR"]
[null,2,3,3,2,null,"Servicios de apoyo administrativo","M001","Actividades de apoyo administrativo","SP010","Servicios personales","VR"]
[null,2,3,3,2,null,"Servicios de apoyo administrativo","M001","Actividades de apoyo administrativo","SPGO0","Gasto de operación asociado a Servicios Personales","VR"]
[null,2,3,3,19,null,"Formación y capacitación de recursos humanos acordes a las necesidades y demandas de atención a la salud",null,""]
[null,2,3,3,19,null,"Formación y capacitación de recursos humanos acordes a las necesidades y demandas de atención a la salud","E010","Formación y capacitación de recursos humanos para la salud"]
[null,2,3,3,19,null,"Formación y capacitación de recursos humanos acordes a las necesidades y demandas de atención a la salud","E010","Formación y capacitación de recursos humanos para la salud","AD010","Otorgar apoyo administrativo y sustantivo","VR"]
[null,2,3,3,19,null,"Formación y capacitación de recursos humanos acordes a las necesidades y demandas de atención a la salud","E010","Formación y capacitación de recursos humanos para la salud","AS010","Profesionalización de los servicios en Centros de Rehabilitación del DIF","VR"]
[null,2,3,3,19,null,"Formación y capacitación de recursos humanos acordes a las necesidades y demandas de atención a la salud","E010","Formación y capacitación de recursos humanos para la salud","CC020","Programa de Prevención y Control de Cáncer Cérvico Uterino","VR"]
[null,2,3,3,19,null,"Formación y capacitación de recursos humanos acordes a las necesidades y demandas de atención a la salud","E010","Formación y capacitación de recursos humanos para la salud","CP010","Realizar la capacitación de personal administrativo, técnico y directivo","VR"]
[null,2,3,3,19,null,"Formación y capacitación de recursos humanos acordes a las necesidades y demandas de atención a la salud","E010","Formación y capacitación de recursos humanos para la salud","CP020","Capacitar al personal médico, paramédico y afín, y a otros profesionistas en materia de salud","VR"]
[null,2,3,3,19,null,"Formación y capacitación de recursos humanos acordes a las necesidades y demandas de atención a la salud","E010","Formación y capacitación de recursos humanos para la salud","FO010","Formar médicos especialistas","VR"]
[null,2,3,3,19,null,"Formación y capacitación de recursos humanos acordes a las necesidades y demandas de atención a la salud","E010","Formación y capacitación de recursos humanos para la salud","FO020","Impulsar el desarrollo profesional continuo del personal de la salud","VR"]
[null,2,3,3,19,null,"Formación y capacitación de recursos humanos acordes a las necesidades y demandas de atención a la salud","E010","Formación y capacitación de recursos humanos para la salud","FO030","Formar profesionales de la salud en posgrados no clínicos","VR"]
[null,2,3,3,19,null,"Formación y capacitación de recursos humanos acordes a las necesidades y demandas de atención a la salud","E010","Formación y capacitación de recursos humanos para la salud","FO040","Recursos propios para enseñanza","VR"]
[null,2,3,3,19,null,"Formación y capacitación de recursos humanos acordes a las necesidades y demandas de atención a la salud","E010","Formación y capacitación de recursos humanos para la salud","FO050","Formar profesionistas en pregrado","VR"]
[null,2,3,3,19,null,"Formación y capacitación de recursos humanos acordes a las necesidades y demandas de atención a la salud","E010","Formación y capacitación de recursos humanos para la salud","FOM10","Formar especialistas en materia de salud en el Hospital de la Mujer","VR"]
[null,2,3,3,19,null,"Formación y capacitación de recursos humanos acordes a las necesidades y demandas de atención a la salud","E010","Formación y capacitación de recursos humanos para la salud","OT052","Examen Nacional de Residencias Médicas","VR"]
[null,2,3,3,19,null,"Formación y capacitación de recursos humanos acordes a las necesidades y demandas de atención a la salud","E010","Formación y capacitación de recursos humanos para la salud","OT081","Promoción de la observancia de criterios de bioética internacionales acordes con el interés y las políticas de salud del país","VR"]
[null,2,3,3,19,null,"Formación y capacitación de recursos humanos acordes a las necesidades y demandas de atención a la salud","E010","Formación y capacitación de recursos humanos para la salud","RM030","Recursos consolidados por la Dirección General de Recursos Materiales y Servicios Generales.","VR"]
[null,2,3,3,19,null,"Formación y capacitación de recursos humanos acordes a las necesidades y demandas de atención a la salud","E010","Formación y capacitación de recursos humanos para la salud","RTI40","Recursos consolidados por la Dirección General de Tecnologias de la Información.","VR"]
[null,2,3,3,19,null,"Formación y capacitación de recursos humanos acordes a las necesidades y demandas de atención a la salud","E010","Formación y capacitación de recursos humanos para la salud","SP010","Servicios personales","VR"]
[null,2,3,3,19,null,"Formación y capacitación de recursos humanos acordes a las necesidades y demandas de atención a la salud","E010","Formación y capacitación de recursos humanos para la salud","SPGO0","Gasto de operación asociado a Servicios Personales","VR"]
[null,2,3,3,20,null,"Infraestructura suficiente, equipamiento óptimo e insumos seguros para la salud",null,""]
[null,2,3,3,20,null,"Infraestructura suficiente, equipamiento óptimo e insumos seguros para la salud","K011","Proyectos de infraestructura social de salud"]
[null,2,3,3,20,null,"Infraestructura suficiente, equipamiento óptimo e insumos seguros para la salud","K011","Proyectos de infraestructura social de salud","IF010","Fortalecer la infraestructura fisica y equipamiento","VR"]
[null,2,3,3,20,null,"Infraestructura suficiente, equipamiento óptimo e insumos seguros para la salud","K011","Proyectos de infraestructura social de salud","IF030","Desarrollar, conservar y mantener la infraestructura física y equipamiento","VR"]
[null,2,3,3,20,null,"Infraestructura suficiente, equipamiento óptimo e insumos seguros para la salud","K011","Proyectos de infraestructura social de salud","IF060","Proyecto de infraestructura social de salud","VR"]
[null,2,3,3,20,null,"Infraestructura suficiente, equipamiento óptimo e insumos seguros para la salud","K011","Proyectos de infraestructura social de salud","IF071","Proyecto Integral de Restauración y Adecuación de Infraestructura Social en Salud","VR"]
[null,2,3,3,20,null,"Infraestructura suficiente, equipamiento óptimo e insumos seguros para la salud","K025","Proyectos de inmuebles (oficinas administrativas)"]
[null,2,3,3,20,null,"Infraestructura suficiente, equipamiento óptimo e insumos seguros para la salud","K025","Proyectos de inmuebles (oficinas administrativas)","IF010","Fortalecer la infraestructura fisica y equipamiento","VR"]
[null,2,3,3,20,null,"Infraestructura suficiente, equipamiento óptimo e insumos seguros para la salud","K025","Proyectos de inmuebles (oficinas administrativas)","IF040","Arrendamiento financiero","VR"]
[null,2,3,3,20,null,"Infraestructura suficiente, equipamiento óptimo e insumos seguros para la salud","K027","Mantenimiento de infraestructura"]
[null,2,3,3,20,null,"Infraestructura suficiente, equipamiento óptimo e insumos seguros para la salud","K027","Mantenimiento de infraestructura","IF030","Desarrollar, conservar y mantener la infraestructura física y equipamiento","VR"]
[null,2,3,4,null,null,null,null,"",null,"Rectoría del Sistema de Salud"]
[null,2,3,4,1,null,"Función pública y buen gobierno",null,""]
[null,2,3,4,1,null,"Función pública y buen gobierno","M001","Actividades de apoyo administrativo"]
[null,2,3,4,1,null,"Función pública y buen gobierno","M001","Actividades de apoyo administrativo","AD010","Otorgar apoyo administrativo y sustantivo","VR"]
[null,2,3,4,1,null,"Función pública y buen gobierno","M001","Actividades de apoyo administrativo","CT010","Programa interno con el fin de centralizar los recursos de los servicios que su pago se realiza de manera centralizada.","VR"]
[null,2,3,4,1,null,"Función pública y buen gobierno","M001","Actividades de apoyo administrativo","RM030","Recursos consolidados por la Dirección General de Recursos Materiales y Servicios Generales.","VR"]
[null,2,3,4,1,null,"Función pública y buen gobierno","M001","Actividades de apoyo administrativo","SPGO0","Gasto de operación asociado a Servicios Personales","VR"]
[null,2,3,4,2,null,"Servicios de apoyo administrativo",null,""]
[null,2,3,4,2,null,"Servicios de apoyo administrativo","M001","Actividades de apoyo administrativo"]
[null,2,3,4,2,null,"Servicios de apoyo administrativo","M001","Actividades de apoyo administrativo","00000",null,"VR"]
[null,2,3,4,2,null,"Servicios de apoyo administrativo","M001","Actividades de apoyo administrativo","AD010","Otorgar apoyo administrativo y sustantivo","VR"]
[null,2,3,4,2,null,"Servicios de apoyo administrativo","M001","Actividades de apoyo administrativo","AMH30","Otorgar atención hospitalaria y consultas médicas en el Hospital Nacional Homeopático","VR"]
[null,2,3,4,2,null,"Servicios de apoyo administrativo","M001","Actividades de apoyo administrativo","CC091","Cáncer de la mujer","VR"]
[null,2,3,4,2,null,"Servicios de apoyo administrativo","M001","Actividades de apoyo administrativo","CL011","Conducir la generación, integración y difusión de información y recomendaciones basadas en la mejor evidencia y la coordinación sectorial en gestión y evaluación de tecnologías para la salud","VR"]
[null,2,3,4,2,null,"Servicios de apoyo administrativo","M001","Actividades de apoyo administrativo","CL040","Integrar información, asesorar en materia de telesalud y establecer coordinación efectiva con las diversas instituciones para integrar acciones hacia la implementación de programas de Telesalud","VR"]
[null,2,3,4,2,null,"Servicios de apoyo administrativo","M001","Actividades de apoyo administrativo","CL050","Integrar evaluaciones de tecnologías para la salud, así como otorgar asesorías sobre la materia","VR"]
[null,2,3,4,2,null,"Servicios de apoyo administrativo","M001","Actividades de apoyo administrativo","CL060","Desarrollar las políticas e instrumentos de gestión de equipo médico para su uso apropiado, eficiente y seguro en el Sistema Nacional de Salud","VR"]
[null,2,3,4,2,null,"Servicios de apoyo administrativo","M001","Actividades de apoyo administrativo","CL090","Coordinar la integración sectorial de Guías de Práctica Clínica","VR"]
[null,2,3,4,2,null,"Servicios de apoyo administrativo","M001","Actividades de apoyo administrativo","CT010","Programa interno con el fin de centralizar los recursos de los servicios que su pago se realiza de manera centralizada.","VR"]
[null,2,3,4,2,null,"Servicios de apoyo administrativo","M001","Actividades de apoyo administrativo","I0C10","Autoridad Sanitaria con funciones normativas, consultivas y ejecutivas","VR"]
[null,2,3,4,2,null,"Servicios de apoyo administrativo","M001","Actividades de apoyo administrativo","MJ070","Salud Materna","VR"]
[null,2,3,4,2,null,"Servicios de apoyo administrativo","M001","Actividades de apoyo administrativo","MJ080","Salud Perinatal","VR"]
[null,2,3,4,2,null,"Servicios de apoyo administrativo","M001","Actividades de apoyo administrativo","OT062","Realización de campañas en pro de la prevención y promoción en la salud pública en México","VR"]
[null,2,3,4,2,null,"Servicios de apoyo administrativo","M001","Actividades de apoyo administrativo","OT072","Campañas de difusión","VR"]
[null,2,3,4,2,null,"Servicios de apoyo administrativo","M001","Actividades de apoyo administrativo","OT091","Apoyar el enlace y coordinación con las diferentes unidades de la Secretaria","VR"]
[null,2,3,4,2,null,"Servicios de apoyo administrativo","M001","Actividades de apoyo administrativo","PG030","Violencia de género","VR"]
[null,2,3,4,2,null,"Servicios de apoyo administrativo","M001","Actividades de apoyo administrativo","PG040","Igualdad de género y Salud","VR"]
[null,2,3,4,2,null,"Servicios de apoyo administrativo","M001","Actividades de apoyo administrativo","RM030","Recursos consolidados por la Dirección General de Recursos Materiales y Servicios Generales.","VR"]
[null,2,3,4,2,null,"Servicios de apoyo administrativo","M001","Actividades de apoyo administrativo","RTI40","Recursos consolidados por la Dirección General de Tecnologias de la Información.","VR"]
[null,2,3,4,2,null,"Servicios de apoyo administrativo","M001","Actividades de apoyo administrativo","SP010","Servicios personales","VR"]
[null,2,3,4,2,null,"Servicios de apoyo administrativo","M001","Actividades de apoyo administrativo","SPGO0","Gasto de operación asociado a Servicios Personales","VR"]
[null,2,3,4,2,null,"Servicios de apoyo administrativo","M001","Actividades de apoyo administrativo","SR030","Anticoncepción, planificación familiar y salud sexual","VR"]
[null,2,3,4,2,null,"Servicios de apoyo administrativo","M001","Actividades de apoyo administrativo","SR040","Salud sexual y reproductiva en la adolescencia","VR"]
[null,2,3,4,2,null,"Servicios de apoyo administrativo","M001","Actividades de apoyo administrativo","SR050","Aborto Seguro","VR"]
[null,2,3,4,14,null,"Sistema Nacional de Salud organizado e integrado",null,""]
[null,2,3,4,14,null,"Sistema Nacional de Salud organizado e integrado","P012","Rectoría en Salud"]
[null,2,3,4,14,null,"Sistema Nacional de Salud organizado e integrado","P012","Rectoría en Salud","00000",null,"VR"]
[null,2,3,4,14,null,"Sistema Nacional de Salud organizado e integrado","P012","Rectoría en Salud","AD010","Otorgar apoyo administrativo y sustantivo","VR"]
[null,2,3,4,14,null,"Sistema Nacional de Salud organizado e integrado","P012","Rectoría en Salud","AR010","Fortalecer la comisión fronteriza México-Estados Unidos","VR"]
[null,2,3,4,14,null,"Sistema Nacional de Salud organizado e integrado","P012","Rectoría en Salud","CI010","Pago de las cuotas a los Organismos Internacionales de los que México forma parte","VR"]
[null,2,3,4,14,null,"Sistema Nacional de Salud organizado e integrado","P012","Rectoría en Salud","CL020","Establecer los sistemas de evaluación del desempeño de los sistemas nacional y estatal de salud, de programas prioritarios y especiales de salud y los sistemas de evaluación de prestación de servicios de salud a la persona y no personales de sal","VR"]
[null,2,3,4,14,null,"Sistema Nacional de Salud organizado e integrado","P012","Rectoría en Salud","CL070","Sistema Nacional de Información en Salud","VR"]
[null,2,3,4,14,null,"Sistema Nacional de Salud organizado e integrado","P012","Rectoría en Salud","CL170","Planear estratégicamente las actividades de investigación, docencia, asistencia médica y de administración","VR"]
[null,2,3,4,14,null,"Sistema Nacional de Salud organizado e integrado","P012","Rectoría en Salud","MG010","Fortalecer los vínculos con las autoridades de los Estados Unidos de Norteamérica a fin de facilitar el acceso a los servicios de salud de los migrantes en sus lugares de destino","VR"]
[null,2,3,4,14,null,"Sistema Nacional de Salud organizado e integrado","P012","Rectoría en Salud","OE001","Asignación de recursos transitorios por reubicar.","VR"]
[null,2,3,4,14,null,"Sistema Nacional de Salud organizado e integrado","P012","Rectoría en Salud","RM030","Recursos consolidados por la Dirección General de Recursos Materiales y Servicios Generales.","VR"]
[null,2,3,4,14,null,"Sistema Nacional de Salud organizado e integrado","P012","Rectoría en Salud","RTI40","Recursos consolidados por la Dirección General de Tecnologias de la Información.","VR"]
[null,2,3,4,14,null,"Sistema Nacional de Salud organizado e integrado","P012","Rectoría en Salud","SP010","Servicios personales","VR"]
[null,2,3,4,14,null,"Sistema Nacional de Salud organizado e integrado","P012","Rectoría en Salud","SPGO0","Gasto de operación asociado a Servicios Personales","VR"]
[null,2,3,4,14,null,"Sistema Nacional de Salud organizado e integrado","P013","Asistencia social y protección del paciente"]
[null,2,3,4,14,null,"Sistema Nacional de Salud organizado e integrado","P013","Asistencia social y protección del paciente","AD010","Otorgar apoyo administrativo y sustantivo","VR"]
[null,2,3,4,14,null,"Sistema Nacional de Salud organizado e integrado","P013","Asistencia social y protección del paciente","OT011","Establecer y coordinar los mecanismos de vinculación entre la Secretaría de Salud y diversos órganos políticos federales y estatales con injerencia en el sector salud","VR"]
[null,2,3,4,14,null,"Sistema Nacional de Salud organizado e integrado","P013","Asistencia social y protección del paciente","OT031","Integrar información de los servicios estatales de salud","VR"]
[null,2,3,4,14,null,"Sistema Nacional de Salud organizado e integrado","P013","Asistencia social y protección del paciente","OT090","Diseño de estrategias y mecanismos de coordinación con las entidades federativas y los municipios a nivel nacional","VR"]
[null,2,3,4,14,null,"Sistema Nacional de Salud organizado e integrado","P013","Asistencia social y protección del paciente","RM030","Recursos consolidados por la Dirección General de Recursos Materiales y Servicios Generales.","VR"]
[null,2,3,4,14,null,"Sistema Nacional de Salud organizado e integrado","P013","Asistencia social y protección del paciente","RTI40","Recursos consolidados por la Dirección General de Tecnologias de la Información.","VR"]
[null,2,3,4,14,null,"Sistema Nacional de Salud organizado e integrado","P013","Asistencia social y protección del paciente","SP010","Servicios personales","VR"]
[null,2,3,4,14,null,"Sistema Nacional de Salud organizado e integrado","P013","Asistencia social y protección del paciente","SPGO0","Gasto de operación asociado a Servicios Personales","VR"]
[null,2,3,4,14,null,"Sistema Nacional de Salud organizado e integrado","P013","Asistencia social y protección del paciente","TS010","Promoción de la donación voluntaria y altruista de sangre y células progenitoras o troncales","VR"]
[null,2,3,4,14,null,"Sistema Nacional de Salud organizado e integrado","P013","Asistencia social y protección del paciente","TS020","Seguridad de células progenitoras o troncales","VR"]
[null,2,3,4,14,null,"Sistema Nacional de Salud organizado e integrado","P013","Asistencia social y protección del paciente","TS040","Seguridad de la sangre y componentes sanguíneos","VR"]
[null,2,3,4,14,null,"Sistema Nacional de Salud organizado e integrado","P016","Prevención y atención de VIH/SIDA y otras ITS"]
[null,2,3,4,14,null,"Sistema Nacional de Salud organizado e integrado","P016","Prevención y atención de VIH/SIDA y otras ITS","MJ040","Desarrollar acciones específicas para promover la atención integral de la salud de la mujer (VIH/SIDA)","VR"]
[null,2,3,4,14,null,"Sistema Nacional de Salud organizado e integrado","P016","Prevención y atención de VIH/SIDA y otras ITS","SP010","Servicios personales","VR"]
[null,2,3,4,14,null,"Sistema Nacional de Salud organizado e integrado","P016","Prevención y atención de VIH/SIDA y otras ITS","SPGO0","Gasto de operación asociado a Servicios Personales","VR"]
[null,2,3,4,14,null,"Sistema Nacional de Salud organizado e integrado","P016","Prevención y atención de VIH/SIDA y otras ITS","VH010","Prevención y/o atención del VIH-SIDA en la población","VR"]
[null,2,3,4,14,null,"Sistema Nacional de Salud organizado e integrado","P016","Prevención y atención de VIH/SIDA y otras ITS","VH040","Realizar protocolo de investigación Impacto de la supresión de HHV-8 en pacientes con Sarcoma de Kaposi grave en el desarrollo de SIRI y en mortalidad atribuible","VR"]
[null,2,3,4,14,null,"Sistema Nacional de Salud organizado e integrado","P018","Prevención y control de enfermedades"]
[null,2,3,4,14,null,"Sistema Nacional de Salud organizado e integrado","P018","Prevención y control de enfermedades","AC010","Fortalecer la instrumentación de políticas y criterios técnicos en materia de prevención de lesiones por accidentes","VR"]
[null,2,3,4,14,null,"Sistema Nacional de Salud organizado e integrado","P018","Prevención y control de enfermedades","AC020","Fortalecer la instrumentación de políticas y criterios técnicos en materia de prevención de lesiones por accidentes","VR"]
[null,2,3,4,14,null,"Sistema Nacional de Salud organizado e integrado","P018","Prevención y control de enfermedades","AD010","Otorgar apoyo administrativo y sustantivo","VR"]
[null,2,3,4,14,null,"Sistema Nacional de Salud organizado e integrado","P018","Prevención y control de enfermedades","AM010","Atención médica especializada a mujeres con enfermedad pulmonar intersticial difusa (EPID)","VR"]
[null,2,3,4,14,null,"Sistema Nacional de Salud organizado e integrado","P018","Prevención y control de enfermedades","EE010","Realizar operativos de apoyo a las entidades federativas ante urgencias epidemiológicas y desastres","VR"]
[null,2,3,4,14,null,"Sistema Nacional de Salud organizado e integrado","P018","Prevención y control de enfermedades","EE020","Realizar operativos de apoyo para la vigilancia epidemiológica, prevención y control de enfermedades transmitidas por vectores e intoxicación por picadura de alacrán","VR"]
[null,2,3,4,14,null,"Sistema Nacional de Salud organizado e integrado","P018","Prevención y control de enfermedades","EE030","Supervisar, capacitar, normar, asesorar y evaluar en  prevención  y atención en el adulto y adulto mayor, en las enfermedades de mayor prevalencia y control de las enfermedades crónicas no transmisibles (diabetes, riesgo cardiovascular y dislipidemia","VR"]
[null,2,3,4,14,null,"Sistema Nacional de Salud organizado e integrado","P018","Prevención y control de enfermedades","EE040","Reforzar la vigilancia epidemiológica a través del análisis y diagnóstico de referencia","VR"]
[null,2,3,4,14,null,"Sistema Nacional de Salud organizado e integrado","P018","Prevención y control de enfermedades","EE050","Supervisar, capacitar, normar, asesorar y evaluar en la prevención y control de  la tuberculosis y la lepra","VR"]
[null,2,3,4,14,null,"Sistema Nacional de Salud organizado e integrado","P018","Prevención y control de enfermedades","EE060","Supervisar, capacitar, normar, asesorar y evaluar en la prevención y control de la tuberculosis, la lepra y respiratorias.Neumonía adquirida en la comunidad, Enfermedad Pulmonar Obstructiva Crónica EPOC, Asma e Influenza.","VR"]
[null,2,3,4,14,null,"Sistema Nacional de Salud organizado e integrado","P018","Prevención y control de enfermedades","EE070","Supervisar, capacitar, normar, asesorar y evaluar en la prevención y control de enfermedades transmitidas por rabia, brucelosis, rickettsiosis (Fiebre Manchada de las Montañas Rocosas)","VR"]
[null,2,3,4,14,null,"Sistema Nacional de Salud organizado e integrado","P018","Prevención y control de enfermedades","EE080","Fomentar, proteger y restablecer la salud bucal, con parte de la salud integral de la población mexicana","VR"]
[null,2,3,4,14,null,"Sistema Nacional de Salud organizado e integrado","P018","Prevención y control de enfermedades","PP010","Participar en el diseño e implantación de las políticas públicas en materia de promoción de la salud, vigilancia epidemiológica, atención de urgencias y prevención de enfermedades transmisibles","VR"]
[null,2,3,4,14,null,"Sistema Nacional de Salud organizado e integrado","P018","Prevención y control de enfermedades","PP030","Participar en el diseño e implantación de las políticas públicas en materia de salud pública, enfermedades emergentes, atención de urgencias epidemiológicas y desastres naturales","VR"]
[null,2,3,4,14,null,"Sistema Nacional de Salud organizado e integrado","P018","Prevención y control de enfermedades","RM030","Recursos consolidados por la Dirección General de Recursos Materiales y Servicios Generales.","VR"]
[null,2,3,4,14,null,"Sistema Nacional de Salud organizado e integrado","P018","Prevención y control de enfermedades","RTI40","Recursos consolidados por la Dirección General de Tecnologias de la Información.","VR"]
[null,2,3,4,14,null,"Sistema Nacional de Salud organizado e integrado","P018","Prevención y control de enfermedades","SM020","Garantizar la protección de los derechos humanos de los usuarios de los servicios en salud mental conforme a la normatividad y el Programa Nacional de Salud Mental.","VR"]
[null,2,3,4,14,null,"Sistema Nacional de Salud organizado e integrado","P018","Prevención y control de enfermedades","SM030","Verificar la aplicación de los recursos en las actividades de rehabilitación psicosocial (Talleres, paseos terapéuticos, bancos de reforzadores) en las Entidades Federativas.","VR"]
[null,2,3,4,14,null,"Sistema Nacional de Salud organizado e integrado","P018","Prevención y control de enfermedades","SP010","Servicios personales","VR"]
[null,2,3,4,14,null,"Sistema Nacional de Salud organizado e integrado","P018","Prevención y control de enfermedades","SPGO0","Gasto de operación asociado a Servicios Personales","VR"]
[null,2,3,4,14,null,"Sistema Nacional de Salud organizado e integrado","P020","Salud materna, sexual y reproductiva"]
[null,2,3,4,14,null,"Sistema Nacional de Salud organizado e integrado","P020","Salud materna, sexual y reproductiva","AP010","Salud materna y perinatal","VR"]
[null,2,3,4,14,null,"Sistema Nacional de Salud organizado e integrado","P020","Salud materna, sexual y reproductiva","CC010","Realizar acciones para el manejo multidisciplinario al paciente con padecimientos oncológicos y su familia, a través de la Clínica de Cáncer Familiar","VR"]
[null,2,3,4,14,null,"Sistema Nacional de Salud organizado e integrado","P020","Salud materna, sexual y reproductiva","CC011","Reforzamiento del programa de detección y atención de Cáncer de Pulmon en Mujeres no asociado a tabaquismo.","VR"]
[null,2,3,4,14,null,"Sistema Nacional de Salud organizado e integrado","P020","Salud materna, sexual y reproductiva","CC021","Reforzamiento del programa de detección y atención de Cáncer Cervicouterino.","VR"]
[null,2,3,4,14,null,"Sistema Nacional de Salud organizado e integrado","P020","Salud materna, sexual y reproductiva","CC031","Contribuir a mejorar el tratamiento integral con equipo multidisciplinario, a las pacientes con diagnóstico de cáncer de mama","VR"]
[null,2,3,4,14,null,"Sistema Nacional de Salud organizado e integrado","P020","Salud materna, sexual y reproductiva","CC041","Contribuir a mejorar el tratamiento integral con equipo multidisciplinario, a las pacientes con diagnóstico de cáncer de ovario; así como la difusión y prevención de esta neoplasia","VR"]
[null,2,3,4,14,null,"Sistema Nacional de Salud organizado e integrado","P020","Salud materna, sexual y reproductiva","CC050","Programa de Prevención y Control de Cáncer de la Mujer","VR"]
[null,2,3,4,14,null,"Sistema Nacional de Salud organizado e integrado","P020","Salud materna, sexual y reproductiva","CC070","Programa de Prevención y Control de Cáncer Cérvico Uterino","VR"]
[null,2,3,4,14,null,"Sistema Nacional de Salud organizado e integrado","P020","Salud materna, sexual y reproductiva","CC080","Reforzamiento del programa de detección y atención de Cáncer Cérvico Uterino.","VR"]
[null,2,3,4,14,null,"Sistema Nacional de Salud organizado e integrado","P020","Salud materna, sexual y reproductiva","CC090","Reforzamiento del programa de detección y atención de  Cáncer de Mama","VR"]
[null,2,3,4,14,null,"Sistema Nacional de Salud organizado e integrado","P020","Salud materna, sexual y reproductiva","CC091","Cáncer de la mujer","VR"]
[null,2,3,4,14,null,"Sistema Nacional de Salud organizado e integrado","P020","Salud materna, sexual y reproductiva","CCICT","Cáncer de pulmón en mujeres con mutaciones de receptor de factor de crecimiento epidérmico (EGFR) no asociado a tabaquismo","VR"]
[null,2,3,4,14,null,"Sistema Nacional de Salud organizado e integrado","P020","Salud materna, sexual y reproductiva","CCIVO","Programa de acceso, atención, promoción, difusión e investigación del cáncer de ovario","VR"]
[null,2,3,4,14,null,"Sistema Nacional de Salud organizado e integrado","P020","Salud materna, sexual y reproductiva","MJ050","Programa para mujeres y la igualdad de genero","VR"]
[null,2,3,4,14,null,"Sistema Nacional de Salud organizado e integrado","P020","Salud materna, sexual y reproductiva","MJ070","Salud Materna","VR"]
[null,2,3,4,14,null,"Sistema Nacional de Salud organizado e integrado","P020","Salud materna, sexual y reproductiva","MJ080","Salud Perinatal","VR"]
[null,2,3,4,14,null,"Sistema Nacional de Salud organizado e integrado","P020","Salud materna, sexual y reproductiva","PG020","Prevención y atención de la violencia familiar y de género","VR"]
[null,2,3,4,14,null,"Sistema Nacional de Salud organizado e integrado","P020","Salud materna, sexual y reproductiva","PG030","Violencia de género","VR"]
[null,2,3,4,14,null,"Sistema Nacional de Salud organizado e integrado","P020","Salud materna, sexual y reproductiva","PG040","Igualdad de género y Salud","VR"]
[null,2,3,4,14,null,"Sistema Nacional de Salud organizado e integrado","P020","Salud materna, sexual y reproductiva","RM030","Recursos consolidados por la Dirección General de Recursos Materiales y Servicios Generales.","VR"]
[null,2,3,4,14,null,"Sistema Nacional de Salud organizado e integrado","P020","Salud materna, sexual y reproductiva","RTI40","Recursos consolidados por la Dirección General de Tecnologias de la Información.","VR"]
[null,2,3,4,14,null,"Sistema Nacional de Salud organizado e integrado","P020","Salud materna, sexual y reproductiva","SP010","Servicios personales","VR"]
[null,2,3,4,14,null,"Sistema Nacional de Salud organizado e integrado","P020","Salud materna, sexual y reproductiva","SPGO0","Gasto de operación asociado a Servicios Personales","VR"]
[null,2,3,4,14,null,"Sistema Nacional de Salud organizado e integrado","P020","Salud materna, sexual y reproductiva","SR030","Anticoncepción, planificación familiar y salud sexual","VR"]
[null,2,3,4,14,null,"Sistema Nacional de Salud organizado e integrado","P020","Salud materna, sexual y reproductiva","SR040","Salud sexual y reproductiva en la adolescencia","VR"]
[null,2,3,4,14,null,"Sistema Nacional de Salud organizado e integrado","P020","Salud materna, sexual y reproductiva","SR050","Aborto Seguro","VR"]
[null,2,3,4,25,null,"Políticas de calidad implementadas en el Sistema Nacional de Salud",null,""]
[null,2,3,4,25,null,"Políticas de calidad implementadas en el Sistema Nacional de Salud","P012","Rectoría en Salud"]
[null,2,3,4,25,null,"Políticas de calidad implementadas en el Sistema Nacional de Salud","P012","Rectoría en Salud","00000",null,"VR"]
[null,2,3,4,25,null,"Políticas de calidad implementadas en el Sistema Nacional de Salud","P012","Rectoría en Salud","CL021","Impulso del modelo de gestión de calidad en salud","VR"]
[null,2,3,4,25,null,"Políticas de calidad implementadas en el Sistema Nacional de Salud","P012","Rectoría en Salud","OT022","Planeación para el desarrollo sectorial en salud","VR"]
[null,2,3,4,25,null,"Políticas de calidad implementadas en el Sistema Nacional de Salud","P012","Rectoría en Salud","RM030","Recursos consolidados por la Dirección General de Recursos Materiales y Servicios Generales.","VR"]
[null,2,3,4,25,null,"Políticas de calidad implementadas en el Sistema Nacional de Salud","P012","Rectoría en Salud","RTI40","Recursos consolidados por la Dirección General de Tecnologias de la Información.","VR"]
[null,2,3,4,25,null,"Políticas de calidad implementadas en el Sistema Nacional de Salud","P012","Rectoría en Salud","SP010","Servicios personales","VR"]
[null,2,3,4,25,null,"Políticas de calidad implementadas en el Sistema Nacional de Salud","P012","Rectoría en Salud","SPGO0","Gasto de operación asociado a Servicios Personales","VR"]
[null,2,3,4,25,null,"Políticas de calidad implementadas en el Sistema Nacional de Salud","P013","Asistencia social y protección del paciente"]
[null,2,3,4,25,null,"Políticas de calidad implementadas en el Sistema Nacional de Salud","P013","Asistencia social y protección del paciente","00000",null,"VR"]
[null,2,3,4,25,null,"Políticas de calidad implementadas en el Sistema Nacional de Salud","P013","Asistencia social y protección del paciente","AB010","Fortalecer  a la queja médica como medida preventiva para mejorar  la calidad de los servicios de salud","VR"]
[null,2,3,4,25,null,"Políticas de calidad implementadas en el Sistema Nacional de Salud","P013","Asistencia social y protección del paciente","AB020","Impulsar el registro y análisis de la queja de los incidentes en salud.","VR"]
[null,2,3,4,25,null,"Políticas de calidad implementadas en el Sistema Nacional de Salud","P013","Asistencia social y protección del paciente","AB030","Fortalecimiento del Sistema Nacional de Salud a través de atención de las quejas médicas","VR"]
[null,2,3,4,25,null,"Políticas de calidad implementadas en el Sistema Nacional de Salud","P013","Asistencia social y protección del paciente","CT010","Programa interno con el fin de centralizar los recursos de los servicios que su pago se realiza de manera centralizada.","VR"]
[null,2,3,4,25,null,"Políticas de calidad implementadas en el Sistema Nacional de Salud","P013","Asistencia social y protección del paciente","OT021","Consolidación de las Comisiones Nacional, Estatales de Bioética y los Comités Hospitalarios de Bioética y de Ética en investigación","VR"]
[null,2,3,4,25,null,"Políticas de calidad implementadas en el Sistema Nacional de Salud","P013","Asistencia social y protección del paciente","OT050","Difundir la cultura bioética entre la sociedad, impulsar la capacitación del personal y la formación de profesionales en la materia","VR"]
[null,2,3,4,25,null,"Políticas de calidad implementadas en el Sistema Nacional de Salud","P013","Asistencia social y protección del paciente","OT081","Promoción de la observancia de criterios de bioética internacionales acordes con el interés y las políticas de salud del país","VR"]
[null,2,3,4,25,null,"Políticas de calidad implementadas en el Sistema Nacional de Salud","P013","Asistencia social y protección del paciente","RM030","Recursos consolidados por la Dirección General de Recursos Materiales y Servicios Generales.","VR"]
[null,2,3,4,25,null,"Políticas de calidad implementadas en el Sistema Nacional de Salud","P013","Asistencia social y protección del paciente","RTI40","Recursos consolidados por la Dirección General de Tecnologias de la Información.","VR"]
[null,2,3,4,25,null,"Políticas de calidad implementadas en el Sistema Nacional de Salud","P013","Asistencia social y protección del paciente","SP010","Servicios personales","VR"]
[null,2,3,4,25,null,"Políticas de calidad implementadas en el Sistema Nacional de Salud","P013","Asistencia social y protección del paciente","SPGO0","Gasto de operación asociado a Servicios Personales","VR"]
[null,2,3,4,25,null,"Políticas de calidad implementadas en el Sistema Nacional de Salud","P016","Prevención y atención de VIH/SIDA y otras ITS"]
[null,2,3,4,25,null,"Políticas de calidad implementadas en el Sistema Nacional de Salud","P016","Prevención y atención de VIH/SIDA y otras ITS","AD010","Otorgar apoyo administrativo y sustantivo","VR"]
[null,2,3,4,25,null,"Políticas de calidad implementadas en el Sistema Nacional de Salud","P016","Prevención y atención de VIH/SIDA y otras ITS","RM030","Recursos consolidados por la Dirección General de Recursos Materiales y Servicios Generales.","VR"]
[null,2,3,4,25,null,"Políticas de calidad implementadas en el Sistema Nacional de Salud","P016","Prevención y atención de VIH/SIDA y otras ITS","RTI40","Recursos consolidados por la Dirección General de Tecnologias de la Información.","VR"]
[null,2,3,4,25,null,"Políticas de calidad implementadas en el Sistema Nacional de Salud","P016","Prevención y atención de VIH/SIDA y otras ITS","SP010","Servicios personales","VR"]
[null,2,3,4,25,null,"Políticas de calidad implementadas en el Sistema Nacional de Salud","P016","Prevención y atención de VIH/SIDA y otras ITS","SPGO0","Gasto de operación asociado a Servicios Personales","VR"]
[null,2,3,4,25,null,"Políticas de calidad implementadas en el Sistema Nacional de Salud","P016","Prevención y atención de VIH/SIDA y otras ITS","VH020","Promover atención integral de las personas con VIH-SIDA e ITS","VR"]
[null,2,3,4,25,null,"Políticas de calidad implementadas en el Sistema Nacional de Salud","P016","Prevención y atención de VIH/SIDA y otras ITS","VH030","Prevención del VIH/SIDA y otras ITS","VR"]
[null,2,3,5,null,null,null,null,"",null,"Protección Social en Salud"]
[null,2,3,5,2,null,"Servicios de apoyo administrativo",null,""]
[null,2,3,5,2,null,"Servicios de apoyo administrativo","M001","Actividades de apoyo administrativo"]
[null,2,3,5,2,null,"Servicios de apoyo administrativo","M001","Actividades de apoyo administrativo","SP010","Servicios personales","VR"]
[null,2,3,5,2,null,"Servicios de apoyo administrativo","M001","Actividades de apoyo administrativo","SPGO0","Gasto de operación asociado a Servicios Personales","VR"]
[null,2,3,5,15,null,"Promoción de la salud y prevención y control de enfermedades fortalecidas e integradas sectorial e intersectorialmente",null,""]
[null,2,3,5,15,null,"Promoción de la salud y prevención y control de enfermedades fortalecidas e integradas sectorial e intersectorialmente","S200","Fortalecimiento a la atención médica"]
[null,2,3,5,15,null,"Promoción de la salud y prevención y control de enfermedades fortalecidas e integradas sectorial e intersectorialmente","S200","Fortalecimiento a la atención médica","SP010","Servicios personales","VR"]
[null,2,3,5,18,null,"Prestación de servicios del Sistema Nacional de Salud organizados e integrados",null,""]
[null,2,3,5,18,null,"Prestación de servicios del Sistema Nacional de Salud organizados e integrados","E023","Atención a la Salud"]
[null,2,3,5,18,null,"Prestación de servicios del Sistema Nacional de Salud organizados e integrados","E023","Atención a la Salud","AM010","Atención médica especializada a mujeres con enfermedad pulmonar intersticial difusa (EPID)","VR"]
[null,2,3,5,18,null,"Prestación de servicios del Sistema Nacional de Salud organizados e integrados","E023","Atención a la Salud","AM030","Otorgar atención ambulatoria","VR"]
[null,2,3,5,18,null,"Prestación de servicios del Sistema Nacional de Salud organizados e integrados","E023","Atención a la Salud","CT010","Programa interno con el fin de centralizar los recursos de los servicios que su pago se realiza de manera centralizada.","VR"]
[null,2,3,5,18,null,"Prestación de servicios del Sistema Nacional de Salud organizados e integrados","E023","Atención a la Salud","GSS01","Gratuidad de los Servicios de Salud.","VR"]
[null,2,3,5,18,null,"Prestación de servicios del Sistema Nacional de Salud organizados e integrados","E023","Atención a la Salud","OE001","Asignación de recursos transitorios por reubicar.","VR"]
[null,2,3,5,18,null,"Prestación de servicios del Sistema Nacional de Salud organizados e integrados","E023","Atención a la Salud","SPGO0","Gasto de operación asociado a Servicios Personales","VR"]
[null,2,3,5,18,null,"Prestación de servicios del Sistema Nacional de Salud organizados e integrados","U012","Fortalecimiento de los Servicios Estatales de Salud"]
[null,2,3,5,18,null,"Prestación de servicios del Sistema Nacional de Salud organizados e integrados","U012","Fortalecimiento de los Servicios Estatales de Salud","00000",null,"VR"]
[null,2,3,5,18,null,"Prestación de servicios del Sistema Nacional de Salud organizados e integrados","U012","Fortalecimiento de los Servicios Estatales de Salud","SPGO0","Gasto de operación asociado a Servicios Personales","VR"]
[null,2,3,5,20,null,"Infraestructura suficiente, equipamiento óptimo e insumos seguros para la salud",null,""]
[null,2,3,5,20,null,"Infraestructura suficiente, equipamiento óptimo e insumos seguros para la salud","S281","Programa Nacional de Reconstrucción"]
[null,2,3,5,20,null,"Infraestructura suficiente, equipamiento óptimo e insumos seguros para la salud","S281","Programa Nacional de Reconstrucción","SPGO0","Gasto de operación asociado a Servicios Personales","VR"]
[null,2,3,5,22,null,"Reforma financiera consolidada con acceso universal a los servicios de salud a la persona",null,""]
[null,2,3,5,22,null,"Reforma financiera consolidada con acceso universal a los servicios de salud a la persona","E036","Programa de vacunación"]
[null,2,3,5,22,null,"Reforma financiera consolidada con acceso universal a los servicios de salud a la persona","E036","Programa de vacunación","COVID","Adquisición de vacunas COVID-19 , insumos y translado.","VR"]
[null,2,3,5,22,null,"Reforma financiera consolidada con acceso universal a los servicios de salud a la persona","E036","Programa de vacunación","SP010","Servicios personales","VR"]
[null,2,3,5,22,null,"Reforma financiera consolidada con acceso universal a los servicios de salud a la persona","E036","Programa de vacunación","VA010","Programa de Vacunación","VR"]
[null,2,3,5,22,null,"Reforma financiera consolidada con acceso universal a los servicios de salud a la persona","P016","Prevención y atención de VIH/SIDA y otras ITS"]
[null,2,3,5,22,null,"Reforma financiera consolidada con acceso universal a los servicios de salud a la persona","P016","Prevención y atención de VIH/SIDA y otras ITS","VH020","Promover atención integral de las personas con VIH-SIDA e ITS","VR"]
[null,2,3,5,22,null,"Reforma financiera consolidada con acceso universal a los servicios de salud a la persona","P016","Prevención y atención de VIH/SIDA y otras ITS","VH030","Prevención del VIH/SIDA y otras ITS","VR"]
[null,2,3,5,22,null,"Reforma financiera consolidada con acceso universal a los servicios de salud a la persona","P020","Salud materna, sexual y reproductiva"]
[null,2,3,5,22,null,"Reforma financiera consolidada con acceso universal a los servicios de salud a la persona","P020","Salud materna, sexual y reproductiva","CC091","Cáncer de la mujer","VR"]
[null,2,3,5,22,null,"Reforma financiera consolidada con acceso universal a los servicios de salud a la persona","P020","Salud materna, sexual y reproductiva","EE040","Reforzar la vigilancia epidemiológica a través del análisis y diagnóstico de referencia","VR"]
[null,2,3,5,22,null,"Reforma financiera consolidada con acceso universal a los servicios de salud a la persona","P020","Salud materna, sexual y reproductiva","MJ070","Salud Materna","VR"]
[null,2,3,5,22,null,"Reforma financiera consolidada con acceso universal a los servicios de salud a la persona","P020","Salud materna, sexual y reproductiva","MJ080","Salud Perinatal","VR"]
[null,2,3,5,22,null,"Reforma financiera consolidada con acceso universal a los servicios de salud a la persona","P020","Salud materna, sexual y reproductiva","PG030","Violencia de género","VR"]
[null,2,3,5,22,null,"Reforma financiera consolidada con acceso universal a los servicios de salud a la persona","P020","Salud materna, sexual y reproductiva","PG040","Igualdad de género y Salud","VR"]
[null,2,3,5,22,null,"Reforma financiera consolidada con acceso universal a los servicios de salud a la persona","P020","Salud materna, sexual y reproductiva","RM030","Recursos consolidados por la Dirección General de Recursos Materiales y Servicios Generales.","VR"]
[null,2,3,5,22,null,"Reforma financiera consolidada con acceso universal a los servicios de salud a la persona","P020","Salud materna, sexual y reproductiva","SP010","Servicios personales","VR"]
[null,2,3,5,22,null,"Reforma financiera consolidada con acceso universal a los servicios de salud a la persona","P020","Salud materna, sexual y reproductiva","SPGO0","Gasto de operación asociado a Servicios Personales","VR"]
[null,2,3,5,22,null,"Reforma financiera consolidada con acceso universal a los servicios de salud a la persona","P020","Salud materna, sexual y reproductiva","SR030","Anticoncepción, planificación familiar y salud sexual","VR"]
[null,2,3,5,22,null,"Reforma financiera consolidada con acceso universal a los servicios de salud a la persona","P020","Salud materna, sexual y reproductiva","SR040","Salud sexual y reproductiva en la adolescencia","VR"]
[null,2,3,5,22,null,"Reforma financiera consolidada con acceso universal a los servicios de salud a la persona","P020","Salud materna, sexual y reproductiva","SR050","Aborto Seguro","VR"]
[null,2,6,null,null,null,null,null,"",null,"Protección Social"]
[null,2,6,8,null,null,null,null,"",null,"Otros Grupos Vulnerables"]
[null,2,6,8,2,null,"Servicios de apoyo administrativo",null,""]
[null,2,6,8,2,null,"Servicios de apoyo administrativo","M001","Actividades de apoyo administrativo"]
[null,2,6,8,2,null,"Servicios de apoyo administrativo","M001","Actividades de apoyo administrativo","AD010","Otorgar apoyo administrativo y sustantivo","VR"]
[null,2,6,8,2,null,"Servicios de apoyo administrativo","M001","Actividades de apoyo administrativo","RM030","Recursos consolidados por la Dirección General de Recursos Materiales y Servicios Generales.","VR"]
[null,2,6,8,2,null,"Servicios de apoyo administrativo","M001","Actividades de apoyo administrativo","RTI40","Recursos consolidados por la Dirección General de Tecnologias de la Información.","VR"]
[null,2,6,8,2,null,"Servicios de apoyo administrativo","M001","Actividades de apoyo administrativo","SP010","Servicios personales","VR"]
[null,2,6,8,2,null,"Servicios de apoyo administrativo","M001","Actividades de apoyo administrativo","SPGO0","Gasto de operación asociado a Servicios Personales","VR"]
[null,2,6,8,12,null,"Asistencia social, comunitaria y beneficencia pública justa y equitativa (asistencia pública)",null,""]
[null,2,6,8,12,null,"Asistencia social, comunitaria y beneficencia pública justa y equitativa (asistencia pública)","E010","Formación y capacitación de recursos humanos para la salud"]
[null,2,6,8,12,null,"Asistencia social, comunitaria y beneficencia pública justa y equitativa (asistencia pública)","E010","Formación y capacitación de recursos humanos para la salud","AS010","Profesionalización de los servicios en Centros de Rehabilitación del DIF","VR"]
[null,2,6,8,12,null,"Asistencia social, comunitaria y beneficencia pública justa y equitativa (asistencia pública)","E040","Servicios de asistencia social integral"]
[null,2,6,8,12,null,"Asistencia social, comunitaria y beneficencia pública justa y equitativa (asistencia pública)","E040","Servicios de asistencia social integral","AS040","Servicios de atención a población vulnerable","VR"]
[null,2,6,8,12,null,"Asistencia social, comunitaria y beneficencia pública justa y equitativa (asistencia pública)","E040","Servicios de asistencia social integral","SP010","Servicios personales","VR"]
[null,2,6,8,12,null,"Asistencia social, comunitaria y beneficencia pública justa y equitativa (asistencia pública)","E040","Servicios de asistencia social integral","SPGO0","Gasto de operación asociado a Servicios Personales","VR"]
[null,2,6,8,12,null,"Asistencia social, comunitaria y beneficencia pública justa y equitativa (asistencia pública)","E041","Protección y restitución de los derechos de las niñas, niños y adolescentes"]
[null,2,6,8,12,null,"Asistencia social, comunitaria y beneficencia pública justa y equitativa (asistencia pública)","E041","Protección y restitución de los derechos de las niñas, niños y adolescentes","AS020","Protección y restitución de los derechos de las niñas, niños y adolescentes","VR"]
[null,2,6,8,12,null,"Asistencia social, comunitaria y beneficencia pública justa y equitativa (asistencia pública)","E041","Protección y restitución de los derechos de las niñas, niños y adolescentes","AS040","Servicios de atención a población vulnerable","VR"]
[null,2,6,8,12,null,"Asistencia social, comunitaria y beneficencia pública justa y equitativa (asistencia pública)","E041","Protección y restitución de los derechos de las niñas, niños y adolescentes","SP010","Servicios personales","VR"]
[null,2,6,8,12,null,"Asistencia social, comunitaria y beneficencia pública justa y equitativa (asistencia pública)","E041","Protección y restitución de los derechos de las niñas, niños y adolescentes","SPGO0","Gasto de operación asociado a Servicios Personales","VR"]
[null,2,6,8,12,null,"Asistencia social, comunitaria y beneficencia pública justa y equitativa (asistencia pública)","P013","Asistencia social y protección del paciente"]
[null,2,6,8,12,null,"Asistencia social, comunitaria y beneficencia pública justa y equitativa (asistencia pública)","P013","Asistencia social y protección del paciente","AS010","Profesionalización de los servicios en Centros de Rehabilitación del DIF","VR"]
[null,2,6,8,12,null,"Asistencia social, comunitaria y beneficencia pública justa y equitativa (asistencia pública)","P013","Asistencia social y protección del paciente","AS030","Promover políticas para la asistencia social DIF","VR"]
[null,2,6,8,12,null,"Asistencia social, comunitaria y beneficencia pública justa y equitativa (asistencia pública)","P013","Asistencia social y protección del paciente","AS040","Servicios de atención a población vulnerable","VR"]
[null,2,6,8,12,null,"Asistencia social, comunitaria y beneficencia pública justa y equitativa (asistencia pública)","P013","Asistencia social y protección del paciente","OT071","Realizar acciones de filantropía en materia de salud","VR"]
[null,2,6,8,12,null,"Asistencia social, comunitaria y beneficencia pública justa y equitativa (asistencia pública)","P013","Asistencia social y protección del paciente","RM030","Recursos consolidados por la Dirección General de Recursos Materiales y Servicios Generales.","VR"]
[null,2,6,8,12,null,"Asistencia social, comunitaria y beneficencia pública justa y equitativa (asistencia pública)","P013","Asistencia social y protección del paciente","RTI40","Recursos consolidados por la Dirección General de Tecnologias de la Información.","VR"]
[null,2,6,8,12,null,"Asistencia social, comunitaria y beneficencia pública justa y equitativa (asistencia pública)","P013","Asistencia social y protección del paciente","SP010","Servicios personales","VR"]
[null,2,6,8,12,null,"Asistencia social, comunitaria y beneficencia pública justa y equitativa (asistencia pública)","P013","Asistencia social y protección del paciente","SPGO0","Gasto de operación asociado a Servicios Personales","VR"]
[null,2,6,8,12,null,"Asistencia social, comunitaria y beneficencia pública justa y equitativa (asistencia pública)","S039","Programa de Atención a Personas con Discapacidad"]
[null,2,6,8,12,null,"Asistencia social, comunitaria y beneficencia pública justa y equitativa (asistencia pública)","S039","Programa de Atención a Personas con Discapacidad","RO040","Programa de Atención a Personas con Discapacidad","VR"]
[null,3,null,null,null,null,null,null,"",null,"Desarrollo Económico"]
[null,3,8,null,null,null,null,null,"",null,"Ciencia, Tecnología e Innovación"]
[null,3,8,1,null,null,null,null,"",null,"Investigación Científica"]
[null,3,8,1,24,null,"Investigación en salud pertinente y de excelencia académica",null,""]
[null,3,8,1,24,null,"Investigación en salud pertinente y de excelencia académica","E022","Investigación y desarrollo tecnológico en salud"]
[null,3,8,1,24,null,"Investigación en salud pertinente y de excelencia académica","E022","Investigación y desarrollo tecnológico en salud","AD010","Otorgar apoyo administrativo y sustantivo","VR"]
[null,3,8,1,24,null,"Investigación en salud pertinente y de excelencia académica","E022","Investigación y desarrollo tecnológico en salud","AM040","Otorgar atención hospitalaria","VR"]
[null,3,8,1,24,null,"Investigación en salud pertinente y de excelencia académica","E022","Investigación y desarrollo tecnológico en salud","IV010","Fomentar la investigación en salud","VR"]
[null,3,8,1,24,null,"Investigación en salud pertinente y de excelencia académica","E022","Investigación y desarrollo tecnológico en salud","IV020","Difusión de la investigación","VR"]
[null,3,8,1,24,null,"Investigación en salud pertinente y de excelencia académica","E022","Investigación y desarrollo tecnológico en salud","IV030","Desarrollar la investigación clínica","VR"]
[null,3,8,1,24,null,"Investigación en salud pertinente y de excelencia académica","E022","Investigación y desarrollo tecnológico en salud","IV040","Desarrollar la investigación tecnológica","VR"]
[null,3,8,1,24,null,"Investigación en salud pertinente y de excelencia académica","E022","Investigación y desarrollo tecnológico en salud","IV050","Desarrollar la investigación en socio medicina","VR"]
[null,3,8,1,24,null,"Investigación en salud pertinente y de excelencia académica","E022","Investigación y desarrollo tecnológico en salud","IV060","Fortalecimiento de recursos humanos para investigación","VR"]
[null,3,8,1,24,null,"Investigación en salud pertinente y de excelencia académica","E022","Investigación y desarrollo tecnológico en salud","IV080","Desarrollar la investigación biomédica","VR"]
[null,3,8,1,24,null,"Investigación en salud pertinente y de excelencia académica","E022","Investigación y desarrollo tecnológico en salud","IV110","Fomentar la investigación en salud (DGPIS)","VR"]
[null,3,8,1,24,null,"Investigación en salud pertinente y de excelencia académica","E022","Investigación y desarrollo tecnológico en salud","IV160","Fortalecimiento de recursos humanos para investigación (DGPIS)","VR"]
[null,3,8,1,24,null,"Investigación en salud pertinente y de excelencia académica","E022","Investigación y desarrollo tecnológico en salud","OT041","Otorgar servicios de Información y difusión en salud","VR"]
[null,3,8,1,24,null,"Investigación en salud pertinente y de excelencia académica","E022","Investigación y desarrollo tecnológico en salud","RM030","Recursos consolidados por la Dirección General de Recursos Materiales y Servicios Generales.","VR"]
[null,3,8,1,24,null,"Investigación en salud pertinente y de excelencia académica","E022","Investigación y desarrollo tecnológico en salud","SP010","Servicios personales","VR"]
[null,3,8,1,24,null,"Investigación en salud pertinente y de excelencia académica","E022"," Investigación y desarrollo tecnológico en salud","SPGO0","Gasto de operación asociado a Servicios Personales","VR"]

{"sheet":"3.Catálogo COG","index":7,"n_rows":631,"n_cols":6,"rows_kept":631,"cut":false,"hidden":false,"merged":[]}
[]
[null,"3. Catálogo del Clasificador por Objeto de Gasto"]
[]
[null,"Cve_Capítulo ","Cve_Concepto ","Cve_Partida genérica ó partida específica","Descripción","Indicador "]
[null,1,null,null,"Gasto corriente"]
[null,1000,null,null,"Servicios Personales"]
[null,1000,1100,null,"Remuneraciones al personal de carácter permanente"]
[null,1000,1100,1110,"Dietas","VR"]
[null,1000,1100,1120,"Haberes","VR"]
[null,1000,1100,1130,"Sueldos base al personal permanente","VR"]
[null,1000,1100,1140,"Remuneraciones por adscripción laboral en el extranjero","VR"]
[null,1000,1200,null,"Remuneraciones al personal de carácter transitorio"]
[null,1000,1200,1210,"Honorarios asimilables a salarios","VR"]
[null,1000,1200,1220,"Sueldos base al personal eventual"]
[null,1000,1200,12201,"Remuneraciones al personal eventual ","VR"]
[null,1000,1200,12202,"Compensaciones a sustitutos de profesores","VR"]
[null,1000,1200,1230,"Retribuciones por servicios de carácter social"]
[null,1000,1200,12301,"Retribuciones por servicios en período de formación profesional","VR"]
[null,1000,1200,1240,"Retribución a los representantes de los trabajadores y de los patrones en la Junta de Conciliación y Arbitraje","VR"]
[null,1000,1300,null,"Remuneraciones adicionales y especiales"]
[null,1000,1300,1310,"Primas por años de servicios efectivos prestados"]
[null,1000,1300,13101,"Prima quinquenal por años de servicios efectivos prestados","VR"]
[null,1000,1300,13102,"Acreditación por años de servicio en la docencia y al personal administrativo de las instituciones de educación superior","VR"]
[null,1000,1300,13103,"Prima de perseverancia por años de servicio activo en el Ejército, Fuerza Aérea y Armada Mexicanos","VR"]
[null,1000,1300,13104,"Antigüedad","VR"]
[null,1000,1300,1320,"Primas de vacaciones, dominical y gratificación de fin de año"]
[null,1000,1300,13201,"Primas de vacaciones y dominical","VR"]
[null,1000,1300,13202,"Gratificación de fin de año","VR"]
[null,1000,1300,1330,"Horas extraordinarias","VR"]
[null,1000,1300,1340,"Compensaciones"]
[null,1000,1300,13401,"Acreditación por titulación en la docencia","VR"]
[null,1000,1300,13402,"Acreditación al personal docente por años de estudio de licenciatura","VR"]
[null,1000,1300,13403,"Compensaciones por servicios especiales","VR"]
[null,1000,1300,13404,"Compensaciones por servicios eventuales","VR"]
[null,1000,1300,13405,"Compensaciones de retiro","VR"]
[null,1000,1300,13406,"Compensaciones de servicios","VR"]
[null,1000,1300,13407,"Compensaciones adicionales por servicios especiales","VR"]
[null,1000,1300,13408,"Asignaciones docentes, pedagógicas genéricas y específicas","VR"]
[null,1000,1300,13409,"Compensación por adquisición de material didáctico","VR"]
[null,1000,1300,13410,"Compensación por actualización y formación académica","VR"]
[null,1000,1300,13411,"Compensaciones a médicos residentes","VR"]
[null,1000,1300,13412,"Gastos contingentes para el personal radicado en el extranjero","VR"]
[null,1000,1300,13413,"Asignaciones para la conclusión de servicios en la Administración Pública Federal","VR"]
[null,1000,1300,13414,"Asignaciones conforme al régimen laboral","VR"]
[null,1000,1300,1350,"Sobrehaberes","VR"]
[null,1000,1300,1360,"Asignaciones de técnico, de mando, por comisión, de vuelo y de técnico especial"]
[null,1000,1300,13601,"Asignaciones de técnico","VR"]
[null,1000,1300,13602,"Asignaciones de mando","VR"]
[null,1000,1300,13603,"Asignaciones por comisión","VR"]
[null,1000,1300,13604,"Asignaciones de vuelo","VR"]
[null,1000,1300,13605,"Asignaciones de técnico especial","VR"]
[null,1000,1300,1370,"Honorarios especiales","VR"]
[null,1000,1300,1380,"Participaciones por vigilancia en el cumplimiento de las leyes y custodia de valores","VR"]
[null,1000,1400,null,"Seguridad Social"]
[null,1000,1400,1410,"Aportaciones de seguridad social"]
[null,1000,1400,14101,"Aportaciones al ISSSTE","VR"]
[null,1000,1400,14102,"Aportaciones al ISSFAM","VR"]
[null,1000,1400,14103,"Aportaciones al IMSS","VR"]
[null,1000,1400,14104,"Aportaciones de seguridad social contractuales","VR"]
[null,1000,1400,14105,"Aportaciones al seguro de cesantía en edad avanzada y vejez","VR"]
[null,1000,1400,1420,"Aportaciones a fondos de vivienda"]
[null,1000,1400,14201,"Aportaciones al FOVISSSTE","VR"]
[null,1000,1400,14202,"Aportaciones al INFONAVIT","VR"]
[null,1000,1400,1430,"Aportaciones al sistema para el retiro"]
[null,1000,1400,14301,"Aportaciones al sistema de ahorro para el retiro","VR"]
[null,1000,1400,14302,"Depósitos para el ahorro solidario","VR"]
[null,1000,1400,1440,"Aportaciones para seguros"]
[null,1000,1400,14401,"Cuotas para el seguro de vida del personal civil","VR"]
[null,1000,1400,14402,"Cuotas para el seguro de vida del personal militar","VR"]
[null,1000,1400,14403,"Cuotas para el seguro de gastos médicos del personal civil","VR"]
[null,1000,1400,14404,"Cuotas para el seguro de separación individualizado","VR"]
[null,1000,1400,14405,"Cuotas para el seguro colectivo de retiro","VR"]
[null,1000,1400,14406,"Seguro de responsabilidad civil, asistencia legal y otros seguros","VR"]
[null,1000,1500,null,"Otras prestaciones sociales y económicas"]
[null,1000,1500,1510,"Cuotas para el fondo de ahorro y fondo de trabajo"]
[null,1000,1500,15101,"Cuotas para el fondo de ahorro del personal civil","VR"]
[null,1000,1500,15102,"Cuotas para el fondo de ahorro de generales, almirantes, jefes y oficiales","VR"]
[null,1000,1500,15103,"Cuotas para el fondo de trabajo del personal del Ejército, Fuerza Aérea y Armada Mexicanos","VR"]
[null,1000,1500,1520,"Indemnizaciones"]
[null,1000,1500,15201,"Indemnizaciones por accidentes en el trabajo","VR"]
[null,1000,1500,15202," Pago de liquidaciones","VR"]
[null,1000,1500,1530,"Prestaciones y haberes de retiro","VR"]
[null,1000,1500,1540,"Prestaciones contractuales"]
[null,1000,1500,15401,"Prestaciones establecidas por condiciones generales de trabajo o contratos colectivos de trabajo","VR"]
[null,1000,1500,15402,"Compensación garantizada","VR"]
[null,1000,1500,15403,"Asignaciones adicionales al sueldo","VR"]
[null,1000,1500,1550,"Apoyos a la capacitación de los servidores públicos","VR"]
[null,1000,1500,1590,"Otras prestaciones sociales y económicas"]
[null,1000,1500,15901,"Otras prestaciones","VR"]
[null,1000,1500,15902,"Pago extraordinario por riesgo","VR"]
[null,1000,1600,null,"Previsiones"]
[null,1000,1600,1610,"Previsiones de carácter laboral, económica y de seguridad social"]
[null,1000,1600,16101,"Incrementos a las percepciones","VR"]
[null,1000,1600,16102,"Creación de plazas","VR"]
[null,1000,1600,16103,"Otras medidas de carácter laboral y económico","VR"]
[null,1000,1600,16104,"Previsiones para aportaciones al ISSSTE","VR"]
[null,1000,1600,16105,"Previsiones para aportaciones al FOVISSSTE","VR"]
[null,1000,1600,16106,"Previsiones para aportaciones al Sistema de Ahorro para el Retiro","VR"]
[null,1000,1600,16107,"Previsiones para aportaciones al seguro de cesantía en edad avanzada y vejez","VR"]
[null,1000,1600,16108,"Previsiones para los depósitos al ahorro solidario","VR"]
[null,1000,1600,16109,"Previsiones por adecuaciones a las estructuras ocupacionales","VR"]
[null,1000,1700,null,"Pago de estímulos a servidores públicos"]
[null,1000,1700,1710,"Estímulos"]
[null,1000,1700,17101,"Estímulos por productividad y eficiencia","VR"]
[null,1000,1700,17102,"Estímulos al personal operativo","VR"]
[null,1000,1700,1720,"Recompensas","VR"]
[null,2000,null,null,"Materiales y Suministros"]
[null,2000,2100,null,"Materiales de administración, emisión de documentos y articulos oficiales"]
[null,2000,2100,2110,"Materiales, útiles y equipos menores de oficina","VR"]
[null,2000,2100,2120,"Materiales y útiles de impresión y reproducción","VR"]
[null,2000,2100,2130,"Material estadístico y geográfico","VR"]
[null,2000,2100,2140,"Materiales, útiles y equipos menores de tecnologías de la información y comunicaciones","VR"]
[null,2000,2100,2150,"Material impreso e información digital"]
[null,2000,2100,21501,"Material de apoyo informativo","VR"]
[null,2000,2100,21502,"Material para información en actividades de investigación científica y tecnológica","VR"]
[null,2000,2100,2160,"Material de limpieza","VR"]
[null,2000,2100,2170,"Materiales y útiles de enseñanza","VR"]
[null,2000,2100,2180,"Materiales para el registro e identificación de bienes y personas","VR"]
[null,2000,2200,null,"Alimentos y Utensilios"]
[null,2000,2200,2210,"Productos alimenticios para personas"]
[null,2000,2200,22101,"Productos alimenticios para el Ejército, Fuerza Aérea y Armada Mexicanos, y para los efectivos que participen en programas de seguridad pública","VR"]
[null,2000,2200,22102,"Productos alimenticios para personas derivado de la prestación de servicios públicos en unidades de salud, educativas, de readaptación social y otras","VR"]
[null,2000,2200,22103,"Productos alimenticios para el personal que realiza labores en campo o de supervisión","VR"]
[null,2000,2200,22104,"Productos alimenticios para el personal en las instalaciones de las dependencias y entidades","VR"]
[null,2000,2200,22105,"Productos alimenticios para la población en caso de desastres naturales","VR"]
[null,2000,2200,22106,"Productos alimenticios para el personal derivado de actividades extraordinarias","VR"]
[null,2000,2200,2220,"Productos alimenticios para animales","VR"]
[null,2000,2200,2230,"Utensilios para el servicio de alimentación","VR"]
[null,2000,2300,null,"Materias primas y de producción y comercialización"]
[null,2000,2300,2310,"Productos alimenticios, agropecuarios y forestales adquiridos como materia prima","VR"]
[null,2000,2300,2320,"Insumos textiles adquiridos como materia prima","VR"]
[null,2000,2300,2330,"Productos de papel, cartón e impresos adquiridos como materia prima","VR"]
[null,2000,2300,2340,"Combustibles, lubricantes, aditivos, carbón y sus derivados adquiridos como materia prima","VR"]
[null,2000,2300,2350,"Productos químicos, farmacéuticos y de laboratorio adquiridos como materia prima","VR"]
[null,2000,2300,2360,"Productos metálicos y a base de minerales no metálicos adquiridos como materia prima","VR"]
[null,2000,2300,2370,"Productos de cuero, piel, plástico y hule adquiridos como materia prima","VR"]
[null,2000,2300,2380,"Mercancías adquiridas para su comercialización","VR"]
[null,2000,2300,2390,"Otros productos adquiridos como materia prima"]
[null,2000,2300,23901,"Otros productos adquiridos como materia prima","VR"]
[null,2000,2300,23902,"Petróleo, gas y sus derivados adquiridos como materia prima","VR"]
[null,2000,2400,null,"Materiales y artículos de construcción y de reparación"]
[null,2000,2400,2410,"Productos minerales no metálicos","VR"]
[null,2000,2400,2420,"Cemento y productos de concreto","VR"]
[null,2000,2400,2430,"Cal, yeso y productos de yeso","VR"]
[null,2000,2400,2440,"Madera y productos de madera","VR"]
[null,2000,2400,2450,"Vidrio y productos de vidrio","VR"]
[null,2000,2400,2460,"Material eléctrico y electrónico","VR"]
[null,2000,2400,2470,"Artículos metálicos para la construcción","VR"]
[null,2000,2400,2480,"Materiales complementarios","VR"]
[null,2000,2400,2490,"Otros materiales y artículos de construcción y reparación","VR"]
[null,2000,2500,null,"Productos químicos, farmacéuticos y de laboratorio"]
[null,2000,2500,2510,"Productos químicos básicos","VR"]
[null,2000,2500,2520,"Fertilizantes, pesticidas y otros agroquímicos","VR"]
[null,2000,2500,2530,"Medicinas y productos farmacéuticos","VR"]
[null,2000,2500,2540,"Materiales, accesorios y suministros médicos","VR"]
[null,2000,2500,2550,"Materiales, accesorios y suministros de laboratorio","VR"]
[null,2000,2500,2560,"Fibras sintéticas, hules, plásticos y derivados","VR"]
[null,2000,2500,2590,"Otros productos químicos","VR"]
[null,2000,2600,null,"Combustibles, lubricantes y aditivos"]
[null,2000,2600,2610,"Combustibles, lubricantes y aditivos"]
[null,2000,2600,26101,"Combustibles, lubricantes y aditivos para vehículos terrestres, aéreos, marítimos, lacustres y fluviales destinados a la ejecución de programas de seguridad pública y nacional","VR"]
[null,2000,2600,26102,"Combustibles, lubricantes y aditivos para vehículos terrestres, aéreos, marítimos, lacustres y fluviales destinados a servicios públicos y la operación de programas públicos","VR"]
[null,2000,2600,26103,"Combustibles, lubricantes y aditivos para vehículos terrestres, aéreos, marítimos, lacustres y fluviales destinados a servicios administrativos","VR"]
[null,2000,2600,26104,"Combustibles, lubricantes y aditivos para vehículos terrestres, aéreos, marítimos, lacustres y fluviales asignados a servidores públicos","VR"]
[null,2000,2600,26105,"Combustibles, lubricantes y aditivos para maquinaria, equipo de producción y servicios administrativos","VR"]
[null,2000,2600,26106,"PIDIREGAS cargos variables","VR"]
[null,2000,2600,26107,"Combustibles nacionales para plantas productivas","VR"]
[null,2000,2600,26108,"Combustibles de importación para plantas productivas","VR"]
[null,2000,2600,2620,"Carbón y sus derivados","VR"]
[null,2000,2700,null,"Vestuario, blancos, prendas de protección y artículos deportivos"]
[null,2000,2700,2710,"Vestuario y uniformes","VR"]
[null,2000,2700,2720,"Prendas de seguridad y protección personal","VR"]
[null,2000,2700,2730,"Artículos deportivos","VR"]
[null,2000,2700,2740,"Productos textiles","VR"]
[null,2000,2700,2750,"Blancos y otros productos textiles, excepto prendas de vestir","VR"]
[null,2000,2800,null,"Materiales y suministros para seguridad"]
[null,2000,2800,2810,"Sustancias y materiales explosivos","VR"]
[null,2000,2800,2820,"Materiales de seguridad pública","VR"]
[null,2000,2800,2830,"Prendas de protección para seguridad pública y nacional","VR"]
[null,2000,2900,null,"Herramientas, refacciones y accesorios menores"]
[null,2000,2900,2910,"Herramientas menores","VR"]
[null,2000,2900,2920,"Refacciones y accesorios menores de edificios","VR"]
[null,2000,2900,2930,"Refacciones y accesorios menores de mobiliario y equipo de administración, educacional y recreativo","VR"]
[null,2000,2900,2940,"Refacciones y accesorios menores de equipo de cómputo y tecnologías de la información","VR"]
[null,2000,2900,2950,"Refacciones y accesorios menores de equipo e instrumental médico y de laboratorio","VR"]
[null,2000,2900,2960,"Refacciones y accesorios menores de equipo de transporte","VR"]
[null,2000,2900,2970,"Refacciones y accesorios menores de equipo de defensa y seguridad","VR"]
[null,2000,2900,2980,"Refacciones y accesorios menores de maquinaria y otros equipos","VR"]
[null,2000,2900,2990,"Refacciones y accesorios menores otros bienes muebles","VR"]
[null,3000,null,null,"Servicios Generales"]
[null,3000,3100,null,"Servicios básicos"]
[null,3000,3100,3110,"Energía eléctrica","VR"]
[null,3000,3100,3120,"Gas","VR"]
[null,3000,3100,3130,"Agua","VR"]
[null,3000,3100,3140,"Telefonía tradicional","VR"]
[null,3000,3100,3150,"Telefonía celular","VR"]
[null,3000,3100,3160,"Servicios de telecomunicaciones y satélites"]
[null,3000,3100,31601,"Servicio de radiolocalización","VR"]
[null,3000,3100,31602,"Servicios de telecomunicaciones","VR"]
[null,3000,3100,31603,"Servicios de internet","VR"]
[null,3000,3100,3170,"Servicios de acceso de Internet, redes y procesamiento de información","VR"]
[null,3000,3100,3180,"Servicios postales y telegráficos"]
[null,3000,3100,31801,"Servicio postal","VR"]
[null,3000,3100,31802,"Servicio telegráfico","VR"]
[null,3000,3100,3190,"Servicios integrales y otros servicios"]
[null,3000,3100,31901,"Servicios integrales de telecomunicación","VR"]
[null,3000,3100,31902,"Contratación de otros servicios","VR"]
[null,3000,3100,31903,"Servicios generales para planteles educativos","VR"]
[null,3000,3100,31904,"Servicios integrales de infraestructura de cómputo","VR"]
[null,3000,3200,null,"Servicios de arrendamiento"]
[null,3000,3200,3210,"Arrendamiento de terrenos","VR"]
[null,3000,3200,3220,"Arrendamiento de edificios","VR"]
[null,3000,3200,3230,"Arrendamiento de mobiliario y equipo de administración, educacional y recreativo"]
[null,3000,3200,32301,"Arrendamiento de equipo y bienes informáticos","VR"]
[null,3000,3200,32302,"Arrendamiento de mobiliario","VR"]
[null,3000,3200,32303,"Arrendamiento de equipo de telecomunicaciones","VR"]
[null,3000,3200,3240,"Arrendamiento de equipo e instrumental médico y de laboratorio","VR"]
[null,3000,3200,3250,"Arrendamiento de equipo de transporte"]
[null,3000,3200,32501,"Arrendamiento de vehículos terrestres, aéreos, marítimos, lacustres y fluviales para la ejecución de programas de seguridad pública y nacional","VR"]
[null,3000,3200,32502,"Arrendamiento de vehículos terrestres, aéreos, marítimos, lacustres y fluviales para servicios públicos y la operación de programas públicos","VR"]
[null,3000,3200,32503,"Arrendamiento de vehículos terrestres, aéreos, marítimos, lacustres y fluviales para servicios administrativos","VR"]
[null,3000,3200,32504,"Arrendamiento de vehículos terrestres, aéreos, marítimos, lacustres y fluviales para desastres naturales","VR"]
[null,3000,3200,32505,"Arrendamiento de vehículos terrestres, aéreos, marítimos, lacustres y fluviales para servidores públicos","VR"]
[null,3000,3200,3260,"Arrendamiento de maquinaria, otros equipos y herramientas","VR"]
[null,3000,3200,3270,"Arrendamiento de activos intangibles","VR"]
[null,3000,3200,3280,"Arrendamiento financiero","VR"]
[null,3000,3200,3290,"Otros arrendamientos"]
[null,3000,3200,32901,"Arrendamiento de sustancias y productos químicos","VR"]
[null,3000,3200,32902,"PIDIREGAS cargos fijos","VR"]
[null,3000,3200,32903,"Otros Arrendamientos","VR"]
[null,3000,3300,null,"Servicios profesionales, científicos, técnicos y otros servicios"]
[null,3000,3300,3310,"Servicios legales, de contabilidad, auditoría y relacionados"]
[null,3000,3300,33101,"Asesorías asociadas a convenios, tratados o acuerdos","VR"]
[null,3000,3300,33102,"Asesorías por controversias en el marco de los tratados internacionales","VR"]
[null,3000,3300,33103,"Consultorías para programas o proyectos financiados por organismos internacionales","VR"]
[null,3000,3300,33104,"Otras asesorías para la operación de programas","VR"]
[null,3000,3300,33105,"Servicios relacionados con procedimientos jurisdiccionales","VR"]
[null,3000,3300,3320,"Servicios de diseño, arquitectura, ingeniería y actividades relacionadas","VR"]
[null,3000,3300,3330,"Servicios de consultoría administrativa, procesos, técnica y en tecnologías de la información"]
[null,3000,3300,33301,"Servicios de desarrollo de aplicaciones informáticas","VR"]
[null,3000,3300,33302,"Servicios estadísticos y geográficos","VR"]
[null,3000,3300,33303,"Servicios relacionados con certificación de procesos","VR"]
[null,3000,3300,33304,"Servicios de mantenimiento de aplicaciones informáticas","VR"]
[null,3000,3300,3340,"Servicios de capacitación","VR"]
[null,3000,3300,3350,"Servicios de investigación científica y desarrollo","VR"]
[null,3000,3300,3360,"Servicios de apoyo administrativo, traducción, fotocopiado e impresión"]
[null,3000,3300,33601,"Servicios relacionados con traducciones","VR"]
[null,3000,3300,33602,"Otros servicios comerciales","VR"]
[null,3000,3300,33603,"Impresiones de documentos oficiales para la prestación de servicios públicos, identificación, formatos administrativos y fiscales, formas valoradas, certificados y títulos","VR"]
[null,3000,3300,33604,"Impresión y elaboración de material informativo derivado de la operación y administración de las dependencias y entidades","VR"]
[null,3000,3300,33605,"Información en medios masivos derivada de la operación y administración de las dependencias y entidades","VR"]
[null,3000,3300,33606,"Servicios de digitalización","VR"]
[null,3000,3300,3370,"Servicios de protección y seguridad"]
[null,3000,3300,33701,"Gastos de seguridad pública y nacional","VR"]
[null,3000,3300,33702,"Gastos en actividades de seguridad y logística del Estado Mayor Presidencial","VR"]
[null,3000,3300,3380,"Servicios de vigilancia","VR"]
[null,3000,3300,3390,"Servicios profesionales, científicos y técnicos integrales"]
[null,3000,3300,33901,"Subcontratación de servicios con terceros","VR"]
[null,3000,3300,33902,"Proyectos para prestación de servicios","VR"]
[null,3000,3300,33903,"Servicios integrales","VR"]
[null,3000,3300,33904,"Asignaciones derivadas de proyectos de asociación público privada","VR"]
[null,3000,3300,33905,"Servicios integrales en materia de seguridad pública y nacional","VR"]
[null,3000,3300,33906,"Asignaciones para cubrir el pago de obligaciones derivadas de títulos de concesión o de asignación.","VR"]
[null,3000,3400,null,"Servicios financieros, bancarios y comerciales"]
[null,3000,3400,3410,"Servicios financieros y bancarios","VR"]
[null,3000,3400,3420,"Servicios de cobranza, investigación crediticia y similar","VR"]
[null,3000,3400,3430,"Servicios de recaudación, traslado y custodia de valores","VR"]
[null,3000,3400,3440,"Seguros de responsabilidad patrimonial y fianzas","VR"]
[null,3000,3400,3450,"Seguro de bienes patrimoniales","VR"]
[null,3000,3400,3460,"Almacenaje, envase y embalaje","VR"]
[null,3000,3400,3470,"Fletes y maniobras","VR"]
[null,3000,3400,3480,"Comisiones por ventas","VR"]
[null,3000,3400,3490,"Servicios financieros, bancarios y comerciales integrales","VR"]
[null,3000,3500,null,"Servicios de instalación, reparación, mantenimiento y conservación"]
[null,3000,3500,3510,"Conservación y mantenimineto menor de inmuebles"]
[null,3000,3500,35101,"Mantenimiento y conservación de inmuebles para la prestación de servicios administrativos","VR"]
[null,3000,3500,35102,"Mantenimiento y conservación de inmuebles para la prestación de servicios públicos","VR"]
[null,3000,3500,3520,"Instalación, reparación y mantenimiento de mobiliario y equipo de administración, educacional y recreativo","VR"]
[null,3000,3500,3530,"Instalación, reparación y mantenimiento de equipo de cómputo y tecnología de la información","VR"]
[null,3000,3500,3540,"Instalación, reparación y mantenimiento de equipo e instrumental médico y de laboratorio","VR"]
[null,3000,3500,3550,"Reparación y mantenimiento de equipo de transporte","VR"]
[null,3000,3500,3560,"Reparación y mantenimiento de equipo de defensa y seguridad","VR"]
[null,3000,3500,3570,"Instalación, reparación y mantenimiento de maquinaria, otros equipos y herramienta"]
[null,3000,3500,35701,"Mantenimiento y conservación de maquinaria y equipo","VR"]
[null,3000,3500,35702,"Mantenimiento y conservación de plantas e instalaciones productivas","VR"]
[null,3000,3500,3580,"Servicios de limpieza y manejo de desechos","VR"]
[null,3000,3500,3590,"Servicios de jardinería y fumigación","VR"]
[null,3000,3600,null,"Servicios de comunicación social y publicidad"]
[null,3000,3600,3610,"Difusión por radio, televisión y otros medios de mensajes sobre programas y actividades gubernamentales","VR"]
[null,3000,3600,3620,"Difusión por radio, televisión y otros medios de mensajes comerciales para promover la venta de bienes o servicios","VR"]
[null,3000,3600,3630,"Servicios de creatividad, preproducción y producción de publicidad, excepto Internet","VR"]
[null,3000,3600,3640,"Servicios de revelado de fotografías","VR"]
[null,3000,3600,3650,"Servicios de la industria fílmica, del sonido y del video","VR"]
[null,3000,3600,3660,"Servicio de creación y difusión de contenido exclusivamente a través de Internet","VR"]
[null,3000,3600,3690,"Otros servicios de información","VR"]
[null,3000,3700,null,"Servicios de traslado y viáticos"]
[null,3000,3700,3710,"Pasajes aéreos"]
[null,3000,3700,37101,"Pasajes aéreos nacionales para labores en campo y de supervisión","VR"]
[null,3000,3700,37102,"Pasajes aéreos nacionales asociados a los programas de seguridad pública y nacional","VR"]
[null,3000,3700,37103,"Pasajes aéreos nacionales asociados a desastres naturales","VR"]
[null,3000,3700,37104,"Pasajes aéreos nacionales para servidores públicos de mando en el desempeño de comisiones y funciones oficiales","VR"]
[null,3000,3700,37105,"Pasajes aéreos internacionales asociados a los programas de seguridad pública y nacional","VR"]
[null,3000,3700,37106,"Pasajes aéreos internacionales para servidores públicos en el desempeño de comisiones y funciones oficiales","VR"]
[null,3000,3700,3720,"Pasajes terrestres"]
[null,3000,3700,37201,"Pasajes terrestres nacionales para labores en campo y de supervisión","VR"]
[null,3000,3700,37202,"Pasajes terrestres nacionales asociados a los programas de seguridad pública y nacional","VR"]
[null,3000,3700,37203,"Pasajes terrestres nacionales asociados a desastres naturales","VR"]
[null,3000,3700,37204,"Pasajes terrestres nacionales para servidores públicos de mando en el desempeño de comisiones y funciones oficiales","VR"]
[null,3000,3700,37205,"Pasajes terrestres internacionales asociados a los programas de seguridad pública y nacional","VR"]
[null,3000,3700,37206,"Pasajes terrestres internacionales para servidores públicos en el desempeño de comisiones y funciones oficiales","VR"]
[null,3000,3700,37207,"Pasajes terrestres nacionales por medio electrónico","VR"]
[null,3000,3700,3730,"Pasajes marítimos, lacustres y fluviales"]
[null,3000,3700,37301,"Pasajes terrestres nacionales para labores en campo y de supervisión","VR"]
[null,3000,3700,37302,"Pasajes terrestres nacionales asociados a los programas de seguridad pública y nacional","VR"]
[null,3000,3700,37303,"Pasajes terrestres nacionales asociados a desastres naturales","VR"]
[null,3000,3700,37304,"Pasajes terrestres nacionales para servidores públicos de mando en el desempeño de comisiones y funciones oficiales","VR"]
[null,3000,3700,3740,"Autotransporte","VR"]
[null,3000,3700,3750,"Viáticos en el país"]
[null,3000,3700,37501,"Viáticos nacionales para labores en campo y de supervisión","VR"]
[null,3000,3700,37502,"Viáticos nacionales asociados a los programas de seguridad pública y nacional","VR"]
[null,3000,3700,37503,"Viáticos nacionales asociados a desastres naturales","VR"]
[null,3000,3700,37504,"Viáticos nacionales para servidores públicos en el desempeño de funciones oficiales","VR"]
[null,3000,3700,3760,"Viáticos en el extranjero"]
[null,3000,3700,37601,"Viáticos en el extranjero asociados a los programas de seguridad pública y nacional","VR"]
[null,3000,3700,37602,"Viáticos en el extranjero para servidores públicos en el desempeño de comisiones y funciones oficiales","VR"]
[null,3000,3700,3770,"Gastos de instalación y traslado de menaje","VR"]
[null,3000,3700,3780,"Servicios integrales de traslado y viáticos"]
[null,3000,3700,37801,"Servicios integrales nacionales para servidores públicos en el desempeño de comisiones y funciones oficiales","VR"]
[null,3000,3700,37802,"Servicios integrales en el extranjero para servidores públicos en el desempeño de comisiones y funciones oficiales","VR"]
[null,3000,3700,3790,"Otros servicios de traslado y hospedaje","VR"]
[null,3000,3800,null,"Servicios Oficiales"]
[null,3000,3800,3810,"Gastos de ceremonial"]
[null,3000,3800,38101,"Gastos de ceremonial del titular del Ejecutivo Federal","VR"]
[null,3000,3800,38102,"Gastos de ceremonial de los titulares de las dependencias y entidades","VR"]
[null,3000,3800,38103,"Gastos inherentes a la investidura presidencial","VR"]
[null,3000,3800,3820,"Gastos de orden social y cultural","VR"]
[null,3000,3800,3830,"Congresos y convenciones","VR"]
[null,3000,3800,3840,"Exposiciones","VR"]
[null,3000,3800,3850,"Gastos de representación","VR"]
[null,3000,3900,null,"Otros Servicios Generales"]
[null,3000,3900,3910,"Servicios funerarios y de cementerios","VR"]
[null,3000,3900,3920,"Impuestos y derechos"]
[null,3000,3900,39201,"Impuestos y derechos de exportación","VR"]
[null,3000,3900,39202,"Otros impuestos y derechos","VR"]
[null,3000,3900,3930,"Impuestos y derechos de importación","VR"]
[null,3000,3900,3940,"Sentencias y resoluciones por autoridad competente"]
[null,3000,3900,39401,"Erogaciones por resoluciones por autoridad competente","VR"]
[null,3000,3900,39402,"Indemnizaciones por expropiación de predios","VR"]
[null,3000,3900,39403,"Otras asignaciones derivadas de resoluciones de ley","VR"]
[null,3000,3900,3950,"Penas, multas, accesorios y actualizaciones","VR"]
[null,3000,3900,3960,"Otros gastos por responsabilidades"]
[null,3000,3900,39601,"Pérdidas del erario federal","VR"]
[null,3000,3900,39602,"Otros gastos por responsabilidades","VR"]
[null,3000,3900,3970,"Utilidades","VR"]
[null,3000,3900,3980,"Impuesto sobre nóminas y otros que se deriven de una relación laboral","VR"]
[null,3000,3900,3990,"Otros servicios generales"]
[null,3000,3900,39901,"Gastos de las Comisiones Internacionales de Límites y Aguas","VR"]
[null,3000,3900,39902,"Gastos de las oficinas del Servicio Exterior Mexicano","VR"]
[null,3000,3900,39904,"Participaciones en Órganos de Gobierno","VR"]
[null,3000,3900,39905,"Actividades de Coordinación con el Presidente Electo","VR"]
[null,3000,3900,39906,"Servicios Corporativos prestados por las Entidades Paraestatales a sus organismos","VR"]
[null,3000,3900,39907,"Servicios prestados entre Organismos de una Entidad Paraestatal","VR"]
[null,3000,3900,39908,"Erogaciones por cuenta de terceros","VR"]
[null,3000,3900,39909,"Erogaciones recuperables","VR"]
[null,3000,3900,39910,"Apertura de Fondo Rotatorio","VR"]
[null,4000,null,null,"Transferencias, Asignaciones, Subsidios y Otras Ayudas"]
[null,4000,4100,null,"Transferencias internas y asignaciones al sector público"]
[null,4000,4100,4110,"Asignaciones presupuestarias al Poder Ejecutivo","VR"]
[null,4000,4100,4120,"Asignaciones presupuestarias al Poder Legislativo","VR"]
[null,4000,4100,4130,"Asignaciones presupuestarias al Poder Judicial","VR"]
[null,4000,4100,4140,"Asignaciones presupuestarias a Órganos Autónomos","VR"]
[null,4000,4100,4150,"Transferencias internas otorgadas a entidades paraestatales no empresariales y no financieras","VR"]
[null,4000,4100,4160,"Transferencias internas otorgadas a entidades paraestatales empresariales y no financieras","VR"]
[null,4000,4100,4170,"Transferencias internas otorgadas a fideicomisos públicos empresariales y no financieros","VR"]
[null,4000,4100,4180,"Transferencias internas otorgadas a instituciones paraestatales públicas financieras","VR"]
[null,4000,4100,4190,"Transferencias internas otorgadas a fideicomisos públicos financieros","VR"]
[null,4000,4200,null,"Transferencias al resto del sector público"]
[null,4000,4200,4210,"Transferencias otorgadas a entidades paraestatales no empresariales y no financieras","VR"]
[null,4000,4200,4220,"Transferencias otorgadas para entidades paraestatales empresariales y no financieras","VR"]
[null,4000,4200,4230,"Transferencias otorgadas para instituciones paraestatales públicas financieras","VR"]
[null,4000,4200,4240,"Transferencias otorgadas a entidades federativas y municipios","VR"]
[null,4000,4200,4250,"Transferencias a fideicomisos de entidades federativas y municipios","VR"]
[null,4000,4300,null,"Subsidios y Subvenciones"]
[null,4000,4300,4310,"Subsidios a la producción","VR"]
[null,4000,4300,4320,"Subsidios a la distribución","VR"]
[null,4000,4300,4330,"Subsidios a la inversión","VR"]
[null,4000,4300,4340,"Subsidios a la prestación de servicios públicos","VR"]
[null,4000,4300,4350,"Subsidios para cubrir diferenciales de tasas de interés","VR"]
[null,4000,4300,4360,"Subsidios a la vivienda","VR"]
[null,4000,4300,4370,"Subvenciones al consumo","VR"]
[null,4000,4300,4380,"Subsidios a las Entidades Federativas y Municipios","VR"]
[null,4000,4300,4390,"Otros Subsidios"]
[null,4000,4300,43901,"Subsidios para capacitación y becas","VR"]
[null,4000,4300,43902,"Subsidios a fideicomisos privados y estatales","VR"]
[null,4000,4400,null,"Ayudas Sociales"]
[null,4000,4400,4410,"Ayudas sociales a personas"]
[null,4000,4400,44101,"Gastos relacionados con actividades culturales, deportivas y de ayuda extraordinaria","VR"]
[null,4000,4400,44102,"Gastos por servicios de traslado de personas","VR"]
[null,4000,4400,44103,"Premios, recompensas, pensiones de gracia y pensión recreativa estudiantil","VR"]
[null,4000,4400,44104,"Premios, estímulos, recompensas, becas y seguros a deportistas","VR"]
[null,4000,4400,44105,"Apoyo a voluntarios que participan en diversos programas federales","VR"]
[null,4000,4400,44106,"Compensaciones por servicios de carácter social","VR"]
[null,4000,4400,4420,"Becas y otras ayudas para programas de capacitación","VR"]
[null,4000,4400,4430,"Ayudas sociales a instituciones de enseñanza","VR"]
[null,4000,4400,4440,"Ayudas sociales a actividades científicas o académicas"]
[null,4000,4400,44401,"Apoyos a la investigación científica y tecnológica de instituciones académicas y sector público","VR"]
[null,4000,4400,44402,"Apoyos a la investigación científica y tecnológica en instituciones sin fines de lucro","VR"]
[null,4000,4400,4450,"Ayudas sociales a instituciones sin fines de lucro","VR"]
[null,4000,4400,4460,"Ayudas sociales a cooperativas","VR"]
[null,4000,4400,4470,"Ayudas sociales a entidades de interés público","VR"]
[null,4000,4400,4480,"Ayudas por desastres naturales y otros siniestros","VR"]
[null,4000,4500,null,"Pensiones y Jubilaciones"]
[null,4000,4500,4510,"Pensiones","VR"]
[null,4000,4500,4520,"Jubilaciones"]
[null,4000,4500,45201,"Pago de pensiones y jubilaciones","VR"]
[null,4000,4500,45202,"Pago de pensiones y jubilaciones contractuales","VR"]
[null,4000,4500,45203,"Transferencias para el pago de pensiones y jubilaciones","VR"]
[null,4000,4500,4590,"Otras pensiones y jubilaciones"]
[null,4000,4500,45901,"Pago de sumas aseguradas","VR"]
[null,4000,4500,45902,"Prestaciones económicas distintas de pensiones y jubilaciones","VR"]
[null,4000,4600,null,"Transferencias a Fideicomisos, Mandatos y Otros Análogos"]
[null,4000,4600,4610,"Transferencias a fideicomisos del Poder Ejecutivo"]
[null,4000,4600,46101,"Aportaciones a fideicomisos públicos","VR"]
[null,4000,4600,46102,"Aportaciones a mandatos públicos","VR"]
[null,4000,4600,4620,"Transferencias a fideicomisos del Poder Legislativo","VR"]
[null,4000,4600,4630,"Transferencias a fideicomisos del Poder Judicial","VR"]
[null,4000,4600,4640,"Transferencias a fideicomisos públicos de entidades paraestatales no empresariales y no financieras","VR"]
[null,4000,4600,4650,"Transferencias a fideicomisos públicos de entidades paraestatales empresariales y no financieras","VR"]
[null,4000,4600,4660,"Transferencias a fideicomisos de instituciones públicas financieras","VR"]
[null,4000,4600,4690,"Otras transferencias a fideicomisos","VR"]
[null,4000,4700,null,"Transferencias a la Seguridad Social"]
[null,4000,4700,4710,"Transferencias por obligación de ley"]
[null,4000,4700,47101,"Trasferencias para cuotas y aportaciones de seguridad social para el IMSS, ISSSTE e ISSFAM por obligación del Estado","VR"]
[null,4000,4700,47102,"Transferencias para cuotas y aportaciones a los seguros de retiro, cesantía en edad avanzada y vejez","VR"]
[null,4000,4800,null,"Donativos"]
[null,4000,4800,4810,"Donativos a instituciones sin fines de lucro","VR"]
[null,4000,4800,4820,"Donativos a entidades federativas","VR"]
[null,4000,4800,4830,"Donativos a fideicomisos privados","VR"]
[null,4000,4800,4840,"Donativos a fideicomisos estatales","VR"]
[null,4000,4800,4850,"Donativos internacionales","VR"]
[null,4000,4900,null,"Transferencias al Exterior"]
[null,4000,4900,4910,"Transferencias para gobiernos extranjeros","VR"]
[null,4000,4900,4920,"Transferencias para organismos internacionales"]
[null,4000,4900,49201,"Cuotas y aportaciones a organismos internacionales","VR"]
[null,4000,4900,49202,"Otras aportaciones internacionales","VR"]
[null,4000,4900,4930,"Transferencias para el sector privado externo","VR"]
[null,7000,null,null,"Inversiones Financieras y Otras Provisiones"]
[null,7000,7100,null,"Inversiones para el Fomento de Actividades Productivas"]
[null,7000,7100,7110,"Créditos otorgados por entidades federativas y municipios al sector social y privado para el fomento de actividades productivas","VR"]
[null,7000,7100,7120,"Créditos otorgados por las entidades federativas a municipios para el fomento de actividades productivas","VR"]
[null,7000,7200,null,"Acciones y Participaciones de Capital"]
[null,7000,7200,7210,"Acciones y participaciones de capital en entidades paraestatales no empresariales y no financieras con fines de política económica","VR"]
[null,7000,7200,7220,"Acciones y participaciones de capital en entidades paraestatales empresariales y no financieras con fines de política económica","VR"]
[null,7000,7200,7230,"Acciones y participaciones de capital en instituciones paraestatales públicas financieras con fines de política económica","VR"]
[null,7000,7200,7240,"Acciones y participaciones de capital en el sector privado con fines de política económica","VR"]
[null,7000,7200,7250,"Acciones y participaciones de capital en organismos internacionales con fines de política económica","VR"]
[null,7000,7200,7260,"Acciones y participaciones de capital en el sector externo con fines de política económica","VR"]
[null,7000,7200,7270,"Acciones y participaciones de capital en el sector público con fines de gestión de liquidez","VR"]
[null,7000,7200,7280,"Acciones y participaciones de capital en el sector privado con fines de gestión de liquidez","VR"]
[null,7000,7200,7290,"Acciones y participaciones de capital en el sector externo con fines de gestión de liquidez","VR"]
[null,7000,7300,null,"Compra de Títulos y Valores"]
[null,7000,7300,7310,"Bonos","VR"]
[null,7000,7300,7320,"Valores representativos de deuda adquiridos con fines de política económica","VR"]
[null,7000,7300,7330,"Valores representativos de deuda adquiridos con fines de gestión de liquidez","VR"]
[null,7000,7300,7340,"Obligaciones negociables adquiridas con fines de política económica","VR"]
[null,7000,7300,7350,"Obligaciones negociables adquiridas con fines de gestión de liquidez","VR"]
[null,7000,7300,7390,"Otros valores"]
[null,7000,7300,73901,"Fideicomisos para adquisición de títulos de crédito","VR"]
[null,7000,7300,73902,"Adquisición de acciones","VR"]
[null,7000,7300,73903,"Adquisición de otros valores","VR"]
[null,7000,7400,null,"Concesión de Préstamos"]
[null,7000,7400,7410,"Concesión de préstamos a entidades paraestatales no empresariales y no financieras con fines de política económica","VR"]
[null,7000,7400,7420,"Concesión de préstamos a entidades paraestatales empresariales y no financieras con fines de política económica","VR"]
[null,7000,7400,7430,"Concesión de préstamos a instituciones paraestatales públicas financieras con fines de política económica","VR"]
[null,7000,7400,7440,"Concesión de préstamos a entidades federativas y municipios con fines de política económica","VR"]
[null,7000,7400,7450,"Concesión de préstamos al sector privado con fines de política económica"]
[null,7000,7400,74501,"Créditos directos para actividades productivas otorgados al sector privado con fines de política económica","VR"]
[null,7000,7400,74502,"Fideicomisos para financiamiento de obras","VR"]
[null,7000,7400,74503,"Fideicomisos para financiamientos agropecuarios","VR"]
[null,7000,7400,74504,"Fideicomisos para financiamientos industriales","VR"]
[null,7000,7400,74505,"Fideicomisos para financiamientos al comercio y otros servicios","VR"]
[null,7000,7400,74506,"Fideicomisos para financiamientos de vivienda","VR"]
[null,7000,7400,7460,"Concesión de préstamos al sector externo con fines de política económica","VR"]
[null,7000,7400,7470,"Concesión de préstamos al sector público con fines de gestión de liquidez","VR"]
[null,7000,7400,7480,"Concesión de préstamos al sector privado con fines de gestión de liquidez","VR"]
[null,7000,7400,7490,"Concesión de préstamos al sector externo con fines de gestión de liquidez","VR"]
[null,7000,7500,null,"Inversiones en Fideicomisos, Mandatos y Otros Análogos"]
[null,7000,7500,7510,"Inversiones en fideicomisos del Poder Ejecutivo","VR"]
[null,7000,7500,7520,"Inversiones en fideicomisos del Poder Legislativo","VR"]
[null,7000,7500,7530,"Inversiones en fideicomisos del Poder Judicial","VR"]
[null,7000,7500,7540,"Inversiones en fideicomisos públicos no empresariales y no financieros","VR"]
[null,7000,7500,7550,"Inversiones en fideicomisos públicos empresariales y no financieros","VR"]
[null,7000,7500,7560,"Inversiones en fideicomisos públicos financieros"]
[null,7000,7500,75601,"Inversiones en fideicomisos públicos considerados entidades paraestatales","VR"]
[null,7000,7500,75602,"Inversiones en mandatos y otros análogos","VR"]
[null,7000,7500,7570,"Inversiones en fideicomisos de entidades federativas","VR"]
[null,7000,7500,7580,"Inversiones en fideicomisos de municipios","VR"]
[null,7000,7500,7590,"Otras inversiones en fideicomisos","VR"]
[null,7000,7600,null,"Otras Inversiones Financieras"]
[null,7000,7600,7610,"Depósitos a largo plazo en moneda nacional","VR"]
[null,7000,7600,7620,"Depósitos a largo plazo en moneda extranjera","VR"]
[null,7000,7900,null,"Provisiones para Contingencias y Otras Erogaciones Especiales"]
[null,7000,7900,7910,"Contingencias por fenómenos naturales","VR"]
[null,7000,7900,7920,"Contingencias socioeconómicas","VR"]
[null,7000,7900,7990,"Otras erogaciones especiales"]
[null,7000,7900,79901,"Erogaciones contingentes","VR"]
[null,7000,7900,79902,"Provisiones para Erogaciones Especiales","VR"]
[null,2,null,null,"Gasto de inversión"]
[null,5000,null,null,"Bienes Muebles, Inmuebles e Intangibles"]
[null,5000,5100,null,"Mobiliario y Equipo de Administración"]
[null,5000,5100,5110,"Muebles de oficina y estantería","VR"]
[null,5000,5100,5120,"Muebles, excepto de oficina y estantería","VR"]
[null,5000,5100,5130,"Bienes artísticos, culturales y científicos","VR"]
[null,5000,5100,5140,"Objetos de valor","VR"]
[null,5000,5100,5150,"Equipo de cómputo y de tecnologías de la información","VR"]
[null,5000,5100,5190,"Otros mobiliarios y equipos de administración"]
[null,5000,5100,51901,"Equipo de administración","VR"]
[null,5000,5100,51902,"Adjudicaciones, expropiaciones e indemnizaciones de bienes muebles","VR"]
[null,5000,5200,null,"Mobiliario y Equipo Educacional y Recreativo"]
[null,5000,5200,5210,"Equipos y aparatos audiovisuales","VR"]
[null,5000,5200,5220,"Aparatos deportivos","VR"]
[null,5000,5200,5230,"Cámaras fotográficas y de video","VR"]
[null,5000,5200,5290,"Otro mobiliario y equipo educacional y recreativo","VR"]
[null,5000,5300,null,"Equipo e Instrumental Médico y de Laboratorio"]
[null,5000,5300,5310,"Equipo médico y de laboratorio","VR"]
[null,5000,5300,5320,"Instrumental médico y de laboratorio","VR"]
[null,5000,5400,null,"Vehículos y Equipo de Transporte"]
[null,5000,5400,5410,"Vehículos y Equipo Terrestre"]
[null,5000,5400,54101,"Vehículos y equipo terrestres, para la ejecución de programas de seguridad pública y nacional","VR"]
[null,5000,5400,54102,"Vehículos y equipo terrestres, destinados exclusivamente para desastres naturales","VR"]
[null,5000,5400,54103,"Vehículos y equipo terrestres, destinados a servicios públicos y la operación de programas públicos","VR"]
[null,5000,5400,54104,"Vehículos y equipo terrestres, destinados a servicios administrativos","VR"]
[null,5000,5400,54105,"Vehículos y equipo terrestres, destinados a servidores públicos","VR"]
[null,5000,5400,5420,"Carrocerías y remolques","VR"]
[null,5000,5400,5430,"Equipo aeroespacial"]
[null,5000,5400,54301,"Vehículos y equipo aéreo, para la ejecución de programas de seguridad pública y nacional","VR"]
[null,5000,5400,54302,"Vehículos y equipo aéreo, destinados exclusivamente para desastres naturales","VR"]
[null,5000,5400,54303,"Vehículos y equipo aéreo, destinados a servicios públicos y la operación de programas públicos","VR"]
[null,5000,5400,5440,"Equipo ferroviario","VR"]
[null,5000,5400,5450,"Embarcaciones"]
[null,5000,5400,54501,"Vehículos y equipo marítimo, para la ejecución de programas de seguridad pública y nacional","VR"]
[null,5000,5400,54502,"Vehículos y equipo marítimo, destinados a servicios públicos y la operación de programas públicos","VR"]
[null,5000,5400,54503,"Construcción de embarcaciones","VR"]
[null,5000,5400,5490,"Otros equipos de transporte","VR"]
[null,5000,5500,null,"Equipo de Defensa y Seguridad"]
[null,5000,5500,5510,"Equipo de defensa y seguridad"]
[null,5000,5500,55101,"Maquinaria y equipo de defensa y seguridad pública","VR"]
[null,5000,5500,55102,"Equipo de seguridad pública y nacional","VR"]
[null,5000,5600,null,"Maquinaria, Otros Equipos y Herramientas"]
[null,5000,5600,5610,"Maquinaria y equipo agropecuario","VR"]
[null,5000,5600,5620,"Maquinaria y equipo industrial","VR"]
[null,5000,5600,5630,"Maquinaria y equipo de construcción","VR"]
[null,5000,5600,5640,"Sistemas de aire acondicionado, calefacción y de refrigeración industrial y comercial","VR"]
[null,5000,5600,5650,"Equipo de comunicación y telecomunicación","VR"]
[null,5000,5600,5660,"Equipos de generación eléctrica, aparatos y accesorios eléctricos","VR"]
[null,5000,5600,5670,"Herramientas y máquinas-herramienta","VR"]
[null,5000,5600,5690,"Otros equipos"]
[null,5000,5600,56901,"Bienes muebles por arrendamiento financiero","VR"]
[null,5000,5600,56902,"Otros bienes muebles","VR"]
[null,5000,5700,null,"Activos Biológicos"]
[null,5000,5700,5710,"Bovinos","VR"]
[null,5000,5700,5720,"Porcinos","VR"]
[null,5000,5700,5730,"Aves","VR"]
[null,5000,5700,5740,"Ovinos y caprinos","VR"]
[null,5000,5700,5750,"Peces y acuicultura","VR"]
[null,5000,5700,5760,"Equinos","VR"]
[null,5000,5700,5770,"Especies menores y de zoológico","VR"]
[null,5000,5700,5780,"Árboles y plantas","VR"]
[null,5000,5700,5790,"Otros activos biológicos","VR"]
[null,5000,5800,null,"Bienes Inmuebles"]
[null,5000,5800,5810,"Terrenos","VR"]
[null,5000,5800,5820,"Viviendas","VR"]
[null,5000,5800,5830,"Edificios no residenciales","VR"]
[null,5000,5800,5890,"Otros bienes inmuebles"]
[null,5000,5800,58901,"Adjudicaciones, expropiaciones e indemnizaciones de inmuebles","VR"]
[null,5000,5800,58902,"Bienes inmuebles en la modalidad de proyectos de infraestructura productiva de largo plazo","VR"]
[null,5000,5800,58903,"Bienes inmuebles por arrendamiento financiero","VR"]
[null,5000,5800,58904,"Otros bienes inmuebles","VR"]
[null,5000,5900,null,"Activos Intangibles"]
[null,5000,5900,5910,"Software","VR"]
[null,5000,5900,5920,"Patentes","VR"]
[null,5000,5900,5930,"Marcas","VR"]
[null,5000,5900,5940,"Derechos","VR"]
[null,5000,5900,5950,"Concesiones","VR"]
[null,5000,5900,5960,"Franquicias","VR"]
[null,5000,5900,5970,"Licencias informáticas e intelectuales","VR"]
[null,5000,5900,5980,"Licencias industriales, comerciales y otras","VR"]
[null,5000,5900,5990,"Otros activos intangibles","VR"]
[null,6000,null,null,"Inversión Pública"]
[null,6000,6100,null,"Obra Pública en Bienes de Dominio Público"]
[null,6000,6100,6110,"Edificación habitacional","VR"]
[null,6000,6100,6120,"Edificación no habitacional","VR"]
[null,6000,6100,6130,"Construcción de obras para el abastecimiento de agua, petróleo, gas, electricidad y telecomunicaciones","VR"]
[null,6000,6100,6140,"División de terrenos y construcción de obras de urbanización","VR"]
[null,6000,6100,6150,"Construcción de vías de comunicación","VR"]
[null,6000,6100,6160,"Otras construcciones de ingeniería civil u obra pesada","VR"]
[null,6000,6100,6170,"Instalaciones y equipamiento en construcciones","VR"]
[null,6000,6100,6190,"Trabajos de acabados en edificaciones y otros trabajos especializados","VR"]
[null,6000,6200,null,"Obra Pública en Bienes Propios"]
[null,6000,6200,6210,"Edificación habitacional"]
[null,6000,6200,62101,"Obras de construcción para edificios habitacionales","VR"]
[null,6000,6200,62102,"Mantenimiento y rehabilitación de edificaciones habitacionales","VR"]
[null,6000,6200,6220,"Edificación no habitacional"]
[null,6000,6200,62201,"Obras de construcción para edificios no habitacionales","VR"]
[null,6000,6200,62202,"Mantenimiento y rehabilitación de edificaciones no habitacionales","VR"]
[null,6000,6200,6230,"Construcción de obras para el abastecimiento de agua, petróleo, gas, electricidad y telecomunicaciones"]
[null,6000,6200,62301,"Construcción de obras para el abastecimiento de agua, petróleo, gas, electricidad y telecomunicaciones","VR"]
[null,6000,6200,62302,"Mantenimiento y rehabilitación de obras para el abastecimiento de agua, petróleo, gas, electricidad y telecomunicaciones","VR"]
[null,6000,6200,6240,"División de terrenos y construcción de obras de urbanización"]
[null,6000,6200,62401,"Obras de preedificación en terrenos de construcción","VR"]
[null,6000,6200,62402,"Construcción de obras de urbanización","VR"]
[null,6000,6200,62403,"Mantenimiento y rehabilitación de obras de urbanización","VR"]
[null,6000,6200,6250,"Construcción de vías de comunicación"]
[null,6000,6200,62501,"Construcción de vías de comunicación","VR"]
[null,6000,6200,62502,"Mantenimiento y rehabilitación de las vías de comunicación","VR"]
[null,6000,6200,6260,"Otras construcciones de ingeniería civil u obra pesada"]
[null,6000,6200,62601,"Otras construcciones de ingeniería civil u obra pesada","VR"]
[null,6000,6200,62602,"Mantenimiento y rehabilitación de otras obras de ingeniería civil u obras pesadas","VR"]
[null,6000,6200,6270,"Instalaciones y equipamiento en construcciones","VR"]
[null,6000,6200,6290,"Trabajos de acabados en edificaciones y otros trabajos especializados"]
[null,6000,6200,62901,"Ensamble y edificación de construcciones prefabricadas","VR"]
[null,6000,6200,62902,"Obras de terminación y acabado de edificios","VR"]
[null,6000,6200,62903,"Servicios de supervisión de obras","VR"]
[null,6000,6200,62904,"Servicios para la liberación de derechos de vía","VR"]
[null,6000,6200,62905,"Otros servicios relacionados con obras públicas","VR"]
[null,6000,6300,null,"Proyectos Productivos y Acciones de Fomento"]
[null,6000,6300,6310,"Estudios, formulación y evaluación de proyectos productivos no incluidos en conceptos anteriores de este capítulo","VR"]
[null,6000,6300,6320,"Ejecución de proyectos productivos no incluidos en conceptos anteriores de este capítulo","VR"]
[null,9000,null,null,"Deuda pública"]
[null,9000,9900,null,"Adeudos De Ejercicios Fiscales Anteriores (ADEFAS)"]
[null,9000,9900,9910,"ADEFAS","VR"]

{"sheet":"4 Equivalencias COG=CFA","index":8,"n_rows":97,"n_cols":7,"rows_kept":97,"cut":false,"hidden":false,"merged":[]}
[]
[null,"4. Catálogo de equivalencias COG=CFA, primer criterio (Gasto de Capital)"]
[]
[null,"Cve_Partida genérica ó partida específica","Descripción","Cve_Función","Cve_Subf","Cve_Actividad","Cve_Subactividad"]
[null,5110,"Muebles de oficina y estantería","HK.1","HK.1.1","HK.1.1.2","HK.1.1.2.4"]
[null,5120,"Muebles, excepto de oficina y estantería","HK.1","HK.1.1","HK.1.1.2","HK.1.1.2.4"]
[null,5130,"Bienes artísticos, culturales y científicos","HK.1","HK.1.1","HK.1.1.2","HK.1.1.2.4"]
[null,5140,"Objetos de valor","HK.1","HK.1.1","HK.1.1.2","HK.1.1.2.4"]
[null,5150,"Equipo de cómputo y de tecnologías de la información","HK.1","HK.1.1","HK.1.1.3","HK.1.1.3.1"]
[null,51901,"Equipo de administración","HK.1","HK.1.1","HK.1.1.2","HK.1.1.2.4"]
[null,51902,"Adjudicaciones, expropiaciones e indemnizaciones de bienes muebles","HK.1","HK.1.1","HK.1.1.2","HK.1.1.2.4"]
[null,5210,"Equipos y aparatos audiovisuales","HK.1","HK.1.1","HK.1.1.3","HK.1.1.3.1"]
[null,5220,"Aparatos deportivos","HK.1","HK.1.1","HK.1.1.2","HK.1.1.2.4"]
[null,5230,"Cámaras fotográficas y de video","HK.1","HK.1.1","HK.1.1.2","HK.1.1.2.3"]
[null,5290,"Otro mobiliario y equipo educacional y recreativo","HK.1","HK.1.1","HK.1.1.2","HK.1.1.2.4"]
[null,5310,"Equipo médico y de laboratorio","HK.1","HK.1.1","HK.1.1.2","HK.1.1.2.1"]
[null,5320,"Instrumental médico y de laboratorio","HK.1","HK.1.1","HK.1.1.2","HK.1.1.2.1"]
[null,54101,"Vehículos y equipo terrestres, para la ejecución de programas de seguridad pública y nacional","HK.1","HK.1.1","HK.1.1.2","HK.1.1.2.2"]
[null,54102,"Vehículos y equipo terrestres, destinados exclusivamente para desastres naturales","HK.1","HK.1.1","HK.1.1.2","HK.1.1.2.2"]
[null,54103,"Vehículos y equipo terrestres, destinados a servicios públicos y la operación de programas públicos","HK.1","HK.1.1","HK.1.1.2","HK.1.1.2.2"]
[null,54104,"Vehículos y equipo terrestres, destinados a servicios administrativos","HK.1","HK.1.1","HK.1.1.2","HK.1.1.2.2"]
[null,54105,"Vehículos y equipo terrestres, destinados a servidores públicos","HK.1","HK.1.1","HK.1.1.2","HK.1.1.2.2"]
[null,5420,"Carrocerías y remolques","HK.1","HK.1.1","HK.1.1.2","HK.1.1.2.2"]
[null,54301,"Vehículos y equipo aéreo, para la ejecución de programas de seguridad pública y nacional","HK.1","HK.1.1","HK.1.1.2","HK.1.1.2.2"]
[null,54302,"Vehículos y equipo aéreo, destinados exclusivamente para desastres naturales","HK.1","HK.1.1","HK.1.1.2","HK.1.1.2.2"]
[null,54303,"Vehículos y equipo aéreo, destinados a servicios públicos y la operación de programas públicos","HK.1","HK.1.1","HK.1.1.2","HK.1.1.2.2"]
[null,5440,"Equipo ferroviario","HK.1","HK.1.1","HK.1.1.2","HK.1.1.2.2"]
[null,54501,"Vehículos y equipo marítimo, para la ejecución de programas de seguridad pública y nacional","HK.1","HK.1.1","HK.1.1.2","HK.1.1.2.2"]
[null,54502,"Vehículos y equipo marítimo, destinados a servicios públicos y la operación de programas públicos","HK.1","HK.1.1","HK.1.1.2","HK.1.1.2.2"]
[null,54503,"Construcción de embarcaciones","HK.1","HK.1.1","HK.1.1.2","HK.1.1.2.2"]
[null,5490,"Otros equipos de transporte","HK.1","HK.1.1","HK.1.1.2","HK.1.1.2.2"]
[null,55101,"Maquinaria y equipo de defensa y seguridad pública","HK.1","HK.1.1","HK.1.1.2","HK.1.1.2.4"]
[null,55102,"Equipo de seguridad pública y nacional","HK.1","HK.1.1","HK.1.1.2","HK.1.1.2.4"]
[null,5610,"Maquinaria y equipo agropecuario","HK.1","HK.1.1","HK.1.1.2","HK.1.1.2.4"]
[null,5620,"Maquinaria y equipo industrial","HK.1","HK.1.1","HK.1.1.2","HK.1.1.2.4"]
[null,5630,"Maquinaria y equipo de construcción","HK.1","HK.1.1","HK.1.1.2","HK.1.1.2.4"]
[null,5640,"Sistemas de aire acondicionado, calefacción y de refrigeración industrial y comercial","HK.1","HK.1.1","HK.1.1.2","HK.1.1.2.4"]
[null,5650,"Equipo de comunicación y telecomunicación","HK.1","HK.1.1","HK.1.1.2","HK.1.1.2.3"]
[null,5660,"Equipos de generación eléctrica, aparatos y accesorios eléctricos","HK.1","HK.1.1","HK.1.1.2","HK.1.1.2.4"]
[null,5670,"Herramientas y máquinas-herramienta","HK.1","HK.1.1","HK.1.1.2","HK.1.1.2.4"]
[null,56901,"Bienes muebles por arrendamiento financiero","HK.1","HK.1.1","HK.1.1.2","HK.1.1.2.4"]
[null,56902,"Otros bienes muebles","HK.1","HK.1.1","HK.1.1.2","HK.1.1.2.4"]
[null,5710,"Bovinos","HKR.4"]
[null,5720,"Porcinos","HKR.4"]
[null,5730,"Aves","HKR.4"]
[null,5740,"Ovinos y caprinos","HKR.4"]
[null,5750,"Peces y acuicultura","HKR.4"]
[null,5760,"Equinos","HKR.4"]
[null,5770,"Especies menores y de zoológico","HKR.4"]
[null,5780,"Árboles y plantas","HKR.4"]
[null,5790,"Otros activos biológicos","HKR.4"]
[null,5810,"Terrenos","HK.2","HK.2.1","HK.2","HK.2.1"]
[null,5820,"Viviendas","HK.2","HK.2.1","HK.2","HK.2.1"]
[null,5830,"Edificios no residenciales","HK.1","HK.1.1","HK.1.1.1","HK.1.1.1.1"]
[null,58901,"Adjudicaciones, expropiaciones e indemnizaciones de inmuebles","HK.1","HK.1.1","HK.1.1.1","HK.1.1.1.1"]
[null,58902,"Bienes inmuebles en la modalidad de proyectos de infraestructura productiva de largo plazo","HK.1","HK.1.1","HK.1.1.1","HK.1.1.1.1"]
[null,58903,"Bienes inmuebles por arrendamiento financiero","HK.1","HK.1.1","HK.1.1.1","HK.1.1.1.1"]
[null,58904,"Otros bienes inmuebles","HK.1","HK.1.1","HK.1.1.1","HK.1.1.1.1"]
[null,5910,"Software","HK.1","HK.1.1","HK.1.1.3","HK.1.1.3.1"]
[null,5920,"Patentes","HK.1","HK.1.1","HK.1.1.3","HK.1.1.3.2"]
[null,5930,"Marcas","HK.1","HK.1.1","HK.1.1.3","HK.1.1.3.2"]
[null,5940,"Derechos","HK.1","HK.1.1","HK.1.1.3","HK.1.1.3.2"]
[null,5950,"Concesiones","HK.1","HK.1.1","HK.1.1.3","HK.1.1.3.2"]
[null,5960,"Franquicias","HK.1","HK.1.1","HK.1.1.3","HK.1.1.3.2"]
[null,5970,"Licencias informáticas e intelectuales","HK.1","HK.1.1","HK.1.1.3","HK.1.1.3.1"]
[null,5980,"Licencias industriales, comerciales y otras","HK.1","HK.1.1","HK.1.1.3","HK.1.1.3.2"]
[null,5990,"Otros activos intangibles","HK.1","HK.1.1","HK.1.1.3","HK.1.1.3.2"]
[null,6110,"Edificación habitacional","HK.1","HK.1.1","HK.1.1.1","HK.1.1.1.1"]
[null,6120,"Edificación no habitacional","HK.1","HK.1.1","HK.1.1.1","HK.1.1.1.1"]
[null,6130,"Construcción de obras para el abastecimiento de agua, petróleo, gas, electricidad y telecomunicaciones","HK.1","HK.1.1","HK.1.1.1","HK.1.1.1.1"]
[null,6140,"División de terrenos y construcción de obras de urbanización","HK.1","HK.1.1","HK.1.1.1","HK.1.1.1.1"]
[null,6150,"Construcción de vías de comunicación","HK.1","HK.1.1","HK.1.1.1","HK.1.1.1.1"]
[null,6160,"Otras construcciones de ingeniería civil u obra pesada","HK.1","HK.1.1","HK.1.1.1","HK.1.1.1.1"]
[null,6170,"Instalaciones y equipamiento en construcciones","HK.1","HK.1.1","HK.1.1.1","HK.1.1.1.1"]
[null,6190,"Trabajos de acabados en edificaciones y otros trabajos especializados","HK.1","HK.1.1","HK.1.1.1","HK.1.1.1.1"]
[null,62101,"Obras de construcción para edificios habitacionales","HK.1","HK.1.1","HK.1.1.1","HK.1.1.1.1"]
[null,62102,"Mantenimiento y rehabilitación de edificaciones habitacionales","HK.1","HK.1.1","HK.1.1.1","HK.1.1.1.1"]
[null,62201,"Obras de construcción para edificios no habitacionales","HK.1","HK.1.1","HK.1.1.1","HK.1.1.1.1"]
[null,62202,"Mantenimiento y rehabilitación de edificaciones no habitacionales","HK.1","HK.1.1","HK.1.1.1","HK.1.1.1.1"]
[null,62301,"Construcción de obras para el abastecimiento de agua, petróleo, gas, electricidad y telecomunicaciones","HK.1","HK.1.1","HK.1.1.1","HK.1.1.1.1"]
[null,62302,"Mantenimiento y rehabilitación de obras para el abastecimiento de agua, petróleo, gas, electricidad y telecomunicaciones","HK.1","HK.1.1","HK.1.1.1","HK.1.1.1.1"]
[null,62401,"Obras de pre-edificación en terrenos de construcción","HK.1","HK.1.1","HK.1.1.1","HK.1.1.1.1"]
[null,62402,"Construcción de obras de urbanización","HK.1","HK.1.1","HK.1.1.1","HK.1.1.1.1"]
[null,62403,"Mantenimiento y rehabilitación de obras de urbanización","HK.1","HK.1.1","HK.1.1.1","HK.1.1.1.1"]
[null,62501,"Construcción de vías de comunicación","HK.1","HK.1.1","HK.1.1.1","HK.1.1.1.1"]
[null,62502,"Mantenimiento y rehabilitación de las vías de comunicación","HK.1","HK.1.1","HK.1.1.1","HK.1.1.1.1"]
[null,62601,"Otras construcciones de ingeniería civil u obra pesada","HK.1","HK.1.1","HK.1.1.1","HK.1.1.1.1"]
[null,62602,"Mantenimiento y rehabilitación de otras obras de ingeniería civil u obras pesadas","HK.1","HK.1.1","HK.1.1.1","HK.1.1.1.1"]
[null,6270,"Instalaciones y equipamiento en construcciones","HK.1","HK.1.1","HK.1.1.1","HK.1.1.1.1"]
[null,62901,"Ensamble y edificación de construcciones prefabricadas","HK.1","HK.1.1","HK.1.1.1","HK.1.1.1.1"]
[null,62902,"Obras de terminación y acabado de edificios","HK.1","HK.1.1","HK.1.1.1","HK.1.1.1.1"]
[null,62903,"Servicios de supervisión de obras","HK.1","HK.1.1","HK.1.1.1","HK.1.1.1.1"]
[null,62904,"Servicios para la liberación de derechos de vía","HK.1","HK.1.1","HK.1.1.1","HK.1.1.1.1"]
[null,62905,"Otros servicios relacionados con obras públicas","HK.1","HK.1.1","HK.1.1.1","HK.1.1.1.1"]
[null,6310,"Estudios, formulación y evaluación de proyectos productivos no incluidos en conceptos anteriores de este capítulo","HK.1","HK.1.1","HK.1.1.1","HK.1.1.1.1"]
[null,6320,"Ejecución de proyectos productivos no incluidos en conceptos anteriores de este capítulo","HK.1","HK.1.1","HK.1.1.1","HK.1.1.1.1"]
[null,9910,"ADEFAS","HK.2","HK.2.2"]

{"sheet":"5. Equivalencias CAI=CFA","index":9,"n_rows":100,"n_cols":31,"rows_kept":100,"cut":false,"hidden":false,"merged":[[18,27,18,30],[18,15,18,18],[18,19,18,22],[18,23,18,26],[18,7,18,10],[18,11,18,14]]}
[]
[null,"a. Clasificación CFA para Unidades con una sola clasificación"]
[]
[null,null,null,null,null,"Cve_Edo_Ins","Nombre de Unidad","Cve_Función","Cve_Subf","Cve_Actividad","Cve_Subactividad"]
[null,null,null,null,null,65,"Instituto Nacional de Medicina Genómica ","HC.1","HC.1.1","HC.1.1.2"]
[null,null,null,null,null,70,"Instituto Nacional de Salud Pública","HC.1","HC.1.1","HC.1.1.2"]
[null,null,null,null,null,86,"Instituto Nacional de Geriatría","HC.1","HC.1.1","HC.1.1.2"]
[null,null,null,null,null,74,"Centro Nacional de la Transfusión Sanguínea","HC.4","HC.4.1"]
[null,null,null,null,null,77,"Comisión Nacional de Arbitraje Médico","HC.7","HC.7.1"]
[null,null,null,null,null,80,"Centro Nacional de Trasplantes","HC.4","HC.4.1"]
[null,null,null,null,null,83,"Centro Nacional de Excelencia Tecnológica en Salud","HC.7","HC.7.1"]
[null,null,null,null,null,95,"Dirección General de Epidemiología","HC.6 ","HC.6.5"]
[null,null,null,null,null,92,"Secretariado Técnico del Consejo Nacional para la Prevención de Accidentes","HC.6","HC.6.1"]
[]
[null,null,null,null,null,"Nota: Todos los programas incluidos en el gasto corriente de estas unidades se codifican como se indica "]
[]
[]
[null,"b. Clasificación CFA según tipo de unidad, equivalencia 2024"]
[null,null,null,null,null,null,null,"Institutos y Hospitales",null,null,null,"Órganos desconcentrados",null,null,null,"Asistencia Social",null,null,null,"Unidades Administrativas Centrales",null,null,null,"Laboratorio de Biológicos y Reactivos de México, S.A. de C.V.",null,null,null,"Comisión Nacional de Salud Mental y Adicciones"]
[null,"Cve_Sub\nfunción","Cve_AI","Cve_H","Actividad Institucional","Cve_PP","Programa Presupuestario","Cve_Función","Cve_Subf","Cve_Actividad","Cve_Subactividad","Cve_Función","Cve_Subf","Cve_Actividad","Cve_Subactividad","Cve_Función","Cve_Subf","Cve_Actividad","Cve_Subactividad","Cve_Función","Cve_Subf","Cve_Actividad","Cve_Subactividad","Cve_Función","Cve_Subf","Cve_Actividad","Cve_Subactividad","Cve_Función","Cve_Subf","Cve_Actividad","Cve_Subactividad"]
[null,4,null,null,"Función Pública"]
[null,4,1,null,"Función pública y buen gobierno"]
[null,4,1,null,"Función pública y buen gobierno","O001"," Actividades de apoyo a la función pública y buen gobierno","HC.1","HC.1.1","HC.1.1.2",null,"HC.1","HC.1.3","HC.1.3.1",null,"HCR.1","HCR.1.1",null,null,"HC.7","HC.7.1",null,null,"HC.7","HC.7.1",null,null,"HC.1","HC.1.1","HC.1.1.2"]
[null,1,null,null,"Prestación de Servicios de Salud a la Comunidad"]
[null,1,2,null,"Servicios de apoyo administrativo"]
[null,1,2,null,"Servicios de apoyo administrativo","M001"," Actividades de apoyo administrativo","HC.1","HC.1.1","HC.1.1.2",null,"HC.1","HC.1.3","HC.1.3.1",null,"HCR.1","HCR.1.1",null,null,"HC.7","HC.7.1",null,null,null,null,null,null,"HC.1","HC.1.1","HC.1.1.2"]
[null,1,15,null,"Promoción de la salud y prevención y control de enfermedades fortalecidas e integradas sectorial e intersectorialmente"]
[null,1,15,null,"Promoción de la salud y prevención y control de enfermedades fortalecidas e integradas sectorial e intersectorialmente","E025"," Prevención y atención contra las adicciones","HC.6","HC.6.1",null,null,"HC.6","HC.6.1",null,null,"HC.6","HC.6.1",null,null,"HC.6","HC.6.1",null,null,null,null,null,null,"HC.6","HC.6.1"]
[null,1,15,null,"Promoción de la salud y prevención y control de enfermedades fortalecidas e integradas sectorial e intersectorialmente","P018"," Prevención y control de enfermedades","HC.1","HC.1.1","HC.1.1.2",null,"HC.6","HC.6.3",null,null,"HC.6","HC.6.3",null,null,"HC.6","HC.6.3",null,null,null,null,null,null,"HC.6","HC.6.3"]
[null,1,15,null,"Promoción de la salud y prevención y control de enfermedades fortalecidas e integradas sectorial e intersectorialmente","U008"," Prevención y Control de Sobrepeso, Obesidad y Diabetes","HC.6","HC.6.3",null,null,"HC.6","HC.6.3",null,null,"HC.6","HC.6.3",null,null,"HC.6","HC.6.3",null,null,null,null,null,null,"HC.6","HC.6.3"]
[null,1,16,null,"Enfermedades emergentes, urgencias epidemiológicas y desastres naturales prevenidos, controlados y atendidos oportunamente"]
[null,1,16,null,"Enfermedades emergentes, urgencias epidemiológicas y desastres naturales prevenidos, controlados y atendidos oportunamente","P018"," Prevención y control de enfermedades","HC.1","HC.1.1","HC.1.1.2",null,"HC.6","HC.6.3",null,null,"HC.6","HC.6.3",null,null,"HC.6","HC.6.3",null,null,null,null,null,null,"HC.6","HC.6.3"]
[null,1,16,null,"Enfermedades emergentes, urgencias epidemiológicas y desastres naturales prevenidos, controlados y atendidos oportunamente","U009"," Vigilancia epidemiológica","HC.6","HC.6.5",null,null,"HC.6","HC.6.5",null,null,"HC.6","HC.6.5",null,null,"HC.6","HC.6.5",null,null,null,null,null,null,"HC.6","HC.6.5"]
[null,1,17,null,"Protección contra riesgos sanitarios fortalecida y modernizada"]
[null,1,17,null,"Protección contra riesgos sanitarios fortalecida y modernizada","G004"," Protección Contra Riesgos Sanitarios","HC.6","HC.6.5",null,null,"HC.6","HC.6.5",null,null,"HC.6","HC.6.5",null,null,"HC.6","HC.6.5",null,null,null,null,null,null,"HC.6","HC.6.5"]
[null,1,20,null,"Infraestructura suficiente, equipamiento óptimo e insumos seguros para la salud"]
[null,1,20,null,"Infraestructura suficiente, equipamiento óptimo e insumos seguros para la salud","S281"," Programa Nacional de Reconstrucción","HC.1","HC.1.1","HC.1.1.2",null,"HC.1","HC.1.3","HC.1.3.1",null,"HCR.1","HCR.1.1",null,null,"HC.7","HC.7.1",null,null,null,null,null,null,"HC.1","HC.1.1","HC.1.1.2"]
[null,2,null,null,"Prestación de Servicios de Salud a la Persona"]
[null,2,2,null,"Servicios de apoyo administrativo"]
[null,2,2,null,"Servicios de apoyo administrativo","M001"," Actividades de apoyo administrativo","HC.1","HC.1.1","HC.1.1.2",null,"HC.1","HC.1.3","HC.1.3.1",null,"HCR.1","HCR.1.1",null,null,"HC.7","HC.7.1",null,null,null,null,null,null,"HC.1","HC.1.1","HC.1.1.2"]
[null,2,2,null,"Servicios de apoyo administrativo","W001","Operaciones Ajenas",null,null,null,null,null,null,null,null,null,null,null,null,null,null,null,null,"HC.7","HC.7.1"]
[null,2,18,null,"Prestación de servicios del Sistema Nacional de Salud organizados e integrados"]
[null,2,18,null,"Prestación de servicios del Sistema Nacional de Salud organizados e integrados","E023"," Atención a la Salud","HC.1","HC.1.1","HC.1.1.2",null,"HC.1","HC.1.3","HC.1.3.1",null,"HCR.1","HCR.1.1",null,null,"HC.1","HC.1.3","HC.1.3.1",null,null,null,null,null,"HC.1","HC.1.1","HC.1.1.2"]
[null,2,18,null,"Prestación de servicios del Sistema Nacional de Salud organizados e integrados","E025"," Prevención y atención contra las adicciones","HC.6","HC.6.1",null,null,"HC.6","HC.6.1",null,null,"HC.6","HC.6.1",null,null,"HC.6","HC.6.1",null,null,null,null,null,null,"HC.6","HC.6.1"]
[null,2,18,null,"Prestación de servicios del Sistema Nacional de Salud organizados e integrados","E036"," Programa de vacunación","HC.6","HC.6.2",null,null,"HC.6","HC.6.2",null,null,"HC.6","HC.6.2",null,null,"HC.6","HC.6.2",null,null,null,null,null,null,"HC.6","HC.6.2"]
[null,2,18,null,"Prestación de servicios del Sistema Nacional de Salud organizados e integrados","G005"," Regulación y vigilancia de establecimientos y servicios de atención médica","HC.1","HC.1.1","HC.1.1.2",null,"HC.1","HC.1.3","HC.1.3.1",null,"HCR.1","HCR.1.1",null,null,"HC.7","HC.7.1",null,null,null,null,null,null,"HC.1","HC.1.1","HC.1.1.2"]
[null,2,18,null,"Prestación de servicios del Sistema Nacional de Salud organizados e integrados","P020"," Salud materna, sexual y reproductiva","HC.1","HC.1.1","HC.1.1.2",null,"HC.6","HC.6.1",null,null,"HC.6","HC.6.1",null,null,"HC.6","HC.6.1",null,null,null,null,null,null,"HC.6","HC.6.1"]
[null,2,20,null,"Infraestructura suficiente, equipamiento óptimo e insumos seguros para la salud"]
[null,2,20,null,"Infraestructura suficiente, equipamiento óptimo e insumos seguros para la salud","K011"," Proyectos de infraestructura social de salud","HC.1","HC.1.1","HC.1.1.2",null,"HC.1","HC.1.3","HC.1.3.1",null,"HCR.1","HCR.1.1",null,null,"HC.7","HC.7.1",null,null,null,null,null,null,"HC.1","HC.1.1","HC.1.1.2"]
[null,3,null,null,"Generación de Recursos para la Salud"]
[null,3,2,null,"Servicios de apoyo administrativo"]
[null,3,2,null,"Servicios de apoyo administrativo","M001"," Actividades de apoyo administrativo","HC.1","HC.1.1","HC.1.1.2",null,"HC.1","HC.1.3","HC.1.3.1",null,"HCR.1","HCR.1.1",null,null,"HC.7","HC.7.1",null,null,null,null,null,null,"HC.1","HC.1.1","HC.1.1.2"]
[null,3,19,null,"Formación y capacitación de recursos humanos acordes a las necesidades y demandas de atención a la salud"]
[null,3,19,null,"Formación y capacitación de recursos humanos acordes a las necesidades y demandas de atención a la salud","E010"," Formación y capacitación de recursos humanos para la salud","HC.1","HC.1.1","HC.1.1.2",null,"HC.1","HC.1.3","HC.1.3.1",null,"HCR.1","HCR.1.1",null,null,"HC.7","HC.7.1",null,null,null,null,null,null,"HC.1","HC.1.1","HC.1.1.2"]
[null,3,20,null,"Infraestructura suficiente, equipamiento óptimo e insumos seguros para la salud"]
[null,3,20,null,"Infraestructura suficiente, equipamiento óptimo e insumos seguros para la salud","K011"," Proyectos de infraestructura social de salud","HC.1","HC.1.1","HC.1.1.2",null,"HC.1","HC.1.3","HC.1.3.1",null,"HCR.1","HCR.1.1",null,null,"HC.7","HC.7.1",null,null,null,null,null,null,"HC.1","HC.1.1","HC.1.1.2"]
[null,3,20,null,"Infraestructura suficiente, equipamiento óptimo e insumos seguros para la salud","K025"," Proyectos de inmuebles (oficinas administrativas)","HC.1","HC.1.1","HC.1.1.2",null,"HC.1","HC.1.3","HC.1.3.1",null,"HCR.1","HCR.1.1",null,null,"HC.7","HC.7.1",null,null,null,null,null,null,"HC.1","HC.1.1","HC.1.1.2"]
[null,3,20,null,"Infraestructura suficiente, equipamiento óptimo e insumos seguros para la salud","K027"," Mantenimiento de infraestructura","HC.1","HC.1.1","HC.1.1.2",null,"HC.1","HC.1.3","HC.1.3.1",null,"HCR.1","HCR.1.1",null,null,"HC.7","HC.7.1",null,null,null,null,null,null,"HC.1","HC.1.1","HC.1.1.2"]
[null,3,20,null,"Infraestructura suficiente, equipamiento óptimo e insumos seguros para la salud","B002","Producción de reactivos, vacunas y otros dispositivos médicos estratégicos",null,null,null,null,null,null,null,null,null,null,null,null,null,null,null,null,"HC.6","HC.6.2"]
[null,4,null,null,"Rectoría del Sistema de Salud"]
[null,4,1,null,"Función pública y buen gobierno"]
[null,4,1,null,"Función pública y buen gobierno","M001"," Actividades de apoyo administrativo","HC.1","HC.1.1","HC.1.1.2",null,"HC.1","HC.1.3","HC.1.3.1",null,"HCR.1","HCR.1.1",null,null,"HC.7","HC.7.1",null,null,null,null,null,null,"HC.1","HC.1.1","HC.1.1.2"]
[null,4,2,null,"Servicios de apoyo administrativo"]
[null,4,2,null,"Servicios de apoyo administrativo","M001"," Actividades de apoyo administrativo","HC.1","HC.1.1","HC.1.1.2",null,"HC.1","HC.1.3","HC.1.3.1",null,"HCR.1","HCR.1.1",null,null,"HC.7","HC.7.1",null,null,"HC.7","HC.7.1",null,null,"HC.1","HC.1.1","HC.1.1.2"]
[null,4,14,null,"Sistema Nacional de Salud organizado e integrado"]
[null,4,14,null,"Sistema Nacional de Salud organizado e integrado","P012"," Rectoría en Salud","HC.1","HC.1.1","HC.1.1.2",null,"HC.1","HC.1.3","HC.1.3.1",null,"HCR.1","HCR.1.1",null,null,"HC.7","HC.7.1",null,null,null,null,null,null,"HC.1","HC.1.1","HC.1.1.2"]
[null,4,14,null,"Sistema Nacional de Salud organizado e integrado","P013"," Asistencia social y protección del paciente","HCR.1","HCR.1.1",null,null,"HCR.1","HCR.1.1",null,null,"HCR.1","HCR.1.1",null,null,"HCR.1","HCR.1.1",null,null,null,null,null,null,"HCR.1","HCR.1.1"]
[null,4,14,null,"Sistema Nacional de Salud organizado e integrado","P016"," Prevención y atención de VIH/SIDA y otras ITS","HC.1","HC.1.1","HC.1.1.2",null,"HC.1","HC.1.1","HC.1.1.1",null,"HCR.1","HCR.1.1",null,null,"HC.6","HC.6.3",null,null,null,null,null,null,"HC.1","HC.1.1","HC.1.1.1"]
[null,4,14,null,"Sistema Nacional de Salud organizado e integrado","P018"," Prevención y control de enfermedades","HC.1","HC.1.1","HC.1.1.2",null,"HC.6","HC.6.3",null,null,"HC.6","HC.6.3",null,null,"HC.6","HC.6.3",null,null,null,null,null,null,"HC.6","HC.6.3"]
[null,4,14,null,"Sistema Nacional de Salud organizado e integrado","P020"," Salud materna, sexual y reproductiva","HC.1","HC.1.1","HC.1.1.2",null,"HC.6","HC.6.1",null,null,"HC.6","HC.6.1",null,null,"HC.6","HC.6.1",null,null,null,null,null,null,"HC.6","HC.6.1"]
[null,4,25,null,"Políticas de calidad implementadas en el Sistema Nacional de Salud"]
[null,4,25,null,"Políticas de calidad implementadas en el Sistema Nacional de Salud","P012"," Rectoría en Salud","HC.1","HC.1.1","HC.1.1.2",null,"HC.1","HC.1.3","HC.1.3.1",null,"HCR.1","HCR.1.1",null,null,"HC.7","HC.7.1",null,null,null,null,null,null,"HC.1","HC.1.1","HC.1.1.2"]
[null,4,25,null,"Políticas de calidad implementadas en el Sistema Nacional de Salud","P013"," Asistencia social y protección del paciente","HCR.1","HCR.1.1",null,null,"HCR.1","HCR.1.1",null,null,"HCR.1","HCR.1.1",null,null,"HCR.1","HCR.1.1",null,null,null,null,null,null,"HCR.1","HCR.1.1"]
[null,4,25,null,"Políticas de calidad implementadas en el Sistema Nacional de Salud","P016"," Prevención y atención de VIH/SIDA y otras ITS","HC.1","HC.1.1","HC.1.1.2",null,"HC.1","HC.1.1","HC.1.1.1",null,"HCR.1","HCR.1.1",null,null,"HC.6","HC.6.3",null,null,null,null,null,null,"HC.1","HC.1.1","HC.1.1.1"]
[null,5,null,null,"Protección Social en Salud"]
[null,5,2,null,"Servicios de apoyo administrativo"]
[null,5,2,null,"Servicios de apoyo administrativo","M001"," Actividades de apoyo administrativo","HC.1","HC.1.1","HC.1.1.2",null,"HC.1","HC.1.3","HC.1.3.1",null,"HCR.1","HCR.1.1",null,null,"HC.7","HC.7.1",null,null,null,null,null,null,"HC.1","HC.1.1","HC.1.1.2"]
[null,5,15,null,"Promoción de la salud y prevención y control de enfermedades fortalecidas e integradas sectorial e intersectorialmente"]
[null,5,15,null,"Promoción de la salud y prevención y control de enfermedades fortalecidas e integradas sectorial e intersectorialmente","S200"," Fortalecimiento a la atención médica","HC.1","HC.1.1","HC.1.1.2",null,"HC.1","HC.1.3","HC.1.3.1",null,"HCR.1","HCR.1.1",null,null,"HC.7","HC.7.1",null,null,null,null,null,null,"HC.1","HC.1.1","HC.1.1.2"]
[null,5,18,null,"Prestación de servicios del Sistema Nacional de Salud organizados e integrados"]
[null,5,18,null,"Prestación de servicios del Sistema Nacional de Salud organizados e integrados","E023"," Atención a la Salud","HC.1","HC.1.1","HC.1.1.2",null,"HC.1","HC.1.3","HC.1.3.1",null,"HCR.1","HCR.1.1",null,null,"HC.1","HC.1.3","HC.1.3.1",null,null,null,null,null,"HC.1","HC.1.1","HC.1.1.2"]
[null,5,18,null,"Prestación de servicios del Sistema Nacional de Salud organizados e integrados","U012"," Fortalecimiento de los Servicios Estatales de Salud","HC.1","HC.1.1","HC.1.1.2",null,"HC.1","HC.1.3","HC.1.3.1",null,"HCR.1","HCR.1.1",null,null,"HC.7","HC.7.1",null,null,null,null,null,null,"HC.1","HC.1.1","HC.1.1.2"]
[null,5,20,null,"Infraestructura suficiente, equipamiento óptimo e insumos seguros para la salud"]
[null,5,20,null,"Infraestructura suficiente, equipamiento óptimo e insumos seguros para la salud","S281"," Programa Nacional de Reconstrucción","HC.1","HC.1.1","HC.1.1.2",null,"HC.1","HC.1.3","HC.1.3.1",null,"HCR.1","HCR.1.1",null,null,"HC.7","HC.7.1",null,null,null,null,null,null,"HC.1","HC.1.1","HC.1.1.2"]
[null,5,22,null,"Reforma financiera consolidada con acceso universal a los servicios de salud a la persona"]
[null,5,22,null,"Reforma financiera consolidada con acceso universal a los servicios de salud a la persona","E036"," Programa de vacunación","HC.6","HC.6.2",null,null,"HC.6","HC.6.2",null,null,"HC.6","HC.6.2",null,null,"HC.6","HC.6.2",null,null,null,null,null,null,"HC.6","HC.6.2"]
[null,5,22,null,"Reforma financiera consolidada con acceso universal a los servicios de salud a la persona","P016"," Prevención y atención de VIH/SIDA y otras ITS","HC.1","HC.1.1","HC.1.1.2",null,"HC.1","HC.1.1","HC.1.1.1",null,"HCR.1","HCR.1.1",null,null,"HC.6","HC.6.3",null,null,null,null,null,null,"HC.1","HC.1.1","HC.1.1.1"]
[null,5,22,null,"Reforma financiera consolidada con acceso universal a los servicios de salud a la persona","P020"," Salud materna, sexual y reproductiva","HC.1","HC.1.1","HC.1.1.2",null,"HC.6","HC.6.1",null,null,"HC.6","HC.6.1",null,null,"HC.6","HC.6.1",null,null,null,null,null,null,"HC.6","HC.6.1"]
[null,8,null,null,"Otros Grupos Vulnerables"]
[null,8,2,null,"Servicios de apoyo administrativo"]
[null,8,2,null,"Servicios de apoyo administrativo","M001"," Actividades de apoyo administrativo","HC.1","HC.1.1","HC.1.1.2",null,"HC.1","HC.1.3","HC.1.3.1",null,"HCR.1","HCR.1.1",null,null,"HC.7","HC.7.1",null,null,null,null,null,null,"HC.1","HC.1.1","HC.1.1.2"]
[null,8,12,null,"Asistencia social, comunitaria y beneficencia pública justa y equitativa (asistencia pública)"]
[null,8,12,null,"Asistencia social, comunitaria y beneficencia pública justa y equitativa (asistencia pública)","E010"," Formación y capacitación de recursos humanos para la salud","HC.1","HC.1.1","HC.1.1.2",null,"HC.1","HC.1.3","HC.1.3.1",null,"HCR.1","HCR.1.1",null,null,"HC.7","HC.7.1",null,null,null,null,null,null,"HC.1","HC.1.1","HC.1.1.2"]
[null,8,12,null,"Asistencia social, comunitaria y beneficencia pública justa y equitativa (asistencia pública)","E040"," Servicios de asistencia social integral","HCR.1","HCR.1.1",null,null,"HCR.1","HCR.1.1",null,null,"HCR.1","HCR.1.1",null,null,"HCR.1","HCR.1.1",null,null,null,null,null,null,"HCR.1","HCR.1.1"]
[null,8,12,null,"Asistencia social, comunitaria y beneficencia pública justa y equitativa (asistencia pública)","E041"," Protección y restitución de los derechos de las niñas, niños y adolescentes","HC.6","HC.6.4",null,null,"HC.6","HC.6.4",null,null,"HC.6","HC.6.4",null,null,"HC.6","HC.6.4",null,null,null,null,null,null,"HC.6","HC.6.4"]
[null,8,12,null,"Asistencia social, comunitaria y beneficencia pública justa y equitativa (asistencia pública)","P013"," Asistencia social y protección del paciente","HCR.1","HCR.1.1",null,null,"HCR.1","HCR.1.1",null,null,"HCR.1","HCR.1.1",null,null,"HCR.1","HCR.1.1",null,null,null,null,null,null,"HCR.1","HCR.1.1"]
[null,8,12,null,"Asistencia social, comunitaria y beneficencia pública justa y equitativa (asistencia pública)","S039"," Programa de Atención a Personas con Discapacidad","HC.2","HC.2.1",null,null,"HC.2","HC.2.1",null,null,"HC.2","HC.2.1",null,null,"HC.2","HC.2.1",null,null,null,null,null,null,"HC.2","HC.2.1"]
[null,1,null,null,"Investigación Científica"]
[null,1,24,null,"Investigación en salud pertinente y de excelencia académica"]
[null,1,24,null,"Investigación en salud pertinente y de excelencia académica","E022"," Investigación y desarrollo tecnológico en salud","HC.1","HC.1.1","HC.1.1.2",null,"HC.1","HC.1.3","HC.1.3.1",null,"HCR.1","HCR.1.1",null,null,"HC.7","HC.7.1",null,null,"HC.6","HC.6.2",null,null,"HC.1","HC.1.1","HC.1.1.2"]